{"text_format":"1","workbook":"xlsx","n_sheets":20,"sheets":["Meet","Sessions","Master","Officials","Session 1","Session TT1","Session 2","Session 3","Session TT2","Session 4","Session 5","Session TT3","Session 6","Session 7","Session TT4","Session 8","Session 9","Session TT5","Session 10","Labels"],"not_rendered":{"charts":0,"images":0,"macros":1,"external_links":0,"defined_names":1493,"comments":0,"pivot_tables":0},"unopened":[],"bounds":{"document_bytes":16777216,"sheet_cells":100000,"rows_first":2000,"rows_last":500,"rows_between":2000,"halvings":0,"cell_chars":16384,"cell_head_chars":4096},"cells_cut":0,"cells_raw":0,"read":"whole","date_system":"1900"}

{"sheet":"Meet","index":0,"n_rows":6,"n_cols":2,"rows_kept":6,"cut":false,"hidden":false,"merged":[]}
["Name","meet name"]
["Start","2015-08-06"]
["End","2015-08-10"]
["Location","meet location"]
["First Lane",1]
["Maximum Lanes",8]

{"sheet":"Sessions","index":1,"n_rows":15,"n_cols":3,"rows_kept":15,"cut":false,"hidden":false,"merged":[]}
[" 1",1,"Prelims"]
[" 2",1,"FINALS"]
[" 3",2,"Prelims"]
[" 4",2,"FINALS"]
[" 5",3,"Prelims"]
[" 6",3,"FINALS"]
[" 7",4,"Prelims"]
[" 8",4,"FINALS"]
[" 9",5,"Prelims"]
["10  ",5,"FINALS"]
["TT1",1,"Time Trials - 1st Day"]
["TT2",2,"Time Trials - 2nd Day"]
["TT3",3,"Time Trials - 3rd Day"]
["TT4",4,"Time Trials - 4th Day"]
["TT5",5,"Time Trials - 5th Day"]

{"sheet":"Master","index":2,"n_rows":79,"n_cols":19,"rows_kept":79,"cut":false,"hidden":false,"merged":[]}
["Pos","last_name","first_name","certs","bc check","phone","email","LSC",null,"Session\n1","Session\n2","Session\n3","Session\n4","Session\n5","Session\n6","Session\n7","Session\n8","Session\n9","Session\n10"]
["**MR","ref","meet",null,null,null,null,null,null,"o","o","o","o","o","o","o","o","o","o"]
["*Adm","ref","admin",null,null,null,null,null,null,"o","o","o","o","o","o","o","o","o","o"]
["*Asst Adm","ref 2","admin",null,null,null,null,null,null,"o","o","o","o","o","o","o","o","o","o"]
["*Asst Adm","ref 3","admin",null,null,null,null,null,null,"o","o","o","o","o","o","o","o","o","o"]
[]
["*HCJ","CJ","lead",null,null,null,null,null,null,"o","o","o","o","o","o","o","o","o","o"]
["*CJ","CJ1",null,null,null,null,null,null,null,"o","o","o","o","o","o","o","o","o","o"]
["*CJ","CJ2",null,null,null,null,null,null,null,"o","o","o","o","o","o","o","o","o","o"]
["*CJ","CJ3",null,null,null,null,null,null,null,"o","o","o","o","o","o","o","o","o","o"]
["*CJ","CJ4",null,null,null,null,null,null,null,"o","o","o","o","o","o","o","o","o","o"]
["*CJ","CJ5",null,null,null,null,null,null,null,"o","o","o","o","o","o","o","o","o","o"]
[]
["*DREF","DR1",null,null,null,null,null,null,null,"o","o","o","o","o","o","o","o","o","o"]
["*DREF","DR2",null,null,null,null,null,null,null,"o","o","o","o","o","o","o","o","o","o"]
["*DREF","DR3",null,null,null,null,null,null,null,"o","o","o","o","o","o","o","o","o","o"]
["*DREF","DR4",null,null,null,null,null,null,null,"o","o","o","o","o","o","o","o","o","o"]
["*HSTR","SR","lead",null,null,null,null,null,null,"o","o","o","o","o","o","o","o","o","o"]
["*STR","SR1",null,null,null,null,null,null,null,"o","o","o","o","o","o","o","o","o","o"]
["*STR","SR2",null,null,null,null,null,null,null,"o","o","o","o","o","o","o","o","o","o"]
["*STR","SR3",null,null,null,null,null,null,null,"o","o","o","o","o","o","o","o","o","o"]
["*TTREF","TTR"]
["ST",null,null,null,null,null,null,null,null,"o","o","o","o","o","o","o","o","o","o"]
["ST",null,null,null,null,null,null,null,null,"o","o","o","o","o","o","o","o","o","o"]
["ST",null,null,null,null,null,null,null,null,"o","o","o","o","o","o","o","o","o","o"]
["ST",null,null,null,null,null,null,null,null,"o","o","o","o","o","o","o","o","o","o"]
["ST",null,null,null,null,null,null,null,null,"o","o","o","o","o","o","o","o","o","X"]
["ST",null,null,null,null,null,null,null,null,"o","o","o","o","o","o","o","o","o","o"]
["ST",null,null,null,null,null,null,null,null,"o","o","o","o","o","o","o","o","o","o"]
["ST",null,null,null,null,null,null,null,null,"o","o","o","o","o","o","o","o","o","o"]
["ST",null,null,null,null,null,null,null,null,"o","o","o","o","o","o","o","o","o","o"]
["ST",null,null,null,null,null,null,null,null,"o","o","o","o","o","o","o","o","o","o"]
["ST",null,null,null,null,null,null,null,null,"o","o","o","o","o","o","o","o","o","o"]
["ST",null,null,null,null,null,null,null,null,"o","o","o","o","o","o","o","o","o","o"]
["ST",null,null,null,null,null,null,null,null,"o","o","o","o","o","o","o","o","o","o"]
["ST",null,null,null,null,null,null,null,null,"o","o","o","o","o","o","o","o","o","o"]
["ST",null,null,null,null,null,null,null,null,"o","o","o","o","o","o","o","o","o","o"]
["ST",null,null,null,null,null,null,null,null,"o","o","o","o","o","o","o","o","o","o"]
["ST",null,null,null,null,null,null,null,null,"o","o","o","o","o","o","o","o","o","o"]
["ST",null,null,null,null,null,null,null,null,"o","o","o","o","o","o","o","o","o","o"]
["ST",null,null,null,null,null,null,null,null,"o","o","o","o","o","o","o","o","o","o"]
["ST",null,null,null,null,null,null,null,null,"o","o","o","o","o","o","o","o","o","o"]
["ST",null,null,null,null,null,null,null,null,"o","o","o","o","o","o","o","o","o","o"]
["ST",null,null,null,null,null,null,null,null,"o","o","o","o","o","o","o","o","o","o"]
["ST",null,null,null,null,null,null,null,null,"o","o","o","o","o","o","o","o","o","o"]
["ST",null,null,null,null,null,null,null,null,"o","o","o","o","o","o","o","o","o","o"]
["ST",null,null,null,null,null,null,null,null,"o","o","o","o","o","o","o","o","o","o"]
["ST",null,null,null,null,null,null,null,null,"o","o","o","o","o","o","o","o","o","o"]
["ST",null,null,null,null,null,null,null,null,"o","o","o","o","o","o","o","o","o","o"]
["ST",null,null,null,null,null,null,null,null,"o","o","o","o","o","o","o","o","o","o"]
["ST",null,null,null,null,null,null,null,null,"o","o","o","o","o","o","o","o","o","o"]
["ST",null,null,null,null,null,null,null,null,"o","o","o","o","o","o","o","o","o","o"]
["ST",null,null,null,null,null,null,null,null,"o","o","o","o","o","o","o","o","o","o"]
["ST",null,null,null,null,null,null,null,null,"o","o","o","o","o","o","o","o","o","o"]
["ST",null,null,null,null,null,null,null,null,"o","o","o","o","o","o","o","o","o","o"]
["ST",null,null,null,null,null,null,null,null,"o","o","o","o","o","o","o","o","o","o"]
["ST",null,null,null,null,null,null,null,null,"X","X","o","o","o","o","o","o","X","X"]
["ST",null,null,null,null,null,null,null,null,"o","o","o","o","o","o","o","o","o","o"]
["ST",null,null,null,null,null,null,null,null,"o","o","o","o","o","o","o","o","o","o"]
["ST",null,null,null,null,null,null,null,null,"o","o","o","o","o","o","o","o","o","o"]
["ST",null,null,null,null,null,null,null,null,"o","o","o","o","o","o","o","o","o","o"]
["ST",null,null,null,null,null,null,null,null,"o","o","o","o","o","o","o","o","o","o"]
["ST",null,null,null,null,null,null,null,null,"o","o","o","o","o","o","o","o","o","o"]
["ST",null,null,null,null,null,null,null,null,"o","o","o","o","o","o","o","o","o","o"]
["ST",null,null,null,null,null,null,null,null,"o","o","o","o","o","o","o","o","o","o"]
["ST",null,null,null,null,null,null,null,null,"o","o","o","o","o","o","o","o","o","o"]
["ST",null,null,null,null,null,null,null,null,"o","o","o","X","o","o","o","o","o","X"]
["ST",null,null,null,null,null,null,null,null,"o","o","o","o","o","o","o","o","o","o"]
["ST",null,null,null,null,null,null,null,null,"o","o","o","o","o","o","o","o","o","o"]
["ST",null,null,null,null,null,null,null,null,"o","o","o","o","o","o","o","o","o","o"]
["ST",null,null,null,null,null,null,null,null,"o","o","o","o","o","o","o","o","o","o"]
["ST",null,null,null,null,null,null,null,null,"o","o","o","o","o","o","o","o","o","o"]
["ST",null,null,null,null,null,null,null,null,"o","o","o","o","o","o","o","o","o","o"]
["ST",null,null,null,null,null,null,null,null,"o","o","o","o","o","o","o","o","o","o"]
["ST",null,null,null,null,null,null,null,null,"o","o","o","o","o","o","o","o","o","o"]
["ST",null,null,null,null,null,null,null,null,"o","o","o","o","o","o","o","o","o","o"]
["ST",null,null,null,null,null,null,null,null,"o","o","o","o","o","o","o","o","o","o"]
["ST",null,null,null,null,null,null,null,null,"o","o","o","o","o","o","o","o","o","o"]
["ST",null,null,null,null,null,null,null,null,"o","o","o","o","o","o","o","o","o","o"]

{"sheet":"Officials","index":3,"n_rows":86,"n_cols":32,"rows_kept":86,"cut":false,"hidden":false,"merged":[[0,19,1,24],[0,26,1,31],[0,2,0,11],[0,13,0,17]]}
["Name","Assignment","Sessions",null,null,null,null,null,null,null,null,null,null,"Time Trial Session",null,null,null,null,null,"OTS SUMMARY",null,null,null,null,null,null,"TIME TRIALS OTS SUMMARY"]
[null,null,1,2,3,4,5,6,7,8,9,10,null,"1TT","2TT","3TT","4TT","5TT"]
[{"$f":"Master!C2&\" \"&Master!B2","v":"meet ref"},{"$f":"Master!A2","v":"**MR"},{"$f":"FindSessionPositions($A3,'Session 1'!$A$1:$BL$31)","v":{"$error":"#NAME?"}},{"$f":"FindSessionPositions($A3,'Session 2'!$A$1:$BL$31)","v":{"$error":"#NAME?"}},{"$f":"FindSessionPositions($A3,'Session 3'!$A$1:$BL$31)","v":{"$error":"#NAME?"}},{"$f":"FindSessionPositions($A3,'Session 4'!$A$1:$BL$31)","v":{"$error":"#NAME?"}},{"$f":"FindSessionPositions($A3,'Session 5'!$A$1:$BL$31)","v":{"$error":"#NAME?"}},{"$f":"FindSessionPositions($A3,'Session 6'!$A$1:$BL$31)","v":{"$error":"#NAME?"}},{"$f":"FindSessionPositions($A3,'Session 7'!$A$1:$BL$31)","v":{"$error":"#NAME?"}},{"$f":"FindSessionPositions($A3,'Session 8'!$A$1:$BL$31)","v":{"$error":"#NAME?"}},{"$f":"FindSessionPositions($A3,'Session 9'!$A$1:$BL$31)","v":{"$error":"#NAME?"}},{"$f":"FindSessionPositions($A3,'Session 10'!$A$1:$BL$31)","v":{"$error":"#NAME?"}},null,{"$f":"FindSessionPositions($A3,'Session TT1'!$A$1:$BL$31)","v":{"$error":"#NAME?"}},{"$f":"FindSessionPositions($A3,'Session TT2'!$A$1:$BL$31)","v":{"$error":"#NAME?"}},{"$f":"FindSessionPositions($A3,'Session TT3'!$A$1:$BL$31)","v":{"$error":"#NAME?"}},{"$f":"FindSessionPositions($A3,'Session TT4'!$A$1:$BL$31)","v":{"$error":"#NAME?"}},{"$f":"FindSessionPositions($A3,'Session TT5'!$A$1:$BL$31)","v":{"$error":"#NAME?"}},null,{"$f":"\"ST \"&(COUNTIF(C3:L3,\"S *\"))+(COUNTIF(C3:L3,\"T*\"))+(COUNTIF(C3:L3,\"O*\"))+(COUNTIF(C3:L3,\"K*\"))+(COUNTIF(C3:L3,\"R*\"))+(COUNTIF(C3:L3,\"L*\"))","v":"ST 0"},{"$f":"\"CJ \" & COUNTIF(C3:L3,\"CJ*\")","v":"CJ 0"},{"$f":"\"SR \" & COUNTIF(C3:L3,\"SR\")","v":"SR 0"},{"$f":"\"DR \" & COUNTIF(C3:L3,\"DR\")","v":"DR 0"},{"$f":"\"AR \" & COUNTIF(C3:L3,\"AR\")","v":"AR 0"},{"$f":"\"MR \" & COUNTIF(C3:L3,\"MR\")","v":"MR 0"},null,{"$f":"\"ST \"&(COUNTIF(N3:R3,\"S *\"))+(COUNTIF(N3:R3,\"T*\"))+(COUNTIF(N3:R3,\"O*\"))+(COUNTIF(N3:R3,\"K*\"))+(COUNTIF(N3:R3,\"R*\"))+(COUNTIF(N3:R3,\"L*\"))","v":"ST 0"},{"$f":"\"CJ \" & COUNTIF(N3:R3,\"CJ*\")","v":"CJ 0"},{"$f":"\"SR \" & COUNTIF(N3:R3,\"SR\")","v":"SR 0"},{"$f":"\"DR \" & COUNTIF(N3:R3,\"DR\")","v":"DR 0"},{"$f":"\"AR \" & COUNTIF(N3:R3,\"AR\")","v":"AR 0"},{"$f":"\"MR \" & COUNTIF(N3:R3,\"MR\")","v":"MR 0"}]
[{"$f":"Master!C3&\" \"&Master!B3","v":"admin ref"},{"$f":"Master!A3","v":"*Adm"},{"$f":"FindSessionPositions($A4,'Session 1'!$A$1:$BL$31)","v":{"$error":"#NAME?"}},{"$f":"FindSessionPositions($A4,'Session 2'!$A$1:$BL$31)","v":{"$error":"#NAME?"}},{"$f":"FindSessionPositions($A4,'Session 3'!$A$1:$BL$31)","v":{"$error":"#NAME?"}},{"$f":"FindSessionPositions($A4,'Session 4'!$A$1:$BL$31)","v":{"$error":"#NAME?"}},{"$f":"FindSessionPositions($A4,'Session 5'!$A$1:$BL$31)","v":{"$error":"#NAME?"}},{"$f":"FindSessionPositions($A4,'Session 6'!$A$1:$BL$31)","v":{"$error":"#NAME?"}},{"$f":"FindSessionPositions($A4,'Session 7'!$A$1:$BL$31)","v":{"$error":"#NAME?"}},{"$f":"FindSessionPositions($A4,'Session 8'!$A$1:$BL$31)","v":{"$error":"#NAME?"}},{"$f":"FindSessionPositions($A4,'Session 9'!$A$1:$BL$31)","v":{"$error":"#NAME?"}},{"$f":"FindSessionPositions($A4,'Session 10'!$A$1:$BL$31)","v":{"$error":"#NAME?"}},null,{"$f":"FindSessionPositions($A4,'Session TT1'!$A$1:$BL$31)","v":{"$error":"#NAME?"}},{"$f":"FindSessionPositions($A4,'Session TT2'!$A$1:$BL$31)","v":{"$error":"#NAME?"}},{"$f":"FindSessionPositions($A4,'Session TT3'!$A$1:$BL$31)","v":{"$error":"#NAME?"}},{"$f":"FindSessionPositions($A4,'Session TT4'!$A$1:$BL$31)","v":{"$error":"#NAME?"}},{"$f":"FindSessionPositions($A4,'Session TT5'!$A$1:$BL$31)","v":{"$error":"#NAME?"}},null,{"$f":"\"ST \"&(COUNTIF(C4:L4,\"S *\"))+(COUNTIF(C4:L4,\"T*\"))+(COUNTIF(C4:L4,\"O*\"))+(COUNTIF(C4:L4,\"K*\"))+(COUNTIF(C4:L4,\"R*\"))+(COUNTIF(C4:L4,\"L*\"))","v":"ST 0"},"CJ 0","SR 0","DR 0","AR 0",{"$f":"\"MR \" & COUNTIF(C4:L4,\"MR\")","v":"MR 0"},null,{"$f":"\"ST \"&(COUNTIF(N4:R4,\"S *\"))+(COUNTIF(N4:R4,\"T*\"))+(COUNTIF(N4:R4,\"O*\"))+(COUNTIF(N4:R4,\"K*\"))+(COUNTIF(N4:R4,\"R*\"))+(COUNTIF(N4:R4,\"L*\"))","v":"ST 0"},{"$f":"\"CJ \" & COUNTIF(N4:R4,\"CJ*\")","v":"CJ 0"},{"$f":"\"SR \" & COUNTIF(N4:R4,\"SR\")","v":"SR 0"},{"$f":"\"DR \" & COUNTIF(N4:R4,\"DR\")","v":"DR 0"},{"$f":"\"AR \" & COUNTIF(N4:R4,\"AR\")","v":"AR 0"},{"$f":"\"MR \" & COUNTIF(N4:R4,\"MR\")","v":"MR 0"}]
[{"$f":"Master!C4&\" \"&Master!B4","v":"admin ref 2"},{"$f":"Master!A4","v":"*Asst Adm"},{"$f":"FindSessionPositions($A5,'Session 1'!$A$1:$BL$31)","v":{"$error":"#NAME?"}},{"$f":"FindSessionPositions($A5,'Session 2'!$A$1:$BL$31)","v":{"$error":"#NAME?"}},{"$f":"FindSessionPositions($A5,'Session 3'!$A$1:$BL$31)","v":{"$error":"#NAME?"}},{"$f":"FindSessionPositions($A5,'Session 4'!$A$1:$BL$31)","v":{"$error":"#NAME?"}},{"$f":"FindSessionPositions($A5,'Session 5'!$A$1:$BL$31)","v":{"$error":"#NAME?"}},{"$f":"FindSessionPositions($A5,'Session 6'!$A$1:$BL$31)","v":{"$error":"#NAME?"}},{"$f":"FindSessionPositions($A5,'Session 7'!$A$1:$BL$31)","v":{"$error":"#NAME?"}},{"$f":"FindSessionPositions($A5,'Session 8'!$A$1:$BL$31)","v":{"$error":"#NAME?"}},{"$f":"FindSessionPositions($A5,'Session 9'!$A$1:$BL$31)","v":{"$error":"#NAME?"}},{"$f":"FindSessionPositions($A5,'Session 10'!$A$1:$BL$31)","v":{"$error":"#NAME?"}},null,{"$f":"FindSessionPositions($A5,'Session TT1'!$A$1:$BL$31)","v":{"$error":"#NAME?"}},{"$f":"FindSessionPositions($A5,'Session TT2'!$A$1:$BL$31)","v":{"$error":"#NAME?"}},{"$f":"FindSessionPositions($A5,'Session TT3'!$A$1:$BL$31)","v":{"$error":"#NAME?"}},{"$f":"FindSessionPositions($A5,'Session TT4'!$A$1:$BL$31)","v":{"$error":"#NAME?"}},{"$f":"FindSessionPositions($A5,'Session TT5'!$A$1:$BL$31)","v":{"$error":"#NAME?"}},null,"ST 0","CJ 0","SR 0","DR 0","AR 0","MR 0",null,"ST 0","CJ 0","SR 0","DR 0","AR 0","MR 0"]
[{"$f":"Master!C5&\" \"&Master!B5","v":"admin ref 3"},{"$f":"Master!A5","v":"*Asst Adm"},{"$f":"FindSessionPositions($A6,'Session 1'!$A$1:$BL$31)","v":{"$error":"#NAME?"}},{"$f":"FindSessionPositions($A6,'Session 2'!$A$1:$BL$31)","v":{"$error":"#NAME?"}},{"$f":"FindSessionPositions($A6,'Session 3'!$A$1:$BL$31)","v":{"$error":"#NAME?"}},{"$f":"FindSessionPositions($A6,'Session 4'!$A$1:$BL$31)","v":{"$error":"#NAME?"}},{"$f":"FindSessionPositions($A6,'Session 5'!$A$1:$BL$31)","v":{"$error":"#NAME?"}},{"$f":"FindSessionPositions($A6,'Session 6'!$A$1:$BL$31)","v":{"$error":"#NAME?"}},{"$f":"FindSessionPositions($A6,'Session 7'!$A$1:$BL$31)","v":{"$error":"#NAME?"}},{"$f":"FindSessionPositions($A6,'Session 8'!$A$1:$BL$31)","v":{"$error":"#NAME?"}},{"$f":"FindSessionPositions($A6,'Session 9'!$A$1:$BL$31)","v":{"$error":"#NAME?"}},{"$f":"FindSessionPositions($A6,'Session 10'!$A$1:$BL$31)","v":{"$error":"#NAME?"}},null,{"$f":"FindSessionPositions($A6,'Session TT1'!$A$1:$BL$31)","v":{"$error":"#NAME?"}},{"$f":"FindSessionPositions($A6,'Session TT2'!$A$1:$BL$31)","v":{"$error":"#NAME?"}},{"$f":"FindSessionPositions($A6,'Session TT3'!$A$1:$BL$31)","v":{"$error":"#NAME?"}},{"$f":"FindSessionPositions($A6,'Session TT4'!$A$1:$BL$31)","v":{"$error":"#NAME?"}},{"$f":"FindSessionPositions($A6,'Session TT5'!$A$1:$BL$31)","v":{"$error":"#NAME?"}},null,"ST 0","CJ 0","SR 0","DR 0","AR 0","MR 0",null,"ST 0","CJ 0","SR 0","DR 0","AR 0","MR 0"]
[{"$f":"Master!C6&\" \"&Master!B6","v":" "},null,{"$f":"FindSessionPositions($A7,'Session 1'!$A$1:$BL$31)","v":{"$error":"#NAME?"}},{"$f":"FindSessionPositions($A7,'Session 2'!$A$1:$BL$31)","v":{"$error":"#NAME?"}},{"$f":"FindSessionPositions($A7,'Session 3'!$A$1:$BL$31)","v":{"$error":"#NAME?"}},{"$f":"FindSessionPositions($A7,'Session 4'!$A$1:$BL$31)","v":{"$error":"#NAME?"}},{"$f":"FindSessionPositions($A7,'Session 5'!$A$1:$BL$31)","v":{"$error":"#NAME?"}},{"$f":"FindSessionPositions($A7,'Session 6'!$A$1:$BL$31)","v":{"$error":"#NAME?"}},{"$f":"FindSessionPositions($A7,'Session 7'!$A$1:$BL$31)","v":{"$error":"#NAME?"}},{"$f":"FindSessionPositions($A7,'Session 8'!$A$1:$BL$31)","v":{"$error":"#NAME?"}},{"$f":"FindSessionPositions($A7,'Session 9'!$A$1:$BL$31)","v":{"$error":"#NAME?"}},{"$f":"FindSessionPositions($A7,'Session 10'!$A$1:$BL$31)","v":{"$error":"#NAME?"}},null,{"$f":"FindSessionPositions($A7,'Session TT1'!$A$1:$BL$31)","v":{"$error":"#NAME?"}},{"$f":"FindSessionPositions($A7,'Session TT2'!$A$1:$BL$31)","v":{"$error":"#NAME?"}},{"$f":"FindSessionPositions($A7,'Session TT3'!$A$1:$BL$31)","v":{"$error":"#NAME?"}},{"$f":"FindSessionPositions($A7,'Session TT4'!$A$1:$BL$31)","v":{"$error":"#NAME?"}},{"$f":"FindSessionPositions($A7,'Session TT5'!$A$1:$BL$31)","v":{"$error":"#NAME?"}},null,"ST 0","CJ 0","SR 0","DR 0","AR 0","MR 0",null,"ST 0","CJ 0","SR 0","DR 0","AR 0","MR 0"]
[{"$f":"Master!C7&\" \"&Master!B7","v":"lead CJ"},{"$f":"Master!A7","v":"*HCJ"},{"$f":"FindSessionPositions($A8,'Session 1'!$A$1:$BL$31)","v":{"$error":"#NAME?"}},{"$f":"FindSessionPositions($A8,'Session 2'!$A$1:$BL$31)","v":{"$error":"#NAME?"}},{"$f":"FindSessionPositions($A8,'Session 3'!$A$1:$BL$31)","v":{"$error":"#NAME?"}},{"$f":"FindSessionPositions($A8,'Session 4'!$A$1:$BL$31)","v":{"$error":"#NAME?"}},{"$f":"FindSessionPositions($A8,'Session 5'!$A$1:$BL$31)","v":{"$error":"#NAME?"}},{"$f":"FindSessionPositions($A8,'Session 6'!$A$1:$BL$31)","v":{"$error":"#NAME?"}},{"$f":"FindSessionPositions($A8,'Session 7'!$A$1:$BL$31)","v":{"$error":"#NAME?"}},{"$f":"FindSessionPositions($A8,'Session 8'!$A$1:$BL$31)","v":{"$error":"#NAME?"}},{"$f":"FindSessionPositions($A8,'Session 9'!$A$1:$BL$31)","v":{"$error":"#NAME?"}},{"$f":"FindSessionPositions($A8,'Session 10'!$A$1:$BL$31)","v":{"$error":"#NAME?"}},null,{"$f":"FindSessionPositions($A8,'Session TT1'!$A$1:$BL$31)","v":{"$error":"#NAME?"}},{"$f":"FindSessionPositions($A8,'Session TT2'!$A$1:$BL$31)","v":{"$error":"#NAME?"}},{"$f":"FindSessionPositions($A8,'Session TT3'!$A$1:$BL$31)","v":{"$error":"#NAME?"}},{"$f":"FindSessionPositions($A8,'Session TT4'!$A$1:$BL$31)","v":{"$error":"#NAME?"}},{"$f":"FindSessionPositions($A8,'Session TT5'!$A$1:$BL$31)","v":{"$error":"#NAME?"}},null,"ST 0","CJ 0","SR 0","DR 0","AR 0","MR 0",null,"ST 0","CJ 0","SR 0","DR 0","AR 0","MR 0"]
[{"$f":"Master!C8&\" \"&Master!B8","v":" CJ1"},{"$f":"Master!A8","v":"*CJ"},{"$f":"FindSessionPositions($A9,'Session 1'!$A$1:$BL$31)","v":{"$error":"#NAME?"}},{"$f":"FindSessionPositions($A9,'Session 2'!$A$1:$BL$31)","v":{"$error":"#NAME?"}},{"$f":"FindSessionPositions($A9,'Session 3'!$A$1:$BL$31)","v":{"$error":"#NAME?"}},{"$f":"FindSessionPositions($A9,'Session 4'!$A$1:$BL$31)","v":{"$error":"#NAME?"}},{"$f":"FindSessionPositions($A9,'Session 5'!$A$1:$BL$31)","v":{"$error":"#NAME?"}},{"$f":"FindSessionPositions($A9,'Session 6'!$A$1:$BL$31)","v":{"$error":"#NAME?"}},{"$f":"FindSessionPositions($A9,'Session 7'!$A$1:$BL$31)","v":{"$error":"#NAME?"}},{"$f":"FindSessionPositions($A9,'Session 8'!$A$1:$BL$31)","v":{"$error":"#NAME?"}},{"$f":"FindSessionPositions($A9,'Session 9'!$A$1:$BL$31)","v":{"$error":"#NAME?"}},{"$f":"FindSessionPositions($A9,'Session 10'!$A$1:$BL$31)","v":{"$error":"#NAME?"}},null,{"$f":"FindSessionPositions($A9,'Session TT1'!$A$1:$BL$31)","v":{"$error":"#NAME?"}},{"$f":"FindSessionPositions($A9,'Session TT2'!$A$1:$BL$31)","v":{"$error":"#NAME?"}},{"$f":"FindSessionPositions($A9,'Session TT3'!$A$1:$BL$31)","v":{"$error":"#NAME?"}},{"$f":"FindSessionPositions($A9,'Session TT4'!$A$1:$BL$31)","v":{"$error":"#NAME?"}},{"$f":"FindSessionPositions($A9,'Session TT5'!$A$1:$BL$31)","v":{"$error":"#NAME?"}},null,"ST 0","CJ 0","SR 0","DR 0","AR 0","MR 0",null,"ST 0","CJ 0","SR 0","DR 0","AR 0","MR 0"]
[{"$f":"Master!C9&\" \"&Master!B9","v":" CJ2"},{"$f":"Master!A9","v":"*CJ"},{"$f":"FindSessionPositions($A10,'Session 1'!$A$1:$BL$31)","v":{"$error":"#NAME?"}},{"$f":"FindSessionPositions($A10,'Session 2'!$A$1:$BL$31)","v":{"$error":"#NAME?"}},{"$f":"FindSessionPositions($A10,'Session 3'!$A$1:$BL$31)","v":{"$error":"#NAME?"}},{"$f":"FindSessionPositions($A10,'Session 4'!$A$1:$BL$31)","v":{"$error":"#NAME?"}},{"$f":"FindSessionPositions($A10,'Session 5'!$A$1:$BL$31)","v":{"$error":"#NAME?"}},{"$f":"FindSessionPositions($A10,'Session 6'!$A$1:$BL$31)","v":{"$error":"#NAME?"}},{"$f":"FindSessionPositions($A10,'Session 7'!$A$1:$BL$31)","v":{"$error":"#NAME?"}},{"$f":"FindSessionPositions($A10,'Session 8'!$A$1:$BL$31)","v":{"$error":"#NAME?"}},{"$f":"FindSessionPositions($A10,'Session 9'!$A$1:$BL$31)","v":{"$error":"#NAME?"}},{"$f":"FindSessionPositions($A10,'Session 10'!$A$1:$BL$31)","v":{"$error":"#NAME?"}},null,{"$f":"FindSessionPositions($A10,'Session TT1'!$A$1:$BL$31)","v":{"$error":"#NAME?"}},{"$f":"FindSessionPositions($A10,'Session TT2'!$A$1:$BL$31)","v":{"$error":"#NAME?"}},{"$f":"FindSessionPositions($A10,'Session TT3'!$A$1:$BL$31)","v":{"$error":"#NAME?"}},{"$f":"FindSessionPositions($A10,'Session TT4'!$A$1:$BL$31)","v":{"$error":"#NAME?"}},{"$f":"FindSessionPositions($A10,'Session TT5'!$A$1:$BL$31)","v":{"$error":"#NAME?"}},null,"ST 0","CJ 0","SR 0","DR 0","AR 0","MR 0",null,"ST 0","CJ 0","SR 0","DR 0","AR 0","MR 0"]
[{"$f":"Master!C10&\" \"&Master!B10","v":" CJ3"},{"$f":"Master!A10","v":"*CJ"},{"$f":"FindSessionPositions($A11,'Session 1'!$A$1:$BL$31)","v":{"$error":"#NAME?"}},{"$f":"FindSessionPositions($A11,'Session 2'!$A$1:$BL$31)","v":{"$error":"#NAME?"}},{"$f":"FindSessionPositions($A11,'Session 3'!$A$1:$BL$31)","v":{"$error":"#NAME?"}},{"$f":"FindSessionPositions($A11,'Session 4'!$A$1:$BL$31)","v":{"$error":"#NAME?"}},{"$f":"FindSessionPositions($A11,'Session 5'!$A$1:$BL$31)","v":{"$error":"#NAME?"}},{"$f":"FindSessionPositions($A11,'Session 6'!$A$1:$BL$31)","v":{"$error":"#NAME?"}},{"$f":"FindSessionPositions($A11,'Session 7'!$A$1:$BL$31)","v":{"$error":"#NAME?"}},{"$f":"FindSessionPositions($A11,'Session 8'!$A$1:$BL$31)","v":{"$error":"#NAME?"}},{"$f":"FindSessionPositions($A11,'Session 9'!$A$1:$BL$31)","v":{"$error":"#NAME?"}},{"$f":"FindSessionPositions($A11,'Session 10'!$A$1:$BL$31)","v":{"$error":"#NAME?"}},null,{"$f":"FindSessionPositions($A11,'Session TT1'!$A$1:$BL$31)","v":{"$error":"#NAME?"}},{"$f":"FindSessionPositions($A11,'Session TT2'!$A$1:$BL$31)","v":{"$error":"#NAME?"}},{"$f":"FindSessionPositions($A11,'Session TT3'!$A$1:$BL$31)","v":{"$error":"#NAME?"}},{"$f":"FindSessionPositions($A11,'Session TT4'!$A$1:$BL$31)","v":{"$error":"#NAME?"}},{"$f":"FindSessionPositions($A11,'Session TT5'!$A$1:$BL$31)","v":{"$error":"#NAME?"}},null,"ST 0","CJ 0","SR 0","DR 0","AR 0","MR 0",null,"ST 0","CJ 0","SR 0","DR 0","AR 0","MR 0"]
[{"$f":"Master!C11&\" \"&Master!B11","v":" CJ4"},{"$f":"Master!A11","v":"*CJ"},{"$f":"FindSessionPositions($A12,'Session 1'!$A$1:$BL$31)","v":{"$error":"#NAME?"}},{"$f":"FindSessionPositions($A12,'Session 2'!$A$1:$BL$31)","v":{"$error":"#NAME?"}},{"$f":"FindSessionPositions($A12,'Session 3'!$A$1:$BL$31)","v":{"$error":"#NAME?"}},{"$f":"FindSessionPositions($A12,'Session 4'!$A$1:$BL$31)","v":{"$error":"#NAME?"}},{"$f":"FindSessionPositions($A12,'Session 5'!$A$1:$BL$31)","v":{"$error":"#NAME?"}},{"$f":"FindSessionPositions($A12,'Session 6'!$A$1:$BL$31)","v":{"$error":"#NAME?"}},{"$f":"FindSessionPositions($A12,'Session 7'!$A$1:$BL$31)","v":{"$error":"#NAME?"}},{"$f":"FindSessionPositions($A12,'Session 8'!$A$1:$BL$31)","v":{"$error":"#NAME?"}},{"$f":"FindSessionPositions($A12,'Session 9'!$A$1:$BL$31)","v":{"$error":"#NAME?"}},{"$f":"FindSessionPositions($A12,'Session 10'!$A$1:$BL$31)","v":{"$error":"#NAME?"}},null,{"$f":"FindSessionPositions($A12,'Session TT1'!$A$1:$BL$31)","v":{"$error":"#NAME?"}},{"$f":"FindSessionPositions($A12,'Session TT2'!$A$1:$BL$31)","v":{"$error":"#NAME?"}},{"$f":"FindSessionPositions($A12,'Session TT3'!$A$1:$BL$31)","v":{"$error":"#NAME?"}},{"$f":"FindSessionPositions($A12,'Session TT4'!$A$1:$BL$31)","v":{"$error":"#NAME?"}},{"$f":"FindSessionPositions($A12,'Session TT5'!$A$1:$BL$31)","v":{"$error":"#NAME?"}},null,"ST 0","CJ 0","SR 0","DR 0","AR 0","MR 0",null,"ST 0","CJ 0","SR 0","DR 0","AR 0","MR 0"]
[{"$f":"Master!C12&\" \"&Master!B12","v":" CJ5"},{"$f":"Master!A12","v":"*CJ"},{"$f":"FindSessionPositions($A13,'Session 1'!$A$1:$BL$31)","v":{"$error":"#NAME?"}},{"$f":"FindSessionPositions($A13,'Session 2'!$A$1:$BL$31)","v":{"$error":"#NAME?"}},{"$f":"FindSessionPositions($A13,'Session 3'!$A$1:$BL$31)","v":{"$error":"#NAME?"}},{"$f":"FindSessionPositions($A13,'Session 4'!$A$1:$BL$31)","v":{"$error":"#NAME?"}},{"$f":"FindSessionPositions($A13,'Session 5'!$A$1:$BL$31)","v":{"$error":"#NAME?"}},{"$f":"FindSessionPositions($A13,'Session 6'!$A$1:$BL$31)","v":{"$error":"#NAME?"}},{"$f":"FindSessionPositions($A13,'Session 7'!$A$1:$BL$31)","v":{"$error":"#NAME?"}},{"$f":"FindSessionPositions($A13,'Session 8'!$A$1:$BL$31)","v":{"$error":"#NAME?"}},{"$f":"FindSessionPositions($A13,'Session 9'!$A$1:$BL$31)","v":{"$error":"#NAME?"}},{"$f":"FindSessionPositions($A13,'Session 10'!$A$1:$BL$31)","v":{"$error":"#NAME?"}},null,{"$f":"FindSessionPositions($A13,'Session TT1'!$A$1:$BL$31)","v":{"$error":"#NAME?"}},{"$f":"FindSessionPositions($A13,'Session TT2'!$A$1:$BL$31)","v":{"$error":"#NAME?"}},{"$f":"FindSessionPositions($A13,'Session TT3'!$A$1:$BL$31)","v":{"$error":"#NAME?"}},{"$f":"FindSessionPositions($A13,'Session TT4'!$A$1:$BL$31)","v":{"$error":"#NAME?"}},{"$f":"FindSessionPositions($A13,'Session TT5'!$A$1:$BL$31)","v":{"$error":"#NAME?"}},null,"ST 0","CJ 0","SR 0","DR 0","AR 0","MR 0",null,"ST 0","CJ 0","SR 0","DR 0","AR 0","MR 0"]
[{"$f":"Master!C13&\" \"&Master!B13","v":" "},null,{"$f":"FindSessionPositions($A14,'Session 1'!$A$1:$BL$31)","v":{"$error":"#NAME?"}},{"$f":"FindSessionPositions($A14,'Session 2'!$A$1:$BL$31)","v":{"$error":"#NAME?"}},{"$f":"FindSessionPositions($A14,'Session 3'!$A$1:$BL$31)","v":{"$error":"#NAME?"}},{"$f":"FindSessionPositions($A14,'Session 4'!$A$1:$BL$31)","v":{"$error":"#NAME?"}},{"$f":"FindSessionPositions($A14,'Session 5'!$A$1:$BL$31)","v":{"$error":"#NAME?"}},{"$f":"FindSessionPositions($A14,'Session 6'!$A$1:$BL$31)","v":{"$error":"#NAME?"}},{"$f":"FindSessionPositions($A14,'Session 7'!$A$1:$BL$31)","v":{"$error":"#NAME?"}},{"$f":"FindSessionPositions($A14,'Session 8'!$A$1:$BL$31)","v":{"$error":"#NAME?"}},{"$f":"FindSessionPositions($A14,'Session 9'!$A$1:$BL$31)","v":{"$error":"#NAME?"}},{"$f":"FindSessionPositions($A14,'Session 10'!$A$1:$BL$31)","v":{"$error":"#NAME?"}},null,{"$f":"FindSessionPositions($A14,'Session TT1'!$A$1:$BL$31)","v":{"$error":"#NAME?"}},{"$f":"FindSessionPositions($A14,'Session TT2'!$A$1:$BL$31)","v":{"$error":"#NAME?"}},{"$f":"FindSessionPositions($A14,'Session TT3'!$A$1:$BL$31)","v":{"$error":"#NAME?"}},{"$f":"FindSessionPositions($A14,'Session TT4'!$A$1:$BL$31)","v":{"$error":"#NAME?"}},{"$f":"FindSessionPositions($A14,'Session TT5'!$A$1:$BL$31)","v":{"$error":"#NAME?"}},null,"ST 0","CJ 0","SR 0","DR 0","AR 0","MR 0",null,"ST 0","CJ 0","SR 0","DR 0","AR 0","MR 0"]
[{"$f":"Master!C14&\" \"&Master!B14","v":" DR1"},{"$f":"Master!A14","v":"*DREF"},{"$f":"FindSessionPositions($A15,'Session 1'!$A$1:$BL$31)","v":{"$error":"#NAME?"}},{"$f":"FindSessionPositions($A15,'Session 2'!$A$1:$BL$31)","v":{"$error":"#NAME?"}},{"$f":"FindSessionPositions($A15,'Session 3'!$A$1:$BL$31)","v":{"$error":"#NAME?"}},{"$f":"FindSessionPositions($A15,'Session 4'!$A$1:$BL$31)","v":{"$error":"#NAME?"}},{"$f":"FindSessionPositions($A15,'Session 5'!$A$1:$BL$31)","v":{"$error":"#NAME?"}},{"$f":"FindSessionPositions($A15,'Session 6'!$A$1:$BL$31)","v":{"$error":"#NAME?"}},{"$f":"FindSessionPositions($A15,'Session 7'!$A$1:$BL$31)","v":{"$error":"#NAME?"}},{"$f":"FindSessionPositions($A15,'Session 8'!$A$1:$BL$31)","v":{"$error":"#NAME?"}},{"$f":"FindSessionPositions($A15,'Session 9'!$A$1:$BL$31)","v":{"$error":"#NAME?"}},{"$f":"FindSessionPositions($A15,'Session 10'!$A$1:$BL$31)","v":{"$error":"#NAME?"}},null,{"$f":"FindSessionPositions($A15,'Session TT1'!$A$1:$BL$31)","v":{"$error":"#NAME?"}},{"$f":"FindSessionPositions($A15,'Session TT2'!$A$1:$BL$31)","v":{"$error":"#NAME?"}},{"$f":"FindSessionPositions($A15,'Session TT3'!$A$1:$BL$31)","v":{"$error":"#NAME?"}},{"$f":"FindSessionPositions($A15,'Session TT4'!$A$1:$BL$31)","v":{"$error":"#NAME?"}},{"$f":"FindSessionPositions($A15,'Session TT5'!$A$1:$BL$31)","v":{"$error":"#NAME?"}},null,"ST 0","CJ 0","SR 0","DR 0","AR 0","MR 0",null,"ST 0","CJ 0","SR 0","DR 0","AR 0","MR 0"]
[{"$f":"Master!C15&\" \"&Master!B15","v":" DR2"},{"$f":"Master!A15","v":"*DREF"},{"$f":"FindSessionPositions($A16,'Session 1'!$A$1:$BL$31)","v":{"$error":"#NAME?"}},{"$f":"FindSessionPositions($A16,'Session 2'!$A$1:$BL$31)","v":{"$error":"#NAME?"}},{"$f":"FindSessionPositions($A16,'Session 3'!$A$1:$BL$31)","v":{"$error":"#NAME?"}},{"$f":"FindSessionPositions($A16,'Session 4'!$A$1:$BL$31)","v":{"$error":"#NAME?"}},{"$f":"FindSessionPositions($A16,'Session 5'!$A$1:$BL$31)","v":{"$error":"#NAME?"}},{"$f":"FindSessionPositions($A16,'Session 6'!$A$1:$BL$31)","v":{"$error":"#NAME?"}},{"$f":"FindSessionPositions($A16,'Session 7'!$A$1:$BL$31)","v":{"$error":"#NAME?"}},{"$f":"FindSessionPositions($A16,'Session 8'!$A$1:$BL$31)","v":{"$error":"#NAME?"}},{"$f":"FindSessionPositions($A16,'Session 9'!$A$1:$BL$31)","v":{"$error":"#NAME?"}},{"$f":"FindSessionPositions($A16,'Session 10'!$A$1:$BL$31)","v":{"$error":"#NAME?"}},null,{"$f":"FindSessionPositions($A16,'Session TT1'!$A$1:$BL$31)","v":{"$error":"#NAME?"}},{"$f":"FindSessionPositions($A16,'Session TT2'!$A$1:$BL$31)","v":{"$error":"#NAME?"}},{"$f":"FindSessionPositions($A16,'Session TT3'!$A$1:$BL$31)","v":{"$error":"#NAME?"}},{"$f":"FindSessionPositions($A16,'Session TT4'!$A$1:$BL$31)","v":{"$error":"#NAME?"}},{"$f":"FindSessionPositions($A16,'Session TT5'!$A$1:$BL$31)","v":{"$error":"#NAME?"}},null,"ST 0","CJ 0","SR 0","DR 0","AR 0","MR 0",null,"ST 0","CJ 0","SR 0","DR 0","AR 0","MR 0"]
[{"$f":"Master!C16&\" \"&Master!B16","v":" DR3"},{"$f":"Master!A16","v":"*DREF"},{"$f":"FindSessionPositions($A17,'Session 1'!$A$1:$BL$31)","v":{"$error":"#NAME?"}},{"$f":"FindSessionPositions($A17,'Session 2'!$A$1:$BL$31)","v":{"$error":"#NAME?"}},{"$f":"FindSessionPositions($A17,'Session 3'!$A$1:$BL$31)","v":{"$error":"#NAME?"}},{"$f":"FindSessionPositions($A17,'Session 4'!$A$1:$BL$31)","v":{"$error":"#NAME?"}},{"$f":"FindSessionPositions($A17,'Session 5'!$A$1:$BL$31)","v":{"$error":"#NAME?"}},{"$f":"FindSessionPositions($A17,'Session 6'!$A$1:$BL$31)","v":{"$error":"#NAME?"}},{"$f":"FindSessionPositions($A17,'Session 7'!$A$1:$BL$31)","v":{"$error":"#NAME?"}},{"$f":"FindSessionPositions($A17,'Session 8'!$A$1:$BL$31)","v":{"$error":"#NAME?"}},{"$f":"FindSessionPositions($A17,'Session 9'!$A$1:$BL$31)","v":{"$error":"#NAME?"}},{"$f":"FindSessionPositions($A17,'Session 10'!$A$1:$BL$31)","v":{"$error":"#NAME?"}},null,{"$f":"FindSessionPositions($A17,'Session TT1'!$A$1:$BL$31)","v":{"$error":"#NAME?"}},{"$f":"FindSessionPositions($A17,'Session TT2'!$A$1:$BL$31)","v":{"$error":"#NAME?"}},{"$f":"FindSessionPositions($A17,'Session TT3'!$A$1:$BL$31)","v":{"$error":"#NAME?"}},{"$f":"FindSessionPositions($A17,'Session TT4'!$A$1:$BL$31)","v":{"$error":"#NAME?"}},{"$f":"FindSessionPositions($A17,'Session TT5'!$A$1:$BL$31)","v":{"$error":"#NAME?"}},null,"ST 0","CJ 0","SR 0","DR 0","AR 0","MR 0",null,"ST 0","CJ 0","SR 0","DR 0","AR 0","MR 0"]
[{"$f":"Master!C17&\" \"&Master!B17","v":" DR4"},{"$f":"Master!A17","v":"*DREF"},{"$f":"FindSessionPositions($A18,'Session 1'!$A$1:$BL$31)","v":{"$error":"#NAME?"}},{"$f":"FindSessionPositions($A18,'Session 2'!$A$1:$BL$31)","v":{"$error":"#NAME?"}},{"$f":"FindSessionPositions($A18,'Session 3'!$A$1:$BL$31)","v":{"$error":"#NAME?"}},{"$f":"FindSessionPositions($A18,'Session 4'!$A$1:$BL$31)","v":{"$error":"#NAME?"}},{"$f":"FindSessionPositions($A18,'Session 5'!$A$1:$BL$31)","v":{"$error":"#NAME?"}},{"$f":"FindSessionPositions($A18,'Session 6'!$A$1:$BL$31)","v":{"$error":"#NAME?"}},{"$f":"FindSessionPositions($A18,'Session 7'!$A$1:$BL$31)","v":{"$error":"#NAME?"}},{"$f":"FindSessionPositions($A18,'Session 8'!$A$1:$BL$31)","v":{"$error":"#NAME?"}},{"$f":"FindSessionPositions($A18,'Session 9'!$A$1:$BL$31)","v":{"$error":"#NAME?"}},{"$f":"FindSessionPositions($A18,'Session 10'!$A$1:$BL$31)","v":{"$error":"#NAME?"}},null,{"$f":"FindSessionPositions($A18,'Session TT1'!$A$1:$BL$31)","v":{"$error":"#NAME?"}},{"$f":"FindSessionPositions($A18,'Session TT2'!$A$1:$BL$31)","v":{"$error":"#NAME?"}},{"$f":"FindSessionPositions($A18,'Session TT3'!$A$1:$BL$31)","v":{"$error":"#NAME?"}},{"$f":"FindSessionPositions($A18,'Session TT4'!$A$1:$BL$31)","v":{"$error":"#NAME?"}},{"$f":"FindSessionPositions($A18,'Session TT5'!$A$1:$BL$31)","v":{"$error":"#NAME?"}},null,"ST 0","CJ 0","SR 0","DR 0","AR 0","MR 0",null,"ST 0","CJ 0","SR 0","DR 0","AR 0","MR 0"]
[{"$f":"Master!C18&\" \"&Master!B18","v":"lead SR"},{"$f":"Master!A18","v":"*HSTR"},{"$f":"FindSessionPositions($A19,'Session 1'!$A$1:$BL$31)","v":{"$error":"#NAME?"}},{"$f":"FindSessionPositions($A19,'Session 2'!$A$1:$BL$31)","v":{"$error":"#NAME?"}},{"$f":"FindSessionPositions($A19,'Session 3'!$A$1:$BL$31)","v":{"$error":"#NAME?"}},{"$f":"FindSessionPositions($A19,'Session 4'!$A$1:$BL$31)","v":{"$error":"#NAME?"}},{"$f":"FindSessionPositions($A19,'Session 5'!$A$1:$BL$31)","v":{"$error":"#NAME?"}},{"$f":"FindSessionPositions($A19,'Session 6'!$A$1:$BL$31)","v":{"$error":"#NAME?"}},{"$f":"FindSessionPositions($A19,'Session 7'!$A$1:$BL$31)","v":{"$error":"#NAME?"}},{"$f":"FindSessionPositions($A19,'Session 8'!$A$1:$BL$31)","v":{"$error":"#NAME?"}},{"$f":"FindSessionPositions($A19,'Session 9'!$A$1:$BL$31)","v":{"$error":"#NAME?"}},{"$f":"FindSessionPositions($A19,'Session 10'!$A$1:$BL$31)","v":{"$error":"#NAME?"}},null,{"$f":"FindSessionPositions($A19,'Session TT1'!$A$1:$BL$31)","v":{"$error":"#NAME?"}},{"$f":"FindSessionPositions($A19,'Session TT2'!$A$1:$BL$31)","v":{"$error":"#NAME?"}},{"$f":"FindSessionPositions($A19,'Session TT3'!$A$1:$BL$31)","v":{"$error":"#NAME?"}},{"$f":"FindSessionPositions($A19,'Session TT4'!$A$1:$BL$31)","v":{"$error":"#NAME?"}},{"$f":"FindSessionPositions($A19,'Session TT5'!$A$1:$BL$31)","v":{"$error":"#NAME?"}},null,"ST 0","CJ 0","SR 0","DR 0","AR 0","MR 0",null,"ST 0","CJ 0","SR 0","DR 0","AR 0","MR 0"]
[{"$f":"Master!C19&\" \"&Master!B19","v":" SR1"},{"$f":"Master!A19","v":"*STR"},{"$f":"FindSessionPositions($A20,'Session 1'!$A$1:$BL$31)","v":{"$error":"#NAME?"}},{"$f":"FindSessionPositions($A20,'Session 2'!$A$1:$BL$31)","v":{"$error":"#NAME?"}},{"$f":"FindSessionPositions($A20,'Session 3'!$A$1:$BL$31)","v":{"$error":"#NAME?"}},{"$f":"FindSessionPositions($A20,'Session 4'!$A$1:$BL$31)","v":{"$error":"#NAME?"}},{"$f":"FindSessionPositions($A20,'Session 5'!$A$1:$BL$31)","v":{"$error":"#NAME?"}},{"$f":"FindSessionPositions($A20,'Session 6'!$A$1:$BL$31)","v":{"$error":"#NAME?"}},{"$f":"FindSessionPositions($A20,'Session 7'!$A$1:$BL$31)","v":{"$error":"#NAME?"}},{"$f":"FindSessionPositions($A20,'Session 8'!$A$1:$BL$31)","v":{"$error":"#NAME?"}},{"$f":"FindSessionPositions($A20,'Session 9'!$A$1:$BL$31)","v":{"$error":"#NAME?"}},{"$f":"FindSessionPositions($A20,'Session 10'!$A$1:$BL$31)","v":{"$error":"#NAME?"}},null,{"$f":"FindSessionPositions($A20,'Session TT1'!$A$1:$BL$31)","v":{"$error":"#NAME?"}},{"$f":"FindSessionPositions($A20,'Session TT2'!$A$1:$BL$31)","v":{"$error":"#NAME?"}},{"$f":"FindSessionPositions($A20,'Session TT3'!$A$1:$BL$31)","v":{"$error":"#NAME?"}},{"$f":"FindSessionPositions($A20,'Session TT4'!$A$1:$BL$31)","v":{"$error":"#NAME?"}},{"$f":"FindSessionPositions($A20,'Session TT5'!$A$1:$BL$31)","v":{"$error":"#NAME?"}},null,"ST 0","CJ 0","SR 0","DR 0","AR 0","MR 0",null,"ST 0","CJ 0","SR 0","DR 0","AR 0","MR 0"]
[{"$f":"Master!C20&\" \"&Master!B20","v":" SR2"},{"$f":"Master!A20","v":"*STR"},{"$f":"FindSessionPositions($A21,'Session 1'!$A$1:$BL$31)","v":{"$error":"#NAME?"}},{"$f":"FindSessionPositions($A21,'Session 2'!$A$1:$BL$31)","v":{"$error":"#NAME?"}},{"$f":"FindSessionPositions($A21,'Session 3'!$A$1:$BL$31)","v":{"$error":"#NAME?"}},{"$f":"FindSessionPositions($A21,'Session 4'!$A$1:$BL$31)","v":{"$error":"#NAME?"}},{"$f":"FindSessionPositions($A21,'Session 5'!$A$1:$BL$31)","v":{"$error":"#NAME?"}},{"$f":"FindSessionPositions($A21,'Session 6'!$A$1:$BL$31)","v":{"$error":"#NAME?"}},{"$f":"FindSessionPositions($A21,'Session 7'!$A$1:$BL$31)","v":{"$error":"#NAME?"}},{"$f":"FindSessionPositions($A21,'Session 8'!$A$1:$BL$31)","v":{"$error":"#NAME?"}},{"$f":"FindSessionPositions($A21,'Session 9'!$A$1:$BL$31)","v":{"$error":"#NAME?"}},{"$f":"FindSessionPositions($A21,'Session 10'!$A$1:$BL$31)","v":{"$error":"#NAME?"}},null,{"$f":"FindSessionPositions($A21,'Session TT1'!$A$1:$BL$31)","v":{"$error":"#NAME?"}},{"$f":"FindSessionPositions($A21,'Session TT2'!$A$1:$BL$31)","v":{"$error":"#NAME?"}},{"$f":"FindSessionPositions($A21,'Session TT3'!$A$1:$BL$31)","v":{"$error":"#NAME?"}},{"$f":"FindSessionPositions($A21,'Session TT4'!$A$1:$BL$31)","v":{"$error":"#NAME?"}},{"$f":"FindSessionPositions($A21,'Session TT5'!$A$1:$BL$31)","v":{"$error":"#NAME?"}},null,"ST 0","CJ 0","SR 0","DR 0","AR 0","MR 0",null,"ST 0","CJ 0","SR 0","DR 0","AR 0","MR 0"]
[{"$f":"Master!C21&\" \"&Master!B21","v":" SR3"},{"$f":"Master!A21","v":"*STR"},{"$f":"FindSessionPositions($A22,'Session 1'!$A$1:$BL$31)","v":{"$error":"#NAME?"}},{"$f":"FindSessionPositions($A22,'Session 2'!$A$1:$BL$31)","v":{"$error":"#NAME?"}},{"$f":"FindSessionPositions($A22,'Session 3'!$A$1:$BL$31)","v":{"$error":"#NAME?"}},{"$f":"FindSessionPositions($A22,'Session 4'!$A$1:$BL$31)","v":{"$error":"#NAME?"}},{"$f":"FindSessionPositions($A22,'Session 5'!$A$1:$BL$31)","v":{"$error":"#NAME?"}},{"$f":"FindSessionPositions($A22,'Session 6'!$A$1:$BL$31)","v":{"$error":"#NAME?"}},{"$f":"FindSessionPositions($A22,'Session 7'!$A$1:$BL$31)","v":{"$error":"#NAME?"}},{"$f":"FindSessionPositions($A22,'Session 8'!$A$1:$BL$31)","v":{"$error":"#NAME?"}},{"$f":"FindSessionPositions($A22,'Session 9'!$A$1:$BL$31)","v":{"$error":"#NAME?"}},{"$f":"FindSessionPositions($A22,'Session 10'!$A$1:$BL$31)","v":{"$error":"#NAME?"}},null,{"$f":"FindSessionPositions($A22,'Session TT1'!$A$1:$BL$31)","v":{"$error":"#NAME?"}},{"$f":"FindSessionPositions($A22,'Session TT2'!$A$1:$BL$31)","v":{"$error":"#NAME?"}},{"$f":"FindSessionPositions($A22,'Session TT3'!$A$1:$BL$31)","v":{"$error":"#NAME?"}},{"$f":"FindSessionPositions($A22,'Session TT4'!$A$1:$BL$31)","v":{"$error":"#NAME?"}},{"$f":"FindSessionPositions($A22,'Session TT5'!$A$1:$BL$31)","v":{"$error":"#NAME?"}},null,"ST 0","CJ 0","SR 0","DR 0","AR 0","MR 0",null,"ST 0","CJ 0","SR 0","DR 0","AR 0","MR 0"]
[{"$f":"Master!C22&\" \"&Master!B22","v":" TTR"},{"$f":"Master!A22","v":"*TTREF"},{"$f":"FindSessionPositions($A23,'Session 1'!$A$1:$BL$31)","v":{"$error":"#NAME?"}},{"$f":"FindSessionPositions($A23,'Session 2'!$A$1:$BL$31)","v":{"$error":"#NAME?"}},{"$f":"FindSessionPositions($A23,'Session 3'!$A$1:$BL$31)","v":{"$error":"#NAME?"}},{"$f":"FindSessionPositions($A23,'Session 4'!$A$1:$BL$31)","v":{"$error":"#NAME?"}},{"$f":"FindSessionPositions($A23,'Session 5'!$A$1:$BL$31)","v":{"$error":"#NAME?"}},{"$f":"FindSessionPositions($A23,'Session 6'!$A$1:$BL$31)","v":{"$error":"#NAME?"}},{"$f":"FindSessionPositions($A23,'Session 7'!$A$1:$BL$31)","v":{"$error":"#NAME?"}},{"$f":"FindSessionPositions($A23,'Session 8'!$A$1:$BL$31)","v":{"$error":"#NAME?"}},{"$f":"FindSessionPositions($A23,'Session 9'!$A$1:$BL$31)","v":{"$error":"#NAME?"}},{"$f":"FindSessionPositions($A23,'Session 10'!$A$1:$BL$31)","v":{"$error":"#NAME?"}},null,{"$f":"FindSessionPositions($A23,'Session TT1'!$A$1:$BL$31)","v":{"$error":"#NAME?"}},{"$f":"FindSessionPositions($A23,'Session TT2'!$A$1:$BL$31)","v":{"$error":"#NAME?"}},{"$f":"FindSessionPositions($A23,'Session TT3'!$A$1:$BL$31)","v":{"$error":"#NAME?"}},{"$f":"FindSessionPositions($A23,'Session TT4'!$A$1:$BL$31)","v":{"$error":"#NAME?"}},{"$f":"FindSessionPositions($A23,'Session TT5'!$A$1:$BL$31)","v":{"$error":"#NAME?"}},null,"ST 0","CJ 0","SR 0","DR 0","AR 0","MR 0",null,"ST 0","CJ 0","SR 0","DR 0","AR 0","MR 0"]
[{"$f":"Master!C23&\" \"&Master!B23","v":" "},{"$f":"Master!A23","v":"ST"},{"$f":"FindSessionPositions($A24,'Session 1'!$A$1:$BL$35)","v":{"$error":"#NAME?"}},{"$f":"FindSessionPositions($A24,'Session 2'!$A$1:$BL$35)","v":{"$error":"#NAME?"}},{"$f":"FindSessionPositions($A24,'Session 3'!$A$1:$BL$35)","v":{"$error":"#NAME?"}},{"$f":"FindSessionPositions($A24,'Session 4'!$A$1:$BL$35)","v":{"$error":"#NAME?"}},{"$f":"FindSessionPositions($A24,'Session 5'!$A$1:$BL$35)","v":{"$error":"#NAME?"}},{"$f":"FindSessionPositions($A24,'Session 6'!$A$1:$BL$35)","v":{"$error":"#NAME?"}},{"$f":"FindSessionPositions($A24,'Session 7'!$A$1:$BL$35)","v":{"$error":"#NAME?"}},{"$f":"FindSessionPositions($A24,'Session 8'!$A$1:$BL$35)","v":{"$error":"#NAME?"}},{"$f":"FindSessionPositions($A24,'Session 9'!$A$1:$BL$35)","v":{"$error":"#NAME?"}},{"$f":"FindSessionPositions($A24,'Session 10'!$A$1:$BL$35)","v":{"$error":"#NAME?"}},null,{"$f":"FindSessionPositions($A24,'Session TT1'!$A$1:$BL$31)","v":{"$error":"#NAME?"}},{"$f":"FindSessionPositions($A24,'Session TT2'!$A$1:$BL$31)","v":{"$error":"#NAME?"}},{"$f":"FindSessionPositions($A24,'Session TT3'!$A$1:$BL$31)","v":{"$error":"#NAME?"}},{"$f":"FindSessionPositions($A24,'Session TT4'!$A$1:$BL$31)","v":{"$error":"#NAME?"}},{"$f":"FindSessionPositions($A24,'Session TT5'!$A$1:$BL$31)","v":{"$error":"#NAME?"}},null,"ST 0","CJ 0","SR 0","DR 0","AR 0","MR 0",null,"ST 0","CJ 0","SR 0","DR 0","AR 0","MR 0"]
[{"$f":"Master!C24&\" \"&Master!B24","v":" "},{"$f":"Master!A24","v":"ST"},{"$f":"FindSessionPositions($A25,'Session 1'!$A$1:$BL$35)","v":{"$error":"#NAME?"}},{"$f":"FindSessionPositions($A25,'Session 2'!$A$1:$BL$35)","v":{"$error":"#NAME?"}},{"$f":"FindSessionPositions($A25,'Session 3'!$A$1:$BL$35)","v":{"$error":"#NAME?"}},{"$f":"FindSessionPositions($A25,'Session 4'!$A$1:$BL$35)","v":{"$error":"#NAME?"}},{"$f":"FindSessionPositions($A25,'Session 5'!$A$1:$BL$35)","v":{"$error":"#NAME?"}},{"$f":"FindSessionPositions($A25,'Session 6'!$A$1:$BL$35)","v":{"$error":"#NAME?"}},{"$f":"FindSessionPositions($A25,'Session 7'!$A$1:$BL$35)","v":{"$error":"#NAME?"}},{"$f":"FindSessionPositions($A25,'Session 8'!$A$1:$BL$35)","v":{"$error":"#NAME?"}},{"$f":"FindSessionPositions($A25,'Session 9'!$A$1:$BL$35)","v":{"$error":"#NAME?"}},{"$f":"FindSessionPositions($A25,'Session 10'!$A$1:$BL$35)","v":{"$error":"#NAME?"}},null,{"$f":"FindSessionPositions($A25,'Session TT1'!$A$1:$BL$31)","v":{"$error":"#NAME?"}},{"$f":"FindSessionPositions($A25,'Session TT2'!$A$1:$BL$31)","v":{"$error":"#NAME?"}},{"$f":"FindSessionPositions($A25,'Session TT3'!$A$1:$BL$31)","v":{"$error":"#NAME?"}},{"$f":"FindSessionPositions($A25,'Session TT4'!$A$1:$BL$31)","v":{"$error":"#NAME?"}},{"$f":"FindSessionPositions($A25,'Session TT5'!$A$1:$BL$31)","v":{"$error":"#NAME?"}},null,"ST 0","CJ 0","SR 0","DR 0","AR 0","MR 0",null,"ST 0","CJ 0","SR 0","DR 0","AR 0","MR 0"]
[{"$f":"Master!C25&\" \"&Master!B25","v":" "},{"$f":"Master!A25","v":"ST"},{"$f":"FindSessionPositions($A26,'Session 1'!$A$1:$BL$35)","v":{"$error":"#NAME?"}},{"$f":"FindSessionPositions($A26,'Session 2'!$A$1:$BL$35)","v":{"$error":"#NAME?"}},{"$f":"FindSessionPositions($A26,'Session 3'!$A$1:$BL$35)","v":{"$error":"#NAME?"}},{"$f":"FindSessionPositions($A26,'Session 4'!$A$1:$BL$35)","v":{"$error":"#NAME?"}},{"$f":"FindSessionPositions($A26,'Session 5'!$A$1:$BL$35)","v":{"$error":"#NAME?"}},{"$f":"FindSessionPositions($A26,'Session 6'!$A$1:$BL$35)","v":{"$error":"#NAME?"}},{"$f":"FindSessionPositions($A26,'Session 7'!$A$1:$BL$35)","v":{"$error":"#NAME?"}},{"$f":"FindSessionPositions($A26,'Session 8'!$A$1:$BL$35)","v":{"$error":"#NAME?"}},{"$f":"FindSessionPositions($A26,'Session 9'!$A$1:$BL$35)","v":{"$error":"#NAME?"}},{"$f":"FindSessionPositions($A26,'Session 10'!$A$1:$BL$35)","v":{"$error":"#NAME?"}},null,{"$f":"FindSessionPositions($A26,'Session TT1'!$A$1:$BL$31)","v":{"$error":"#NAME?"}},{"$f":"FindSessionPositions($A26,'Session TT2'!$A$1:$BL$31)","v":{"$error":"#NAME?"}},{"$f":"FindSessionPositions($A26,'Session TT3'!$A$1:$BL$31)","v":{"$error":"#NAME?"}},{"$f":"FindSessionPositions($A26,'Session TT4'!$A$1:$BL$31)","v":{"$error":"#NAME?"}},{"$f":"FindSessionPositions($A26,'Session TT5'!$A$1:$BL$31)","v":{"$error":"#NAME?"}},null,"ST 0","CJ 0","SR 0","DR 0","AR 0","MR 0",null,"ST 0","CJ 0","SR 0","DR 0","AR 0","MR 0"]
[{"$f":"Master!C26&\" \"&Master!B26","v":" "},{"$f":"Master!A26","v":"ST"},{"$f":"FindSessionPositions($A27,'Session 1'!$A$1:$BL$35)","v":{"$error":"#NAME?"}},{"$f":"FindSessionPositions($A27,'Session 2'!$A$1:$BL$35)","v":{"$error":"#NAME?"}},{"$f":"FindSessionPositions($A27,'Session 3'!$A$1:$BL$35)","v":{"$error":"#NAME?"}},{"$f":"FindSessionPositions($A27,'Session 4'!$A$1:$BL$35)","v":{"$error":"#NAME?"}},{"$f":"FindSessionPositions($A27,'Session 5'!$A$1:$BL$35)","v":{"$error":"#NAME?"}},{"$f":"FindSessionPositions($A27,'Session 6'!$A$1:$BL$35)","v":{"$error":"#NAME?"}},{"$f":"FindSessionPositions($A27,'Session 7'!$A$1:$BL$35)","v":{"$error":"#NAME?"}},{"$f":"FindSessionPositions($A27,'Session 8'!$A$1:$BL$35)","v":{"$error":"#NAME?"}},{"$f":"FindSessionPositions($A27,'Session 9'!$A$1:$BL$35)","v":{"$error":"#NAME?"}},{"$f":"FindSessionPositions($A27,'Session 10'!$A$1:$BL$35)","v":{"$error":"#NAME?"}},null,{"$f":"FindSessionPositions($A27,'Session TT1'!$A$1:$BL$31)","v":{"$error":"#NAME?"}},{"$f":"FindSessionPositions($A27,'Session TT2'!$A$1:$BL$31)","v":{"$error":"#NAME?"}},{"$f":"FindSessionPositions($A27,'Session TT3'!$A$1:$BL$31)","v":{"$error":"#NAME?"}},{"$f":"FindSessionPositions($A27,'Session TT4'!$A$1:$BL$31)","v":{"$error":"#NAME?"}},{"$f":"FindSessionPositions($A27,'Session TT5'!$A$1:$BL$31)","v":{"$error":"#NAME?"}},null,"ST 0","CJ 0","SR 0","DR 0","AR 0","MR 0",null,"ST 0","CJ 0","SR 0","DR 0","AR 0","MR 0"]
[{"$f":"Master!C27&\" \"&Master!B27","v":" "},{"$f":"Master!A27","v":"ST"},{"$f":"FindSessionPositions($A28,'Session 1'!$A$1:$BL$35)","v":{"$error":"#NAME?"}},{"$f":"FindSessionPositions($A28,'Session 2'!$A$1:$BL$35)","v":{"$error":"#NAME?"}},{"$f":"FindSessionPositions($A28,'Session 3'!$A$1:$BL$35)","v":{"$error":"#NAME?"}},{"$f":"FindSessionPositions($A28,'Session 4'!$A$1:$BL$35)","v":{"$error":"#NAME?"}},{"$f":"FindSessionPositions($A28,'Session 5'!$A$1:$BL$35)","v":{"$error":"#NAME?"}},{"$f":"FindSessionPositions($A28,'Session 6'!$A$1:$BL$35)","v":{"$error":"#NAME?"}},{"$f":"FindSessionPositions($A28,'Session 7'!$A$1:$BL$35)","v":{"$error":"#NAME?"}},{"$f":"FindSessionPositions($A28,'Session 8'!$A$1:$BL$35)","v":{"$error":"#NAME?"}},{"$f":"FindSessionPositions($A28,'Session 9'!$A$1:$BL$35)","v":{"$error":"#NAME?"}},{"$f":"FindSessionPositions($A28,'Session 10'!$A$1:$BL$35)","v":{"$error":"#NAME?"}},null,{"$f":"FindSessionPositions($A28,'Session TT1'!$A$1:$BL$31)","v":{"$error":"#NAME?"}},{"$f":"FindSessionPositions($A28,'Session TT2'!$A$1:$BL$31)","v":{"$error":"#NAME?"}},{"$f":"FindSessionPositions($A28,'Session TT3'!$A$1:$BL$31)","v":{"$error":"#NAME?"}},{"$f":"FindSessionPositions($A28,'Session TT4'!$A$1:$BL$31)","v":{"$error":"#NAME?"}},{"$f":"FindSessionPositions($A28,'Session TT5'!$A$1:$BL$31)","v":{"$error":"#NAME?"}},null,"ST 0","CJ 0","SR 0","DR 0","AR 0","MR 0",null,"ST 0","CJ 0","SR 0","DR 0","AR 0","MR 0"]
[{"$f":"Master!C28&\" \"&Master!B28","v":" "},{"$f":"Master!A28","v":"ST"},{"$f":"FindSessionPositions($A29,'Session 1'!$A$1:$BL$35)","v":{"$error":"#NAME?"}},{"$f":"FindSessionPositions($A29,'Session 2'!$A$1:$BL$35)","v":{"$error":"#NAME?"}},{"$f":"FindSessionPositions($A29,'Session 3'!$A$1:$BL$35)","v":{"$error":"#NAME?"}},{"$f":"FindSessionPositions($A29,'Session 4'!$A$1:$BL$35)","v":{"$error":"#NAME?"}},{"$f":"FindSessionPositions($A29,'Session 5'!$A$1:$BL$35)","v":{"$error":"#NAME?"}},{"$f":"FindSessionPositions($A29,'Session 6'!$A$1:$BL$35)","v":{"$error":"#NAME?"}},{"$f":"FindSessionPositions($A29,'Session 7'!$A$1:$BL$35)","v":{"$error":"#NAME?"}},{"$f":"FindSessionPositions($A29,'Session 8'!$A$1:$BL$35)","v":{"$error":"#NAME?"}},{"$f":"FindSessionPositions($A29,'Session 9'!$A$1:$BL$35)","v":{"$error":"#NAME?"}},{"$f":"FindSessionPositions($A29,'Session 10'!$A$1:$BL$35)","v":{"$error":"#NAME?"}},null,{"$f":"FindSessionPositions($A29,'Session TT1'!$A$1:$BL$31)","v":{"$error":"#NAME?"}},{"$f":"FindSessionPositions($A29,'Session TT2'!$A$1:$BL$31)","v":{"$error":"#NAME?"}},{"$f":"FindSessionPositions($A29,'Session TT3'!$A$1:$BL$31)","v":{"$error":"#NAME?"}},{"$f":"FindSessionPositions($A29,'Session TT4'!$A$1:$BL$31)","v":{"$error":"#NAME?"}},{"$f":"FindSessionPositions($A29,'Session TT5'!$A$1:$BL$31)","v":{"$error":"#NAME?"}},null,"ST 0","CJ 0","SR 0","DR 0","AR 0","MR 0",null,"ST 0","CJ 0","SR 0","DR 0","AR 0","MR 0"]
[{"$f":"Master!C29&\" \"&Master!B29","v":" "},{"$f":"Master!A29","v":"ST"},{"$f":"FindSessionPositions($A30,'Session 1'!$A$1:$BL$35)","v":{"$error":"#NAME?"}},{"$f":"FindSessionPositions($A30,'Session 2'!$A$1:$BL$35)","v":{"$error":"#NAME?"}},{"$f":"FindSessionPositions($A30,'Session 3'!$A$1:$BL$35)","v":{"$error":"#NAME?"}},{"$f":"FindSessionPositions($A30,'Session 4'!$A$1:$BL$35)","v":{"$error":"#NAME?"}},{"$f":"FindSessionPositions($A30,'Session 5'!$A$1:$BL$35)","v":{"$error":"#NAME?"}},{"$f":"FindSessionPositions($A30,'Session 6'!$A$1:$BL$35)","v":{"$error":"#NAME?"}},{"$f":"FindSessionPositions($A30,'Session 7'!$A$1:$BL$35)","v":{"$error":"#NAME?"}},{"$f":"FindSessionPositions($A30,'Session 8'!$A$1:$BL$35)","v":{"$error":"#NAME?"}},{"$f":"FindSessionPositions($A30,'Session 9'!$A$1:$BL$35)","v":{"$error":"#NAME?"}},{"$f":"FindSessionPositions($A30,'Session 10'!$A$1:$BL$35)","v":{"$error":"#NAME?"}},null,{"$f":"FindSessionPositions($A30,'Session TT1'!$A$1:$BL$31)","v":{"$error":"#NAME?"}},{"$f":"FindSessionPositions($A30,'Session TT2'!$A$1:$BL$31)","v":{"$error":"#NAME?"}},{"$f":"FindSessionPositions($A30,'Session TT3'!$A$1:$BL$31)","v":{"$error":"#NAME?"}},{"$f":"FindSessionPositions($A30,'Session TT4'!$A$1:$BL$31)","v":{"$error":"#NAME?"}},{"$f":"FindSessionPositions($A30,'Session TT5'!$A$1:$BL$31)","v":{"$error":"#NAME?"}},null,"ST 0","CJ 0","SR 0","DR 0","AR 0","MR 0",null,"ST 0","CJ 0","SR 0","DR 0","AR 0","MR 0"]
[{"$f":"Master!C30&\" \"&Master!B30","v":" "},{"$f":"Master!A30","v":"ST"},{"$f":"FindSessionPositions($A31,'Session 1'!$A$1:$BL$35)","v":{"$error":"#NAME?"}},{"$f":"FindSessionPositions($A31,'Session 2'!$A$1:$BL$35)","v":{"$error":"#NAME?"}},{"$f":"FindSessionPositions($A31,'Session 3'!$A$1:$BL$35)","v":{"$error":"#NAME?"}},{"$f":"FindSessionPositions($A31,'Session 4'!$A$1:$BL$35)","v":{"$error":"#NAME?"}},{"$f":"FindSessionPositions($A31,'Session 5'!$A$1:$BL$35)","v":{"$error":"#NAME?"}},{"$f":"FindSessionPositions($A31,'Session 6'!$A$1:$BL$35)","v":{"$error":"#NAME?"}},{"$f":"FindSessionPositions($A31,'Session 7'!$A$1:$BL$35)","v":{"$error":"#NAME?"}},{"$f":"FindSessionPositions($A31,'Session 8'!$A$1:$BL$35)","v":{"$error":"#NAME?"}},{"$f":"FindSessionPositions($A31,'Session 9'!$A$1:$BL$35)","v":{"$error":"#NAME?"}},{"$f":"FindSessionPositions($A31,'Session 10'!$A$1:$BL$35)","v":{"$error":"#NAME?"}},null,{"$f":"FindSessionPositions($A31,'Session TT1'!$A$1:$BL$31)","v":{"$error":"#NAME?"}},{"$f":"FindSessionPositions($A31,'Session TT2'!$A$1:$BL$31)","v":{"$error":"#NAME?"}},{"$f":"FindSessionPositions($A31,'Session TT3'!$A$1:$BL$31)","v":{"$error":"#NAME?"}},{"$f":"FindSessionPositions($A31,'Session TT4'!$A$1:$BL$31)","v":{"$error":"#NAME?"}},{"$f":"FindSessionPositions($A31,'Session TT5'!$A$1:$BL$31)","v":{"$error":"#NAME?"}},null,"ST 0","CJ 0","SR 0","DR 0","AR 0","MR 0",null,"ST 0","CJ 0","SR 0","DR 0","AR 0","MR 0"]
[{"$f":"Master!C31&\" \"&Master!B31","v":" "},{"$f":"Master!A31","v":"ST"},{"$f":"FindSessionPositions($A32,'Session 1'!$A$1:$BL$35)","v":{"$error":"#NAME?"}},{"$f":"FindSessionPositions($A32,'Session 2'!$A$1:$BL$35)","v":{"$error":"#NAME?"}},{"$f":"FindSessionPositions($A32,'Session 3'!$A$1:$BL$35)","v":{"$error":"#NAME?"}},{"$f":"FindSessionPositions($A32,'Session 4'!$A$1:$BL$35)","v":{"$error":"#NAME?"}},{"$f":"FindSessionPositions($A32,'Session 5'!$A$1:$BL$35)","v":{"$error":"#NAME?"}},{"$f":"FindSessionPositions($A32,'Session 6'!$A$1:$BL$35)","v":{"$error":"#NAME?"}},{"$f":"FindSessionPositions($A32,'Session 7'!$A$1:$BL$35)","v":{"$error":"#NAME?"}},{"$f":"FindSessionPositions($A32,'Session 8'!$A$1:$BL$35)","v":{"$error":"#NAME?"}},{"$f":"FindSessionPositions($A32,'Session 9'!$A$1:$BL$35)","v":{"$error":"#NAME?"}},{"$f":"FindSessionPositions($A32,'Session 10'!$A$1:$BL$35)","v":{"$error":"#NAME?"}},null,{"$f":"FindSessionPositions($A32,'Session TT1'!$A$1:$BL$31)","v":{"$error":"#NAME?"}},{"$f":"FindSessionPositions($A32,'Session TT2'!$A$1:$BL$31)","v":{"$error":"#NAME?"}},{"$f":"FindSessionPositions($A32,'Session TT3'!$A$1:$BL$31)","v":{"$error":"#NAME?"}},{"$f":"FindSessionPositions($A32,'Session TT4'!$A$1:$BL$31)","v":{"$error":"#NAME?"}},{"$f":"FindSessionPositions($A32,'Session TT5'!$A$1:$BL$31)","v":{"$error":"#NAME?"}},null,"ST 0","CJ 0","SR 0","DR 0","AR 0","MR 0",null,"ST 0","CJ 0","SR 0","DR 0","AR 0","MR 0"]
[{"$f":"Master!C32&\" \"&Master!B32","v":" "},{"$f":"Master!A32","v":"ST"},{"$f":"FindSessionPositions($A33,'Session 1'!$A$1:$BL$35)","v":{"$error":"#NAME?"}},{"$f":"FindSessionPositions($A33,'Session 2'!$A$1:$BL$35)","v":{"$error":"#NAME?"}},{"$f":"FindSessionPositions($A33,'Session 3'!$A$1:$BL$35)","v":{"$error":"#NAME?"}},{"$f":"FindSessionPositions($A33,'Session 4'!$A$1:$BL$35)","v":{"$error":"#NAME?"}},{"$f":"FindSessionPositions($A33,'Session 5'!$A$1:$BL$35)","v":{"$error":"#NAME?"}},{"$f":"FindSessionPositions($A33,'Session 6'!$A$1:$BL$35)","v":{"$error":"#NAME?"}},{"$f":"FindSessionPositions($A33,'Session 7'!$A$1:$BL$35)","v":{"$error":"#NAME?"}},{"$f":"FindSessionPositions($A33,'Session 8'!$A$1:$BL$35)","v":{"$error":"#NAME?"}},{"$f":"FindSessionPositions($A33,'Session 9'!$A$1:$BL$35)","v":{"$error":"#NAME?"}},{"$f":"FindSessionPositions($A33,'Session 10'!$A$1:$BL$35)","v":{"$error":"#NAME?"}},null,{"$f":"FindSessionPositions($A33,'Session TT1'!$A$1:$BL$31)","v":{"$error":"#NAME?"}},{"$f":"FindSessionPositions($A33,'Session TT2'!$A$1:$BL$31)","v":{"$error":"#NAME?"}},{"$f":"FindSessionPositions($A33,'Session TT3'!$A$1:$BL$31)","v":{"$error":"#NAME?"}},{"$f":"FindSessionPositions($A33,'Session TT4'!$A$1:$BL$31)","v":{"$error":"#NAME?"}},{"$f":"FindSessionPositions($A33,'Session TT5'!$A$1:$BL$31)","v":{"$error":"#NAME?"}},null,"ST 0","CJ 0","SR 0","DR 0","AR 0","MR 0",null,"ST 0","CJ 0","SR 0","DR 0","AR 0","MR 0"]
[{"$f":"Master!C33&\" \"&Master!B33","v":" "},{"$f":"Master!A33","v":"ST"},{"$f":"FindSessionPositions($A34,'Session 1'!$A$1:$BL$35)","v":{"$error":"#NAME?"}},{"$f":"FindSessionPositions($A34,'Session 2'!$A$1:$BL$35)","v":{"$error":"#NAME?"}},{"$f":"FindSessionPositions($A34,'Session 3'!$A$1:$BL$35)","v":{"$error":"#NAME?"}},{"$f":"FindSessionPositions($A34,'Session 4'!$A$1:$BL$35)","v":{"$error":"#NAME?"}},{"$f":"FindSessionPositions($A34,'Session 5'!$A$1:$BL$35)","v":{"$error":"#NAME?"}},{"$f":"FindSessionPositions($A34,'Session 6'!$A$1:$BL$35)","v":{"$error":"#NAME?"}},{"$f":"FindSessionPositions($A34,'Session 7'!$A$1:$BL$35)","v":{"$error":"#NAME?"}},{"$f":"FindSessionPositions($A34,'Session 8'!$A$1:$BL$35)","v":{"$error":"#NAME?"}},{"$f":"FindSessionPositions($A34,'Session 9'!$A$1:$BL$35)","v":{"$error":"#NAME?"}},{"$f":"FindSessionPositions($A34,'Session 10'!$A$1:$BL$35)","v":{"$error":"#NAME?"}},null,{"$f":"FindSessionPositions($A34,'Session TT1'!$A$1:$BL$31)","v":{"$error":"#NAME?"}},{"$f":"FindSessionPositions($A34,'Session TT2'!$A$1:$BL$31)","v":{"$error":"#NAME?"}},{"$f":"FindSessionPositions($A34,'Session TT3'!$A$1:$BL$31)","v":{"$error":"#NAME?"}},{"$f":"FindSessionPositions($A34,'Session TT4'!$A$1:$BL$31)","v":{"$error":"#NAME?"}},{"$f":"FindSessionPositions($A34,'Session TT5'!$A$1:$BL$31)","v":{"$error":"#NAME?"}},null,"ST 0","CJ 0","SR 0","DR 0","AR 0","MR 0",null,"ST 0","CJ 0","SR 0","DR 0","AR 0","MR 0"]
[{"$f":"Master!C34&\" \"&Master!B34","v":" "},{"$f":"Master!A34","v":"ST"},{"$f":"FindSessionPositions($A35,'Session 1'!$A$1:$BL$35)","v":{"$error":"#NAME?"}},{"$f":"FindSessionPositions($A35,'Session 2'!$A$1:$BL$35)","v":{"$error":"#NAME?"}},{"$f":"FindSessionPositions($A35,'Session 3'!$A$1:$BL$35)","v":{"$error":"#NAME?"}},{"$f":"FindSessionPositions($A35,'Session 4'!$A$1:$BL$35)","v":{"$error":"#NAME?"}},{"$f":"FindSessionPositions($A35,'Session 5'!$A$1:$BL$35)","v":{"$error":"#NAME?"}},{"$f":"FindSessionPositions($A35,'Session 6'!$A$1:$BL$35)","v":{"$error":"#NAME?"}},{"$f":"FindSessionPositions($A35,'Session 7'!$A$1:$BL$35)","v":{"$error":"#NAME?"}},{"$f":"FindSessionPositions($A35,'Session 8'!$A$1:$BL$35)","v":{"$error":"#NAME?"}},{"$f":"FindSessionPositions($A35,'Session 9'!$A$1:$BL$35)","v":{"$error":"#NAME?"}},{"$f":"FindSessionPositions($A35,'Session 10'!$A$1:$BL$35)","v":{"$error":"#NAME?"}},null,{"$f":"FindSessionPositions($A35,'Session TT1'!$A$1:$BL$31)","v":{"$error":"#NAME?"}},{"$f":"FindSessionPositions($A35,'Session TT2'!$A$1:$BL$31)","v":{"$error":"#NAME?"}},{"$f":"FindSessionPositions($A35,'Session TT3'!$A$1:$BL$31)","v":{"$error":"#NAME?"}},{"$f":"FindSessionPositions($A35,'Session TT4'!$A$1:$BL$31)","v":{"$error":"#NAME?"}},{"$f":"FindSessionPositions($A35,'Session TT5'!$A$1:$BL$31)","v":{"$error":"#NAME?"}},null,"ST 0",{"$f":"\"CJ \" & COUNTIF(C35:L35,\"CJ*\")","v":"CJ 0"},{"$f":"\"SR \" & COUNTIF(C35:L35,\"SR\")","v":"SR 0"},{"$f":"\"DR \" & COUNTIF(C35:L35,\"DR\")","v":"DR 0"},{"$f":"\"AR \" & COUNTIF(C35:L35,\"AR\")","v":"AR 0"},"MR 0",null,"ST 0","CJ 0","SR 0","DR 0","AR 0","MR 0"]
[{"$f":"Master!C35&\" \"&Master!B35","v":" "},{"$f":"Master!A35","v":"ST"},{"$f":"FindSessionPositions($A36,'Session 1'!$A$1:$BL$35)","v":{"$error":"#NAME?"}},{"$f":"FindSessionPositions($A36,'Session 2'!$A$1:$BL$35)","v":{"$error":"#NAME?"}},{"$f":"FindSessionPositions($A36,'Session 3'!$A$1:$BL$35)","v":{"$error":"#NAME?"}},{"$f":"FindSessionPositions($A36,'Session 4'!$A$1:$BL$35)","v":{"$error":"#NAME?"}},{"$f":"FindSessionPositions($A36,'Session 5'!$A$1:$BL$35)","v":{"$error":"#NAME?"}},{"$f":"FindSessionPositions($A36,'Session 6'!$A$1:$BL$35)","v":{"$error":"#NAME?"}},{"$f":"FindSessionPositions($A36,'Session 7'!$A$1:$BL$35)","v":{"$error":"#NAME?"}},{"$f":"FindSessionPositions($A36,'Session 8'!$A$1:$BL$35)","v":{"$error":"#NAME?"}},{"$f":"FindSessionPositions($A36,'Session 9'!$A$1:$BL$35)","v":{"$error":"#NAME?"}},{"$f":"FindSessionPositions($A36,'Session 10'!$A$1:$BL$35)","v":{"$error":"#NAME?"}},null,{"$f":"FindSessionPositions($A36,'Session TT1'!$A$1:$BL$31)","v":{"$error":"#NAME?"}},{"$f":"FindSessionPositions($A36,'Session TT2'!$A$1:$BL$31)","v":{"$error":"#NAME?"}},{"$f":"FindSessionPositions($A36,'Session TT3'!$A$1:$BL$31)","v":{"$error":"#NAME?"}},{"$f":"FindSessionPositions($A36,'Session TT4'!$A$1:$BL$31)","v":{"$error":"#NAME?"}},{"$f":"FindSessionPositions($A36,'Session TT5'!$A$1:$BL$31)","v":{"$error":"#NAME?"}},null,"ST 0","CJ 0","SR 0","DR 0","AR 0","MR 0",null,"ST 0","CJ 0","SR 0","DR 0","AR 0","MR 0"]
[{"$f":"Master!C36&\" \"&Master!B36","v":" "},{"$f":"Master!A36","v":"ST"},{"$f":"FindSessionPositions($A37,'Session 1'!$A$1:$BL$35)","v":{"$error":"#NAME?"}},{"$f":"FindSessionPositions($A37,'Session 2'!$A$1:$BL$35)","v":{"$error":"#NAME?"}},{"$f":"FindSessionPositions($A37,'Session 3'!$A$1:$BL$35)","v":{"$error":"#NAME?"}},{"$f":"FindSessionPositions($A37,'Session 4'!$A$1:$BL$35)","v":{"$error":"#NAME?"}},{"$f":"FindSessionPositions($A37,'Session 5'!$A$1:$BL$35)","v":{"$error":"#NAME?"}},{"$f":"FindSessionPositions($A37,'Session 6'!$A$1:$BL$35)","v":{"$error":"#NAME?"}},{"$f":"FindSessionPositions($A37,'Session 7'!$A$1:$BL$35)","v":{"$error":"#NAME?"}},{"$f":"FindSessionPositions($A37,'Session 8'!$A$1:$BL$35)","v":{"$error":"#NAME?"}},{"$f":"FindSessionPositions($A37,'Session 9'!$A$1:$BL$35)","v":{"$error":"#NAME?"}},{"$f":"FindSessionPositions($A37,'Session 10'!$A$1:$BL$35)","v":{"$error":"#NAME?"}},null,{"$f":"FindSessionPositions($A37,'Session TT1'!$A$1:$BL$31)","v":{"$error":"#NAME?"}},{"$f":"FindSessionPositions($A37,'Session TT2'!$A$1:$BL$31)","v":{"$error":"#NAME?"}},{"$f":"FindSessionPositions($A37,'Session TT3'!$A$1:$BL$31)","v":{"$error":"#NAME?"}},{"$f":"FindSessionPositions($A37,'Session TT4'!$A$1:$BL$31)","v":{"$error":"#NAME?"}},{"$f":"FindSessionPositions($A37,'Session TT5'!$A$1:$BL$31)","v":{"$error":"#NAME?"}},null,"ST 0","CJ 0","SR 0","DR 0","AR 0","MR 0",null,"ST 0","CJ 0","SR 0","DR 0","AR 0","MR 0"]
[{"$f":"Master!C37&\" \"&Master!B37","v":" "},{"$f":"Master!A37","v":"ST"},{"$f":"FindSessionPositions($A38,'Session 1'!$A$1:$BL$35)","v":{"$error":"#NAME?"}},{"$f":"FindSessionPositions($A38,'Session 2'!$A$1:$BL$35)","v":{"$error":"#NAME?"}},{"$f":"FindSessionPositions($A38,'Session 3'!$A$1:$BL$35)","v":{"$error":"#NAME?"}},{"$f":"FindSessionPositions($A38,'Session 4'!$A$1:$BL$35)","v":{"$error":"#NAME?"}},{"$f":"FindSessionPositions($A38,'Session 5'!$A$1:$BL$35)","v":{"$error":"#NAME?"}},{"$f":"FindSessionPositions($A38,'Session 6'!$A$1:$BL$35)","v":{"$error":"#NAME?"}},{"$f":"FindSessionPositions($A38,'Session 7'!$A$1:$BL$35)","v":{"$error":"#NAME?"}},{"$f":"FindSessionPositions($A38,'Session 8'!$A$1:$BL$35)","v":{"$error":"#NAME?"}},{"$f":"FindSessionPositions($A38,'Session 9'!$A$1:$BL$35)","v":{"$error":"#NAME?"}},{"$f":"FindSessionPositions($A38,'Session 10'!$A$1:$BL$35)","v":{"$error":"#NAME?"}},null,{"$f":"FindSessionPositions($A38,'Session TT1'!$A$1:$BL$31)","v":{"$error":"#NAME?"}},{"$f":"FindSessionPositions($A38,'Session TT2'!$A$1:$BL$31)","v":{"$error":"#NAME?"}},{"$f":"FindSessionPositions($A38,'Session TT3'!$A$1:$BL$31)","v":{"$error":"#NAME?"}},{"$f":"FindSessionPositions($A38,'Session TT4'!$A$1:$BL$31)","v":{"$error":"#NAME?"}},{"$f":"FindSessionPositions($A38,'Session TT5'!$A$1:$BL$31)","v":{"$error":"#NAME?"}},null,"ST 0","CJ 0","SR 0","DR 0","AR 0","MR 0",null,"ST 0","CJ 0","SR 0","DR 0","AR 0","MR 0"]
[{"$f":"Master!C38&\" \"&Master!B38","v":" "},{"$f":"Master!A38","v":"ST"},{"$f":"FindSessionPositions($A39,'Session 1'!$A$1:$BL$35)","v":{"$error":"#NAME?"}},{"$f":"FindSessionPositions($A39,'Session 2'!$A$1:$BL$35)","v":{"$error":"#NAME?"}},{"$f":"FindSessionPositions($A39,'Session 3'!$A$1:$BL$35)","v":{"$error":"#NAME?"}},{"$f":"FindSessionPositions($A39,'Session 4'!$A$1:$BL$35)","v":{"$error":"#NAME?"}},{"$f":"FindSessionPositions($A39,'Session 5'!$A$1:$BL$35)","v":{"$error":"#NAME?"}},{"$f":"FindSessionPositions($A39,'Session 6'!$A$1:$BL$35)","v":{"$error":"#NAME?"}},{"$f":"FindSessionPositions($A39,'Session 7'!$A$1:$BL$35)","v":{"$error":"#NAME?"}},{"$f":"FindSessionPositions($A39,'Session 8'!$A$1:$BL$35)","v":{"$error":"#NAME?"}},{"$f":"FindSessionPositions($A39,'Session 9'!$A$1:$BL$35)","v":{"$error":"#NAME?"}},{"$f":"FindSessionPositions($A39,'Session 10'!$A$1:$BL$35)","v":{"$error":"#NAME?"}},null,{"$f":"FindSessionPositions($A39,'Session TT1'!$A$1:$BL$31)","v":{"$error":"#NAME?"}},{"$f":"FindSessionPositions($A39,'Session TT2'!$A$1:$BL$31)","v":{"$error":"#NAME?"}},{"$f":"FindSessionPositions($A39,'Session TT3'!$A$1:$BL$31)","v":{"$error":"#NAME?"}},{"$f":"FindSessionPositions($A39,'Session TT4'!$A$1:$BL$31)","v":{"$error":"#NAME?"}},{"$f":"FindSessionPositions($A39,'Session TT5'!$A$1:$BL$31)","v":{"$error":"#NAME?"}},null,"ST 0","CJ 0","SR 0","DR 0","AR 0","MR 0",null,"ST 0","CJ 0","SR 0","DR 0","AR 0","MR 0"]
[{"$f":"Master!C39&\" \"&Master!B39","v":" "},{"$f":"Master!A39","v":"ST"},{"$f":"FindSessionPositions($A40,'Session 1'!$A$1:$BL$35)","v":{"$error":"#NAME?"}},{"$f":"FindSessionPositions($A40,'Session 2'!$A$1:$BL$35)","v":{"$error":"#NAME?"}},{"$f":"FindSessionPositions($A40,'Session 3'!$A$1:$BL$35)","v":{"$error":"#NAME?"}},{"$f":"FindSessionPositions($A40,'Session 4'!$A$1:$BL$35)","v":{"$error":"#NAME?"}},{"$f":"FindSessionPositions($A40,'Session 5'!$A$1:$BL$35)","v":{"$error":"#NAME?"}},{"$f":"FindSessionPositions($A40,'Session 6'!$A$1:$BL$35)","v":{"$error":"#NAME?"}},{"$f":"FindSessionPositions($A40,'Session 7'!$A$1:$BL$35)","v":{"$error":"#NAME?"}},{"$f":"FindSessionPositions($A40,'Session 8'!$A$1:$BL$35)","v":{"$error":"#NAME?"}},{"$f":"FindSessionPositions($A40,'Session 9'!$A$1:$BL$35)","v":{"$error":"#NAME?"}},{"$f":"FindSessionPositions($A40,'Session 10'!$A$1:$BL$35)","v":{"$error":"#NAME?"}},null,{"$f":"FindSessionPositions($A40,'Session TT1'!$A$1:$BL$31)","v":{"$error":"#NAME?"}},{"$f":"FindSessionPositions($A40,'Session TT2'!$A$1:$BL$31)","v":{"$error":"#NAME?"}},{"$f":"FindSessionPositions($A40,'Session TT3'!$A$1:$BL$31)","v":{"$error":"#NAME?"}},{"$f":"FindSessionPositions($A40,'Session TT4'!$A$1:$BL$31)","v":{"$error":"#NAME?"}},{"$f":"FindSessionPositions($A40,'Session TT5'!$A$1:$BL$31)","v":{"$error":"#NAME?"}},null,"ST 0","CJ 0","SR 0","DR 0","AR 0","MR 0",null,"ST 0","CJ 0","SR 0","DR 0","AR 0","MR 0"]
[{"$f":"Master!C40&\" \"&Master!B40","v":" "},{"$f":"Master!A40","v":"ST"},{"$f":"FindSessionPositions($A41,'Session 1'!$A$1:$BL$35)","v":{"$error":"#NAME?"}},{"$f":"FindSessionPositions($A41,'Session 2'!$A$1:$BL$35)","v":{"$error":"#NAME?"}},{"$f":"FindSessionPositions($A41,'Session 3'!$A$1:$BL$35)","v":{"$error":"#NAME?"}},{"$f":"FindSessionPositions($A41,'Session 4'!$A$1:$BL$35)","v":{"$error":"#NAME?"}},{"$f":"FindSessionPositions($A41,'Session 5'!$A$1:$BL$35)","v":{"$error":"#NAME?"}},{"$f":"FindSessionPositions($A41,'Session 6'!$A$1:$BL$35)","v":{"$error":"#NAME?"}},{"$f":"FindSessionPositions($A41,'Session 7'!$A$1:$BL$35)","v":{"$error":"#NAME?"}},{"$f":"FindSessionPositions($A41,'Session 8'!$A$1:$BL$35)","v":{"$error":"#NAME?"}},{"$f":"FindSessionPositions($A41,'Session 9'!$A$1:$BL$35)","v":{"$error":"#NAME?"}},{"$f":"FindSessionPositions($A41,'Session 10'!$A$1:$BL$35)","v":{"$error":"#NAME?"}},null,{"$f":"FindSessionPositions($A41,'Session TT1'!$A$1:$BL$31)","v":{"$error":"#NAME?"}},{"$f":"FindSessionPositions($A41,'Session TT2'!$A$1:$BL$31)","v":{"$error":"#NAME?"}},{"$f":"FindSessionPositions($A41,'Session TT3'!$A$1:$BL$31)","v":{"$error":"#NAME?"}},{"$f":"FindSessionPositions($A41,'Session TT4'!$A$1:$BL$31)","v":{"$error":"#NAME?"}},{"$f":"FindSessionPositions($A41,'Session TT5'!$A$1:$BL$31)","v":{"$error":"#NAME?"}},null,"ST 0","CJ 0","SR 0","DR 0","AR 0","MR 0",null,"ST 0","CJ 0","SR 0","DR 0","AR 0","MR 0"]
[{"$f":"Master!C41&\" \"&Master!B41","v":" "},{"$f":"Master!A41","v":"ST"},{"$f":"FindSessionPositions($A42,'Session 1'!$A$1:$BL$35)","v":{"$error":"#NAME?"}},{"$f":"FindSessionPositions($A42,'Session 2'!$A$1:$BL$35)","v":{"$error":"#NAME?"}},{"$f":"FindSessionPositions($A42,'Session 3'!$A$1:$BL$35)","v":{"$error":"#NAME?"}},{"$f":"FindSessionPositions($A42,'Session 4'!$A$1:$BL$35)","v":{"$error":"#NAME?"}},{"$f":"FindSessionPositions($A42,'Session 5'!$A$1:$BL$35)","v":{"$error":"#NAME?"}},{"$f":"FindSessionPositions($A42,'Session 6'!$A$1:$BL$35)","v":{"$error":"#NAME?"}},{"$f":"FindSessionPositions($A42,'Session 7'!$A$1:$BL$35)","v":{"$error":"#NAME?"}},{"$f":"FindSessionPositions($A42,'Session 8'!$A$1:$BL$35)","v":{"$error":"#NAME?"}},{"$f":"FindSessionPositions($A42,'Session 9'!$A$1:$BL$35)","v":{"$error":"#NAME?"}},{"$f":"FindSessionPositions($A42,'Session 10'!$A$1:$BL$35)","v":{"$error":"#NAME?"}},null,{"$f":"FindSessionPositions($A42,'Session TT1'!$A$1:$BL$31)","v":{"$error":"#NAME?"}},{"$f":"FindSessionPositions($A42,'Session TT2'!$A$1:$BL$31)","v":{"$error":"#NAME?"}},{"$f":"FindSessionPositions($A42,'Session TT3'!$A$1:$BL$31)","v":{"$error":"#NAME?"}},{"$f":"FindSessionPositions($A42,'Session TT4'!$A$1:$BL$31)","v":{"$error":"#NAME?"}},{"$f":"FindSessionPositions($A42,'Session TT5'!$A$1:$BL$31)","v":{"$error":"#NAME?"}},null,"ST 0","CJ 0","SR 0","DR 0","AR 0","MR 0",null,"ST 0","CJ 0","SR 0","DR 0","AR 0","MR 0"]
[{"$f":"Master!C42&\" \"&Master!B42","v":" "},{"$f":"Master!A42","v":"ST"},{"$f":"FindSessionPositions($A43,'Session 1'!$A$1:$BL$35)","v":{"$error":"#NAME?"}},{"$f":"FindSessionPositions($A43,'Session 2'!$A$1:$BL$35)","v":{"$error":"#NAME?"}},{"$f":"FindSessionPositions($A43,'Session 3'!$A$1:$BL$35)","v":{"$error":"#NAME?"}},{"$f":"FindSessionPositions($A43,'Session 4'!$A$1:$BL$35)","v":{"$error":"#NAME?"}},{"$f":"FindSessionPositions($A43,'Session 5'!$A$1:$BL$35)","v":{"$error":"#NAME?"}},{"$f":"FindSessionPositions($A43,'Session 6'!$A$1:$BL$35)","v":{"$error":"#NAME?"}},{"$f":"FindSessionPositions($A43,'Session 7'!$A$1:$BL$35)","v":{"$error":"#NAME?"}},{"$f":"FindSessionPositions($A43,'Session 8'!$A$1:$BL$35)","v":{"$error":"#NAME?"}},{"$f":"FindSessionPositions($A43,'Session 9'!$A$1:$BL$35)","v":{"$error":"#NAME?"}},{"$f":"FindSessionPositions($A43,'Session 10'!$A$1:$BL$35)","v":{"$error":"#NAME?"}},null,{"$f":"FindSessionPositions($A43,'Session TT1'!$A$1:$BL$31)","v":{"$error":"#NAME?"}},{"$f":"FindSessionPositions($A43,'Session TT2'!$A$1:$BL$31)","v":{"$error":"#NAME?"}},{"$f":"FindSessionPositions($A43,'Session TT3'!$A$1:$BL$31)","v":{"$error":"#NAME?"}},{"$f":"FindSessionPositions($A43,'Session TT4'!$A$1:$BL$31)","v":{"$error":"#NAME?"}},{"$f":"FindSessionPositions($A43,'Session TT5'!$A$1:$BL$31)","v":{"$error":"#NAME?"}},null,"ST 0","CJ 0","SR 0","DR 0","AR 0","MR 0",null,"ST 0","CJ 0","SR 0","DR 0","AR 0","MR 0"]
[{"$f":"Master!C43&\" \"&Master!B43","v":" "},{"$f":"Master!A43","v":"ST"},{"$f":"FindSessionPositions($A44,'Session 1'!$A$1:$BL$35)","v":{"$error":"#NAME?"}},{"$f":"FindSessionPositions($A44,'Session 2'!$A$1:$BL$35)","v":{"$error":"#NAME?"}},{"$f":"FindSessionPositions($A44,'Session 3'!$A$1:$BL$35)","v":{"$error":"#NAME?"}},{"$f":"FindSessionPositions($A44,'Session 4'!$A$1:$BL$35)","v":{"$error":"#NAME?"}},{"$f":"FindSessionPositions($A44,'Session 5'!$A$1:$BL$35)","v":{"$error":"#NAME?"}},{"$f":"FindSessionPositions($A44,'Session 6'!$A$1:$BL$35)","v":{"$error":"#NAME?"}},{"$f":"FindSessionPositions($A44,'Session 7'!$A$1:$BL$35)","v":{"$error":"#NAME?"}},{"$f":"FindSessionPositions($A44,'Session 8'!$A$1:$BL$35)","v":{"$error":"#NAME?"}},{"$f":"FindSessionPositions($A44,'Session 9'!$A$1:$BL$35)","v":{"$error":"#NAME?"}},{"$f":"FindSessionPositions($A44,'Session 10'!$A$1:$BL$35)","v":{"$error":"#NAME?"}},null,{"$f":"FindSessionPositions($A44,'Session TT1'!$A$1:$BL$31)","v":{"$error":"#NAME?"}},{"$f":"FindSessionPositions($A44,'Session TT2'!$A$1:$BL$31)","v":{"$error":"#NAME?"}},{"$f":"FindSessionPositions($A44,'Session TT3'!$A$1:$BL$31)","v":{"$error":"#NAME?"}},{"$f":"FindSessionPositions($A44,'Session TT4'!$A$1:$BL$31)","v":{"$error":"#NAME?"}},{"$f":"FindSessionPositions($A44,'Session TT5'!$A$1:$BL$31)","v":{"$error":"#NAME?"}},null,"ST 0","CJ 0","SR 0","DR 0","AR 0","MR 0",null,"ST 0","CJ 0","SR 0","DR 0","AR 0","MR 0"]
[{"$f":"Master!C44&\" \"&Master!B44","v":" "},{"$f":"Master!A44","v":"ST"},{"$f":"FindSessionPositions($A45,'Session 1'!$A$1:$BL$35)","v":{"$error":"#NAME?"}},{"$f":"FindSessionPositions($A45,'Session 2'!$A$1:$BL$35)","v":{"$error":"#NAME?"}},{"$f":"FindSessionPositions($A45,'Session 3'!$A$1:$BL$35)","v":{"$error":"#NAME?"}},{"$f":"FindSessionPositions($A45,'Session 4'!$A$1:$BL$35)","v":{"$error":"#NAME?"}},{"$f":"FindSessionPositions($A45,'Session 5'!$A$1:$BL$35)","v":{"$error":"#NAME?"}},{"$f":"FindSessionPositions($A45,'Session 6'!$A$1:$BL$35)","v":{"$error":"#NAME?"}},{"$f":"FindSessionPositions($A45,'Session 7'!$A$1:$BL$35)","v":{"$error":"#NAME?"}},{"$f":"FindSessionPositions($A45,'Session 8'!$A$1:$BL$35)","v":{"$error":"#NAME?"}},{"$f":"FindSessionPositions($A45,'Session 9'!$A$1:$BL$35)","v":{"$error":"#NAME?"}},{"$f":"FindSessionPositions($A45,'Session 10'!$A$1:$BL$35)","v":{"$error":"#NAME?"}},null,{"$f":"FindSessionPositions($A45,'Session TT1'!$A$1:$BL$31)","v":{"$error":"#NAME?"}},{"$f":"FindSessionPositions($A45,'Session TT2'!$A$1:$BL$31)","v":{"$error":"#NAME?"}},{"$f":"FindSessionPositions($A45,'Session TT3'!$A$1:$BL$31)","v":{"$error":"#NAME?"}},{"$f":"FindSessionPositions($A45,'Session TT4'!$A$1:$BL$31)","v":{"$error":"#NAME?"}},{"$f":"FindSessionPositions($A45,'Session TT5'!$A$1:$BL$31)","v":{"$error":"#NAME?"}},null,"ST 0","CJ 0","SR 0","DR 0","AR 0","MR 0",null,"ST 0","CJ 0","SR 0","DR 0","AR 0","MR 0"]
[{"$f":"Master!C45&\" \"&Master!B45","v":" "},{"$f":"Master!A45","v":"ST"},{"$f":"FindSessionPositions($A46,'Session 1'!$A$1:$BL$35)","v":{"$error":"#NAME?"}},{"$f":"FindSessionPositions($A46,'Session 2'!$A$1:$BL$35)","v":{"$error":"#NAME?"}},{"$f":"FindSessionPositions($A46,'Session 3'!$A$1:$BL$35)","v":{"$error":"#NAME?"}},{"$f":"FindSessionPositions($A46,'Session 4'!$A$1:$BL$35)","v":{"$error":"#NAME?"}},{"$f":"FindSessionPositions($A46,'Session 5'!$A$1:$BL$35)","v":{"$error":"#NAME?"}},{"$f":"FindSessionPositions($A46,'Session 6'!$A$1:$BL$35)","v":{"$error":"#NAME?"}},{"$f":"FindSessionPositions($A46,'Session 7'!$A$1:$BL$35)","v":{"$error":"#NAME?"}},{"$f":"FindSessionPositions($A46,'Session 8'!$A$1:$BL$35)","v":{"$error":"#NAME?"}},{"$f":"FindSessionPositions($A46,'Session 9'!$A$1:$BL$35)","v":{"$error":"#NAME?"}},{"$f":"FindSessionPositions($A46,'Session 10'!$A$1:$BL$35)","v":{"$error":"#NAME?"}},null,{"$f":"FindSessionPositions($A46,'Session TT1'!$A$1:$BL$31)","v":{"$error":"#NAME?"}},{"$f":"FindSessionPositions($A46,'Session TT2'!$A$1:$BL$31)","v":{"$error":"#NAME?"}},{"$f":"FindSessionPositions($A46,'Session TT3'!$A$1:$BL$31)","v":{"$error":"#NAME?"}},{"$f":"FindSessionPositions($A46,'Session TT4'!$A$1:$BL$31)","v":{"$error":"#NAME?"}},{"$f":"FindSessionPositions($A46,'Session TT5'!$A$1:$BL$31)","v":{"$error":"#NAME?"}},null,"ST 0","CJ 0","SR 0","DR 0","AR 0","MR 0",null,"ST 0","CJ 0","SR 0","DR 0","AR 0","MR 0"]
[{"$f":"Master!C46&\" \"&Master!B46","v":" "},{"$f":"Master!A46","v":"ST"},{"$f":"FindSessionPositions($A47,'Session 1'!$A$1:$BL$35)","v":{"$error":"#NAME?"}},{"$f":"FindSessionPositions($A47,'Session 2'!$A$1:$BL$35)","v":{"$error":"#NAME?"}},{"$f":"FindSessionPositions($A47,'Session 3'!$A$1:$BL$35)","v":{"$error":"#NAME?"}},{"$f":"FindSessionPositions($A47,'Session 4'!$A$1:$BL$35)","v":{"$error":"#NAME?"}},{"$f":"FindSessionPositions($A47,'Session 5'!$A$1:$BL$35)","v":{"$error":"#NAME?"}},{"$f":"FindSessionPositions($A47,'Session 6'!$A$1:$BL$35)","v":{"$error":"#NAME?"}},{"$f":"FindSessionPositions($A47,'Session 7'!$A$1:$BL$35)","v":{"$error":"#NAME?"}},{"$f":"FindSessionPositions($A47,'Session 8'!$A$1:$BL$35)","v":{"$error":"#NAME?"}},{"$f":"FindSessionPositions($A47,'Session 9'!$A$1:$BL$35)","v":{"$error":"#NAME?"}},{"$f":"FindSessionPositions($A47,'Session 10'!$A$1:$BL$35)","v":{"$error":"#NAME?"}},null,{"$f":"FindSessionPositions($A47,'Session TT1'!$A$1:$BL$31)","v":{"$error":"#NAME?"}},{"$f":"FindSessionPositions($A47,'Session TT2'!$A$1:$BL$31)","v":{"$error":"#NAME?"}},{"$f":"FindSessionPositions($A47,'Session TT3'!$A$1:$BL$31)","v":{"$error":"#NAME?"}},{"$f":"FindSessionPositions($A47,'Session TT4'!$A$1:$BL$31)","v":{"$error":"#NAME?"}},{"$f":"FindSessionPositions($A47,'Session TT5'!$A$1:$BL$31)","v":{"$error":"#NAME?"}},null,"ST 0","CJ 0","SR 0","DR 0","AR 0","MR 0",null,"ST 0","CJ 0","SR 0","DR 0","AR 0","MR 0"]
[{"$f":"Master!C47&\" \"&Master!B47","v":" "},{"$f":"Master!A47","v":"ST"},{"$f":"FindSessionPositions($A48,'Session 1'!$A$1:$BL$35)","v":{"$error":"#NAME?"}},{"$f":"FindSessionPositions($A48,'Session 2'!$A$1:$BL$35)","v":{"$error":"#NAME?"}},{"$f":"FindSessionPositions($A48,'Session 3'!$A$1:$BL$35)","v":{"$error":"#NAME?"}},{"$f":"FindSessionPositions($A48,'Session 4'!$A$1:$BL$35)","v":{"$error":"#NAME?"}},{"$f":"FindSessionPositions($A48,'Session 5'!$A$1:$BL$35)","v":{"$error":"#NAME?"}},{"$f":"FindSessionPositions($A48,'Session 6'!$A$1:$BL$35)","v":{"$error":"#NAME?"}},{"$f":"FindSessionPositions($A48,'Session 7'!$A$1:$BL$35)","v":{"$error":"#NAME?"}},{"$f":"FindSessionPositions($A48,'Session 8'!$A$1:$BL$35)","v":{"$error":"#NAME?"}},{"$f":"FindSessionPositions($A48,'Session 9'!$A$1:$BL$35)","v":{"$error":"#NAME?"}},{"$f":"FindSessionPositions($A48,'Session 10'!$A$1:$BL$35)","v":{"$error":"#NAME?"}},null,{"$f":"FindSessionPositions($A48,'Session TT1'!$A$1:$BL$31)","v":{"$error":"#NAME?"}},{"$f":"FindSessionPositions($A48,'Session TT2'!$A$1:$BL$31)","v":{"$error":"#NAME?"}},{"$f":"FindSessionPositions($A48,'Session TT3'!$A$1:$BL$31)","v":{"$error":"#NAME?"}},{"$f":"FindSessionPositions($A48,'Session TT4'!$A$1:$BL$31)","v":{"$error":"#NAME?"}},{"$f":"FindSessionPositions($A48,'Session TT5'!$A$1:$BL$31)","v":{"$error":"#NAME?"}},null,"ST 0","CJ 0","SR 0","DR 0","AR 0","MR 0",null,"ST 0","CJ 0","SR 0","DR 0","AR 0","MR 0"]
[{"$f":"Master!C48&\" \"&Master!B48","v":" "},{"$f":"Master!A48","v":"ST"},{"$f":"FindSessionPositions($A49,'Session 1'!$A$1:$BL$35)","v":{"$error":"#NAME?"}},{"$f":"FindSessionPositions($A49,'Session 2'!$A$1:$BL$35)","v":{"$error":"#NAME?"}},{"$f":"FindSessionPositions($A49,'Session 3'!$A$1:$BL$35)","v":{"$error":"#NAME?"}},{"$f":"FindSessionPositions($A49,'Session 4'!$A$1:$BL$35)","v":{"$error":"#NAME?"}},{"$f":"FindSessionPositions($A49,'Session 5'!$A$1:$BL$35)","v":{"$error":"#NAME?"}},{"$f":"FindSessionPositions($A49,'Session 6'!$A$1:$BL$35)","v":{"$error":"#NAME?"}},{"$f":"FindSessionPositions($A49,'Session 7'!$A$1:$BL$35)","v":{"$error":"#NAME?"}},{"$f":"FindSessionPositions($A49,'Session 8'!$A$1:$BL$35)","v":{"$error":"#NAME?"}},{"$f":"FindSessionPositions($A49,'Session 9'!$A$1:$BL$35)","v":{"$error":"#NAME?"}},{"$f":"FindSessionPositions($A49,'Session 10'!$A$1:$BL$35)","v":{"$error":"#NAME?"}},null,{"$f":"FindSessionPositions($A49,'Session TT1'!$A$1:$BL$31)","v":{"$error":"#NAME?"}},{"$f":"FindSessionPositions($A49,'Session TT2'!$A$1:$BL$31)","v":{"$error":"#NAME?"}},{"$f":"FindSessionPositions($A49,'Session TT3'!$A$1:$BL$31)","v":{"$error":"#NAME?"}},{"$f":"FindSessionPositions($A49,'Session TT4'!$A$1:$BL$31)","v":{"$error":"#NAME?"}},{"$f":"FindSessionPositions($A49,'Session TT5'!$A$1:$BL$31)","v":{"$error":"#NAME?"}},null,"ST 0","CJ 0","SR 0","DR 0","AR 0","MR 0",null,"ST 0","CJ 0","SR 0","DR 0","AR 0","MR 0"]
[{"$f":"Master!C49&\" \"&Master!B49","v":" "},{"$f":"Master!A49","v":"ST"},{"$f":"FindSessionPositions($A50,'Session 1'!$A$1:$BL$35)","v":{"$error":"#NAME?"}},{"$f":"FindSessionPositions($A50,'Session 2'!$A$1:$BL$35)","v":{"$error":"#NAME?"}},{"$f":"FindSessionPositions($A50,'Session 3'!$A$1:$BL$35)","v":{"$error":"#NAME?"}},{"$f":"FindSessionPositions($A50,'Session 4'!$A$1:$BL$35)","v":{"$error":"#NAME?"}},{"$f":"FindSessionPositions($A50,'Session 5'!$A$1:$BL$35)","v":{"$error":"#NAME?"}},{"$f":"FindSessionPositions($A50,'Session 6'!$A$1:$BL$35)","v":{"$error":"#NAME?"}},{"$f":"FindSessionPositions($A50,'Session 7'!$A$1:$BL$35)","v":{"$error":"#NAME?"}},{"$f":"FindSessionPositions($A50,'Session 8'!$A$1:$BL$35)","v":{"$error":"#NAME?"}},{"$f":"FindSessionPositions($A50,'Session 9'!$A$1:$BL$35)","v":{"$error":"#NAME?"}},{"$f":"FindSessionPositions($A50,'Session 10'!$A$1:$BL$35)","v":{"$error":"#NAME?"}},null,{"$f":"FindSessionPositions($A50,'Session TT1'!$A$1:$BL$31)","v":{"$error":"#NAME?"}},{"$f":"FindSessionPositions($A50,'Session TT2'!$A$1:$BL$31)","v":{"$error":"#NAME?"}},{"$f":"FindSessionPositions($A50,'Session TT3'!$A$1:$BL$31)","v":{"$error":"#NAME?"}},{"$f":"FindSessionPositions($A50,'Session TT4'!$A$1:$BL$31)","v":{"$error":"#NAME?"}},{"$f":"FindSessionPositions($A50,'Session TT5'!$A$1:$BL$31)","v":{"$error":"#NAME?"}},null,"ST 0","CJ 0","SR 0","DR 0","AR 0","MR 0",null,"ST 0","CJ 0","SR 0","DR 0","AR 0","MR 0"]
[{"$f":"Master!C50&\" \"&Master!B50","v":" "},{"$f":"Master!A50","v":"ST"},{"$f":"FindSessionPositions($A51,'Session 1'!$A$1:$BL$35)","v":{"$error":"#NAME?"}},{"$f":"FindSessionPositions($A51,'Session 2'!$A$1:$BL$35)","v":{"$error":"#NAME?"}},{"$f":"FindSessionPositions($A51,'Session 3'!$A$1:$BL$35)","v":{"$error":"#NAME?"}},{"$f":"FindSessionPositions($A51,'Session 4'!$A$1:$BL$35)","v":{"$error":"#NAME?"}},{"$f":"FindSessionPositions($A51,'Session 5'!$A$1:$BL$35)","v":{"$error":"#NAME?"}},{"$f":"FindSessionPositions($A51,'Session 6'!$A$1:$BL$35)","v":{"$error":"#NAME?"}},{"$f":"FindSessionPositions($A51,'Session 7'!$A$1:$BL$35)","v":{"$error":"#NAME?"}},{"$f":"FindSessionPositions($A51,'Session 8'!$A$1:$BL$35)","v":{"$error":"#NAME?"}},{"$f":"FindSessionPositions($A51,'Session 9'!$A$1:$BL$35)","v":{"$error":"#NAME?"}},{"$f":"FindSessionPositions($A51,'Session 10'!$A$1:$BL$35)","v":{"$error":"#NAME?"}},null,{"$f":"FindSessionPositions($A51,'Session TT1'!$A$1:$BL$31)","v":{"$error":"#NAME?"}},{"$f":"FindSessionPositions($A51,'Session TT2'!$A$1:$BL$31)","v":{"$error":"#NAME?"}},{"$f":"FindSessionPositions($A51,'Session TT3'!$A$1:$BL$31)","v":{"$error":"#NAME?"}},{"$f":"FindSessionPositions($A51,'Session TT4'!$A$1:$BL$31)","v":{"$error":"#NAME?"}},{"$f":"FindSessionPositions($A51,'Session TT5'!$A$1:$BL$31)","v":{"$error":"#NAME?"}},null,"ST 0","CJ 0","SR 0","DR 0","AR 0","MR 0",null,"ST 0","CJ 0","SR 0","DR 0","AR 0","MR 0"]
[{"$f":"Master!C51&\" \"&Master!B51","v":" "},{"$f":"Master!A51","v":"ST"},{"$f":"FindSessionPositions($A52,'Session 1'!$A$1:$BL$35)","v":{"$error":"#NAME?"}},{"$f":"FindSessionPositions($A52,'Session 2'!$A$1:$BL$35)","v":{"$error":"#NAME?"}},{"$f":"FindSessionPositions($A52,'Session 3'!$A$1:$BL$35)","v":{"$error":"#NAME?"}},{"$f":"FindSessionPositions($A52,'Session 4'!$A$1:$BL$35)","v":{"$error":"#NAME?"}},{"$f":"FindSessionPositions($A52,'Session 5'!$A$1:$BL$35)","v":{"$error":"#NAME?"}},{"$f":"FindSessionPositions($A52,'Session 6'!$A$1:$BL$35)","v":{"$error":"#NAME?"}},{"$f":"FindSessionPositions($A52,'Session 7'!$A$1:$BL$35)","v":{"$error":"#NAME?"}},{"$f":"FindSessionPositions($A52,'Session 8'!$A$1:$BL$35)","v":{"$error":"#NAME?"}},{"$f":"FindSessionPositions($A52,'Session 9'!$A$1:$BL$35)","v":{"$error":"#NAME?"}},{"$f":"FindSessionPositions($A52,'Session 10'!$A$1:$BL$35)","v":{"$error":"#NAME?"}},null,{"$f":"FindSessionPositions($A52,'Session TT1'!$A$1:$BL$31)","v":{"$error":"#NAME?"}},{"$f":"FindSessionPositions($A52,'Session TT2'!$A$1:$BL$31)","v":{"$error":"#NAME?"}},{"$f":"FindSessionPositions($A52,'Session TT3'!$A$1:$BL$31)","v":{"$error":"#NAME?"}},{"$f":"FindSessionPositions($A52,'Session TT4'!$A$1:$BL$31)","v":{"$error":"#NAME?"}},{"$f":"FindSessionPositions($A52,'Session TT5'!$A$1:$BL$31)","v":{"$error":"#NAME?"}},null,"ST 0","CJ 0","SR 0","DR 0","AR 0","MR 0",null,"ST 0","CJ 0","SR 0","DR 0","AR 0","MR 0"]
[{"$f":"Master!C52&\" \"&Master!B52","v":" "},{"$f":"Master!A52","v":"ST"},{"$f":"FindSessionPositions($A53,'Session 1'!$A$1:$BL$35)","v":{"$error":"#NAME?"}},{"$f":"FindSessionPositions($A53,'Session 2'!$A$1:$BL$35)","v":{"$error":"#NAME?"}},{"$f":"FindSessionPositions($A53,'Session 3'!$A$1:$BL$35)","v":{"$error":"#NAME?"}},{"$f":"FindSessionPositions($A53,'Session 4'!$A$1:$BL$35)","v":{"$error":"#NAME?"}},{"$f":"FindSessionPositions($A53,'Session 5'!$A$1:$BL$35)","v":{"$error":"#NAME?"}},{"$f":"FindSessionPositions($A53,'Session 6'!$A$1:$BL$35)","v":{"$error":"#NAME?"}},{"$f":"FindSessionPositions($A53,'Session 7'!$A$1:$BL$35)","v":{"$error":"#NAME?"}},{"$f":"FindSessionPositions($A53,'Session 8'!$A$1:$BL$35)","v":{"$error":"#NAME?"}},{"$f":"FindSessionPositions($A53,'Session 9'!$A$1:$BL$35)","v":{"$error":"#NAME?"}},{"$f":"FindSessionPositions($A53,'Session 10'!$A$1:$BL$35)","v":{"$error":"#NAME?"}},null,{"$f":"FindSessionPositions($A53,'Session TT1'!$A$1:$BL$31)","v":{"$error":"#NAME?"}},{"$f":"FindSessionPositions($A53,'Session TT2'!$A$1:$BL$31)","v":{"$error":"#NAME?"}},{"$f":"FindSessionPositions($A53,'Session TT3'!$A$1:$BL$31)","v":{"$error":"#NAME?"}},{"$f":"FindSessionPositions($A53,'Session TT4'!$A$1:$BL$31)","v":{"$error":"#NAME?"}},{"$f":"FindSessionPositions($A53,'Session TT5'!$A$1:$BL$31)","v":{"$error":"#NAME?"}},null,"ST 0","CJ 0","SR 0","DR 0","AR 0","MR 0",null,"ST 0","CJ 0","SR 0","DR 0","AR 0","MR 0"]
[{"$f":"Master!C53&\" \"&Master!B53","v":" "},{"$f":"Master!A53","v":"ST"},{"$f":"FindSessionPositions($A54,'Session 1'!$A$1:$BL$35)","v":{"$error":"#NAME?"}},{"$f":"FindSessionPositions($A54,'Session 2'!$A$1:$BL$35)","v":{"$error":"#NAME?"}},{"$f":"FindSessionPositions($A54,'Session 3'!$A$1:$BL$35)","v":{"$error":"#NAME?"}},{"$f":"FindSessionPositions($A54,'Session 4'!$A$1:$BL$35)","v":{"$error":"#NAME?"}},{"$f":"FindSessionPositions($A54,'Session 5'!$A$1:$BL$35)","v":{"$error":"#NAME?"}},{"$f":"FindSessionPositions($A54,'Session 6'!$A$1:$BL$35)","v":{"$error":"#NAME?"}},{"$f":"FindSessionPositions($A54,'Session 7'!$A$1:$BL$35)","v":{"$error":"#NAME?"}},{"$f":"FindSessionPositions($A54,'Session 8'!$A$1:$BL$35)","v":{"$error":"#NAME?"}},{"$f":"FindSessionPositions($A54,'Session 9'!$A$1:$BL$35)","v":{"$error":"#NAME?"}},{"$f":"FindSessionPositions($A54,'Session 10'!$A$1:$BL$35)","v":{"$error":"#NAME?"}},null,{"$f":"FindSessionPositions($A54,'Session TT1'!$A$1:$BL$31)","v":{"$error":"#NAME?"}},{"$f":"FindSessionPositions($A54,'Session TT2'!$A$1:$BL$31)","v":{"$error":"#NAME?"}},{"$f":"FindSessionPositions($A54,'Session TT3'!$A$1:$BL$31)","v":{"$error":"#NAME?"}},{"$f":"FindSessionPositions($A54,'Session TT4'!$A$1:$BL$31)","v":{"$error":"#NAME?"}},{"$f":"FindSessionPositions($A54,'Session TT5'!$A$1:$BL$31)","v":{"$error":"#NAME?"}},null,"ST 0","CJ 0","SR 0","DR 0","AR 0","MR 0",null,"ST 0","CJ 0","SR 0","DR 0","AR 0","MR 0"]
[{"$f":"Master!C54&\" \"&Master!B54","v":" "},{"$f":"Master!A54","v":"ST"},{"$f":"FindSessionPositions($A55,'Session 1'!$A$1:$BL$35)","v":{"$error":"#NAME?"}},{"$f":"FindSessionPositions($A55,'Session 2'!$A$1:$BL$35)","v":{"$error":"#NAME?"}},{"$f":"FindSessionPositions($A55,'Session 3'!$A$1:$BL$35)","v":{"$error":"#NAME?"}},{"$f":"FindSessionPositions($A55,'Session 4'!$A$1:$BL$35)","v":{"$error":"#NAME?"}},{"$f":"FindSessionPositions($A55,'Session 5'!$A$1:$BL$35)","v":{"$error":"#NAME?"}},{"$f":"FindSessionPositions($A55,'Session 6'!$A$1:$BL$35)","v":{"$error":"#NAME?"}},{"$f":"FindSessionPositions($A55,'Session 7'!$A$1:$BL$35)","v":{"$error":"#NAME?"}},{"$f":"FindSessionPositions($A55,'Session 8'!$A$1:$BL$35)","v":{"$error":"#NAME?"}},{"$f":"FindSessionPositions($A55,'Session 9'!$A$1:$BL$35)","v":{"$error":"#NAME?"}},{"$f":"FindSessionPositions($A55,'Session 10'!$A$1:$BL$35)","v":{"$error":"#NAME?"}},null,{"$f":"FindSessionPositions($A55,'Session TT1'!$A$1:$BL$31)","v":{"$error":"#NAME?"}},{"$f":"FindSessionPositions($A55,'Session TT2'!$A$1:$BL$31)","v":{"$error":"#NAME?"}},{"$f":"FindSessionPositions($A55,'Session TT3'!$A$1:$BL$31)","v":{"$error":"#NAME?"}},{"$f":"FindSessionPositions($A55,'Session TT4'!$A$1:$BL$31)","v":{"$error":"#NAME?"}},{"$f":"FindSessionPositions($A55,'Session TT5'!$A$1:$BL$31)","v":{"$error":"#NAME?"}},null,"ST 0","CJ 0","SR 0","DR 0","AR 0","MR 0",null,"ST 0","CJ 0","SR 0","DR 0","AR 0","MR 0"]
[{"$f":"Master!C55&\" \"&Master!B55","v":" "},{"$f":"Master!A55","v":"ST"},{"$f":"FindSessionPositions($A56,'Session 1'!$A$1:$BL$35)","v":{"$error":"#NAME?"}},{"$f":"FindSessionPositions($A56,'Session 2'!$A$1:$BL$35)","v":{"$error":"#NAME?"}},{"$f":"FindSessionPositions($A56,'Session 3'!$A$1:$BL$35)","v":{"$error":"#NAME?"}},{"$f":"FindSessionPositions($A56,'Session 4'!$A$1:$BL$35)","v":{"$error":"#NAME?"}},{"$f":"FindSessionPositions($A56,'Session 5'!$A$1:$BL$35)","v":{"$error":"#NAME?"}},{"$f":"FindSessionPositions($A56,'Session 6'!$A$1:$BL$35)","v":{"$error":"#NAME?"}},{"$f":"FindSessionPositions($A56,'Session 7'!$A$1:$BL$35)","v":{"$error":"#NAME?"}},{"$f":"FindSessionPositions($A56,'Session 8'!$A$1:$BL$35)","v":{"$error":"#NAME?"}},{"$f":"FindSessionPositions($A56,'Session 9'!$A$1:$BL$35)","v":{"$error":"#NAME?"}},{"$f":"FindSessionPositions($A56,'Session 10'!$A$1:$BL$35)","v":{"$error":"#NAME?"}},null,{"$f":"FindSessionPositions($A56,'Session TT1'!$A$1:$BL$31)","v":{"$error":"#NAME?"}},{"$f":"FindSessionPositions($A56,'Session TT2'!$A$1:$BL$31)","v":{"$error":"#NAME?"}},{"$f":"FindSessionPositions($A56,'Session TT3'!$A$1:$BL$31)","v":{"$error":"#NAME?"}},{"$f":"FindSessionPositions($A56,'Session TT4'!$A$1:$BL$31)","v":{"$error":"#NAME?"}},{"$f":"FindSessionPositions($A56,'Session TT5'!$A$1:$BL$31)","v":{"$error":"#NAME?"}},null,"ST 0","CJ 0","SR 0","DR 0","AR 0","MR 0",null,"ST 0","CJ 0","SR 0","DR 0","AR 0","MR 0"]
[{"$f":"Master!C56&\" \"&Master!B56","v":" "},{"$f":"Master!A56","v":"ST"},{"$f":"FindSessionPositions($A57,'Session 1'!$A$1:$BL$35)","v":{"$error":"#NAME?"}},{"$f":"FindSessionPositions($A57,'Session 2'!$A$1:$BL$35)","v":{"$error":"#NAME?"}},{"$f":"FindSessionPositions($A57,'Session 3'!$A$1:$BL$35)","v":{"$error":"#NAME?"}},{"$f":"FindSessionPositions($A57,'Session 4'!$A$1:$BL$35)","v":{"$error":"#NAME?"}},{"$f":"FindSessionPositions($A57,'Session 5'!$A$1:$BL$35)","v":{"$error":"#NAME?"}},{"$f":"FindSessionPositions($A57,'Session 6'!$A$1:$BL$35)","v":{"$error":"#NAME?"}},{"$f":"FindSessionPositions($A57,'Session 7'!$A$1:$BL$35)","v":{"$error":"#NAME?"}},{"$f":"FindSessionPositions($A57,'Session 8'!$A$1:$BL$35)","v":{"$error":"#NAME?"}},{"$f":"FindSessionPositions($A57,'Session 9'!$A$1:$BL$35)","v":{"$error":"#NAME?"}},{"$f":"FindSessionPositions($A57,'Session 10'!$A$1:$BL$35)","v":{"$error":"#NAME?"}},null,{"$f":"FindSessionPositions($A57,'Session TT1'!$A$1:$BL$31)","v":{"$error":"#NAME?"}},{"$f":"FindSessionPositions($A57,'Session TT2'!$A$1:$BL$31)","v":{"$error":"#NAME?"}},{"$f":"FindSessionPositions($A57,'Session TT3'!$A$1:$BL$31)","v":{"$error":"#NAME?"}},{"$f":"FindSessionPositions($A57,'Session TT4'!$A$1:$BL$31)","v":{"$error":"#NAME?"}},{"$f":"FindSessionPositions($A57,'Session TT5'!$A$1:$BL$31)","v":{"$error":"#NAME?"}},null,"ST 0","CJ 0","SR 0","DR 0","AR 0","MR 0",null,"ST 0","CJ 0","SR 0","DR 0","AR 0","MR 0"]
[{"$f":"Master!C57&\" \"&Master!B57","v":" "},{"$f":"Master!A57","v":"ST"},{"$f":"FindSessionPositions($A58,'Session 1'!$A$1:$BL$35)","v":{"$error":"#NAME?"}},{"$f":"FindSessionPositions($A58,'Session 2'!$A$1:$BL$35)","v":{"$error":"#NAME?"}},{"$f":"FindSessionPositions($A58,'Session 3'!$A$1:$BL$35)","v":{"$error":"#NAME?"}},{"$f":"FindSessionPositions($A58,'Session 4'!$A$1:$BL$35)","v":{"$error":"#NAME?"}},{"$f":"FindSessionPositions($A58,'Session 5'!$A$1:$BL$35)","v":{"$error":"#NAME?"}},{"$f":"FindSessionPositions($A58,'Session 6'!$A$1:$BL$35)","v":{"$error":"#NAME?"}},{"$f":"FindSessionPositions($A58,'Session 7'!$A$1:$BL$35)","v":{"$error":"#NAME?"}},{"$f":"FindSessionPositions($A58,'Session 8'!$A$1:$BL$35)","v":{"$error":"#NAME?"}},{"$f":"FindSessionPositions($A58,'Session 9'!$A$1:$BL$35)","v":{"$error":"#NAME?"}},{"$f":"FindSessionPositions($A58,'Session 10'!$A$1:$BL$35)","v":{"$error":"#NAME?"}},null,{"$f":"FindSessionPositions($A58,'Session TT1'!$A$1:$BL$31)","v":{"$error":"#NAME?"}},{"$f":"FindSessionPositions($A58,'Session TT2'!$A$1:$BL$31)","v":{"$error":"#NAME?"}},{"$f":"FindSessionPositions($A58,'Session TT3'!$A$1:$BL$31)","v":{"$error":"#NAME?"}},{"$f":"FindSessionPositions($A58,'Session TT4'!$A$1:$BL$31)","v":{"$error":"#NAME?"}},{"$f":"FindSessionPositions($A58,'Session TT5'!$A$1:$BL$31)","v":{"$error":"#NAME?"}},null,"ST 0","CJ 0","SR 0","DR 0","AR 0","MR 0",null,"ST 0","CJ 0","SR 0","DR 0","AR 0","MR 0"]
[{"$f":"Master!C58&\" \"&Master!B58","v":" "},{"$f":"Master!A58","v":"ST"},{"$f":"FindSessionPositions($A59,'Session 1'!$A$1:$BL$35)","v":{"$error":"#NAME?"}},{"$f":"FindSessionPositions($A59,'Session 2'!$A$1:$BL$35)","v":{"$error":"#NAME?"}},{"$f":"FindSessionPositions($A59,'Session 3'!$A$1:$BL$35)","v":{"$error":"#NAME?"}},{"$f":"FindSessionPositions($A59,'Session 4'!$A$1:$BL$35)","v":{"$error":"#NAME?"}},{"$f":"FindSessionPositions($A59,'Session 5'!$A$1:$BL$35)","v":{"$error":"#NAME?"}},{"$f":"FindSessionPositions($A59,'Session 6'!$A$1:$BL$35)","v":{"$error":"#NAME?"}},{"$f":"FindSessionPositions($A59,'Session 7'!$A$1:$BL$35)","v":{"$error":"#NAME?"}},{"$f":"FindSessionPositions($A59,'Session 8'!$A$1:$BL$35)","v":{"$error":"#NAME?"}},{"$f":"FindSessionPositions($A59,'Session 9'!$A$1:$BL$35)","v":{"$error":"#NAME?"}},{"$f":"FindSessionPositions($A59,'Session 10'!$A$1:$BL$35)","v":{"$error":"#NAME?"}},null,{"$f":"FindSessionPositions($A59,'Session TT1'!$A$1:$BL$31)","v":{"$error":"#NAME?"}},{"$f":"FindSessionPositions($A59,'Session TT2'!$A$1:$BL$31)","v":{"$error":"#NAME?"}},{"$f":"FindSessionPositions($A59,'Session TT3'!$A$1:$BL$31)","v":{"$error":"#NAME?"}},{"$f":"FindSessionPositions($A59,'Session TT4'!$A$1:$BL$31)","v":{"$error":"#NAME?"}},{"$f":"FindSessionPositions($A59,'Session TT5'!$A$1:$BL$31)","v":{"$error":"#NAME?"}},null,"ST 0","CJ 0","SR 0","DR 0","AR 0","MR 0",null,"ST 0","CJ 0","SR 0","DR 0","AR 0","MR 0"]
[{"$f":"Master!C59&\" \"&Master!B59","v":" "},{"$f":"Master!A59","v":"ST"},{"$f":"FindSessionPositions($A60,'Session 1'!$A$1:$BL$35)","v":{"$error":"#NAME?"}},{"$f":"FindSessionPositions($A60,'Session 2'!$A$1:$BL$35)","v":{"$error":"#NAME?"}},{"$f":"FindSessionPositions($A60,'Session 3'!$A$1:$BL$35)","v":{"$error":"#NAME?"}},{"$f":"FindSessionPositions($A60,'Session 4'!$A$1:$BL$35)","v":{"$error":"#NAME?"}},{"$f":"FindSessionPositions($A60,'Session 5'!$A$1:$BL$35)","v":{"$error":"#NAME?"}},{"$f":"FindSessionPositions($A60,'Session 6'!$A$1:$BL$35)","v":{"$error":"#NAME?"}},{"$f":"FindSessionPositions($A60,'Session 7'!$A$1:$BL$35)","v":{"$error":"#NAME?"}},{"$f":"FindSessionPositions($A60,'Session 8'!$A$1:$BL$35)","v":{"$error":"#NAME?"}},{"$f":"FindSessionPositions($A60,'Session 9'!$A$1:$BL$35)","v":{"$error":"#NAME?"}},{"$f":"FindSessionPositions($A60,'Session 10'!$A$1:$BL$35)","v":{"$error":"#NAME?"}},null,{"$f":"FindSessionPositions($A60,'Session TT1'!$A$1:$BL$31)","v":{"$error":"#NAME?"}},{"$f":"FindSessionPositions($A60,'Session TT2'!$A$1:$BL$31)","v":{"$error":"#NAME?"}},{"$f":"FindSessionPositions($A60,'Session TT3'!$A$1:$BL$31)","v":{"$error":"#NAME?"}},{"$f":"FindSessionPositions($A60,'Session TT4'!$A$1:$BL$31)","v":{"$error":"#NAME?"}},{"$f":"FindSessionPositions($A60,'Session TT5'!$A$1:$BL$31)","v":{"$error":"#NAME?"}},null,"ST 0","CJ 0","SR 0","DR 0","AR 0","MR 0",null,"ST 0","CJ 0","SR 0","DR 0","AR 0","MR 0"]
[{"$f":"Master!C60&\" \"&Master!B60","v":" "},{"$f":"Master!A60","v":"ST"},{"$f":"FindSessionPositions($A61,'Session 1'!$A$1:$BL$35)","v":{"$error":"#NAME?"}},{"$f":"FindSessionPositions($A61,'Session 2'!$A$1:$BL$35)","v":{"$error":"#NAME?"}},{"$f":"FindSessionPositions($A61,'Session 3'!$A$1:$BL$35)","v":{"$error":"#NAME?"}},{"$f":"FindSessionPositions($A61,'Session 4'!$A$1:$BL$35)","v":{"$error":"#NAME?"}},{"$f":"FindSessionPositions($A61,'Session 5'!$A$1:$BL$35)","v":{"$error":"#NAME?"}},{"$f":"FindSessionPositions($A61,'Session 6'!$A$1:$BL$35)","v":{"$error":"#NAME?"}},{"$f":"FindSessionPositions($A61,'Session 7'!$A$1:$BL$35)","v":{"$error":"#NAME?"}},{"$f":"FindSessionPositions($A61,'Session 8'!$A$1:$BL$35)","v":{"$error":"#NAME?"}},{"$f":"FindSessionPositions($A61,'Session 9'!$A$1:$BL$35)","v":{"$error":"#NAME?"}},{"$f":"FindSessionPositions($A61,'Session 10'!$A$1:$BL$35)","v":{"$error":"#NAME?"}},null,{"$f":"FindSessionPositions($A61,'Session TT1'!$A$1:$BL$31)","v":{"$error":"#NAME?"}},{"$f":"FindSessionPositions($A61,'Session TT2'!$A$1:$BL$31)","v":{"$error":"#NAME?"}},{"$f":"FindSessionPositions($A61,'Session TT3'!$A$1:$BL$31)","v":{"$error":"#NAME?"}},{"$f":"FindSessionPositions($A61,'Session TT4'!$A$1:$BL$31)","v":{"$error":"#NAME?"}},{"$f":"FindSessionPositions($A61,'Session TT5'!$A$1:$BL$31)","v":{"$error":"#NAME?"}},null,"ST 0","CJ 0","SR 0","DR 0","AR 0","MR 0",null,"ST 0","CJ 0","SR 0","DR 0","AR 0","MR 0"]
[{"$f":"Master!C61&\" \"&Master!B61","v":" "},{"$f":"Master!A61","v":"ST"},{"$f":"FindSessionPositions($A62,'Session 1'!$A$1:$BL$35)","v":{"$error":"#NAME?"}},{"$f":"FindSessionPositions($A62,'Session 2'!$A$1:$BL$35)","v":{"$error":"#NAME?"}},{"$f":"FindSessionPositions($A62,'Session 3'!$A$1:$BL$35)","v":{"$error":"#NAME?"}},{"$f":"FindSessionPositions($A62,'Session 4'!$A$1:$BL$35)","v":{"$error":"#NAME?"}},{"$f":"FindSessionPositions($A62,'Session 5'!$A$1:$BL$35)","v":{"$error":"#NAME?"}},{"$f":"FindSessionPositions($A62,'Session 6'!$A$1:$BL$35)","v":{"$error":"#NAME?"}},{"$f":"FindSessionPositions($A62,'Session 7'!$A$1:$BL$35)","v":{"$error":"#NAME?"}},{"$f":"FindSessionPositions($A62,'Session 8'!$A$1:$BL$35)","v":{"$error":"#NAME?"}},{"$f":"FindSessionPositions($A62,'Session 9'!$A$1:$BL$35)","v":{"$error":"#NAME?"}},{"$f":"FindSessionPositions($A62,'Session 10'!$A$1:$BL$35)","v":{"$error":"#NAME?"}},null,{"$f":"FindSessionPositions($A62,'Session TT1'!$A$1:$BL$31)","v":{"$error":"#NAME?"}},{"$f":"FindSessionPositions($A62,'Session TT2'!$A$1:$BL$31)","v":{"$error":"#NAME?"}},{"$f":"FindSessionPositions($A62,'Session TT3'!$A$1:$BL$31)","v":{"$error":"#NAME?"}},{"$f":"FindSessionPositions($A62,'Session TT4'!$A$1:$BL$31)","v":{"$error":"#NAME?"}},{"$f":"FindSessionPositions($A62,'Session TT5'!$A$1:$BL$31)","v":{"$error":"#NAME?"}},null,"ST 0","CJ 0","SR 0","DR 0","AR 0","MR 0",null,"ST 0","CJ 0","SR 0","DR 0","AR 0","MR 0"]
[{"$f":"Master!C62&\" \"&Master!B62","v":" "},{"$f":"Master!A62","v":"ST"},{"$f":"FindSessionPositions($A63,'Session 1'!$A$1:$BL$35)","v":{"$error":"#NAME?"}},{"$f":"FindSessionPositions($A63,'Session 2'!$A$1:$BL$35)","v":{"$error":"#NAME?"}},{"$f":"FindSessionPositions($A63,'Session 3'!$A$1:$BL$35)","v":{"$error":"#NAME?"}},{"$f":"FindSessionPositions($A63,'Session 4'!$A$1:$BL$35)","v":{"$error":"#NAME?"}},{"$f":"FindSessionPositions($A63,'Session 5'!$A$1:$BL$35)","v":{"$error":"#NAME?"}},{"$f":"FindSessionPositions($A63,'Session 6'!$A$1:$BL$35)","v":{"$error":"#NAME?"}},{"$f":"FindSessionPositions($A63,'Session 7'!$A$1:$BL$35)","v":{"$error":"#NAME?"}},{"$f":"FindSessionPositions($A63,'Session 8'!$A$1:$BL$35)","v":{"$error":"#NAME?"}},{"$f":"FindSessionPositions($A63,'Session 9'!$A$1:$BL$35)","v":{"$error":"#NAME?"}},{"$f":"FindSessionPositions($A63,'Session 10'!$A$1:$BL$35)","v":{"$error":"#NAME?"}},null,{"$f":"FindSessionPositions($A63,'Session TT1'!$A$1:$BL$31)","v":{"$error":"#NAME?"}},{"$f":"FindSessionPositions($A63,'Session TT2'!$A$1:$BL$31)","v":{"$error":"#NAME?"}},{"$f":"FindSessionPositions($A63,'Session TT3'!$A$1:$BL$31)","v":{"$error":"#NAME?"}},{"$f":"FindSessionPositions($A63,'Session TT4'!$A$1:$BL$31)","v":{"$error":"#NAME?"}},{"$f":"FindSessionPositions($A63,'Session TT5'!$A$1:$BL$31)","v":{"$error":"#NAME?"}},null,"ST 0","CJ 0","SR 0","DR 0","AR 0","MR 0",null,"ST 0","CJ 0","SR 0","DR 0","AR 0","MR 0"]
[{"$f":"Master!C63&\" \"&Master!B63","v":" "},{"$f":"Master!A63","v":"ST"},{"$f":"FindSessionPositions($A64,'Session 1'!$A$1:$BL$35)","v":{"$error":"#NAME?"}},{"$f":"FindSessionPositions($A64,'Session 2'!$A$1:$BL$35)","v":{"$error":"#NAME?"}},{"$f":"FindSessionPositions($A64,'Session 3'!$A$1:$BL$35)","v":{"$error":"#NAME?"}},{"$f":"FindSessionPositions($A64,'Session 4'!$A$1:$BL$35)","v":{"$error":"#NAME?"}},{"$f":"FindSessionPositions($A64,'Session 5'!$A$1:$BL$35)","v":{"$error":"#NAME?"}},{"$f":"FindSessionPositions($A64,'Session 6'!$A$1:$BL$35)","v":{"$error":"#NAME?"}},{"$f":"FindSessionPositions($A64,'Session 7'!$A$1:$BL$35)","v":{"$error":"#NAME?"}},{"$f":"FindSessionPositions($A64,'Session 8'!$A$1:$BL$35)","v":{"$error":"#NAME?"}},{"$f":"FindSessionPositions($A64,'Session 9'!$A$1:$BL$35)","v":{"$error":"#NAME?"}},{"$f":"FindSessionPositions($A64,'Session 10'!$A$1:$BL$35)","v":{"$error":"#NAME?"}},null,{"$f":"FindSessionPositions($A64,'Session TT1'!$A$1:$BL$31)","v":{"$error":"#NAME?"}},{"$f":"FindSessionPositions($A64,'Session TT2'!$A$1:$BL$31)","v":{"$error":"#NAME?"}},{"$f":"FindSessionPositions($A64,'Session TT3'!$A$1:$BL$31)","v":{"$error":"#NAME?"}},{"$f":"FindSessionPositions($A64,'Session TT4'!$A$1:$BL$31)","v":{"$error":"#NAME?"}},{"$f":"FindSessionPositions($A64,'Session TT5'!$A$1:$BL$31)","v":{"$error":"#NAME?"}},null,"ST 0","CJ 0","SR 0","DR 0","AR 0","MR 0",null,"ST 0","CJ 0","SR 0","DR 0","AR 0","MR 0"]
[{"$f":"Master!C64&\" \"&Master!B64","v":" "},{"$f":"Master!A64","v":"ST"},{"$f":"FindSessionPositions($A65,'Session 1'!$A$1:$BL$35)","v":{"$error":"#NAME?"}},{"$f":"FindSessionPositions($A65,'Session 2'!$A$1:$BL$35)","v":{"$error":"#NAME?"}},{"$f":"FindSessionPositions($A65,'Session 3'!$A$1:$BL$35)","v":{"$error":"#NAME?"}},{"$f":"FindSessionPositions($A65,'Session 4'!$A$1:$BL$35)","v":{"$error":"#NAME?"}},{"$f":"FindSessionPositions($A65,'Session 5'!$A$1:$BL$35)","v":{"$error":"#NAME?"}},{"$f":"FindSessionPositions($A65,'Session 6'!$A$1:$BL$35)","v":{"$error":"#NAME?"}},{"$f":"FindSessionPositions($A65,'Session 7'!$A$1:$BL$35)","v":{"$error":"#NAME?"}},{"$f":"FindSessionPositions($A65,'Session 8'!$A$1:$BL$35)","v":{"$error":"#NAME?"}},{"$f":"FindSessionPositions($A65,'Session 9'!$A$1:$BL$35)","v":{"$error":"#NAME?"}},{"$f":"FindSessionPositions($A65,'Session 10'!$A$1:$BL$35)","v":{"$error":"#NAME?"}},null,{"$f":"FindSessionPositions($A65,'Session TT1'!$A$1:$BL$31)","v":{"$error":"#NAME?"}},{"$f":"FindSessionPositions($A65,'Session TT2'!$A$1:$BL$31)","v":{"$error":"#NAME?"}},{"$f":"FindSessionPositions($A65,'Session TT3'!$A$1:$BL$31)","v":{"$error":"#NAME?"}},{"$f":"FindSessionPositions($A65,'Session TT4'!$A$1:$BL$31)","v":{"$error":"#NAME?"}},{"$f":"FindSessionPositions($A65,'Session TT5'!$A$1:$BL$31)","v":{"$error":"#NAME?"}},null,"ST 0","CJ 0","SR 0","DR 0","AR 0","MR 0",null,"ST 0","CJ 0","SR 0","DR 0","AR 0","MR 0"]
[{"$f":"Master!C65&\" \"&Master!B65","v":" "},{"$f":"Master!A65","v":"ST"},{"$f":"FindSessionPositions($A66,'Session 1'!$A$1:$BL$35)","v":{"$error":"#NAME?"}},{"$f":"FindSessionPositions($A66,'Session 2'!$A$1:$BL$35)","v":{"$error":"#NAME?"}},{"$f":"FindSessionPositions($A66,'Session 3'!$A$1:$BL$35)","v":{"$error":"#NAME?"}},{"$f":"FindSessionPositions($A66,'Session 4'!$A$1:$BL$35)","v":{"$error":"#NAME?"}},{"$f":"FindSessionPositions($A66,'Session 5'!$A$1:$BL$35)","v":{"$error":"#NAME?"}},{"$f":"FindSessionPositions($A66,'Session 6'!$A$1:$BL$35)","v":{"$error":"#NAME?"}},{"$f":"FindSessionPositions($A66,'Session 7'!$A$1:$BL$35)","v":{"$error":"#NAME?"}},{"$f":"FindSessionPositions($A66,'Session 8'!$A$1:$BL$35)","v":{"$error":"#NAME?"}},{"$f":"FindSessionPositions($A66,'Session 9'!$A$1:$BL$35)","v":{"$error":"#NAME?"}},{"$f":"FindSessionPositions($A66,'Session 10'!$A$1:$BL$35)","v":{"$error":"#NAME?"}},null,{"$f":"FindSessionPositions($A66,'Session TT1'!$A$1:$BL$31)","v":{"$error":"#NAME?"}},{"$f":"FindSessionPositions($A66,'Session TT2'!$A$1:$BL$31)","v":{"$error":"#NAME?"}},{"$f":"FindSessionPositions($A66,'Session TT3'!$A$1:$BL$31)","v":{"$error":"#NAME?"}},{"$f":"FindSessionPositions($A66,'Session TT4'!$A$1:$BL$31)","v":{"$error":"#NAME?"}},{"$f":"FindSessionPositions($A66,'Session TT5'!$A$1:$BL$31)","v":{"$error":"#NAME?"}},null,"ST 0","CJ 0","SR 0","DR 0","AR 0","MR 0",null,"ST 0","CJ 0","SR 0","DR 0","AR 0","MR 0"]
[{"$f":"Master!C66&\" \"&Master!B66","v":" "},{"$f":"Master!A66","v":"ST"},{"$f":"FindSessionPositions($A67,'Session 1'!$A$1:$BL$35)","v":{"$error":"#NAME?"}},{"$f":"FindSessionPositions($A67,'Session 2'!$A$1:$BL$35)","v":{"$error":"#NAME?"}},{"$f":"FindSessionPositions($A67,'Session 3'!$A$1:$BL$35)","v":{"$error":"#NAME?"}},{"$f":"FindSessionPositions($A67,'Session 4'!$A$1:$BL$35)","v":{"$error":"#NAME?"}},{"$f":"FindSessionPositions($A67,'Session 5'!$A$1:$BL$35)","v":{"$error":"#NAME?"}},{"$f":"FindSessionPositions($A67,'Session 6'!$A$1:$BL$35)","v":{"$error":"#NAME?"}},{"$f":"FindSessionPositions($A67,'Session 7'!$A$1:$BL$35)","v":{"$error":"#NAME?"}},{"$f":"FindSessionPositions($A67,'Session 8'!$A$1:$BL$35)","v":{"$error":"#NAME?"}},{"$f":"FindSessionPositions($A67,'Session 9'!$A$1:$BL$35)","v":{"$error":"#NAME?"}},{"$f":"FindSessionPositions($A67,'Session 10'!$A$1:$BL$35)","v":{"$error":"#NAME?"}},null,{"$f":"FindSessionPositions($A67,'Session TT1'!$A$1:$BL$31)","v":{"$error":"#NAME?"}},{"$f":"FindSessionPositions($A67,'Session TT2'!$A$1:$BL$31)","v":{"$error":"#NAME?"}},{"$f":"FindSessionPositions($A67,'Session TT3'!$A$1:$BL$31)","v":{"$error":"#NAME?"}},{"$f":"FindSessionPositions($A67,'Session TT4'!$A$1:$BL$31)","v":{"$error":"#NAME?"}},{"$f":"FindSessionPositions($A67,'Session TT5'!$A$1:$BL$31)","v":{"$error":"#NAME?"}},null,"ST 0",{"$f":"\"CJ \" & COUNTIF(C67:L67,\"CJ*\")","v":"CJ 0"},{"$f":"\"SR \" & COUNTIF(C67:L67,\"SR\")","v":"SR 0"},{"$f":"\"DR \" & COUNTIF(C67:L67,\"DR\")","v":"DR 0"},{"$f":"\"AR \" & COUNTIF(C67:L67,\"AR\")","v":"AR 0"},"MR 0",null,"ST 0","CJ 0","SR 0","DR 0","AR 0","MR 0"]
[{"$f":"Master!C67&\" \"&Master!B67","v":" "},{"$f":"Master!A67","v":"ST"},{"$f":"FindSessionPositions($A68,'Session 1'!$A$1:$BL$35)","v":{"$error":"#NAME?"}},{"$f":"FindSessionPositions($A68,'Session 2'!$A$1:$BL$35)","v":{"$error":"#NAME?"}},{"$f":"FindSessionPositions($A68,'Session 3'!$A$1:$BL$35)","v":{"$error":"#NAME?"}},{"$f":"FindSessionPositions($A68,'Session 4'!$A$1:$BL$35)","v":{"$error":"#NAME?"}},{"$f":"FindSessionPositions($A68,'Session 5'!$A$1:$BL$35)","v":{"$error":"#NAME?"}},{"$f":"FindSessionPositions($A68,'Session 6'!$A$1:$BL$35)","v":{"$error":"#NAME?"}},{"$f":"FindSessionPositions($A68,'Session 7'!$A$1:$BL$35)","v":{"$error":"#NAME?"}},{"$f":"FindSessionPositions($A68,'Session 8'!$A$1:$BL$35)","v":{"$error":"#NAME?"}},{"$f":"FindSessionPositions($A68,'Session 9'!$A$1:$BL$35)","v":{"$error":"#NAME?"}},{"$f":"FindSessionPositions($A68,'Session 10'!$A$1:$BL$35)","v":{"$error":"#NAME?"}},null,{"$f":"FindSessionPositions($A68,'Session TT1'!$A$1:$BL$31)","v":{"$error":"#NAME?"}},{"$f":"FindSessionPositions($A68,'Session TT2'!$A$1:$BL$31)","v":{"$error":"#NAME?"}},{"$f":"FindSessionPositions($A68,'Session TT3'!$A$1:$BL$31)","v":{"$error":"#NAME?"}},{"$f":"FindSessionPositions($A68,'Session TT4'!$A$1:$BL$31)","v":{"$error":"#NAME?"}},{"$f":"FindSessionPositions($A68,'Session TT5'!$A$1:$BL$31)","v":{"$error":"#NAME?"}},null,{"$f":"\"ST \"&(COUNTIF(C68:L68,\"S *\"))+(COUNTIF(C68:L68,\"T*\"))+(COUNTIF(C68:L68,\"O*\"))+(COUNTIF(C68:L68,\"K*\"))+(COUNTIF(C68:L68,\"R*\"))+(COUNTIF(C68:L68,\"L*\"))","v":"ST 0"},"CJ 0","SR 0","DR 0","AR 0",{"$f":"\"MR \" & COUNTIF(C68:L68,\"MR\")","v":"MR 0"},null,{"$f":"\"ST \"&(COUNTIF(N68:R68,\"S *\"))+(COUNTIF(N68:R68,\"T*\"))+(COUNTIF(N68:R68,\"O*\"))+(COUNTIF(N68:R68,\"K*\"))+(COUNTIF(N68:R68,\"R*\"))+(COUNTIF(N68:R68,\"L*\"))","v":"ST 0"},{"$f":"\"CJ \" & COUNTIF(N68:R68,\"CJ*\")","v":"CJ 0"},{"$f":"\"SR \" & COUNTIF(N68:R68,\"SR\")","v":"SR 0"},{"$f":"\"DR \" & COUNTIF(N68:R68,\"DR\")","v":"DR 0"},{"$f":"\"AR \" & COUNTIF(N68:R68,\"AR\")","v":"AR 0"},{"$f":"\"MR \" & COUNTIF(N68:R68,\"MR\")","v":"MR 0"}]
[{"$f":"Master!C68&\" \"&Master!B68","v":" "},{"$f":"Master!A68","v":"ST"},{"$f":"FindSessionPositions($A69,'Session 1'!$A$1:$BL$35)","v":{"$error":"#NAME?"}},{"$f":"FindSessionPositions($A69,'Session 2'!$A$1:$BL$35)","v":{"$error":"#NAME?"}},{"$f":"FindSessionPositions($A69,'Session 3'!$A$1:$BL$35)","v":{"$error":"#NAME?"}},{"$f":"FindSessionPositions($A69,'Session 4'!$A$1:$BL$35)","v":{"$error":"#NAME?"}},{"$f":"FindSessionPositions($A69,'Session 5'!$A$1:$BL$35)","v":{"$error":"#NAME?"}},{"$f":"FindSessionPositions($A69,'Session 6'!$A$1:$BL$35)","v":{"$error":"#NAME?"}},{"$f":"FindSessionPositions($A69,'Session 7'!$A$1:$BL$35)","v":{"$error":"#NAME?"}},{"$f":"FindSessionPositions($A69,'Session 8'!$A$1:$BL$35)","v":{"$error":"#NAME?"}},{"$f":"FindSessionPositions($A69,'Session 9'!$A$1:$BL$35)","v":{"$error":"#NAME?"}},{"$f":"FindSessionPositions($A69,'Session 10'!$A$1:$BL$35)","v":{"$error":"#NAME?"}},null,{"$f":"FindSessionPositions($A69,'Session TT1'!$A$1:$BL$31)","v":{"$error":"#NAME?"}},{"$f":"FindSessionPositions($A69,'Session TT2'!$A$1:$BL$31)","v":{"$error":"#NAME?"}},{"$f":"FindSessionPositions($A69,'Session TT3'!$A$1:$BL$31)","v":{"$error":"#NAME?"}},{"$f":"FindSessionPositions($A69,'Session TT4'!$A$1:$BL$31)","v":{"$error":"#NAME?"}},{"$f":"FindSessionPositions($A69,'Session TT5'!$A$1:$BL$31)","v":{"$error":"#NAME?"}},null,"ST 0","CJ 0","SR 0","DR 0","AR 0","MR 0",null,"ST 0","CJ 0","SR 0","DR 0","AR 0","MR 0"]
[{"$f":"Master!C69&\" \"&Master!B69","v":" "},{"$f":"Master!A69","v":"ST"},{"$f":"FindSessionPositions($A70,'Session 1'!$A$1:$BL$35)","v":{"$error":"#NAME?"}},{"$f":"FindSessionPositions($A70,'Session 2'!$A$1:$BL$35)","v":{"$error":"#NAME?"}},{"$f":"FindSessionPositions($A70,'Session 3'!$A$1:$BL$35)","v":{"$error":"#NAME?"}},{"$f":"FindSessionPositions($A70,'Session 4'!$A$1:$BL$35)","v":{"$error":"#NAME?"}},{"$f":"FindSessionPositions($A70,'Session 5'!$A$1:$BL$35)","v":{"$error":"#NAME?"}},{"$f":"FindSessionPositions($A70,'Session 6'!$A$1:$BL$35)","v":{"$error":"#NAME?"}},{"$f":"FindSessionPositions($A70,'Session 7'!$A$1:$BL$35)","v":{"$error":"#NAME?"}},{"$f":"FindSessionPositions($A70,'Session 8'!$A$1:$BL$35)","v":{"$error":"#NAME?"}},{"$f":"FindSessionPositions($A70,'Session 9'!$A$1:$BL$35)","v":{"$error":"#NAME?"}},{"$f":"FindSessionPositions($A70,'Session 10'!$A$1:$BL$35)","v":{"$error":"#NAME?"}},null,{"$f":"FindSessionPositions($A70,'Session TT1'!$A$1:$BL$31)","v":{"$error":"#NAME?"}},{"$f":"FindSessionPositions($A70,'Session TT2'!$A$1:$BL$31)","v":{"$error":"#NAME?"}},{"$f":"FindSessionPositions($A70,'Session TT3'!$A$1:$BL$31)","v":{"$error":"#NAME?"}},{"$f":"FindSessionPositions($A70,'Session TT4'!$A$1:$BL$31)","v":{"$error":"#NAME?"}},{"$f":"FindSessionPositions($A70,'Session TT5'!$A$1:$BL$31)","v":{"$error":"#NAME?"}},null,"ST 0","CJ 0","SR 0","DR 0","AR 0","MR 0",null,"ST 0","CJ 0","SR 0","DR 0","AR 0","MR 0"]
[{"$f":"Master!C70&\" \"&Master!B70","v":" "},{"$f":"Master!A70","v":"ST"},{"$f":"FindSessionPositions($A71,'Session 1'!$A$1:$BL$35)","v":{"$error":"#NAME?"}},{"$f":"FindSessionPositions($A71,'Session 2'!$A$1:$BL$35)","v":{"$error":"#NAME?"}},{"$f":"FindSessionPositions($A71,'Session 3'!$A$1:$BL$35)","v":{"$error":"#NAME?"}},{"$f":"FindSessionPositions($A71,'Session 4'!$A$1:$BL$35)","v":{"$error":"#NAME?"}},{"$f":"FindSessionPositions($A71,'Session 5'!$A$1:$BL$35)","v":{"$error":"#NAME?"}},{"$f":"FindSessionPositions($A71,'Session 6'!$A$1:$BL$35)","v":{"$error":"#NAME?"}},{"$f":"FindSessionPositions($A71,'Session 7'!$A$1:$BL$35)","v":{"$error":"#NAME?"}},{"$f":"FindSessionPositions($A71,'Session 8'!$A$1:$BL$35)","v":{"$error":"#NAME?"}},{"$f":"FindSessionPositions($A71,'Session 9'!$A$1:$BL$35)","v":{"$error":"#NAME?"}},{"$f":"FindSessionPositions($A71,'Session 10'!$A$1:$BL$35)","v":{"$error":"#NAME?"}},null,{"$f":"FindSessionPositions($A71,'Session TT1'!$A$1:$BL$31)","v":{"$error":"#NAME?"}},{"$f":"FindSessionPositions($A71,'Session TT2'!$A$1:$BL$31)","v":{"$error":"#NAME?"}},{"$f":"FindSessionPositions($A71,'Session TT3'!$A$1:$BL$31)","v":{"$error":"#NAME?"}},{"$f":"FindSessionPositions($A71,'Session TT4'!$A$1:$BL$31)","v":{"$error":"#NAME?"}},{"$f":"FindSessionPositions($A71,'Session TT5'!$A$1:$BL$31)","v":{"$error":"#NAME?"}},null,"ST 0","CJ 0","SR 0","DR 0","AR 0","MR 0",null,"ST 0","CJ 0","SR 0","DR 0","AR 0","MR 0"]
[{"$f":"Master!C71&\" \"&Master!B71","v":" "},{"$f":"Master!A71","v":"ST"},{"$f":"FindSessionPositions($A72,'Session 1'!$A$1:$BL$35)","v":{"$error":"#NAME?"}},{"$f":"FindSessionPositions($A72,'Session 2'!$A$1:$BL$35)","v":{"$error":"#NAME?"}},{"$f":"FindSessionPositions($A72,'Session 3'!$A$1:$BL$35)","v":{"$error":"#NAME?"}},{"$f":"FindSessionPositions($A72,'Session 4'!$A$1:$BL$35)","v":{"$error":"#NAME?"}},{"$f":"FindSessionPositions($A72,'Session 5'!$A$1:$BL$35)","v":{"$error":"#NAME?"}},{"$f":"FindSessionPositions($A72,'Session 6'!$A$1:$BL$35)","v":{"$error":"#NAME?"}},{"$f":"FindSessionPositions($A72,'Session 7'!$A$1:$BL$35)","v":{"$error":"#NAME?"}},{"$f":"FindSessionPositions($A72,'Session 8'!$A$1:$BL$35)","v":{"$error":"#NAME?"}},{"$f":"FindSessionPositions($A72,'Session 9'!$A$1:$BL$35)","v":{"$error":"#NAME?"}},{"$f":"FindSessionPositions($A72,'Session 10'!$A$1:$BL$35)","v":{"$error":"#NAME?"}},null,{"$f":"FindSessionPositions($A72,'Session TT1'!$A$1:$BL$31)","v":{"$error":"#NAME?"}},{"$f":"FindSessionPositions($A72,'Session TT2'!$A$1:$BL$31)","v":{"$error":"#NAME?"}},{"$f":"FindSessionPositions($A72,'Session TT3'!$A$1:$BL$31)","v":{"$error":"#NAME?"}},{"$f":"FindSessionPositions($A72,'Session TT4'!$A$1:$BL$31)","v":{"$error":"#NAME?"}},{"$f":"FindSessionPositions($A72,'Session TT5'!$A$1:$BL$31)","v":{"$error":"#NAME?"}},null,"ST 0","CJ 0","SR 0","DR 0","AR 0","MR 0",null,"ST 0","CJ 0","SR 0","DR 0","AR 0","MR 0"]
[{"$f":"Master!C72&\" \"&Master!B72","v":" "},{"$f":"Master!A72","v":"ST"},{"$f":"FindSessionPositions($A73,'Session 1'!$A$1:$BL$35)","v":{"$error":"#NAME?"}},{"$f":"FindSessionPositions($A73,'Session 2'!$A$1:$BL$35)","v":{"$error":"#NAME?"}},{"$f":"FindSessionPositions($A73,'Session 3'!$A$1:$BL$35)","v":{"$error":"#NAME?"}},{"$f":"FindSessionPositions($A73,'Session 4'!$A$1:$BL$35)","v":{"$error":"#NAME?"}},{"$f":"FindSessionPositions($A73,'Session 5'!$A$1:$BL$35)","v":{"$error":"#NAME?"}},{"$f":"FindSessionPositions($A73,'Session 6'!$A$1:$BL$35)","v":{"$error":"#NAME?"}},{"$f":"FindSessionPositions($A73,'Session 7'!$A$1:$BL$35)","v":{"$error":"#NAME?"}},{"$f":"FindSessionPositions($A73,'Session 8'!$A$1:$BL$35)","v":{"$error":"#NAME?"}},{"$f":"FindSessionPositions($A73,'Session 9'!$A$1:$BL$35)","v":{"$error":"#NAME?"}},{"$f":"FindSessionPositions($A73,'Session 10'!$A$1:$BL$35)","v":{"$error":"#NAME?"}},null,{"$f":"FindSessionPositions($A73,'Session TT1'!$A$1:$BL$31)","v":{"$error":"#NAME?"}},{"$f":"FindSessionPositions($A73,'Session TT2'!$A$1:$BL$31)","v":{"$error":"#NAME?"}},{"$f":"FindSessionPositions($A73,'Session TT3'!$A$1:$BL$31)","v":{"$error":"#NAME?"}},{"$f":"FindSessionPositions($A73,'Session TT4'!$A$1:$BL$31)","v":{"$error":"#NAME?"}},{"$f":"FindSessionPositions($A73,'Session TT5'!$A$1:$BL$31)","v":{"$error":"#NAME?"}},null,"ST 0","CJ 0","SR 0","DR 0","AR 0","MR 0",null,"ST 0","CJ 0","SR 0","DR 0","AR 0","MR 0"]
[{"$f":"Master!C73&\" \"&Master!B73","v":" "},{"$f":"Master!A73","v":"ST"},{"$f":"FindSessionPositions($A74,'Session 1'!$A$1:$BL$35)","v":{"$error":"#NAME?"}},{"$f":"FindSessionPositions($A74,'Session 2'!$A$1:$BL$35)","v":{"$error":"#NAME?"}},{"$f":"FindSessionPositions($A74,'Session 3'!$A$1:$BL$35)","v":{"$error":"#NAME?"}},{"$f":"FindSessionPositions($A74,'Session 4'!$A$1:$BL$35)","v":{"$error":"#NAME?"}},{"$f":"FindSessionPositions($A74,'Session 5'!$A$1:$BL$35)","v":{"$error":"#NAME?"}},{"$f":"FindSessionPositions($A74,'Session 6'!$A$1:$BL$35)","v":{"$error":"#NAME?"}},{"$f":"FindSessionPositions($A74,'Session 7'!$A$1:$BL$35)","v":{"$error":"#NAME?"}},{"$f":"FindSessionPositions($A74,'Session 8'!$A$1:$BL$35)","v":{"$error":"#NAME?"}},{"$f":"FindSessionPositions($A74,'Session 9'!$A$1:$BL$35)","v":{"$error":"#NAME?"}},{"$f":"FindSessionPositions($A74,'Session 10'!$A$1:$BL$35)","v":{"$error":"#NAME?"}},null,{"$f":"FindSessionPositions($A74,'Session TT1'!$A$1:$BL$31)","v":{"$error":"#NAME?"}},{"$f":"FindSessionPositions($A74,'Session TT2'!$A$1:$BL$31)","v":{"$error":"#NAME?"}},{"$f":"FindSessionPositions($A74,'Session TT3'!$A$1:$BL$31)","v":{"$error":"#NAME?"}},{"$f":"FindSessionPositions($A74,'Session TT4'!$A$1:$BL$31)","v":{"$error":"#NAME?"}},{"$f":"FindSessionPositions($A74,'Session TT5'!$A$1:$BL$31)","v":{"$error":"#NAME?"}}]
[{"$f":"Master!C74&\" \"&Master!B74","v":" "},{"$f":"Master!A74","v":"ST"},{"$f":"FindSessionPositions($A75,'Session 1'!$A$1:$BL$35)","v":{"$error":"#NAME?"}},{"$f":"FindSessionPositions($A75,'Session 2'!$A$1:$BL$35)","v":{"$error":"#NAME?"}},{"$f":"FindSessionPositions($A75,'Session 3'!$A$1:$BL$35)","v":{"$error":"#NAME?"}},{"$f":"FindSessionPositions($A75,'Session 4'!$A$1:$BL$35)","v":{"$error":"#NAME?"}},{"$f":"FindSessionPositions($A75,'Session 5'!$A$1:$BL$35)","v":{"$error":"#NAME?"}},{"$f":"FindSessionPositions($A75,'Session 6'!$A$1:$BL$35)","v":{"$error":"#NAME?"}},{"$f":"FindSessionPositions($A75,'Session 7'!$A$1:$BL$35)","v":{"$error":"#NAME?"}},{"$f":"FindSessionPositions($A75,'Session 8'!$A$1:$BL$35)","v":{"$error":"#NAME?"}},{"$f":"FindSessionPositions($A75,'Session 9'!$A$1:$BL$35)","v":{"$error":"#NAME?"}},{"$f":"FindSessionPositions($A75,'Session 10'!$A$1:$BL$35)","v":{"$error":"#NAME?"}},null,{"$f":"FindSessionPositions($A75,'Session TT1'!$A$1:$BL$31)","v":{"$error":"#NAME?"}},{"$f":"FindSessionPositions($A75,'Session TT2'!$A$1:$BL$31)","v":{"$error":"#NAME?"}},{"$f":"FindSessionPositions($A75,'Session TT3'!$A$1:$BL$31)","v":{"$error":"#NAME?"}},{"$f":"FindSessionPositions($A75,'Session TT4'!$A$1:$BL$31)","v":{"$error":"#NAME?"}},{"$f":"FindSessionPositions($A75,'Session TT5'!$A$1:$BL$31)","v":{"$error":"#NAME?"}}]
[{"$f":"Master!C75&\" \"&Master!B75","v":" "},{"$f":"Master!A75","v":"ST"},{"$f":"FindSessionPositions($A76,'Session 1'!$A$1:$BL$35)","v":{"$error":"#NAME?"}},{"$f":"FindSessionPositions($A76,'Session 2'!$A$1:$BL$35)","v":{"$error":"#NAME?"}},{"$f":"FindSessionPositions($A76,'Session 3'!$A$1:$BL$35)","v":{"$error":"#NAME?"}},{"$f":"FindSessionPositions($A76,'Session 4'!$A$1:$BL$35)","v":{"$error":"#NAME?"}},{"$f":"FindSessionPositions($A76,'Session 5'!$A$1:$BL$35)","v":{"$error":"#NAME?"}},{"$f":"FindSessionPositions($A76,'Session 6'!$A$1:$BL$35)","v":{"$error":"#NAME?"}},{"$f":"FindSessionPositions($A76,'Session 7'!$A$1:$BL$35)","v":{"$error":"#NAME?"}},{"$f":"FindSessionPositions($A76,'Session 8'!$A$1:$BL$35)","v":{"$error":"#NAME?"}},{"$f":"FindSessionPositions($A76,'Session 9'!$A$1:$BL$35)","v":{"$error":"#NAME?"}},{"$f":"FindSessionPositions($A76,'Session 10'!$A$1:$BL$35)","v":{"$error":"#NAME?"}},null,{"$f":"FindSessionPositions($A76,'Session TT1'!$A$1:$BL$31)","v":{"$error":"#NAME?"}},{"$f":"FindSessionPositions($A76,'Session TT2'!$A$1:$BL$31)","v":{"$error":"#NAME?"}},{"$f":"FindSessionPositions($A76,'Session TT3'!$A$1:$BL$31)","v":{"$error":"#NAME?"}},{"$f":"FindSessionPositions($A76,'Session TT4'!$A$1:$BL$31)","v":{"$error":"#NAME?"}},{"$f":"FindSessionPositions($A76,'Session TT5'!$A$1:$BL$31)","v":{"$error":"#NAME?"}}]
[{"$f":"Master!C76&\" \"&Master!B76","v":" "},{"$f":"Master!A76","v":"ST"},{"$f":"FindSessionPositions($A77,'Session 1'!$A$1:$BL$35)","v":{"$error":"#NAME?"}},{"$f":"FindSessionPositions($A77,'Session 2'!$A$1:$BL$35)","v":{"$error":"#NAME?"}},{"$f":"FindSessionPositions($A77,'Session 3'!$A$1:$BL$35)","v":{"$error":"#NAME?"}},{"$f":"FindSessionPositions($A77,'Session 4'!$A$1:$BL$35)","v":{"$error":"#NAME?"}},{"$f":"FindSessionPositions($A77,'Session 5'!$A$1:$BL$35)","v":{"$error":"#NAME?"}},{"$f":"FindSessionPositions($A77,'Session 6'!$A$1:$BL$35)","v":{"$error":"#NAME?"}},{"$f":"FindSessionPositions($A77,'Session 7'!$A$1:$BL$35)","v":{"$error":"#NAME?"}},{"$f":"FindSessionPositions($A77,'Session 8'!$A$1:$BL$35)","v":{"$error":"#NAME?"}},{"$f":"FindSessionPositions($A77,'Session 9'!$A$1:$BL$35)","v":{"$error":"#NAME?"}},{"$f":"FindSessionPositions($A77,'Session 10'!$A$1:$BL$35)","v":{"$error":"#NAME?"}},null,{"$f":"FindSessionPositions($A77,'Session TT1'!$A$1:$BL$31)","v":{"$error":"#NAME?"}},{"$f":"FindSessionPositions($A77,'Session TT2'!$A$1:$BL$31)","v":{"$error":"#NAME?"}},{"$f":"FindSessionPositions($A77,'Session TT3'!$A$1:$BL$31)","v":{"$error":"#NAME?"}},{"$f":"FindSessionPositions($A77,'Session TT4'!$A$1:$BL$31)","v":{"$error":"#NAME?"}},{"$f":"FindSessionPositions($A77,'Session TT5'!$A$1:$BL$31)","v":{"$error":"#NAME?"}}]
[{"$f":"Master!C77&\" \"&Master!B77","v":" "},{"$f":"Master!A77","v":"ST"},{"$f":"FindSessionPositions($A78,'Session 1'!$A$1:$BL$35)","v":{"$error":"#NAME?"}},{"$f":"FindSessionPositions($A78,'Session 2'!$A$1:$BL$35)","v":{"$error":"#NAME?"}},{"$f":"FindSessionPositions($A78,'Session 3'!$A$1:$BL$35)","v":{"$error":"#NAME?"}},{"$f":"FindSessionPositions($A78,'Session 4'!$A$1:$BL$35)","v":{"$error":"#NAME?"}},{"$f":"FindSessionPositions($A78,'Session 5'!$A$1:$BL$35)","v":{"$error":"#NAME?"}},{"$f":"FindSessionPositions($A78,'Session 6'!$A$1:$BL$35)","v":{"$error":"#NAME?"}},{"$f":"FindSessionPositions($A78,'Session 7'!$A$1:$BL$35)","v":{"$error":"#NAME?"}},{"$f":"FindSessionPositions($A78,'Session 8'!$A$1:$BL$35)","v":{"$error":"#NAME?"}},{"$f":"FindSessionPositions($A78,'Session 9'!$A$1:$BL$35)","v":{"$error":"#NAME?"}},{"$f":"FindSessionPositions($A78,'Session 10'!$A$1:$BL$35)","v":{"$error":"#NAME?"}},null,{"$f":"FindSessionPositions($A78,'Session TT1'!$A$1:$BL$31)","v":{"$error":"#NAME?"}},{"$f":"FindSessionPositions($A78,'Session TT2'!$A$1:$BL$31)","v":{"$error":"#NAME?"}},{"$f":"FindSessionPositions($A78,'Session TT3'!$A$1:$BL$31)","v":{"$error":"#NAME?"}},{"$f":"FindSessionPositions($A78,'Session TT4'!$A$1:$BL$31)","v":{"$error":"#NAME?"}},{"$f":"FindSessionPositions($A78,'Session TT5'!$A$1:$BL$31)","v":{"$error":"#NAME?"}}]
[{"$f":"Master!C78&\" \"&Master!B78","v":" "},{"$f":"Master!A78","v":"ST"},{"$f":"FindSessionPositions($A79,'Session 1'!$A$1:$BL$35)","v":{"$error":"#NAME?"}},{"$f":"FindSessionPositions($A79,'Session 2'!$A$1:$BL$35)","v":{"$error":"#NAME?"}},{"$f":"FindSessionPositions($A79,'Session 3'!$A$1:$BL$35)","v":{"$error":"#NAME?"}},{"$f":"FindSessionPositions($A79,'Session 4'!$A$1:$BL$35)","v":{"$error":"#NAME?"}},{"$f":"FindSessionPositions($A79,'Session 5'!$A$1:$BL$35)","v":{"$error":"#NAME?"}},{"$f":"FindSessionPositions($A79,'Session 6'!$A$1:$BL$35)","v":{"$error":"#NAME?"}},{"$f":"FindSessionPositions($A79,'Session 7'!$A$1:$BL$35)","v":{"$error":"#NAME?"}},{"$f":"FindSessionPositions($A79,'Session 8'!$A$1:$BL$35)","v":{"$error":"#NAME?"}},{"$f":"FindSessionPositions($A79,'Session 9'!$A$1:$BL$35)","v":{"$error":"#NAME?"}},{"$f":"FindSessionPositions($A79,'Session 10'!$A$1:$BL$35)","v":{"$error":"#NAME?"}},null,{"$f":"FindSessionPositions($A79,'Session TT1'!$A$1:$BL$31)","v":{"$error":"#NAME?"}},{"$f":"FindSessionPositions($A79,'Session TT2'!$A$1:$BL$31)","v":{"$error":"#NAME?"}},{"$f":"FindSessionPositions($A79,'Session TT3'!$A$1:$BL$31)","v":{"$error":"#NAME?"}},{"$f":"FindSessionPositions($A79,'Session TT4'!$A$1:$BL$31)","v":{"$error":"#NAME?"}},{"$f":"FindSessionPositions($A79,'Session TT5'!$A$1:$BL$31)","v":{"$error":"#NAME?"}}]
[{"$f":"Master!C79&\" \"&Master!B79","v":" "},{"$f":"Master!A79","v":"ST"},{"$f":"FindSessionPositions($A80,'Session 1'!$A$1:$BL$35)","v":{"$error":"#NAME?"}},{"$f":"FindSessionPositions($A80,'Session 2'!$A$1:$BL$35)","v":{"$error":"#NAME?"}},{"$f":"FindSessionPositions($A80,'Session 3'!$A$1:$BL$35)","v":{"$error":"#NAME?"}},{"$f":"FindSessionPositions($A80,'Session 4'!$A$1:$BL$35)","v":{"$error":"#NAME?"}},{"$f":"FindSessionPositions($A80,'Session 5'!$A$1:$BL$35)","v":{"$error":"#NAME?"}},{"$f":"FindSessionPositions($A80,'Session 6'!$A$1:$BL$35)","v":{"$error":"#NAME?"}},{"$f":"FindSessionPositions($A80,'Session 7'!$A$1:$BL$35)","v":{"$error":"#NAME?"}},{"$f":"FindSessionPositions($A80,'Session 8'!$A$1:$BL$35)","v":{"$error":"#NAME?"}},{"$f":"FindSessionPositions($A80,'Session 9'!$A$1:$BL$35)","v":{"$error":"#NAME?"}},{"$f":"FindSessionPositions($A80,'Session 10'!$A$1:$BL$35)","v":{"$error":"#NAME?"}},null,{"$f":"FindSessionPositions($A80,'Session TT1'!$A$1:$BL$31)","v":{"$error":"#NAME?"}},{"$f":"FindSessionPositions($A80,'Session TT2'!$A$1:$BL$31)","v":{"$error":"#NAME?"}},{"$f":"FindSessionPositions($A80,'Session TT3'!$A$1:$BL$31)","v":{"$error":"#NAME?"}},{"$f":"FindSessionPositions($A80,'Session TT4'!$A$1:$BL$31)","v":{"$error":"#NAME?"}},{"$f":"FindSessionPositions($A80,'Session TT5'!$A$1:$BL$31)","v":{"$error":"#NAME?"}}]
[{"$f":"Master!C80&\" \"&Master!B80","v":" "}]
[{"$f":"Master!C81&\" \"&Master!B81","v":" "}]
[{"$f":"Master!C82&\" \"&Master!B82","v":" "}]
[{"$f":"Master!C83&\" \"&Master!B83","v":" "}]
[{"$f":"Master!C84&\" \"&Master!B84","v":" "}]
[{"$f":"Master!C85&\" \"&Master!B85","v":" "}]

{"sheet":"Session 1","index":4,"n_rows":35,"n_cols":63,"rows_kept":35,"cut":false,"hidden":false,"merged":[[2,18,2,29],[26,47,26,60],[27,47,27,60],[28,47,28,60],[29,47,29,60],[30,7,30,21],[4,0,4,9],[4,11,4,20],[14,17,14,31],[14,32,14,46],[14,47,14,61],[10,5,10,15],[10,16,10,20],[10,21,10,31],[10,32,10,36],[10,37,10,47],[10,48,10,52],[12,2,12,46],[12,47,13,61],[11,28,11,35],[11,0,11,27],[11,36,11,63],[13,2,13,16],[13,17,13,31],[31,48,31,63],[0,0,1,2],[0,40,0,43],[10,0,10,4],[7,0,7,4],[7,5,7,15],[7,16,7,20],[7,21,7,31],[7,32,7,36],[7,37,7,47],[7,48,7,52],[7,53,7,63],[9,0,9,27],[10,53,10,63],[2,0,2,7],[3,0,3,7],[0,4,0,39],[1,4,1,39],[1,40,1,63],[0,44,0,47],[0,48,0,63],[8,22,8,32],[8,33,8,63],[2,8,2,17],[13,32,13,46],[12,0,14,1],[12,62,14,63],[14,2,14,16],[24,0,24,1],[15,0,15,1],[16,0,16,1],[17,0,17,1],[18,0,18,1],[19,0,19,1],[20,0,20,1],[21,0,21,1],[22,0,22,1],[23,0,23,1],[18,32,18,46],[18,47,18,61],[19,2,19,16],[19,62,19,63],[15,2,15,16],[15,17,15,31],[15,32,15,46],[15,62,15,63],[16,62,16,63],[17,62,17,63],[24,62,24,63],[22,2,22,16],[22,17,22,31],[22,32,22,46],[22,47,22,61],[23,2,23,16],[23,17,23,31],[23,32,23,46],[23,47,23,61],[24,2,24,16],[22,62,22,63],[23,62,23,63],[17,17,17,31],[17,32,17,46],[17,47,17,61],[24,17,24,31],[24,32,24,46],[24,47,24,61],[21,2,21,16],[21,17,21,31],[21,32,21,46],[21,47,21,61],[18,2,18,16],[20,62,20,63],[20,2,20,16],[2,30,2,37],[2,39,2,46],[2,48,2,55],[2,57,2,63],[8,0,8,9],[6,0,6,27],[3,62,5,63],[5,0,5,9],[5,10,5,22],[5,23,5,31],[8,10,8,20],[6,28,6,35],[3,32,5,34],[3,11,3,20],[3,22,3,31],[15,47,15,61],[16,2,16,16],[18,62,18,63],[16,17,16,31],[16,32,16,46],[16,47,16,61],[17,2,17,16],[25,0,25,2],[25,3,25,16],[25,17,25,31],[25,32,25,46],[25,47,25,60],[9,28,9,35],[6,36,6,63],[9,36,9,63],[3,35,3,47],[3,49,3,61],[4,35,4,47],[4,49,4,61],[5,35,5,47],[5,49,5,61],[4,22,4,31],[3,8,3,10],[20,17,20,31],[20,32,20,46],[20,47,20,61],[21,62,21,63],[19,17,19,31],[19,32,19,46],[19,47,19,61],[18,17,18,31],[26,61,26,63],[27,61,27,63],[28,61,28,63],[29,61,29,63],[31,43,31,47],[32,43,32,47],[26,0,26,2],[27,0,27,2],[28,0,28,2],[29,0,29,2],[26,3,26,16],[27,3,27,16],[28,3,28,16],[29,3,29,16],[26,17,26,31],[27,17,27,31],[28,17,28,31],[29,17,29,31],[26,32,26,46],[27,32,27,46],[28,32,28,46],[29,32,29,46],[31,29,31,42],[31,7,31,21],[30,48,30,63],[30,43,30,47],[34,0,34,6],[34,7,34,21],[34,22,34,28],[32,7,32,21],[32,0,32,6],[33,0,33,6],[33,7,33,21],[32,22,32,28],[33,22,33,28],[31,0,31,6],[31,22,31,28],[33,43,33,47],[34,43,34,47],[32,48,32,63],[33,48,33,63],[34,48,34,63],[32,29,32,42],[33,29,33,42],[34,29,34,42],[30,0,30,6],[30,22,30,28],[30,29,30,42]]}
[null,null,null,null,{"$f":"Meet!B1","v":"meet name"},null,null,null,null,null,null,null,null,null,null,null,null,null,null,null,null,null,null,null,null,null,null,null,null,null,null,null,null,null,null,null,null,null,null,null,"Session",null,null,null," 1",null,null,null,{"$f":"LOOKUP(AS1,Sessions!A:A,Sessions!C:C)","v":"Prelims"}]
[null,null,null,null,{"$f":"Meet!B4","v":"meet location"},null,null,null,null,null,null,null,null,null,null,null,null,null,null,null,null,null,null,null,null,null,null,null,null,null,null,null,null,null,null,null,null,null,null,null,{"$f":"Meet!B2 + DAY(LOOKUP(AS1,Sessions!A:A,Sessions!B:B) - 1)","v":"2015-08-06"}]
["Meet  Referee - ",null,null,null,null,null,null,null,{"$f":"Officials!A3","v":"meet ref"},null,null,null,null,null,null,null,null,null,"Administrative Referees -",null,null,null,null,null,null,null,null,null,null,null,null,null,null,null,null,null,null,null,"/",null,null,null,null,null,null,null,null,"/"]
[" Deck Referees - ",null,null,null,null,null,null,null,null,null,null,null,null,null,null,null,null,null,null,null,null,"/",null,null,null,null,null,null,null,null,null,null,null,null,null,"Head Starter",null,null,null,null,null,null,null,null,null,null,null,null,"--"]
[null,null,null,null,null,null,null,null,null,null,null,null,null,null,null,null,null,null,null,null,null,"/",null,null,null,null,null,null,null,null,null,null,null,null,null,null,null,null,null,null,null,null,null,null,null,null,null,null,"/"]
["Lead Chief Judge - "]
[null,null,null,null,null,null,null,null,null,null,null,null,null,null,null,null,null,null,null,null,null,null,null,null,null,null,null,null,"Chief Judges"]
[{"$f":"\"Start\"  & CHAR(10) & \"Lane \" & Meet!$B$5","v":"Start\nLane 1"},null,null,null,null,null,null,null,null,null,null,null,null,null,null,null,{"$f":"\"Start\"  & CHAR(10) & \"Lane \" & IF(Meet!$B$5 = 1, Meet!$B$6, Meet!$B$6 -1)","v":"Start\nLane 8"},null,null,null,null,null,null,null,null,null,null,null,null,null,null,null,{"$f":"\"Turn\"  & CHAR(10) & \"Lane \" & Meet!$B$5","v":"Turn\nLane 1"},null,null,null,null,null,null,null,null,null,null,null,null,null,null,null,{"$f":"\"Turn\"  & CHAR(10) & \"Lane \" & IF(Meet!$B$5 = 1, Meet!$B$6, Meet!$B$6 -1)","v":"Turn\nLane 8"}]
["Relief Chief Judge:",null,null,null,null,null,null,null,null,null,null,null,null,null,null,null,null,null,null,null,null,"/"]
["Start End",null,null,null,null,null,null,null,null,null,null,null,null,null,null,null,null,null,null,null,null,null,null,null,null,null,null,null,"Stroke Judges",null,null,null,null,null,null,null,"Turn End"]
[{"$f":"\"Lane \" & Meet!$B$5","v":"Lane 1"},null,null,null,null,null,null,null,null,null,null,null,null,null,null,null,{"$f":"\"Lane \" & IF(Meet!$B$5 = 1, Meet!$B$6, Meet!$B$6 -1)","v":"Lane 8"},null,null,null,null,null,null,null,null,null,null,null,null,null,null,null,{"$f":"\"Lane \" & Meet!$B$5","v":"Lane 1"},null,null,null,null,null,null,null,null,null,null,null,null,null,null,null,{"$f":"\"Lane \" & IF(Meet!$B$5 = 1, Meet!$B$6, Meet!$B$6 -1)","v":"Lane 8"}]
[null,null,null,null,null,null,null,null,null,null,null,null,null,null,null,null,null,null,null,null,null,null,null,null,null,null,null,null,"Turn Judges"]
["LN",null,"Start End",null,null,null,null,null,null,null,null,null,null,null,null,null,null,null,null,null,null,null,null,null,null,null,null,null,null,null,null,null,null,null,null,null,null,null,null,null,null,null,null,null,null,null,null,"Turn End",null,null,null,null,null,null,null,null,null,null,null,null,null,null,"LN"]
[null,null,"Left Chair",null,null,null,null,null,null,null,null,null,null,null,null,null,null,"Center Chair",null,null,null,null,null,null,null,null,null,null,null,null,null,null,"Right Chair"]
[null,null,"Watch / Button / Relay Take-off",null,null,null,null,null,null,null,null,null,null,null,null,null,null,"Recorder / Button / Bell",null,null,null,null,null,null,null,null,null,null,null,null,null,null,"Turn-Finish Judge / Button",null,null,null,null,null,null,null,null,null,null,null,null,null,null,"Turn Judge"]
[{"$f":"Meet!$B$5","v":1},null,null,null,null,null,null,null,null,null,null,null,null,null,null,null,null,null,null,null,null,null,null,null,null,null,null,null,null,null,null,null,null,null,null,null,null,null,null,null,null,null,null,null,null,null,null,null,null,null,null,null,null,null,null,null,null,null,null,null,null,null,{"$f":"Meet!$B$5","v":1}]
[{"$f":"A16+1","v":2},null,null,null,null,null,null,null,null,null,null,null,null,null,null,null,null,null,null,null,null,null,null,null,null,null,null,null,null,null,null,null,null,null,null,null,null,null,null,null,null,null,null,null,null,null,null,null,null,null,null,null,null,null,null,null,null,null,null,null,null,null,{"$f":"BK16+1","v":2}]
[{"$f":"A17+1","v":3},null,null,null,null,null,null,null,null,null,null,null,null,null,null,null,null,null,null,null,null,null,null,null,null,null,null,null,null,null,null,null,null,null,null,null,null,null,null,null,null,null,null,null,null,null,null,null,null,null,null,null,null,null,null,null,null,null,null,null,null,null,{"$f":"BK17+1","v":3}]
[4,null,null,null,null,null,null,null,null,null,null,null,null,null,null,null,null,null,null,null,null,null,null,null,null,null,null,null,null,null,null,null,null,null,null,null,null,null,null,null,null,null,null,null,null,null,null,null,null,null,null,null,null,null,null,null,null,null,null,null,null,null,4]
[5,null,null,null,null,null,null,null,null,null,null,null,null,null,null,null,null,null,null,null,null,null,null,null,null,null,null,null,null,null,null,null,null,null,null,null,null,null,null,null,null,null,null,null,null,null,null,null,null,null,null,null,null,null,null,null,null,null,null,null,null,null,5]
[6,null,null,null,null,null,null,null,null,null,null,null,null,null,null,null,null,null,null,null,null,null,null,null,null,null,null,null,null,null,null,null,null,null,null,null,null,null,null,null,null,null,null,null,null,null,null,null,null,null,null,null,null,null,null,null,null,null,null,null,null,null,6]
[7,null,null,null,null,null,null,null,null,null,null,null,null,null,null,null,null,null,null,null,null,null,null,null,null,null,null,null,null,null,null,null,null,null,null,null,null,null,null,null,null,null,null,null,null,null,null,null,null,null,null,null,null,null,null,null,null,null,null,null,null,null,7]
[8,null,null,null,null,null,null,null,null,null,null,null,null,null,null,null,null,null,null,null,null,null,null,null,null,null,null,null,null,null,null,null,null,null,null,null,null,null,null,null,null,null,null,null,null,null,null,null,null,null,null,null,null,null,null,null,null,null,null,null,null,null,8]
[9,null,null,null,null,null,null,null,null,null,null,null,null,null,null,null,null,null,null,null,null,null,null,null,null,null,null,null,null,null,null,null,null,null,null,null,null,null,null,null,null,null,null,null,null,null,null,null,null,null,null,null,null,null,null,null,null,null,null,null,null,null,9]
[10,null,null,null,null,null,null,null,null,null,null,null,null,null,null,null,null,null,null,null,null,null,null,null,null,null,null,null,null,null,null,null,null,null,null,null,null,null,null,null,null,null,null,null,null,null,null,null,null,null,null,null,null,null,null,null,null,null,null,null,null,null,10]
[null,null,null,"Left Chair Relief",null,null,null,null,null,null,null,null,null,null,null,null,null,"Center Chair Relief",null,null,null,null,null,null,null,null,null,null,null,null,null,null,"Right Chair Relief",null,null,null,null,null,null,null,null,null,null,null,null,null,null,"Turn End Relief"]
["Team 1",null,null,null,null,null,null,null,null,null,null,null,null,null,null,null,null,null,null,null,null,null,null,null,null,null,null,null,null,null,null,null,null,null,null,null,null,null,null,null,null,null,null,null,null,null,null,null,null,null,null,null,null,null,null,null,null,null,null,null,null,"Team 1"]
["Team 2",null,null,null,null,null,null,null,null,null,null,null,null,null,null,null,null,null,null,null,null,null,null,null,null,null,null,null,null,null,null,null,null,null,null,null,null,null,null,null,null,null,null,null,null,null,null,null,null,null,null,null,null,null,null,null,null,null,null,null,null,"Team 2"]
["Team 3",null,null,null,null,null,null,null,null,null,null,null,null,null,null,null,null,null,null,null,null,null,null,null,null,null,null,null,null,null,null,null,null,null,null,null,null,null,null,null,null,null,null,null,null,null,null,null,null,null,null,null,null,null,null,null,null,null,null,null,null,"Team 3"]
["Team 4 ",null,null,null,null,null,null,null,null,null,null,null,null,null,null,null,null,null,null,null,null,null,null,null,null,null,null,null,null,null,null,null,null,null,null,null,null,null,null,null,null,null,null,null,null,null,null,null,null,null,null,null,null,null,null,null,null,null,null,null,null,"Team 4 "]
[null,null,null,null,null,null,null,"Stroke Relief",null,null,null,null,null,null,null,null,null,null,null,null,null,null,null,null,null,null,null,null,null,"Reserve Officials",null,null,null,null,null,null,null,null,null,null,null,null,null,null,null,null,null,null,"SIDE Relay Take-Off Judges"]
[{"$f":"\"Start Lane \"  & Meet!$B$5","v":"Start Lane 1"},null,null,null,null,null,null,null,null,null,null,null,null,null,null,null,null,null,null,null,null,null,{"$f":"\"Start Lane \"  & Meet!$B$5","v":"Start Lane 1"},null,null,null,null,null,null,null,null,null,null,null,null,null,null,null,null,null,null,null,null,"Lanes 1 - 2"]
[{"$f":"\"Start Lane \" & IF(Meet!$B$5 = 1, Meet!$B$6, Meet!$B$6 -1)","v":"Start Lane 8"},null,null,null,null,null,null,null,null,null,null,null,null,null,null,null,null,null,null,null,null,null,{"$f":"\"Start Lane \" & IF(Meet!$B$5 = 1, Meet!$B$6, Meet!$B$6 -1)","v":"Start Lane 8"},null,null,null,null,null,null,null,null,null,null,null,null,null,null,null,null,null,null,null,null,"Lanes 3 - 4"]
[{"$f":"\"Turn Lane \"  & Meet!$B$5","v":"Turn Lane 1"},null,null,null,null,null,null,null,null,null,null,null,null,null,null,null,null,null,null,null,null,null,{"$f":"\"Turn Lane \"  & Meet!$B$5","v":"Turn Lane 1"},null,null,null,null,null,null,null,null,null,null,null,null,null,null,null,null,null,null,null,null,"Lanes 5 - 6"]
[{"$f":"\"Turn Lane \" & IF(Meet!$B$5 = 1, Meet!$B$6, Meet!$B$6 -1)","v":"Turn Lane 8"},null,null,null,null,null,null,null,null,null,null,null,null,null,null,null,null,null,null,null,null,null,{"$f":"\"Turn Lane \" & IF(Meet!$B$5 = 1, Meet!$B$6, Meet!$B$6 -1)","v":"Turn Lane 8"},null,null,null,null,null,null,null,null,null,null,null,null,null,null,null,null,null,null,null,null,"Lanes 7 - 8"]

{"sheet":"Session TT1","index":5,"n_rows":35,"n_cols":63,"rows_kept":35,"cut":false,"hidden":false,"merged":[[34,0,34,6],[34,7,34,21],[34,22,34,28],[34,29,34,42],[34,43,34,47],[34,48,34,63],[33,0,33,6],[33,7,33,21],[33,22,33,28],[33,29,33,42],[33,43,33,47],[33,48,33,63],[32,0,32,6],[32,7,32,21],[32,22,32,28],[32,29,32,42],[32,43,32,47],[32,48,32,63],[31,0,31,6],[31,7,31,21],[31,22,31,28],[31,29,31,42],[31,43,31,47],[31,48,31,63],[30,0,30,6],[30,7,30,21],[30,22,30,28],[30,29,30,42],[30,43,30,47],[30,48,30,63],[29,0,29,2],[29,3,29,16],[29,17,29,31],[29,32,29,46],[29,47,29,60],[29,61,29,63],[28,0,28,2],[28,3,28,16],[28,17,28,31],[28,32,28,46],[28,47,28,60],[28,61,28,63],[26,61,26,63],[27,0,27,2],[27,3,27,16],[27,17,27,31],[27,32,27,46],[27,47,27,60],[27,61,27,63],[25,0,25,2],[25,3,25,16],[25,17,25,31],[25,32,25,46],[25,47,25,60],[26,0,26,2],[26,3,26,16],[26,17,26,31],[26,32,26,46],[26,47,26,60],[24,0,24,1],[24,2,24,16],[24,17,24,31],[24,32,24,46],[24,47,24,61],[24,62,24,63],[23,0,23,1],[23,2,23,16],[23,17,23,31],[23,32,23,46],[23,47,23,61],[23,62,23,63],[22,0,22,1],[22,2,22,16],[22,17,22,31],[22,32,22,46],[22,47,22,61],[22,62,22,63],[21,0,21,1],[21,2,21,16],[21,17,21,31],[21,32,21,46],[21,47,21,61],[21,62,21,63],[20,0,20,1],[20,2,20,16],[20,17,20,31],[20,32,20,46],[20,47,20,61],[20,62,20,63],[19,0,19,1],[19,2,19,16],[19,17,19,31],[19,32,19,46],[19,47,19,61],[19,62,19,63],[18,0,18,1],[18,2,18,16],[18,17,18,31],[18,32,18,46],[18,47,18,61],[18,62,18,63],[17,0,17,1],[17,2,17,16],[17,17,17,31],[17,32,17,46],[17,47,17,61],[17,62,17,63],[16,0,16,1],[16,2,16,16],[16,17,16,31],[16,32,16,46],[16,47,16,61],[16,62,16,63],[15,0,15,1],[15,2,15,16],[15,17,15,31],[15,32,15,46],[15,47,15,61],[15,62,15,63],[13,17,13,31],[13,32,13,46],[14,2,14,16],[14,17,14,31],[14,32,14,46],[14,47,14,61],[10,48,10,52],[10,53,10,63],[11,0,11,27],[11,28,11,35],[11,36,11,63],[12,0,14,1],[12,2,12,46],[12,47,13,61],[12,62,14,63],[13,2,13,16],[10,0,10,4],[10,5,10,15],[10,16,10,20],[10,21,10,31],[10,32,10,36],[10,37,10,47],[8,0,8,9],[8,10,8,20],[8,22,8,32],[8,33,8,63],[9,0,9,27],[9,28,9,35],[9,36,9,63],[6,0,6,27],[6,28,6,35],[6,36,6,63],[7,0,7,4],[7,5,7,15],[7,16,7,20],[7,21,7,31],[7,32,7,36],[7,37,7,47],[7,48,7,52],[4,22,4,31],[4,35,4,47],[4,49,4,61],[5,0,5,9],[5,10,5,22],[5,23,5,31],[5,35,5,47],[5,49,5,61],[7,53,7,63],[0,0,1,2],[0,4,0,39],[0,40,0,43],[0,44,0,47],[0,48,0,63],[1,4,1,39],[1,40,1,63],[2,57,2,63],[3,0,3,7],[3,8,3,10],[3,11,3,20],[3,22,3,31],[3,32,5,34],[3,35,3,47],[3,49,3,61],[3,62,5,63],[4,0,4,9],[2,0,2,7],[2,8,2,17],[2,18,2,29],[2,30,2,37],[2,39,2,46],[2,48,2,55],[4,11,4,20]]}
[null,null,null,null,{"$f":"Meet!B1","v":"meet name"},null,null,null,null,null,null,null,null,null,null,null,null,null,null,null,null,null,null,null,null,null,null,null,null,null,null,null,null,null,null,null,null,null,null,null,"Session",null,null,null,"TT1",null,null,null,{"$f":"LOOKUP(AS1,Sessions!A:A,Sessions!C:C)","v":"Time Trials - 1st Day"}]
[null,null,null,null,{"$f":"Meet!B4","v":"meet location"},null,null,null,null,null,null,null,null,null,null,null,null,null,null,null,null,null,null,null,null,null,null,null,null,null,null,null,null,null,null,null,null,null,null,null,{"$f":"Meet!B2 + DAY(LOOKUP(AS1,Sessions!A:A,Sessions!B:B) - 1)","v":"2015-08-06"}]
["Meet  Referee - ",null,null,null,null,null,null,null,{"$f":"Officials!A23","v":" TTR"},null,null,null,null,null,null,null,null,null,"Administrative Referees -",null,null,null,null,null,null,null,null,null,null,null,null,null,null,null,null,null,null,null,"/",null,null,null,null,null,null,null,null,"/"]
[" Deck Referees - ",null,null,null,null,null,null,null,null,null,null,null,null,null,null,null,null,null,null,null,null,"/",null,null,null,null,null,null,null,null,null,null,null,null,null,"Head Starter",null,null,null,null,null,null,null,null,null,null,null,null,"--"]
[null,null,null,null,null,null,null,null,null,null,"/",null,null,null,null,null,null,null,null,null,null,"/",null,null,null,null,null,null,null,null,null,null,null,null,null,null,null,null,null,null,null,null,null,null,null,null,null,null,"/"]
["Lead Chief Judge - ",null,null,null,null,null,null,null,null,null,null,null,null,null,null,null,null,null,null,null,null,null,null,null,null,null,null,null,null,null,null,null,null,null,null,null,null,null,null,null,null,null,null,null,null,null,null,null,"/"]
[null,null,null,null,null,null,null,null,null,null,null,null,null,null,null,null,null,null,null,null,null,null,null,null,null,null,null,null,"Chief Judges"]
[{"$f":"\"Start\"  & CHAR(10) & \"Lane \" & Meet!$B$5","v":"Start\nLane 1"},null,null,null,null,null,null,null,null,null,null,null,null,null,null,null,{"$f":"\"Start\"  & CHAR(10) & \"Lane \" & IF(Meet!$B$5 = 1, Meet!$B$6, Meet!$B$6 -1)","v":"Start\nLane 8"},null,null,null,null,null,null,null,null,null,null,null,null,null,null,null,{"$f":"\"Turn\"  & CHAR(10) & \"Lane \" & Meet!$B$5","v":"Turn\nLane 1"},null,null,null,null,null,null,null,null,null,null,null,null,null,null,null,{"$f":"\"Turn\"  & CHAR(10) & \"Lane \" & IF(Meet!$B$5 = 1, Meet!$B$6, Meet!$B$6 -1)","v":"Turn\nLane 8"}]
["Relief Chief Judge:",null,null,null,null,null,null,null,null,null,null,null,null,null,null,null,null,null,null,null,null,"/"]
["Start End",null,null,null,null,null,null,null,null,null,null,null,null,null,null,null,null,null,null,null,null,null,null,null,null,null,null,null,"Stroke Judges",null,null,null,null,null,null,null,"Turn End"]
[{"$f":"\"Lane \" & Meet!$B$5","v":"Lane 1"},null,null,null,null,null,null,null,null,null,null,null,null,null,null,null,{"$f":"\"Lane \" & IF(Meet!$B$5 = 1, Meet!$B$6, Meet!$B$6 -1)","v":"Lane 8"},null,null,null,null,null,null,null,null,null,null,null,null,null,null,null,{"$f":"\"Lane \" & Meet!$B$5","v":"Lane 1"},null,null,null,null,null,null,null,null,null,null,null,null,null,null,null,{"$f":"\"Lane \" & IF(Meet!$B$5 = 1, Meet!$B$6, Meet!$B$6 -1)","v":"Lane 8"}]
[null,null,null,null,null,null,null,null,null,null,null,null,null,null,null,null,null,null,null,null,null,null,null,null,null,null,null,null,"Turn Judges"]
["LN",null,"Start End",null,null,null,null,null,null,null,null,null,null,null,null,null,null,null,null,null,null,null,null,null,null,null,null,null,null,null,null,null,null,null,null,null,null,null,null,null,null,null,null,null,null,null,null,"Turn End",null,null,null,null,null,null,null,null,null,null,null,null,null,null,"LN"]
[null,null,"Left Chair",null,null,null,null,null,null,null,null,null,null,null,null,null,null,"Center Chair",null,null,null,null,null,null,null,null,null,null,null,null,null,null,"Right Chair"]
[null,null,"Watch / Button / Relay Take-off",null,null,null,null,null,null,null,null,null,null,null,null,null,null,"Recorder / Button / Bell",null,null,null,null,null,null,null,null,null,null,null,null,null,null,"Turn-Finish Judge / Button",null,null,null,null,null,null,null,null,null,null,null,null,null,null,"Turn Judge"]
[{"$f":"Meet!$B$5","v":1},null,null,null,null,null,null,null,null,null,null,null,null,null,null,null,null,null,null,null,null,null,null,null,null,null,null,null,null,null,null,null,null,null,null,null,null,null,null,null,null,null,null,null,null,null,null,null,null,null,null,null,null,null,null,null,null,null,null,null,null,null,{"$f":"Meet!$B$5","v":1}]
[{"$f":"A16+1","v":2},null,null,null,null,null,null,null,null,null,null,null,null,null,null,null,null,null,null,null,null,null,null,null,null,null,null,null,null,null,null,null,null,null,null,null,null,null,null,null,null,null,null,null,null,null,null,null,null,null,null,null,null,null,null,null,null,null,null,null,null,null,{"$f":"BK16+1","v":2}]
[{"$f":"A17+1","v":3},null,null,null,null,null,null,null,null,null,null,null,null,null,null,null,null,null,null,null,null,null,null,null,null,null,null,null,null,null,null,null,null,null,null,null,null,null,null,null,null,null,null,null,null,null,null,null,null,null,null,null,null,null,null,null,null,null,null,null,null,null,{"$f":"BK17+1","v":3}]
[4,null,null,null,null,null,null,null,null,null,null,null,null,null,null,null,null,null,null,null,null,null,null,null,null,null,null,null,null,null,null,null,null,null,null,null,null,null,null,null,null,null,null,null,null,null,null,null,null,null,null,null,null,null,null,null,null,null,null,null,null,null,4]
[5,null,null,null,null,null,null,null,null,null,null,null,null,null,null,null,null,null,null,null,null,null,null,null,null,null,null,null,null,null,null,null,null,null,null,null,null,null,null,null,null,null,null,null,null,null,null,null,null,null,null,null,null,null,null,null,null,null,null,null,null,null,5]
[6,null,null,null,null,null,null,null,null,null,null,null,null,null,null,null,null,null,null,null,null,null,null,null,null,null,null,null,null,null,null,null,null,null,null,null,null,null,null,null,null,null,null,null,null,null,null,null,null,null,null,null,null,null,null,null,null,null,null,null,null,null,6]
[7,null,null,null,null,null,null,null,null,null,null,null,null,null,null,null,null,null,null,null,null,null,null,null,null,null,null,null,null,null,null,null,null,null,null,null,null,null,null,null,null,null,null,null,null,null,null,null,null,null,null,null,null,null,null,null,null,null,null,null,null,null,7]
[8,null,null,null,null,null,null,null,null,null,null,null,null,null,null,null,null,null,null,null,null,null,null,null,null,null,null,null,null,null,null,null,null,null,null,null,null,null,null,null,null,null,null,null,null,null,null,null,null,null,null,null,null,null,null,null,null,null,null,null,null,null,8]
[9,null,null,null,null,null,null,null,null,null,null,null,null,null,null,null,null,null,null,null,null,null,null,null,null,null,null,null,null,null,null,null,null,null,null,null,null,null,null,null,null,null,null,null,null,null,null,null,null,null,null,null,null,null,null,null,null,null,null,null,null,null,9]
[10,null,null,null,null,null,null,null,null,null,null,null,null,null,null,null,null,null,null,null,null,null,null,null,null,null,null,null,null,null,null,null,null,null,null,null,null,null,null,null,null,null,null,null,null,null,null,null,null,null,null,null,null,null,null,null,null,null,null,null,null,null,10]
[null,null,null,"Left Chair Relief",null,null,null,null,null,null,null,null,null,null,null,null,null,"Center Chair Relief",null,null,null,null,null,null,null,null,null,null,null,null,null,null,"Right Chair Relief",null,null,null,null,null,null,null,null,null,null,null,null,null,null,"Turn End Relief"]
["Team 1",null,null,null,null,null,null,null,null,null,null,null,null,null,null,null,null,null,null,null,null,null,null,null,null,null,null,null,null,null,null,null,null,null,null,null,null,null,null,null,null,null,null,null,null,null,null,null,null,null,null,null,null,null,null,null,null,null,null,null,null,"Team 1"]
["Team 2",null,null,null,null,null,null,null,null,null,null,null,null,null,null,null,null,null,null,null,null,null,null,null,null,null,null,null,null,null,null,null,null,null,null,null,null,null,null,null,null,null,null,null,null,null,null,null,null,null,null,null,null,null,null,null,null,null,null,null,null,"Team 2"]
["Team 3",null,null,null,null,null,null,null,null,null,null,null,null,null,null,null,null,null,null,null,null,null,null,null,null,null,null,null,null,null,null,null,null,null,null,null,null,null,null,null,null,null,null,null,null,null,null,null,null,null,null,null,null,null,null,null,null,null,null,null,null,"Team 3"]
["Team 4 ",null,null,null,null,null,null,null,null,null,null,null,null,null,null,null,null,null,null,null,null,null,null,null,null,null,null,null,null,null,null,null,null,null,null,null,null,null,null,null,null,null,null,null,null,null,null,null,null,null,null,null,null,null,null,null,null,null,null,null,null,"Team 4 "]
[null,null,null,null,null,null,null,"Stroke Relief",null,null,null,null,null,null,null,null,null,null,null,null,null,null,null,null,null,null,null,null,null,"Reserve Officials",null,null,null,null,null,null,null,null,null,null,null,null,null,null,null,null,null,null,"SIDE Relay Take-Off Judges"]
[{"$f":"\"Start Lane \"  & Meet!$B$5","v":"Start Lane 1"},null,null,null,null,null,null,null,null,null,null,null,null,null,null,null,null,null,null,null,null,null,{"$f":"\"Start Lane \"  & Meet!$B$5","v":"Start Lane 1"},null,null,null,null,null,null,null,null,null,null,null,null,null,null,null,null,null,null,null,null,"Lanes 1 - 2"]
[{"$f":"\"Start Lane \" & IF(Meet!$B$5 = 1, Meet!$B$6, Meet!$B$6 -1)","v":"Start Lane 8"},null,null,null,null,null,null,null,null,null,null,null,null,null,null,null,null,null,null,null,null,null,{"$f":"\"Start Lane \" & IF(Meet!$B$5 = 1, Meet!$B$6, Meet!$B$6 -1)","v":"Start Lane 8"},null,null,null,null,null,null,null,null,null,null,null,null,null,null,null,null,null,null,null,null,"Lanes 3 - 4"]
[{"$f":"\"Turn Lane \"  & Meet!$B$5","v":"Turn Lane 1"},null,null,null,null,null,null,null,null,null,null,null,null,null,null,null,null,null,null,null,null,null,{"$f":"\"Turn Lane \"  & Meet!$B$5","v":"Turn Lane 1"},null,null,null,null,null,null,null,null,null,null,null,null,null,null,null,null,null,null,null,null,"Lanes 5 - 6"]
[{"$f":"\"Turn Lane \" & IF(Meet!$B$5 = 1, Meet!$B$6, Meet!$B$6 -1)","v":"Turn Lane 8"},null,null,null,null,null,null,null,null,null,null,null,null,null,null,null,null,null,null,null,null,null,{"$f":"\"Turn Lane \" & IF(Meet!$B$5 = 1, Meet!$B$6, Meet!$B$6 -1)","v":"Turn Lane 8"},null,null,null,null,null,null,null,null,null,null,null,null,null,null,null,null,null,null,null,null,"Lanes 7 - 8"]

{"sheet":"Session 2","index":6,"n_rows":35,"n_cols":63,"rows_kept":35,"cut":false,"hidden":false,"merged":[[34,0,34,6],[34,7,34,21],[34,22,34,28],[34,29,34,42],[34,43,34,47],[34,48,34,63],[33,0,33,6],[33,7,33,21],[33,22,33,28],[33,29,33,42],[33,43,33,47],[33,48,33,63],[32,0,32,6],[32,7,32,21],[32,22,32,28],[32,29,32,42],[32,43,32,47],[32,48,32,63],[31,0,31,6],[31,7,31,21],[31,22,31,28],[31,29,31,42],[31,43,31,47],[31,48,31,63],[30,0,30,6],[30,7,30,21],[30,22,30,28],[30,29,30,42],[30,43,30,47],[30,48,30,63],[29,0,29,2],[29,3,29,16],[29,17,29,31],[29,32,29,46],[29,47,29,60],[29,61,29,63],[28,0,28,2],[28,3,28,16],[28,17,28,31],[28,32,28,46],[28,47,28,60],[28,61,28,63],[26,61,26,63],[27,0,27,2],[27,3,27,16],[27,17,27,31],[27,32,27,46],[27,47,27,60],[27,61,27,63],[25,0,25,2],[25,3,25,16],[25,17,25,31],[25,32,25,46],[25,47,25,60],[26,0,26,2],[26,3,26,16],[26,17,26,31],[26,32,26,46],[26,47,26,60],[24,0,24,1],[24,2,24,16],[24,17,24,31],[24,32,24,46],[24,47,24,61],[24,62,24,63],[23,0,23,1],[23,2,23,16],[23,17,23,31],[23,32,23,46],[23,47,23,61],[23,62,23,63],[22,0,22,1],[22,2,22,16],[22,17,22,31],[22,32,22,46],[22,47,22,61],[22,62,22,63],[21,0,21,1],[21,2,21,16],[21,17,21,31],[21,32,21,46],[21,47,21,61],[21,62,21,63],[20,0,20,1],[20,2,20,16],[20,17,20,31],[20,32,20,46],[20,47,20,61],[20,62,20,63],[19,0,19,1],[19,2,19,16],[19,17,19,31],[19,32,19,46],[19,47,19,61],[19,62,19,63],[18,0,18,1],[18,2,18,16],[18,17,18,31],[18,32,18,46],[18,47,18,61],[18,62,18,63],[17,0,17,1],[17,2,17,16],[17,17,17,31],[17,32,17,46],[17,47,17,61],[17,62,17,63],[16,0,16,1],[16,2,16,16],[16,17,16,31],[16,32,16,46],[16,47,16,61],[16,62,16,63],[15,0,15,1],[15,2,15,16],[15,17,15,31],[15,32,15,46],[15,47,15,61],[15,62,15,63],[13,17,13,31],[13,32,13,46],[14,2,14,16],[14,17,14,31],[14,32,14,46],[14,47,14,61],[10,48,10,52],[10,53,10,63],[11,0,11,27],[11,28,11,35],[11,36,11,63],[12,0,14,1],[12,2,12,46],[12,47,13,61],[12,62,14,63],[13,2,13,16],[10,0,10,4],[10,5,10,15],[10,16,10,20],[10,21,10,31],[10,32,10,36],[10,37,10,47],[8,0,8,9],[8,10,8,20],[8,22,8,32],[8,33,8,63],[9,0,9,27],[9,28,9,35],[9,36,9,63],[6,0,6,27],[6,28,6,35],[6,36,6,63],[7,0,7,4],[7,5,7,15],[7,16,7,20],[7,21,7,31],[7,32,7,36],[7,37,7,47],[7,48,7,52],[4,22,4,31],[4,35,4,47],[4,49,4,61],[5,0,5,9],[5,10,5,22],[5,23,5,31],[5,35,5,47],[5,49,5,61],[7,53,7,63],[0,0,1,2],[0,4,0,39],[0,40,0,43],[0,44,0,47],[0,48,0,63],[1,4,1,39],[1,40,1,63],[2,57,2,63],[3,0,3,7],[3,8,3,10],[3,11,3,20],[3,22,3,31],[3,32,5,34],[3,35,3,47],[3,49,3,61],[3,62,5,63],[4,0,4,9],[2,0,2,7],[2,8,2,17],[2,18,2,29],[2,30,2,37],[2,39,2,46],[2,48,2,55],[4,11,4,20]]}
[null,null,null,null,{"$f":"Meet!B1","v":"meet name"},null,null,null,null,null,null,null,null,null,null,null,null,null,null,null,null,null,null,null,null,null,null,null,null,null,null,null,null,null,null,null,null,null,null,null,"Session",null,null,null," 2",null,null,null,{"$f":"LOOKUP(AS1,Sessions!A:A,Sessions!C:C)","v":"FINALS"}]
[null,null,null,null,{"$f":"Meet!B4","v":"meet location"},null,null,null,null,null,null,null,null,null,null,null,null,null,null,null,null,null,null,null,null,null,null,null,null,null,null,null,null,null,null,null,null,null,null,null,{"$f":"Meet!B2 + DAY(LOOKUP(AS1,Sessions!A:A,Sessions!B:B) - 1)","v":"2015-08-06"}]
["Meet  Referee - ",null,null,null,null,null,null,null,{"$f":"Officials!A3","v":"meet ref"},null,null,null,null,null,null,null,null,null,"Administrative Referees -",null,null,null,null,null,null,null,null,null,null,null,null,null,null,null,null,null,null,null,"/",null,null,null,null,null,null,null,null,"/"]
[" Deck Referees - ",null,null,null,null,null,null,null,null,null,null,null,null,null,null,null,null,null,null,null,null,"/",null,null,null,null,null,null,null,null,null,null,null,null,null,"Head Starter",null,null,null,null,null,null,null,null,null,null,null,null,"--"]
[null,null,null,null,null,null,null,null,null,null,null,null,null,null,null,null,null,null,null,null,null,"/",null,null,null,null,null,null,null,null,null,null,null,null,null,null,null,null,null,null,null,null,null,null,null,null,null,null,"/"]
["Lead Chief Judge - "]
[null,null,null,null,null,null,null,null,null,null,null,null,null,null,null,null,null,null,null,null,null,null,null,null,null,null,null,null,"Chief Judges"]
[{"$f":"\"Start\"  & CHAR(10) & \"Lane \" & Meet!$B$5","v":"Start\nLane 1"},null,null,null,null,null,null,null,null,null,null,null,null,null,null,null,{"$f":"\"Start\"  & CHAR(10) & \"Lane \" & IF(Meet!$B$5 = 1, Meet!$B$6, Meet!$B$6 -1)","v":"Start\nLane 8"},null,null,null,null,null,null,null,null,null,null,null,null,null,null,null,{"$f":"\"Turn\"  & CHAR(10) & \"Lane \" & Meet!$B$5","v":"Turn\nLane 1"},null,null,null,null,null,null,null,null,null,null,null,null,null,null,null,{"$f":"\"Turn\"  & CHAR(10) & \"Lane \" & IF(Meet!$B$5 = 1, Meet!$B$6, Meet!$B$6 -1)","v":"Turn\nLane 8"}]
["Relief Chief Judge:",null,null,null,null,null,null,null,null,null,null,null,null,null,null,null,null,null,null,null,null,"/"]
["Start End",null,null,null,null,null,null,null,null,null,null,null,null,null,null,null,null,null,null,null,null,null,null,null,null,null,null,null,"Stroke Judges",null,null,null,null,null,null,null,"Turn End"]
[{"$f":"\"Lane \" & Meet!$B$5","v":"Lane 1"},null,null,null,null,null,null,null,null,null,null,null,null,null,null,null,{"$f":"\"Lane \" & IF(Meet!$B$5 = 1, Meet!$B$6, Meet!$B$6 -1)","v":"Lane 8"},null,null,null,null,null,null,null,null,null,null,null,null,null,null,null,{"$f":"\"Lane \" & Meet!$B$5","v":"Lane 1"},null,null,null,null,null,null,null,null,null,null,null,null,null,null,null,{"$f":"\"Lane \" & IF(Meet!$B$5 = 1, Meet!$B$6, Meet!$B$6 -1)","v":"Lane 8"}]
[null,null,null,null,null,null,null,null,null,null,null,null,null,null,null,null,null,null,null,null,null,null,null,null,null,null,null,null,"Turn Judges"]
["LN",null,"Start End",null,null,null,null,null,null,null,null,null,null,null,null,null,null,null,null,null,null,null,null,null,null,null,null,null,null,null,null,null,null,null,null,null,null,null,null,null,null,null,null,null,null,null,null,"Turn End",null,null,null,null,null,null,null,null,null,null,null,null,null,null,"LN"]
[null,null,"Left Chair",null,null,null,null,null,null,null,null,null,null,null,null,null,null,"Center Chair",null,null,null,null,null,null,null,null,null,null,null,null,null,null,"Right Chair"]
[null,null,"Watch / Button / Relay Take-off",null,null,null,null,null,null,null,null,null,null,null,null,null,null,"Recorder / Button / Bell",null,null,null,null,null,null,null,null,null,null,null,null,null,null,"Turn-Finish Judge / Button",null,null,null,null,null,null,null,null,null,null,null,null,null,null,"Turn Judge"]
[{"$f":"Meet!$B$5","v":1},null,null,null,null,null,null,null,null,null,null,null,null,null,null,null,null,null,null,null,null,null,null,null,null,null,null,null,null,null,null,null,null,null,null,null,null,null,null,null,null,null,null,null,null,null,null,null,null,null,null,null,null,null,null,null,null,null,null,null,null,null,{"$f":"Meet!$B$5","v":1}]
[{"$f":"A16+1","v":2},null,null,null,null,null,null,null,null,null,null,null,null,null,null,null,null,null,null,null,null,null,null,null,null,null,null,null,null,null,null,null,null,null,null,null,null,null,null,null,null,null,null,null,null,null,null,null,null,null,null,null,null,null,null,null,null,null,null,null,null,null,{"$f":"BK16+1","v":2}]
[{"$f":"A17+1","v":3},null,null,null,null,null,null,null,null,null,null,null,null,null,null,null,null,null,null,null,null,null,null,null,null,null,null,null,null,null,null,null,null,null,null,null,null,null,null,null,null,null,null,null,null,null,null,null,null,null,null,null,null,null,null,null,null,null,null,null,null,null,{"$f":"BK17+1","v":3}]
[4,null,null,null,null,null,null,null,null,null,null,null,null,null,null,null,null,null,null,null,null,null,null,null,null,null,null,null,null,null,null,null,null,null,null,null,null,null,null,null,null,null,null,null,null,null,null,null,null,null,null,null,null,null,null,null,null,null,null,null,null,null,4]
[5,null,null,null,null,null,null,null,null,null,null,null,null,null,null,null,null,null,null,null,null,null,null,null,null,null,null,null,null,null,null,null,null,null,null,null,null,null,null,null,null,null,null,null,null,null,null,null,null,null,null,null,null,null,null,null,null,null,null,null,null,null,5]
[6,null,null,null,null,null,null,null,null,null,null,null,null,null,null,null,null,null,null,null,null,null,null,null,null,null,null,null,null,null,null,null,null,null,null,null,null,null,null,null,null,null,null,null,null,null,null,null,null,null,null,null,null,null,null,null,null,null,null,null,null,null,6]
[7,null,null,null,null,null,null,null,null,null,null,null,null,null,null,null,null,null,null,null,null,null,null,null,null,null,null,null,null,null,null,null,null,null,null,null,null,null,null,null,null,null,null,null,null,null,null,null,null,null,null,null,null,null,null,null,null,null,null,null,null,null,7]
[8,null,null,null,null,null,null,null,null,null,null,null,null,null,null,null,null,null,null,null,null,null,null,null,null,null,null,null,null,null,null,null,null,null,null,null,null,null,null,null,null,null,null,null,null,null,null,null,null,null,null,null,null,null,null,null,null,null,null,null,null,null,8]
[9,null,null,null,null,null,null,null,null,null,null,null,null,null,null,null,null,null,null,null,null,null,null,null,null,null,null,null,null,null,null,null,null,null,null,null,null,null,null,null,null,null,null,null,null,null,null,null,null,null,null,null,null,null,null,null,null,null,null,null,null,null,9]
[10,null,null,null,null,null,null,null,null,null,null,null,null,null,null,null,null,null,null,null,null,null,null,null,null,null,null,null,null,null,null,null,null,null,null,null,null,null,null,null,null,null,null,null,null,null,null,null,null,null,null,null,null,null,null,null,null,null,null,null,null,null,10]
[null,null,null,"Left Chair Relief",null,null,null,null,null,null,null,null,null,null,null,null,null,"Center Chair Relief",null,null,null,null,null,null,null,null,null,null,null,null,null,null,"Right Chair Relief",null,null,null,null,null,null,null,null,null,null,null,null,null,null,"Turn End Relief"]
["Team 1",null,null,null,null,null,null,null,null,null,null,null,null,null,null,null,null,null,null,null,null,null,null,null,null,null,null,null,null,null,null,null,null,null,null,null,null,null,null,null,null,null,null,null,null,null,null,null,null,null,null,null,null,null,null,null,null,null,null,null,null,"Team 1"]
["Team 2",null,null,null,null,null,null,null,null,null,null,null,null,null,null,null,null,null,null,null,null,null,null,null,null,null,null,null,null,null,null,null,null,null,null,null,null,null,null,null,null,null,null,null,null,null,null,null,null,null,null,null,null,null,null,null,null,null,null,null,null,"Team 2"]
["Team 3",null,null,null,null,null,null,null,null,null,null,null,null,null,null,null,null,null,null,null,null,null,null,null,null,null,null,null,null,null,null,null,null,null,null,null,null,null,null,null,null,null,null,null,null,null,null,null,null,null,null,null,null,null,null,null,null,null,null,null,null,"Team 3"]
["Team 4 ",null,null,null,null,null,null,null,null,null,null,null,null,null,null,null,null,null,null,null,null,null,null,null,null,null,null,null,null,null,null,null,null,null,null,null,null,null,null,null,null,null,null,null,null,null,null,null,null,null,null,null,null,null,null,null,null,null,null,null,null,"Team 4 "]
[null,null,null,null,null,null,null,"Stroke Relief",null,null,null,null,null,null,null,null,null,null,null,null,null,null,null,null,null,null,null,null,null,"Reserve Officials",null,null,null,null,null,null,null,null,null,null,null,null,null,null,null,null,null,null,"SIDE Relay Take-Off Judges"]
[{"$f":"\"Start Lane \"  & Meet!$B$5","v":"Start Lane 1"},null,null,null,null,null,null,null,null,null,null,null,null,null,null,null,null,null,null,null,null,null,{"$f":"\"Start Lane \"  & Meet!$B$5","v":"Start Lane 1"},null,null,null,null,null,null,null,null,null,null,null,null,null,null,null,null,null,null,null,null,"Lanes 1 - 2"]
[{"$f":"\"Start Lane \" & IF(Meet!$B$5 = 1, Meet!$B$6, Meet!$B$6 -1)","v":"Start Lane 8"},null,null,null,null,null,null,null,null,null,null,null,null,null,null,null,null,null,null,null,null,null,{"$f":"\"Start Lane \" & IF(Meet!$B$5 = 1, Meet!$B$6, Meet!$B$6 -1)","v":"Start Lane 8"},null,null,null,null,null,null,null,null,null,null,null,null,null,null,null,null,null,null,null,null,"Lanes 3 - 4"]
[{"$f":"\"Turn Lane \"  & Meet!$B$5","v":"Turn Lane 1"},null,null,null,null,null,null,null,null,null,null,null,null,null,null,null,null,null,null,null,null,null,{"$f":"\"Turn Lane \"  & Meet!$B$5","v":"Turn Lane 1"},null,null,null,null,null,null,null,null,null,null,null,null,null,null,null,null,null,null,null,null,"Lanes 5 - 6"]
[{"$f":"\"Turn Lane \" & IF(Meet!$B$5 = 1, Meet!$B$6, Meet!$B$6 -1)","v":"Turn Lane 8"},null,null,null,null,null,null,null,null,null,null,null,null,null,null,null,null,null,null,null,null,null,{"$f":"\"Turn Lane \" & IF(Meet!$B$5 = 1, Meet!$B$6, Meet!$B$6 -1)","v":"Turn Lane 8"},null,null,null,null,null,null,null,null,null,null,null,null,null,null,null,null,null,null,null,null,"Lanes 7 - 8"]

{"sheet":"Session 3","index":7,"n_rows":35,"n_cols":63,"rows_kept":35,"cut":false,"hidden":false,"merged":[[34,0,34,6],[34,7,34,21],[34,22,34,28],[34,29,34,42],[34,43,34,47],[34,48,34,63],[33,0,33,6],[33,7,33,21],[33,22,33,28],[33,29,33,42],[33,43,33,47],[33,48,33,63],[32,0,32,6],[32,7,32,21],[32,22,32,28],[32,29,32,42],[32,43,32,47],[32,48,32,63],[31,0,31,6],[31,7,31,21],[31,22,31,28],[31,29,31,42],[31,43,31,47],[31,48,31,63],[30,0,30,6],[30,7,30,21],[30,22,30,28],[30,29,30,42],[30,43,30,47],[30,48,30,63],[29,0,29,2],[29,3,29,16],[29,17,29,31],[29,32,29,46],[29,47,29,60],[29,61,29,63],[28,0,28,2],[28,3,28,16],[28,17,28,31],[28,32,28,46],[28,47,28,60],[28,61,28,63],[26,61,26,63],[27,0,27,2],[27,3,27,16],[27,17,27,31],[27,32,27,46],[27,47,27,60],[27,61,27,63],[25,0,25,2],[25,3,25,16],[25,17,25,31],[25,32,25,46],[25,47,25,60],[26,0,26,2],[26,3,26,16],[26,17,26,31],[26,32,26,46],[26,47,26,60],[24,0,24,1],[24,2,24,16],[24,17,24,31],[24,32,24,46],[24,47,24,61],[24,62,24,63],[23,0,23,1],[23,2,23,16],[23,17,23,31],[23,32,23,46],[23,47,23,61],[23,62,23,63],[22,0,22,1],[22,2,22,16],[22,17,22,31],[22,32,22,46],[22,47,22,61],[22,62,22,63],[21,0,21,1],[21,2,21,16],[21,17,21,31],[21,32,21,46],[21,47,21,61],[21,62,21,63],[20,0,20,1],[20,2,20,16],[20,17,20,31],[20,32,20,46],[20,47,20,61],[20,62,20,63],[19,0,19,1],[19,2,19,16],[19,17,19,31],[19,32,19,46],[19,47,19,61],[19,62,19,63],[18,0,18,1],[18,2,18,16],[18,17,18,31],[18,32,18,46],[18,47,18,61],[18,62,18,63],[17,0,17,1],[17,2,17,16],[17,17,17,31],[17,32,17,46],[17,47,17,61],[17,62,17,63],[16,0,16,1],[16,2,16,16],[16,17,16,31],[16,32,16,46],[16,47,16,61],[16,62,16,63],[15,0,15,1],[15,2,15,16],[15,17,15,31],[15,32,15,46],[15,47,15,61],[15,62,15,63],[13,17,13,31],[13,32,13,46],[14,2,14,16],[14,17,14,31],[14,32,14,46],[14,47,14,61],[10,48,10,52],[10,53,10,63],[11,0,11,27],[11,28,11,35],[11,36,11,63],[12,0,14,1],[12,2,12,46],[12,47,13,61],[12,62,14,63],[13,2,13,16],[10,0,10,4],[10,5,10,15],[10,16,10,20],[10,21,10,31],[10,32,10,36],[10,37,10,47],[8,0,8,9],[8,10,8,20],[8,22,8,32],[8,33,8,63],[9,0,9,27],[9,28,9,35],[9,36,9,63],[6,0,6,27],[6,28,6,35],[6,36,6,63],[7,0,7,4],[7,5,7,15],[7,16,7,20],[7,21,7,31],[7,32,7,36],[7,37,7,47],[7,48,7,52],[4,22,4,31],[4,35,4,47],[4,49,4,61],[5,0,5,9],[5,10,5,22],[5,23,5,31],[5,35,5,47],[5,49,5,61],[7,53,7,63],[0,0,1,2],[0,4,0,39],[0,40,0,43],[0,44,0,47],[0,48,0,63],[1,4,1,39],[1,40,1,63],[2,57,2,63],[3,0,3,7],[3,8,3,10],[3,11,3,20],[3,22,3,31],[3,32,5,34],[3,35,3,47],[3,49,3,61],[3,62,5,63],[4,0,4,9],[2,0,2,7],[2,8,2,17],[2,18,2,29],[2,30,2,37],[2,39,2,46],[2,48,2,55],[4,11,4,20]]}
[null,null,null,null,{"$f":"Meet!B1","v":"meet name"},null,null,null,null,null,null,null,null,null,null,null,null,null,null,null,null,null,null,null,null,null,null,null,null,null,null,null,null,null,null,null,null,null,null,null,"Session",null,null,null," 3",null,null,null,{"$f":"LOOKUP(AS1,Sessions!A:A,Sessions!C:C)","v":"Prelims"}]
[null,null,null,null,{"$f":"Meet!B4","v":"meet location"},null,null,null,null,null,null,null,null,null,null,null,null,null,null,null,null,null,null,null,null,null,null,null,null,null,null,null,null,null,null,null,null,null,null,null,{"$f":"Meet!B2 + DAY(LOOKUP(AS1,Sessions!A:A,Sessions!B:B) - 1)","v":"2015-08-07"}]
["Meet  Referee - ",null,null,null,null,null,null,null,{"$f":"Officials!A3","v":"meet ref"},null,null,null,null,null,null,null,null,null,"Administrative Referees -",null,null,null,null,null,null,null,null,null,null,null,null,null,null,null,null,null,null,null,"/",null,null,null,null,null,null,null,null,"/"]
[" Deck Referees - ",null,null,null,null,null,null,null,null,null,null,null,null,null,null,null,null,null,null,null,null,"/",null,null,null,null,null,null,null,null,null,null,null,null,null,"Head Starter",null,null,null,null,null,null,null,null,null,null,null,null,"--"]
[null,null,null,null,null,null,null,null,null,null,null,null,null,null,null,null,null,null,null,null,null,"/",null,null,null,null,null,null,null,null,null,null,null,null,null,null,null,null,null,null,null,null,null,null,null,null,null,null,"/"]
["Lead Chief Judge - "]
[null,null,null,null,null,null,null,null,null,null,null,null,null,null,null,null,null,null,null,null,null,null,null,null,null,null,null,null,"Chief Judges"]
[{"$f":"\"Start\"  & CHAR(10) & \"Lane \" & Meet!$B$5","v":"Start\nLane 1"},null,null,null,null,null,null,null,null,null,null,null,null,null,null,null,{"$f":"\"Start\"  & CHAR(10) & \"Lane \" & IF(Meet!$B$5 = 1, Meet!$B$6, Meet!$B$6 -1)","v":"Start\nLane 8"},null,null,null,null,null,null,null,null,null,null,null,null,null,null,null,{"$f":"\"Turn\"  & CHAR(10) & \"Lane \" & Meet!$B$5","v":"Turn\nLane 1"},null,null,null,null,null,null,null,null,null,null,null,null,null,null,null,{"$f":"\"Turn\"  & CHAR(10) & \"Lane \" & IF(Meet!$B$5 = 1, Meet!$B$6, Meet!$B$6 -1)","v":"Turn\nLane 8"}]
["Relief Chief Judge:",null,null,null,null,null,null,null,null,null,null,null,null,null,null,null,null,null,null,null,null,"/"]
["Start End",null,null,null,null,null,null,null,null,null,null,null,null,null,null,null,null,null,null,null,null,null,null,null,null,null,null,null,"Stroke Judges",null,null,null,null,null,null,null,"Turn End"]
[{"$f":"\"Lane \" & Meet!$B$5","v":"Lane 1"},null,null,null,null,null,null,null,null,null,null,null,null,null,null,null,{"$f":"\"Lane \" & IF(Meet!$B$5 = 1, Meet!$B$6, Meet!$B$6 -1)","v":"Lane 8"},null,null,null,null,null,null,null,null,null,null,null,null,null,null,null,{"$f":"\"Lane \" & Meet!$B$5","v":"Lane 1"},null,null,null,null,null,null,null,null,null,null,null,null,null,null,null,{"$f":"\"Lane \" & IF(Meet!$B$5 = 1, Meet!$B$6, Meet!$B$6 -1)","v":"Lane 8"}]
[null,null,null,null,null,null,null,null,null,null,null,null,null,null,null,null,null,null,null,null,null,null,null,null,null,null,null,null,"Turn Judges"]
["LN",null,"Start End",null,null,null,null,null,null,null,null,null,null,null,null,null,null,null,null,null,null,null,null,null,null,null,null,null,null,null,null,null,null,null,null,null,null,null,null,null,null,null,null,null,null,null,null,"Turn End",null,null,null,null,null,null,null,null,null,null,null,null,null,null,"LN"]
[null,null,"Left Chair",null,null,null,null,null,null,null,null,null,null,null,null,null,null,"Center Chair",null,null,null,null,null,null,null,null,null,null,null,null,null,null,"Right Chair"]
[null,null,"Watch / Button / Relay Take-off",null,null,null,null,null,null,null,null,null,null,null,null,null,null,"Recorder / Button / Bell",null,null,null,null,null,null,null,null,null,null,null,null,null,null,"Turn-Finish Judge / Button",null,null,null,null,null,null,null,null,null,null,null,null,null,null,"Turn Judge"]
[{"$f":"Meet!$B$5","v":1},null,null,null,null,null,null,null,null,null,null,null,null,null,null,null,null,null,null,null,null,null,null,null,null,null,null,null,null,null,null,null,null,null,null,null,null,null,null,null,null,null,null,null,null,null,null,null,null,null,null,null,null,null,null,null,null,null,null,null,null,null,{"$f":"Meet!$B$5","v":1}]
[{"$f":"A16+1","v":2},null,null,null,null,null,null,null,null,null,null,null,null,null,null,null,null,null,null,null,null,null,null,null,null,null,null,null,null,null,null,null,null,null,null,null,null,null,null,null,null,null,null,null,null,null,null,null,null,null,null,null,null,null,null,null,null,null,null,null,null,null,{"$f":"BK16+1","v":2}]
[{"$f":"A17+1","v":3},null,null,null,null,null,null,null,null,null,null,null,null,null,null,null,null,null,null,null,null,null,null,null,null,null,null,null,null,null,null,null,null,null,null,null,null,null,null,null,null,null,null,null,null,null,null,null,null,null,null,null,null,null,null,null,null,null,null,null,null,null,{"$f":"BK17+1","v":3}]
[4,null,null,null,null,null,null,null,null,null,null,null,null,null,null,null,null,null,null,null,null,null,null,null,null,null,null,null,null,null,null,null,null,null,null,null,null,null,null,null,null,null,null,null,null,null,null,null,null,null,null,null,null,null,null,null,null,null,null,null,null,null,4]
[5,null,null,null,null,null,null,null,null,null,null,null,null,null,null,null,null,null,null,null,null,null,null,null,null,null,null,null,null,null,null,null,null,null,null,null,null,null,null,null,null,null,null,null,null,null,null,null,null,null,null,null,null,null,null,null,null,null,null,null,null,null,5]
[6,null,null,null,null,null,null,null,null,null,null,null,null,null,null,null,null,null,null,null,null,null,null,null,null,null,null,null,null,null,null,null,null,null,null,null,null,null,null,null,null,null,null,null,null,null,null,null,null,null,null,null,null,null,null,null,null,null,null,null,null,null,6]
[7,null,null,null,null,null,null,null,null,null,null,null,null,null,null,null,null,null,null,null,null,null,null,null,null,null,null,null,null,null,null,null,null,null,null,null,null,null,null,null,null,null,null,null,null,null,null,null,null,null,null,null,null,null,null,null,null,null,null,null,null,null,7]
[8,null,null,null,null,null,null,null,null,null,null,null,null,null,null,null,null,null,null,null,null,null,null,null,null,null,null,null,null,null,null,null,null,null,null,null,null,null,null,null,null,null,null,null,null,null,null,null,null,null,null,null,null,null,null,null,null,null,null,null,null,null,8]
[9,null,null,null,null,null,null,null,null,null,null,null,null,null,null,null,null,null,null,null,null,null,null,null,null,null,null,null,null,null,null,null,null,null,null,null,null,null,null,null,null,null,null,null,null,null,null,null,null,null,null,null,null,null,null,null,null,null,null,null,null,null,9]
[10,null,null,null,null,null,null,null,null,null,null,null,null,null,null,null,null,null,null,null,null,null,null,null,null,null,null,null,null,null,null,null,null,null,null,null,null,null,null,null,null,null,null,null,null,null,null,null,null,null,null,null,null,null,null,null,null,null,null,null,null,null,10]
[null,null,null,"Left Chair Relief",null,null,null,null,null,null,null,null,null,null,null,null,null,"Center Chair Relief",null,null,null,null,null,null,null,null,null,null,null,null,null,null,"Right Chair Relief",null,null,null,null,null,null,null,null,null,null,null,null,null,null,"Turn End Relief"]
["Team 1",null,null,null,null,null,null,null,null,null,null,null,null,null,null,null,null,null,null,null,null,null,null,null,null,null,null,null,null,null,null,null,null,null,null,null,null,null,null,null,null,null,null,null,null,null,null,null,null,null,null,null,null,null,null,null,null,null,null,null,null,"Team 1"]
["Team 2",null,null,null,null,null,null,null,null,null,null,null,null,null,null,null,null,null,null,null,null,null,null,null,null,null,null,null,null,null,null,null,null,null,null,null,null,null,null,null,null,null,null,null,null,null,null,null,null,null,null,null,null,null,null,null,null,null,null,null,null,"Team 2"]
["Team 3",null,null,null,null,null,null,null,null,null,null,null,null,null,null,null,null,null,null,null,null,null,null,null,null,null,null,null,null,null,null,null,null,null,null,null,null,null,null,null,null,null,null,null,null,null,null,null,null,null,null,null,null,null,null,null,null,null,null,null,null,"Team 3"]
["Team 4 ",null,null,null,null,null,null,null,null,null,null,null,null,null,null,null,null,null,null,null,null,null,null,null,null,null,null,null,null,null,null,null,null,null,null,null,null,null,null,null,null,null,null,null,null,null,null,null,null,null,null,null,null,null,null,null,null,null,null,null,null,"Team 4 "]
[null,null,null,null,null,null,null,"Stroke Relief",null,null,null,null,null,null,null,null,null,null,null,null,null,null,null,null,null,null,null,null,null,"Reserve Officials",null,null,null,null,null,null,null,null,null,null,null,null,null,null,null,null,null,null,"SIDE Relay Take-Off Judges"]
[{"$f":"\"Start Lane \"  & Meet!$B$5","v":"Start Lane 1"},null,null,null,null,null,null,null,null,null,null,null,null,null,null,null,null,null,null,null,null,null,{"$f":"\"Start Lane \"  & Meet!$B$5","v":"Start Lane 1"},null,null,null,null,null,null,null,null,null,null,null,null,null,null,null,null,null,null,null,null,"Lanes 1 - 2"]
[{"$f":"\"Start Lane \" & IF(Meet!$B$5 = 1, Meet!$B$6, Meet!$B$6 -1)","v":"Start Lane 8"},null,null,null,null,null,null,null,null,null,null,null,null,null,null,null,null,null,null,null,null,null,{"$f":"\"Start Lane \" & IF(Meet!$B$5 = 1, Meet!$B$6, Meet!$B$6 -1)","v":"Start Lane 8"},null,null,null,null,null,null,null,null,null,null,null,null,null,null,null,null,null,null,null,null,"Lanes 3 - 4"]
[{"$f":"\"Turn Lane \"  & Meet!$B$5","v":"Turn Lane 1"},null,null,null,null,null,null,null,null,null,null,null,null,null,null,null,null,null,null,null,null,null,{"$f":"\"Turn Lane \"  & Meet!$B$5","v":"Turn Lane 1"},null,null,null,null,null,null,null,null,null,null,null,null,null,null,null,null,null,null,null,null,"Lanes 5 - 6"]
[{"$f":"\"Turn Lane \" & IF(Meet!$B$5 = 1, Meet!$B$6, Meet!$B$6 -1)","v":"Turn Lane 8"},null,null,null,null,null,null,null,null,null,null,null,null,null,null,null,null,null,null,null,null,null,{"$f":"\"Turn Lane \" & IF(Meet!$B$5 = 1, Meet!$B$6, Meet!$B$6 -1)","v":"Turn Lane 8"},null,null,null,null,null,null,null,null,null,null,null,null,null,null,null,null,null,null,null,null,"Lanes 7 - 8"]

{"sheet":"Session TT2","index":8,"n_rows":35,"n_cols":63,"rows_kept":35,"cut":false,"hidden":false,"merged":[[34,0,34,6],[34,7,34,21],[34,22,34,28],[34,29,34,42],[34,43,34,47],[34,48,34,63],[33,0,33,6],[33,7,33,21],[33,22,33,28],[33,29,33,42],[33,43,33,47],[33,48,33,63],[32,0,32,6],[32,7,32,21],[32,22,32,28],[32,29,32,42],[32,43,32,47],[32,48,32,63],[31,0,31,6],[31,7,31,21],[31,22,31,28],[31,29,31,42],[31,43,31,47],[31,48,31,63],[30,0,30,6],[30,7,30,21],[30,22,30,28],[30,29,30,42],[30,43,30,47],[30,48,30,63],[29,0,29,2],[29,3,29,16],[29,17,29,31],[29,32,29,46],[29,47,29,60],[29,61,29,63],[28,0,28,2],[28,3,28,16],[28,17,28,31],[28,32,28,46],[28,47,28,60],[28,61,28,63],[26,61,26,63],[27,0,27,2],[27,3,27,16],[27,17,27,31],[27,32,27,46],[27,47,27,60],[27,61,27,63],[25,0,25,2],[25,3,25,16],[25,17,25,31],[25,32,25,46],[25,47,25,60],[26,0,26,2],[26,3,26,16],[26,17,26,31],[26,32,26,46],[26,47,26,60],[24,0,24,1],[24,2,24,16],[24,17,24,31],[24,32,24,46],[24,47,24,61],[24,62,24,63],[23,0,23,1],[23,2,23,16],[23,17,23,31],[23,32,23,46],[23,47,23,61],[23,62,23,63],[22,0,22,1],[22,2,22,16],[22,17,22,31],[22,32,22,46],[22,47,22,61],[22,62,22,63],[21,0,21,1],[21,2,21,16],[21,17,21,31],[21,32,21,46],[21,47,21,61],[21,62,21,63],[20,0,20,1],[20,2,20,16],[20,17,20,31],[20,32,20,46],[20,47,20,61],[20,62,20,63],[19,0,19,1],[19,2,19,16],[19,17,19,31],[19,32,19,46],[19,47,19,61],[19,62,19,63],[18,0,18,1],[18,2,18,16],[18,17,18,31],[18,32,18,46],[18,47,18,61],[18,62,18,63],[17,0,17,1],[17,2,17,16],[17,17,17,31],[17,32,17,46],[17,47,17,61],[17,62,17,63],[16,0,16,1],[16,2,16,16],[16,17,16,31],[16,32,16,46],[16,47,16,61],[16,62,16,63],[15,0,15,1],[15,2,15,16],[15,17,15,31],[15,32,15,46],[15,47,15,61],[15,62,15,63],[13,17,13,31],[13,32,13,46],[14,2,14,16],[14,17,14,31],[14,32,14,46],[14,47,14,61],[10,48,10,52],[10,53,10,63],[11,0,11,27],[11,28,11,35],[11,36,11,63],[12,0,14,1],[12,2,12,46],[12,47,13,61],[12,62,14,63],[13,2,13,16],[10,0,10,4],[10,5,10,15],[10,16,10,20],[10,21,10,31],[10,32,10,36],[10,37,10,47],[8,0,8,9],[8,10,8,20],[8,22,8,32],[8,33,8,63],[9,0,9,27],[9,28,9,35],[9,36,9,63],[6,0,6,27],[6,28,6,35],[6,36,6,63],[7,0,7,4],[7,5,7,15],[7,16,7,20],[7,21,7,31],[7,32,7,36],[7,37,7,47],[7,48,7,52],[4,22,4,31],[4,35,4,47],[4,49,4,61],[5,0,5,9],[5,10,5,22],[5,23,5,31],[5,35,5,47],[5,49,5,61],[7,53,7,63],[0,0,1,2],[0,4,0,39],[0,40,0,43],[0,44,0,47],[0,48,0,63],[1,4,1,39],[1,40,1,63],[2,57,2,63],[3,0,3,7],[3,8,3,10],[3,11,3,20],[3,22,3,31],[3,32,5,34],[3,35,3,47],[3,49,3,61],[3,62,5,63],[4,0,4,9],[2,0,2,7],[2,8,2,17],[2,18,2,29],[2,30,2,37],[2,39,2,46],[2,48,2,55],[4,11,4,20]]}
[null,null,null,null,{"$f":"Meet!B1","v":"meet name"},null,null,null,null,null,null,null,null,null,null,null,null,null,null,null,null,null,null,null,null,null,null,null,null,null,null,null,null,null,null,null,null,null,null,null,"Session",null,null,null,"TT2",null,null,null,{"$f":"LOOKUP(AS1,Sessions!A:A,Sessions!C:C)","v":"Time Trials - 2nd Day"}]
[null,null,null,null,{"$f":"Meet!B4","v":"meet location"},null,null,null,null,null,null,null,null,null,null,null,null,null,null,null,null,null,null,null,null,null,null,null,null,null,null,null,null,null,null,null,null,null,null,null,{"$f":"Meet!B2 + DAY(LOOKUP(AS1,Sessions!A:A,Sessions!B:B) - 1)","v":"2015-08-07"}]
["Meet  Referee - ",null,null,null,null,null,null,null,{"$f":"Officials!A23","v":" TTR"},null,null,null,null,null,null,null,null,null,"Administrative Referees -",null,null,null,null,null,null,null,null,null,null,null,null,null,null,null,null,null,null,null,"/",null,null,null,null,null,null,null,null,"/"]
[" Deck Referees - ",null,null,null,null,null,null,null,null,null,null,null,null,null,null,null,null,null,null,null,null,"/",null,null,null,null,null,null,null,null,null,null,null,null,null,"Head Starter",null,null,null,null,null,null,null,null,null,null,null,null,"--"]
[null,null,null,null,null,null,null,null,null,null,"/",null,null,null,null,null,null,null,null,null,null,"/",null,null,null,null,null,null,null,null,null,null,null,null,null,null,null,null,null,null,null,null,null,null,null,null,null,null,"/"]
["Lead Chief Judge - ",null,null,null,null,null,null,null,null,null,null,null,null,null,null,null,null,null,null,null,null,null,null,null,null,null,null,null,null,null,null,null,null,null,null,null,null,null,null,null,null,null,null,null,null,null,null,null,"/"]
[null,null,null,null,null,null,null,null,null,null,null,null,null,null,null,null,null,null,null,null,null,null,null,null,null,null,null,null,"Chief Judges"]
[{"$f":"\"Start\"  & CHAR(10) & \"Lane \" & Meet!$B$5","v":"Start\nLane 1"},null,null,null,null,null,null,null,null,null,null,null,null,null,null,null,{"$f":"\"Start\"  & CHAR(10) & \"Lane \" & IF(Meet!$B$5 = 1, Meet!$B$6, Meet!$B$6 -1)","v":"Start\nLane 8"},null,null,null,null,null,null,null,null,null,null,null,null,null,null,null,{"$f":"\"Turn\"  & CHAR(10) & \"Lane \" & Meet!$B$5","v":"Turn\nLane 1"},null,null,null,null,null,null,null,null,null,null,null,null,null,null,null,{"$f":"\"Turn\"  & CHAR(10) & \"Lane \" & IF(Meet!$B$5 = 1, Meet!$B$6, Meet!$B$6 -1)","v":"Turn\nLane 8"}]
["Relief Chief Judge:",null,null,null,null,null,null,null,null,null,null,null,null,null,null,null,null,null,null,null,null,"/"]
["Start End",null,null,null,null,null,null,null,null,null,null,null,null,null,null,null,null,null,null,null,null,null,null,null,null,null,null,null,"Stroke Judges",null,null,null,null,null,null,null,"Turn End"]
[{"$f":"\"Lane \" & Meet!$B$5","v":"Lane 1"},null,null,null,null,null,null,null,null,null,null,null,null,null,null,null,{"$f":"\"Lane \" & IF(Meet!$B$5 = 1, Meet!$B$6, Meet!$B$6 -1)","v":"Lane 8"},null,null,null,null,null,null,null,null,null,null,null,null,null,null,null,{"$f":"\"Lane \" & Meet!$B$5","v":"Lane 1"},null,null,null,null,null,null,null,null,null,null,null,null,null,null,null,{"$f":"\"Lane \" & IF(Meet!$B$5 = 1, Meet!$B$6, Meet!$B$6 -1)","v":"Lane 8"}]
[null,null,null,null,null,null,null,null,null,null,null,null,null,null,null,null,null,null,null,null,null,null,null,null,null,null,null,null,"Turn Judges"]
["LN",null,"Start End",null,null,null,null,null,null,null,null,null,null,null,null,null,null,null,null,null,null,null,null,null,null,null,null,null,null,null,null,null,null,null,null,null,null,null,null,null,null,null,null,null,null,null,null,"Turn End",null,null,null,null,null,null,null,null,null,null,null,null,null,null,"LN"]
[null,null,"Left Chair",null,null,null,null,null,null,null,null,null,null,null,null,null,null,"Center Chair",null,null,null,null,null,null,null,null,null,null,null,null,null,null,"Right Chair"]
[null,null,"Watch / Button / Relay Take-off",null,null,null,null,null,null,null,null,null,null,null,null,null,null,"Recorder / Button / Bell",null,null,null,null,null,null,null,null,null,null,null,null,null,null,"Turn-Finish Judge / Button",null,null,null,null,null,null,null,null,null,null,null,null,null,null,"Turn Judge"]
[{"$f":"Meet!$B$5","v":1},null,null,null,null,null,null,null,null,null,null,null,null,null,null,null,null,null,null,null,null,null,null,null,null,null,null,null,null,null,null,null,null,null,null,null,null,null,null,null,null,null,null,null,null,null,null,null,null,null,null,null,null,null,null,null,null,null,null,null,null,null,{"$f":"Meet!$B$5","v":1}]
[{"$f":"A16+1","v":2},null,null,null,null,null,null,null,null,null,null,null,null,null,null,null,null,null,null,null,null,null,null,null,null,null,null,null,null,null,null,null,null,null,null,null,null,null,null,null,null,null,null,null,null,null,null,null,null,null,null,null,null,null,null,null,null,null,null,null,null,null,{"$f":"BK16+1","v":2}]
[{"$f":"A17+1","v":3},null,null,null,null,null,null,null,null,null,null,null,null,null,null,null,null,null,null,null,null,null,null,null,null,null,null,null,null,null,null,null,null,null,null,null,null,null,null,null,null,null,null,null,null,null,null,null,null,null,null,null,null,null,null,null,null,null,null,null,null,null,{"$f":"BK17+1","v":3}]
[4,null,null,null,null,null,null,null,null,null,null,null,null,null,null,null,null,null,null,null,null,null,null,null,null,null,null,null,null,null,null,null,null,null,null,null,null,null,null,null,null,null,null,null,null,null,null,null,null,null,null,null,null,null,null,null,null,null,null,null,null,null,4]
[5,null,null,null,null,null,null,null,null,null,null,null,null,null,null,null,null,null,null,null,null,null,null,null,null,null,null,null,null,null,null,null,null,null,null,null,null,null,null,null,null,null,null,null,null,null,null,null,null,null,null,null,null,null,null,null,null,null,null,null,null,null,5]
[6,null,null,null,null,null,null,null,null,null,null,null,null,null,null,null,null,null,null,null,null,null,null,null,null,null,null,null,null,null,null,null,null,null,null,null,null,null,null,null,null,null,null,null,null,null,null,null,null,null,null,null,null,null,null,null,null,null,null,null,null,null,6]
[7,null,null,null,null,null,null,null,null,null,null,null,null,null,null,null,null,null,null,null,null,null,null,null,null,null,null,null,null,null,null,null,null,null,null,null,null,null,null,null,null,null,null,null,null,null,null,null,null,null,null,null,null,null,null,null,null,null,null,null,null,null,7]
[8,null,null,null,null,null,null,null,null,null,null,null,null,null,null,null,null,null,null,null,null,null,null,null,null,null,null,null,null,null,null,null,null,null,null,null,null,null,null,null,null,null,null,null,null,null,null,null,null,null,null,null,null,null,null,null,null,null,null,null,null,null,8]
[9,null,null,null,null,null,null,null,null,null,null,null,null,null,null,null,null,null,null,null,null,null,null,null,null,null,null,null,null,null,null,null,null,null,null,null,null,null,null,null,null,null,null,null,null,null,null,null,null,null,null,null,null,null,null,null,null,null,null,null,null,null,9]
[10,null,null,null,null,null,null,null,null,null,null,null,null,null,null,null,null,null,null,null,null,null,null,null,null,null,null,null,null,null,null,null,null,null,null,null,null,null,null,null,null,null,null,null,null,null,null,null,null,null,null,null,null,null,null,null,null,null,null,null,null,null,10]
[null,null,null,"Left Chair Relief",null,null,null,null,null,null,null,null,null,null,null,null,null,"Center Chair Relief",null,null,null,null,null,null,null,null,null,null,null,null,null,null,"Right Chair Relief",null,null,null,null,null,null,null,null,null,null,null,null,null,null,"Turn End Relief"]
["Team 1",null,null,null,null,null,null,null,null,null,null,null,null,null,null,null,null,null,null,null,null,null,null,null,null,null,null,null,null,null,null,null,null,null,null,null,null,null,null,null,null,null,null,null,null,null,null,null,null,null,null,null,null,null,null,null,null,null,null,null,null,"Team 1"]
["Team 2",null,null,null,null,null,null,null,null,null,null,null,null,null,null,null,null,null,null,null,null,null,null,null,null,null,null,null,null,null,null,null,null,null,null,null,null,null,null,null,null,null,null,null,null,null,null,null,null,null,null,null,null,null,null,null,null,null,null,null,null,"Team 2"]
["Team 3",null,null,null,null,null,null,null,null,null,null,null,null,null,null,null,null,null,null,null,null,null,null,null,null,null,null,null,null,null,null,null,null,null,null,null,null,null,null,null,null,null,null,null,null,null,null,null,null,null,null,null,null,null,null,null,null,null,null,null,null,"Team 3"]
["Team 4 ",null,null,null,null,null,null,null,null,null,null,null,null,null,null,null,null,null,null,null,null,null,null,null,null,null,null,null,null,null,null,null,null,null,null,null,null,null,null,null,null,null,null,null,null,null,null,null,null,null,null,null,null,null,null,null,null,null,null,null,null,"Team 4 "]
[null,null,null,null,null,null,null,"Stroke Relief",null,null,null,null,null,null,null,null,null,null,null,null,null,null,null,null,null,null,null,null,null,"Reserve Officials",null,null,null,null,null,null,null,null,null,null,null,null,null,null,null,null,null,null,"SIDE Relay Take-Off Judges"]
[{"$f":"\"Start Lane \"  & Meet!$B$5","v":"Start Lane 1"},null,null,null,null,null,null,null,null,null,null,null,null,null,null,null,null,null,null,null,null,null,{"$f":"\"Start Lane \"  & Meet!$B$5","v":"Start Lane 1"},null,null,null,null,null,null,null,null,null,null,null,null,null,null,null,null,null,null,null,null,"Lanes 1 - 2"]
[{"$f":"\"Start Lane \" & IF(Meet!$B$5 = 1, Meet!$B$6, Meet!$B$6 -1)","v":"Start Lane 8"},null,null,null,null,null,null,null,null,null,null,null,null,null,null,null,null,null,null,null,null,null,{"$f":"\"Start Lane \" & IF(Meet!$B$5 = 1, Meet!$B$6, Meet!$B$6 -1)","v":"Start Lane 8"},null,null,null,null,null,null,null,null,null,null,null,null,null,null,null,null,null,null,null,null,"Lanes 3 - 4"]
[{"$f":"\"Turn Lane \"  & Meet!$B$5","v":"Turn Lane 1"},null,null,null,null,null,null,null,null,null,null,null,null,null,null,null,null,null,null,null,null,null,{"$f":"\"Turn Lane \"  & Meet!$B$5","v":"Turn Lane 1"},null,null,null,null,null,null,null,null,null,null,null,null,null,null,null,null,null,null,null,null,"Lanes 5 - 6"]
[{"$f":"\"Turn Lane \" & IF(Meet!$B$5 = 1, Meet!$B$6, Meet!$B$6 -1)","v":"Turn Lane 8"},null,null,null,null,null,null,null,null,null,null,null,null,null,null,null,null,null,null,null,null,null,{"$f":"\"Turn Lane \" & IF(Meet!$B$5 = 1, Meet!$B$6, Meet!$B$6 -1)","v":"Turn Lane 8"},null,null,null,null,null,null,null,null,null,null,null,null,null,null,null,null,null,null,null,null,"Lanes 7 - 8"]

{"sheet":"Session 4","index":9,"n_rows":35,"n_cols":63,"rows_kept":35,"cut":false,"hidden":false,"merged":[[34,0,34,6],[34,7,34,21],[34,22,34,28],[34,29,34,42],[34,43,34,47],[34,48,34,63],[33,0,33,6],[33,7,33,21],[33,22,33,28],[33,29,33,42],[33,43,33,47],[33,48,33,63],[32,0,32,6],[32,7,32,21],[32,22,32,28],[32,29,32,42],[32,43,32,47],[32,48,32,63],[31,0,31,6],[31,7,31,21],[31,22,31,28],[31,29,31,42],[31,43,31,47],[31,48,31,63],[30,0,30,6],[30,7,30,21],[30,22,30,28],[30,29,30,42],[30,43,30,47],[30,48,30,63],[29,0,29,2],[29,3,29,16],[29,17,29,31],[29,32,29,46],[29,47,29,60],[29,61,29,63],[28,0,28,2],[28,3,28,16],[28,17,28,31],[28,32,28,46],[28,47,28,60],[28,61,28,63],[26,61,26,63],[27,0,27,2],[27,3,27,16],[27,17,27,31],[27,32,27,46],[27,47,27,60],[27,61,27,63],[25,0,25,2],[25,3,25,16],[25,17,25,31],[25,32,25,46],[25,47,25,60],[26,0,26,2],[26,3,26,16],[26,17,26,31],[26,32,26,46],[26,47,26,60],[24,0,24,1],[24,2,24,16],[24,17,24,31],[24,32,24,46],[24,47,24,61],[24,62,24,63],[23,0,23,1],[23,2,23,16],[23,17,23,31],[23,32,23,46],[23,47,23,61],[23,62,23,63],[22,0,22,1],[22,2,22,16],[22,17,22,31],[22,32,22,46],[22,47,22,61],[22,62,22,63],[21,0,21,1],[21,2,21,16],[21,17,21,31],[21,32,21,46],[21,47,21,61],[21,62,21,63],[20,0,20,1],[20,2,20,16],[20,17,20,31],[20,32,20,46],[20,47,20,61],[20,62,20,63],[19,0,19,1],[19,2,19,16],[19,17,19,31],[19,32,19,46],[19,47,19,61],[19,62,19,63],[18,0,18,1],[18,2,18,16],[18,17,18,31],[18,32,18,46],[18,47,18,61],[18,62,18,63],[17,0,17,1],[17,2,17,16],[17,17,17,31],[17,32,17,46],[17,47,17,61],[17,62,17,63],[16,0,16,1],[16,2,16,16],[16,17,16,31],[16,32,16,46],[16,47,16,61],[16,62,16,63],[15,0,15,1],[15,2,15,16],[15,17,15,31],[15,32,15,46],[15,47,15,61],[15,62,15,63],[13,17,13,31],[13,32,13,46],[14,2,14,16],[14,17,14,31],[14,32,14,46],[14,47,14,61],[10,48,10,52],[10,53,10,63],[11,0,11,27],[11,28,11,35],[11,36,11,63],[12,0,14,1],[12,2,12,46],[12,47,13,61],[12,62,14,63],[13,2,13,16],[10,0,10,4],[10,5,10,15],[10,16,10,20],[10,21,10,31],[10,32,10,36],[10,37,10,47],[8,0,8,9],[8,10,8,20],[8,22,8,32],[8,33,8,63],[9,0,9,27],[9,28,9,35],[9,36,9,63],[6,0,6,27],[6,28,6,35],[6,36,6,63],[7,0,7,4],[7,5,7,15],[7,16,7,20],[7,21,7,31],[7,32,7,36],[7,37,7,47],[7,48,7,52],[4,22,4,31],[4,35,4,47],[4,49,4,61],[5,0,5,9],[5,10,5,22],[5,23,5,31],[5,35,5,47],[5,49,5,61],[7,53,7,63],[0,0,1,2],[0,4,0,39],[0,40,0,43],[0,44,0,47],[0,48,0,63],[1,4,1,39],[1,40,1,63],[2,57,2,63],[3,0,3,7],[3,8,3,10],[3,11,3,20],[3,22,3,31],[3,32,5,34],[3,35,3,47],[3,49,3,61],[3,62,5,63],[4,0,4,9],[2,0,2,7],[2,8,2,17],[2,18,2,29],[2,30,2,37],[2,39,2,46],[2,48,2,55],[4,11,4,20]]}
[null,null,null,null,{"$f":"Meet!B1","v":"meet name"},null,null,null,null,null,null,null,null,null,null,null,null,null,null,null,null,null,null,null,null,null,null,null,null,null,null,null,null,null,null,null,null,null,null,null,"Session",null,null,null," 4",null,null,null,{"$f":"LOOKUP(AS1,Sessions!A:A,Sessions!C:C)","v":"FINALS"}]
[null,null,null,null,{"$f":"Meet!B4","v":"meet location"},null,null,null,null,null,null,null,null,null,null,null,null,null,null,null,null,null,null,null,null,null,null,null,null,null,null,null,null,null,null,null,null,null,null,null,{"$f":"Meet!B2 + DAY(LOOKUP(AS1,Sessions!A:A,Sessions!B:B) - 1)","v":"2015-08-07"}]
["Meet  Referee - ",null,null,null,null,null,null,null,{"$f":"Officials!A3","v":"meet ref"},null,null,null,null,null,null,null,null,null,"Administrative Referees -",null,null,null,null,null,null,null,null,null,null,null,null,null,null,null,null,null,null,null,"/",null,null,null,null,null,null,null,null,"/"]
[" Deck Referees - ",null,null,null,null,null,null,null,null,null,null,null,null,null,null,null,null,null,null,null,null,"/",null,null,null,null,null,null,null,null,null,null,null,null,null,"Head Starter",null,null,null,null,null,null,null,null,null,null,null,null,"--"]
[null,null,null,null,null,null,null,null,null,null,null,null,null,null,null,null,null,null,null,null,null,"/",null,null,null,null,null,null,null,null,null,null,null,null,null,null,null,null,null,null,null,null,null,null,null,null,null,null,"/"]
["Lead Chief Judge - "]
[null,null,null,null,null,null,null,null,null,null,null,null,null,null,null,null,null,null,null,null,null,null,null,null,null,null,null,null,"Chief Judges"]
[{"$f":"\"Start\"  & CHAR(10) & \"Lane \" & Meet!$B$5","v":"Start\nLane 1"},null,null,null,null,null,null,null,null,null,null,null,null,null,null,null,{"$f":"\"Start\"  & CHAR(10) & \"Lane \" & IF(Meet!$B$5 = 1, Meet!$B$6, Meet!$B$6 -1)","v":"Start\nLane 8"},null,null,null,null,null,null,null,null,null,null,null,null,null,null,null,{"$f":"\"Turn\"  & CHAR(10) & \"Lane \" & Meet!$B$5","v":"Turn\nLane 1"},null,null,null,null,null,null,null,null,null,null,null,null,null,null,null,{"$f":"\"Turn\"  & CHAR(10) & \"Lane \" & IF(Meet!$B$5 = 1, Meet!$B$6, Meet!$B$6 -1)","v":"Turn\nLane 8"}]
["Relief Chief Judge:",null,null,null,null,null,null,null,null,null,null,null,null,null,null,null,null,null,null,null,null,"/"]
["Start End",null,null,null,null,null,null,null,null,null,null,null,null,null,null,null,null,null,null,null,null,null,null,null,null,null,null,null,"Stroke Judges",null,null,null,null,null,null,null,"Turn End"]
[{"$f":"\"Lane \" & Meet!$B$5","v":"Lane 1"},null,null,null,null,null,null,null,null,null,null,null,null,null,null,null,{"$f":"\"Lane \" & IF(Meet!$B$5 = 1, Meet!$B$6, Meet!$B$6 -1)","v":"Lane 8"},null,null,null,null,null,null,null,null,null,null,null,null,null,null,null,{"$f":"\"Lane \" & Meet!$B$5","v":"Lane 1"},null,null,null,null,null,null,null,null,null,null,null,null,null,null,null,{"$f":"\"Lane \" & IF(Meet!$B$5 = 1, Meet!$B$6, Meet!$B$6 -1)","v":"Lane 8"}]
[null,null,null,null,null,null,null,null,null,null,null,null,null,null,null,null,null,null,null,null,null,null,null,null,null,null,null,null,"Turn Judges"]
["LN",null,"Start End",null,null,null,null,null,null,null,null,null,null,null,null,null,null,null,null,null,null,null,null,null,null,null,null,null,null,null,null,null,null,null,null,null,null,null,null,null,null,null,null,null,null,null,null,"Turn End",null,null,null,null,null,null,null,null,null,null,null,null,null,null,"LN"]
[null,null,"Left Chair",null,null,null,null,null,null,null,null,null,null,null,null,null,null,"Center Chair",null,null,null,null,null,null,null,null,null,null,null,null,null,null,"Right Chair"]
[null,null,"Watch / Button / Relay Take-off",null,null,null,null,null,null,null,null,null,null,null,null,null,null,"Recorder / Button / Bell",null,null,null,null,null,null,null,null,null,null,null,null,null,null,"Turn-Finish Judge / Button",null,null,null,null,null,null,null,null,null,null,null,null,null,null,"Turn Judge"]
[{"$f":"Meet!$B$5","v":1},null,null,null,null,null,null,null,null,null,null,null,null,null,null,null,null,null,null,null,null,null,null,null,null,null,null,null,null,null,null,null,null,null,null,null,null,null,null,null,null,null,null,null,null,null,null,null,null,null,null,null,null,null,null,null,null,null,null,null,null,null,{"$f":"Meet!$B$5","v":1}]
[{"$f":"A16+1","v":2},null,null,null,null,null,null,null,null,null,null,null,null,null,null,null,null,null,null,null,null,null,null,null,null,null,null,null,null,null,null,null,null,null,null,null,null,null,null,null,null,null,null,null,null,null,null,null,null,null,null,null,null,null,null,null,null,null,null,null,null,null,{"$f":"BK16+1","v":2}]
[{"$f":"A17+1","v":3},null,null,null,null,null,null,null,null,null,null,null,null,null,null,null,null,null,null,null,null,null,null,null,null,null,null,null,null,null,null,null,null,null,null,null,null,null,null,null,null,null,null,null,null,null,null,null,null,null,null,null,null,null,null,null,null,null,null,null,null,null,{"$f":"BK17+1","v":3}]
[4,null,null,null,null,null,null,null,null,null,null,null,null,null,null,null,null,null,null,null,null,null,null,null,null,null,null,null,null,null,null,null,null,null,null,null,null,null,null,null,null,null,null,null,null,null,null,null,null,null,null,null,null,null,null,null,null,null,null,null,null,null,4]
[5,null,null,null,null,null,null,null,null,null,null,null,null,null,null,null,null,null,null,null,null,null,null,null,null,null,null,null,null,null,null,null,null,null,null,null,null,null,null,null,null,null,null,null,null,null,null,null,null,null,null,null,null,null,null,null,null,null,null,null,null,null,5]
[6,null,null,null,null,null,null,null,null,null,null,null,null,null,null,null,null,null,null,null,null,null,null,null,null,null,null,null,null,null,null,null,null,null,null,null,null,null,null,null,null,null,null,null,null,null,null,null,null,null,null,null,null,null,null,null,null,null,null,null,null,null,6]
[7,null,null,null,null,null,null,null,null,null,null,null,null,null,null,null,null,null,null,null,null,null,null,null,null,null,null,null,null,null,null,null,null,null,null,null,null,null,null,null,null,null,null,null,null,null,null,null,null,null,null,null,null,null,null,null,null,null,null,null,null,null,7]
[8,null,null,null,null,null,null,null,null,null,null,null,null,null,null,null,null,null,null,null,null,null,null,null,null,null,null,null,null,null,null,null,null,null,null,null,null,null,null,null,null,null,null,null,null,null,null,null,null,null,null,null,null,null,null,null,null,null,null,null,null,null,8]
[9,null,null,null,null,null,null,null,null,null,null,null,null,null,null,null,null,null,null,null,null,null,null,null,null,null,null,null,null,null,null,null,null,null,null,null,null,null,null,null,null,null,null,null,null,null,null,null,null,null,null,null,null,null,null,null,null,null,null,null,null,null,9]
[10,null,null,null,null,null,null,null,null,null,null,null,null,null,null,null,null,null,null,null,null,null,null,null,null,null,null,null,null,null,null,null,null,null,null,null,null,null,null,null,null,null,null,null,null,null,null,null,null,null,null,null,null,null,null,null,null,null,null,null,null,null,10]
[null,null,null,"Left Chair Relief",null,null,null,null,null,null,null,null,null,null,null,null,null,"Center Chair Relief",null,null,null,null,null,null,null,null,null,null,null,null,null,null,"Right Chair Relief",null,null,null,null,null,null,null,null,null,null,null,null,null,null,"Turn End Relief"]
["Team 1",null,null,null,null,null,null,null,null,null,null,null,null,null,null,null,null,null,null,null,null,null,null,null,null,null,null,null,null,null,null,null,null,null,null,null,null,null,null,null,null,null,null,null,null,null,null,null,null,null,null,null,null,null,null,null,null,null,null,null,null,"Team 1"]
["Team 2",null,null,null,null,null,null,null,null,null,null,null,null,null,null,null,null,null,null,null,null,null,null,null,null,null,null,null,null,null,null,null,null,null,null,null,null,null,null,null,null,null,null,null,null,null,null,null,null,null,null,null,null,null,null,null,null,null,null,null,null,"Team 2"]
["Team 3",null,null,null,null,null,null,null,null,null,null,null,null,null,null,null,null,null,null,null,null,null,null,null,null,null,null,null,null,null,null,null,null,null,null,null,null,null,null,null,null,null,null,null,null,null,null,null,null,null,null,null,null,null,null,null,null,null,null,null,null,"Team 3"]
["Team 4 ",null,null,null,null,null,null,null,null,null,null,null,null,null,null,null,null,null,null,null,null,null,null,null,null,null,null,null,null,null,null,null,null,null,null,null,null,null,null,null,null,null,null,null,null,null,null,null,null,null,null,null,null,null,null,null,null,null,null,null,null,"Team 4 "]
[null,null,null,null,null,null,null,"Stroke Relief",null,null,null,null,null,null,null,null,null,null,null,null,null,null,null,null,null,null,null,null,null,"Reserve Officials",null,null,null,null,null,null,null,null,null,null,null,null,null,null,null,null,null,null,"SIDE Relay Take-Off Judges"]
[{"$f":"\"Start Lane \"  & Meet!$B$5","v":"Start Lane 1"},null,null,null,null,null,null,null,null,null,null,null,null,null,null,null,null,null,null,null,null,null,{"$f":"\"Start Lane \"  & Meet!$B$5","v":"Start Lane 1"},null,null,null,null,null,null,null,null,null,null,null,null,null,null,null,null,null,null,null,null,"Lanes 1 - 2"]
[{"$f":"\"Start Lane \" & IF(Meet!$B$5 = 1, Meet!$B$6, Meet!$B$6 -1)","v":"Start Lane 8"},null,null,null,null,null,null,null,null,null,null,null,null,null,null,null,null,null,null,null,null,null,{"$f":"\"Start Lane \" & IF(Meet!$B$5 = 1, Meet!$B$6, Meet!$B$6 -1)","v":"Start Lane 8"},null,null,null,null,null,null,null,null,null,null,null,null,null,null,null,null,null,null,null,null,"Lanes 3 - 4"]
[{"$f":"\"Turn Lane \"  & Meet!$B$5","v":"Turn Lane 1"},null,null,null,null,null,null,null,null,null,null,null,null,null,null,null,null,null,null,null,null,null,{"$f":"\"Turn Lane \"  & Meet!$B$5","v":"Turn Lane 1"},null,null,null,null,null,null,null,null,null,null,null,null,null,null,null,null,null,null,null,null,"Lanes 5 - 6"]
[{"$f":"\"Turn Lane \" & IF(Meet!$B$5 = 1, Meet!$B$6, Meet!$B$6 -1)","v":"Turn Lane 8"},null,null,null,null,null,null,null,null,null,null,null,null,null,null,null,null,null,null,null,null,null,{"$f":"\"Turn Lane \" & IF(Meet!$B$5 = 1, Meet!$B$6, Meet!$B$6 -1)","v":"Turn Lane 8"},null,null,null,null,null,null,null,null,null,null,null,null,null,null,null,null,null,null,null,null,"Lanes 7 - 8"]

{"sheet":"Session 5","index":10,"n_rows":35,"n_cols":63,"rows_kept":35,"cut":false,"hidden":false,"merged":[[34,0,34,6],[34,7,34,21],[34,22,34,28],[34,29,34,42],[34,43,34,47],[34,48,34,63],[33,0,33,6],[33,7,33,21],[33,22,33,28],[33,29,33,42],[33,43,33,47],[33,48,33,63],[32,0,32,6],[32,7,32,21],[32,22,32,28],[32,29,32,42],[32,43,32,47],[32,48,32,63],[31,0,31,6],[31,7,31,21],[31,22,31,28],[31,29,31,42],[31,43,31,47],[31,48,31,63],[30,0,30,6],[30,7,30,21],[30,22,30,28],[30,29,30,42],[30,43,30,47],[30,48,30,63],[29,0,29,2],[29,3,29,16],[29,17,29,31],[29,32,29,46],[29,47,29,60],[29,61,29,63],[28,0,28,2],[28,3,28,16],[28,17,28,31],[28,32,28,46],[28,47,28,60],[28,61,28,63],[26,61,26,63],[27,0,27,2],[27,3,27,16],[27,17,27,31],[27,32,27,46],[27,47,27,60],[27,61,27,63],[25,0,25,2],[25,3,25,16],[25,17,25,31],[25,32,25,46],[25,47,25,60],[26,0,26,2],[26,3,26,16],[26,17,26,31],[26,32,26,46],[26,47,26,60],[24,0,24,1],[24,2,24,16],[24,17,24,31],[24,32,24,46],[24,47,24,61],[24,62,24,63],[23,0,23,1],[23,2,23,16],[23,17,23,31],[23,32,23,46],[23,47,23,61],[23,62,23,63],[22,0,22,1],[22,2,22,16],[22,17,22,31],[22,32,22,46],[22,47,22,61],[22,62,22,63],[21,0,21,1],[21,2,21,16],[21,17,21,31],[21,32,21,46],[21,47,21,61],[21,62,21,63],[20,0,20,1],[20,2,20,16],[20,17,20,31],[20,32,20,46],[20,47,20,61],[20,62,20,63],[19,0,19,1],[19,2,19,16],[19,17,19,31],[19,32,19,46],[19,47,19,61],[19,62,19,63],[18,0,18,1],[18,2,18,16],[18,17,18,31],[18,32,18,46],[18,47,18,61],[18,62,18,63],[17,0,17,1],[17,2,17,16],[17,17,17,31],[17,32,17,46],[17,47,17,61],[17,62,17,63],[16,0,16,1],[16,2,16,16],[16,17,16,31],[16,32,16,46],[16,47,16,61],[16,62,16,63],[15,0,15,1],[15,2,15,16],[15,17,15,31],[15,32,15,46],[15,47,15,61],[15,62,15,63],[13,17,13,31],[13,32,13,46],[14,2,14,16],[14,17,14,31],[14,32,14,46],[14,47,14,61],[10,48,10,52],[10,53,10,63],[11,0,11,27],[11,28,11,35],[11,36,11,63],[12,0,14,1],[12,2,12,46],[12,47,13,61],[12,62,14,63],[13,2,13,16],[10,0,10,4],[10,5,10,15],[10,16,10,20],[10,21,10,31],[10,32,10,36],[10,37,10,47],[8,0,8,9],[8,10,8,20],[8,22,8,32],[8,33,8,63],[9,0,9,27],[9,28,9,35],[9,36,9,63],[6,0,6,27],[6,28,6,35],[6,36,6,63],[7,0,7,4],[7,5,7,15],[7,16,7,20],[7,21,7,31],[7,32,7,36],[7,37,7,47],[7,48,7,52],[4,22,4,31],[4,35,4,47],[4,49,4,61],[5,0,5,9],[5,10,5,22],[5,23,5,31],[5,35,5,47],[5,49,5,61],[7,53,7,63],[0,0,1,2],[0,4,0,39],[0,40,0,43],[0,44,0,47],[0,48,0,63],[1,4,1,39],[1,40,1,63],[2,57,2,63],[3,0,3,7],[3,8,3,10],[3,11,3,20],[3,22,3,31],[3,32,5,34],[3,35,3,47],[3,49,3,61],[3,62,5,63],[4,0,4,9],[2,0,2,7],[2,8,2,17],[2,18,2,29],[2,30,2,37],[2,39,2,46],[2,48,2,55],[4,11,4,20]]}
[null,null,null,null,{"$f":"Meet!B1","v":"meet name"},null,null,null,null,null,null,null,null,null,null,null,null,null,null,null,null,null,null,null,null,null,null,null,null,null,null,null,null,null,null,null,null,null,null,null,"Session",null,null,null," 5",null,null,null,{"$f":"LOOKUP(AS1,Sessions!A:A,Sessions!C:C)","v":"Prelims"}]
[null,null,null,null,{"$f":"Meet!B4","v":"meet location"},null,null,null,null,null,null,null,null,null,null,null,null,null,null,null,null,null,null,null,null,null,null,null,null,null,null,null,null,null,null,null,null,null,null,null,{"$f":"Meet!B2 + DAY(LOOKUP(AS1,Sessions!A:A,Sessions!B:B) - 1)","v":"2015-08-08"}]
["Meet  Referee - ",null,null,null,null,null,null,null,{"$f":"Officials!A3","v":"meet ref"},null,null,null,null,null,null,null,null,null,"Administrative Referees -",null,null,null,null,null,null,null,null,null,null,null,null,null,null,null,null,null,null,null,"/",null,null,null,null,null,null,null,null,"/"]
[" Deck Referees - ",null,null,null,null,null,null,null,null,null,null,null,null,null,null,null,null,null,null,null,null,"/",null,null,null,null,null,null,null,null,null,null,null,null,null,"Head Starter",null,null,null,null,null,null,null,null,null,null,null,null,"--"]
[null,null,null,null,null,null,null,null,null,null,null,null,null,null,null,null,null,null,null,null,null,"/",null,null,null,null,null,null,null,null,null,null,null,null,null,null,null,null,null,null,null,null,null,null,null,null,null,null,"/"]
["Lead Chief Judge - "]
[null,null,null,null,null,null,null,null,null,null,null,null,null,null,null,null,null,null,null,null,null,null,null,null,null,null,null,null,"Chief Judges"]
[{"$f":"\"Start\"  & CHAR(10) & \"Lane \" & Meet!$B$5","v":"Start\nLane 1"},null,null,null,null,null,null,null,null,null,null,null,null,null,null,null,{"$f":"\"Start\"  & CHAR(10) & \"Lane \" & IF(Meet!$B$5 = 1, Meet!$B$6, Meet!$B$6 -1)","v":"Start\nLane 8"},null,null,null,null,null,null,null,null,null,null,null,null,null,null,null,{"$f":"\"Turn\"  & CHAR(10) & \"Lane \" & Meet!$B$5","v":"Turn\nLane 1"},null,null,null,null,null,null,null,null,null,null,null,null,null,null,null,{"$f":"\"Turn\"  & CHAR(10) & \"Lane \" & IF(Meet!$B$5 = 1, Meet!$B$6, Meet!$B$6 -1)","v":"Turn\nLane 8"}]
["Relief Chief Judge:",null,null,null,null,null,null,null,null,null,null,null,null,null,null,null,null,null,null,null,null,"/"]
["Start End",null,null,null,null,null,null,null,null,null,null,null,null,null,null,null,null,null,null,null,null,null,null,null,null,null,null,null,"Stroke Judges",null,null,null,null,null,null,null,"Turn End"]
[{"$f":"\"Lane \" & Meet!$B$5","v":"Lane 1"},null,null,null,null,null,null,null,null,null,null,null,null,null,null,null,{"$f":"\"Lane \" & IF(Meet!$B$5 = 1, Meet!$B$6, Meet!$B$6 -1)","v":"Lane 8"},null,null,null,null,null,null,null,null,null,null,null,null,null,null,null,{"$f":"\"Lane \" & Meet!$B$5","v":"Lane 1"},null,null,null,null,null,null,null,null,null,null,null,null,null,null,null,{"$f":"\"Lane \" & IF(Meet!$B$5 = 1, Meet!$B$6, Meet!$B$6 -1)","v":"Lane 8"}]
[null,null,null,null,null,null,null,null,null,null,null,null,null,null,null,null,null,null,null,null,null,null,null,null,null,null,null,null,"Turn Judges"]
["LN",null,"Start End",null,null,null,null,null,null,null,null,null,null,null,null,null,null,null,null,null,null,null,null,null,null,null,null,null,null,null,null,null,null,null,null,null,null,null,null,null,null,null,null,null,null,null,null,"Turn End",null,null,null,null,null,null,null,null,null,null,null,null,null,null,"LN"]
[null,null,"Left Chair",null,null,null,null,null,null,null,null,null,null,null,null,null,null,"Center Chair",null,null,null,null,null,null,null,null,null,null,null,null,null,null,"Right Chair"]
[null,null,"Watch / Button / Relay Take-off",null,null,null,null,null,null,null,null,null,null,null,null,null,null,"Recorder / Button / Bell",null,null,null,null,null,null,null,null,null,null,null,null,null,null,"Turn-Finish Judge / Button",null,null,null,null,null,null,null,null,null,null,null,null,null,null,"Turn Judge"]
[{"$f":"Meet!$B$5","v":1},null,null,null,null,null,null,null,null,null,null,null,null,null,null,null,null,null,null,null,null,null,null,null,null,null,null,null,null,null,null,null,null,null,null,null,null,null,null,null,null,null,null,null,null,null,null,null,null,null,null,null,null,null,null,null,null,null,null,null,null,null,{"$f":"Meet!$B$5","v":1}]
[{"$f":"A16+1","v":2},null,null,null,null,null,null,null,null,null,null,null,null,null,null,null,null,null,null,null,null,null,null,null,null,null,null,null,null,null,null,null,null,null,null,null,null,null,null,null,null,null,null,null,null,null,null,null,null,null,null,null,null,null,null,null,null,null,null,null,null,null,{"$f":"BK16+1","v":2}]
[{"$f":"A17+1","v":3},null,null,null,null,null,null,null,null,null,null,null,null,null,null,null,null,null,null,null,null,null,null,null,null,null,null,null,null,null,null,null,null,null,null,null,null,null,null,null,null,null,null,null,null,null,null,null,null,null,null,null,null,null,null,null,null,null,null,null,null,null,{"$f":"BK17+1","v":3}]
[4,null,null,null,null,null,null,null,null,null,null,null,null,null,null,null,null,null,null,null,null,null,null,null,null,null,null,null,null,null,null,null,null,null,null,null,null,null,null,null,null,null,null,null,null,null,null,null,null,null,null,null,null,null,null,null,null,null,null,null,null,null,4]
[5,null,null,null,null,null,null,null,null,null,null,null,null,null,null,null,null,null,null,null,null,null,null,null,null,null,null,null,null,null,null,null,null,null,null,null,null,null,null,null,null,null,null,null,null,null,null,null,null,null,null,null,null,null,null,null,null,null,null,null,null,null,5]
[6,null,null,null,null,null,null,null,null,null,null,null,null,null,null,null,null,null,null,null,null,null,null,null,null,null,null,null,null,null,null,null,null,null,null,null,null,null,null,null,null,null,null,null,null,null,null,null,null,null,null,null,null,null,null,null,null,null,null,null,null,null,6]
[7,null,null,null,null,null,null,null,null,null,null,null,null,null,null,null,null,null,null,null,null,null,null,null,null,null,null,null,null,null,null,null,null,null,null,null,null,null,null,null,null,null,null,null,null,null,null,null,null,null,null,null,null,null,null,null,null,null,null,null,null,null,7]
[8,null,null,null,null,null,null,null,null,null,null,null,null,null,null,null,null,null,null,null,null,null,null,null,null,null,null,null,null,null,null,null,null,null,null,null,null,null,null,null,null,null,null,null,null,null,null,null,null,null,null,null,null,null,null,null,null,null,null,null,null,null,8]
[9,null,null,null,null,null,null,null,null,null,null,null,null,null,null,null,null,null,null,null,null,null,null,null,null,null,null,null,null,null,null,null,null,null,null,null,null,null,null,null,null,null,null,null,null,null,null,null,null,null,null,null,null,null,null,null,null,null,null,null,null,null,9]
[10,null,null,null,null,null,null,null,null,null,null,null,null,null,null,null,null,null,null,null,null,null,null,null,null,null,null,null,null,null,null,null,null,null,null,null,null,null,null,null,null,null,null,null,null,null,null,null,null,null,null,null,null,null,null,null,null,null,null,null,null,null,10]
[null,null,null,"Left Chair Relief",null,null,null,null,null,null,null,null,null,null,null,null,null,"Center Chair Relief",null,null,null,null,null,null,null,null,null,null,null,null,null,null,"Right Chair Relief",null,null,null,null,null,null,null,null,null,null,null,null,null,null,"Turn End Relief"]
["Team 1",null,null,null,null,null,null,null,null,null,null,null,null,null,null,null,null,null,null,null,null,null,null,null,null,null,null,null,null,null,null,null,null,null,null,null,null,null,null,null,null,null,null,null,null,null,null,null,null,null,null,null,null,null,null,null,null,null,null,null,null,"Team 1"]
["Team 2",null,null,null,null,null,null,null,null,null,null,null,null,null,null,null,null,null,null,null,null,null,null,null,null,null,null,null,null,null,null,null,null,null,null,null,null,null,null,null,null,null,null,null,null,null,null,null,null,null,null,null,null,null,null,null,null,null,null,null,null,"Team 2"]
["Team 3",null,null,null,null,null,null,null,null,null,null,null,null,null,null,null,null,null,null,null,null,null,null,null,null,null,null,null,null,null,null,null,null,null,null,null,null,null,null,null,null,null,null,null,null,null,null,null,null,null,null,null,null,null,null,null,null,null,null,null,null,"Team 3"]
["Team 4 ",null,null,null,null,null,null,null,null,null,null,null,null,null,null,null,null,null,null,null,null,null,null,null,null,null,null,null,null,null,null,null,null,null,null,null,null,null,null,null,null,null,null,null,null,null,null,null,null,null,null,null,null,null,null,null,null,null,null,null,null,"Team 4 "]
[null,null,null,null,null,null,null,"Stroke Relief",null,null,null,null,null,null,null,null,null,null,null,null,null,null,null,null,null,null,null,null,null,"Reserve Officials",null,null,null,null,null,null,null,null,null,null,null,null,null,null,null,null,null,null,"SIDE Relay Take-Off Judges"]
[{"$f":"\"Start Lane \"  & Meet!$B$5","v":"Start Lane 1"},null,null,null,null,null,null,null,null,null,null,null,null,null,null,null,null,null,null,null,null,null,{"$f":"\"Start Lane \"  & Meet!$B$5","v":"Start Lane 1"},null,null,null,null,null,null,null,null,null,null,null,null,null,null,null,null,null,null,null,null,"Lanes 1 - 2"]
[{"$f":"\"Start Lane \" & IF(Meet!$B$5 = 1, Meet!$B$6, Meet!$B$6 -1)","v":"Start Lane 8"},null,null,null,null,null,null,null,null,null,null,null,null,null,null,null,null,null,null,null,null,null,{"$f":"\"Start Lane \" & IF(Meet!$B$5 = 1, Meet!$B$6, Meet!$B$6 -1)","v":"Start Lane 8"},null,null,null,null,null,null,null,null,null,null,null,null,null,null,null,null,null,null,null,null,"Lanes 3 - 4"]
[{"$f":"\"Turn Lane \"  & Meet!$B$5","v":"Turn Lane 1"},null,null,null,null,null,null,null,null,null,null,null,null,null,null,null,null,null,null,null,null,null,{"$f":"\"Turn Lane \"  & Meet!$B$5","v":"Turn Lane 1"},null,null,null,null,null,null,null,null,null,null,null,null,null,null,null,null,null,null,null,null,"Lanes 5 - 6"]
[{"$f":"\"Turn Lane \" & IF(Meet!$B$5 = 1, Meet!$B$6, Meet!$B$6 -1)","v":"Turn Lane 8"},null,null,null,null,null,null,null,null,null,null,null,null,null,null,null,null,null,null,null,null,null,{"$f":"\"Turn Lane \" & IF(Meet!$B$5 = 1, Meet!$B$6, Meet!$B$6 -1)","v":"Turn Lane 8"},null,null,null,null,null,null,null,null,null,null,null,null,null,null,null,null,null,null,null,null,"Lanes 7 - 8"]

{"sheet":"Session TT3","index":11,"n_rows":35,"n_cols":63,"rows_kept":35,"cut":false,"hidden":false,"merged":[[34,0,34,6],[34,7,34,21],[34,22,34,28],[34,29,34,42],[34,43,34,47],[34,48,34,63],[33,0,33,6],[33,7,33,21],[33,22,33,28],[33,29,33,42],[33,43,33,47],[33,48,33,63],[32,0,32,6],[32,7,32,21],[32,22,32,28],[32,29,32,42],[32,43,32,47],[32,48,32,63],[31,0,31,6],[31,7,31,21],[31,22,31,28],[31,29,31,42],[31,43,31,47],[31,48,31,63],[30,0,30,6],[30,7,30,21],[30,22,30,28],[30,29,30,42],[30,43,30,47],[30,48,30,63],[29,0,29,2],[29,3,29,16],[29,17,29,31],[29,32,29,46],[29,47,29,60],[29,61,29,63],[28,0,28,2],[28,3,28,16],[28,17,28,31],[28,32,28,46],[28,47,28,60],[28,61,28,63],[26,61,26,63],[27,0,27,2],[27,3,27,16],[27,17,27,31],[27,32,27,46],[27,47,27,60],[27,61,27,63],[25,0,25,2],[25,3,25,16],[25,17,25,31],[25,32,25,46],[25,47,25,60],[26,0,26,2],[26,3,26,16],[26,17,26,31],[26,32,26,46],[26,47,26,60],[24,0,24,1],[24,2,24,16],[24,17,24,31],[24,32,24,46],[24,47,24,61],[24,62,24,63],[23,0,23,1],[23,2,23,16],[23,17,23,31],[23,32,23,46],[23,47,23,61],[23,62,23,63],[22,0,22,1],[22,2,22,16],[22,17,22,31],[22,32,22,46],[22,47,22,61],[22,62,22,63],[21,0,21,1],[21,2,21,16],[21,17,21,31],[21,32,21,46],[21,47,21,61],[21,62,21,63],[20,0,20,1],[20,2,20,16],[20,17,20,31],[20,32,20,46],[20,47,20,61],[20,62,20,63],[19,0,19,1],[19,2,19,16],[19,17,19,31],[19,32,19,46],[19,47,19,61],[19,62,19,63],[18,0,18,1],[18,2,18,16],[18,17,18,31],[18,32,18,46],[18,47,18,61],[18,62,18,63],[17,0,17,1],[17,2,17,16],[17,17,17,31],[17,32,17,46],[17,47,17,61],[17,62,17,63],[16,0,16,1],[16,2,16,16],[16,17,16,31],[16,32,16,46],[16,47,16,61],[16,62,16,63],[15,0,15,1],[15,2,15,16],[15,17,15,31],[15,32,15,46],[15,47,15,61],[15,62,15,63],[13,17,13,31],[13,32,13,46],[14,2,14,16],[14,17,14,31],[14,32,14,46],[14,47,14,61],[10,48,10,52],[10,53,10,63],[11,0,11,27],[11,28,11,35],[11,36,11,63],[12,0,14,1],[12,2,12,46],[12,47,13,61],[12,62,14,63],[13,2,13,16],[10,0,10,4],[10,5,10,15],[10,16,10,20],[10,21,10,31],[10,32,10,36],[10,37,10,47],[8,0,8,9],[8,10,8,20],[8,22,8,32],[8,33,8,63],[9,0,9,27],[9,28,9,35],[9,36,9,63],[6,0,6,27],[6,28,6,35],[6,36,6,63],[7,0,7,4],[7,5,7,15],[7,16,7,20],[7,21,7,31],[7,32,7,36],[7,37,7,47],[7,48,7,52],[4,22,4,31],[4,35,4,47],[4,49,4,61],[5,0,5,9],[5,10,5,22],[5,23,5,31],[5,35,5,47],[5,49,5,61],[7,53,7,63],[0,0,1,2],[0,4,0,39],[0,40,0,43],[0,44,0,47],[0,48,0,63],[1,4,1,39],[1,40,1,63],[2,57,2,63],[3,0,3,7],[3,8,3,10],[3,11,3,20],[3,22,3,31],[3,32,5,34],[3,35,3,47],[3,49,3,61],[3,62,5,63],[4,0,4,9],[2,0,2,7],[2,8,2,17],[2,18,2,29],[2,30,2,37],[2,39,2,46],[2,48,2,55],[4,11,4,20]]}
[null,null,null,null,{"$f":"Meet!B1","v":"meet name"},null,null,null,null,null,null,null,null,null,null,null,null,null,null,null,null,null,null,null,null,null,null,null,null,null,null,null,null,null,null,null,null,null,null,null,"Session",null,null,null,"TT3",null,null,null,{"$f":"LOOKUP(AS1,Sessions!A:A,Sessions!C:C)","v":"Time Trials - 3rd Day"}]
[null,null,null,null,{"$f":"Meet!B4","v":"meet location"},null,null,null,null,null,null,null,null,null,null,null,null,null,null,null,null,null,null,null,null,null,null,null,null,null,null,null,null,null,null,null,null,null,null,null,{"$f":"Meet!B2 + DAY(LOOKUP(AS1,Sessions!A:A,Sessions!B:B) - 1)","v":"2015-08-08"}]
["Meet  Referee - ",null,null,null,null,null,null,null,{"$f":"Officials!A23","v":" TTR"},null,null,null,null,null,null,null,null,null,"Administrative Referees -",null,null,null,null,null,null,null,null,null,null,null,null,null,null,null,null,null,null,null,"/",null,null,null,null,null,null,null,null,"/"]
[" Deck Referees - ",null,null,null,null,null,null,null,null,null,null,null,null,null,null,null,null,null,null,null,null,"/",null,null,null,null,null,null,null,null,null,null,null,null,null,"Head Starter",null,null,null,null,null,null,null,null,null,null,null,null,"--"]
[null,null,null,null,null,null,null,null,null,null,"/",null,null,null,null,null,null,null,null,null,null,"/",null,null,null,null,null,null,null,null,null,null,null,null,null,null,null,null,null,null,null,null,null,null,null,null,null,null,"/"]
["Lead Chief Judge - ",null,null,null,null,null,null,null,null,null,null,null,null,null,null,null,null,null,null,null,null,null,null,null,null,null,null,null,null,null,null,null,null,null,null,null,null,null,null,null,null,null,null,null,null,null,null,null,"/"]
[null,null,null,null,null,null,null,null,null,null,null,null,null,null,null,null,null,null,null,null,null,null,null,null,null,null,null,null,"Chief Judges"]
[{"$f":"\"Start\"  & CHAR(10) & \"Lane \" & Meet!$B$5","v":"Start\nLane 1"},null,null,null,null,null,null,null,null,null,null,null,null,null,null,null,{"$f":"\"Start\"  & CHAR(10) & \"Lane \" & IF(Meet!$B$5 = 1, Meet!$B$6, Meet!$B$6 -1)","v":"Start\nLane 8"},null,null,null,null,null,null,null,null,null,null,null,null,null,null,null,{"$f":"\"Turn\"  & CHAR(10) & \"Lane \" & Meet!$B$5","v":"Turn\nLane 1"},null,null,null,null,null,null,null,null,null,null,null,null,null,null,null,{"$f":"\"Turn\"  & CHAR(10) & \"Lane \" & IF(Meet!$B$5 = 1, Meet!$B$6, Meet!$B$6 -1)","v":"Turn\nLane 8"}]
["Relief Chief Judge:",null,null,null,null,null,null,null,null,null,null,null,null,null,null,null,null,null,null,null,null,"/"]
["Start End",null,null,null,null,null,null,null,null,null,null,null,null,null,null,null,null,null,null,null,null,null,null,null,null,null,null,null,"Stroke Judges",null,null,null,null,null,null,null,"Turn End"]
[{"$f":"\"Lane \" & Meet!$B$5","v":"Lane 1"},null,null,null,null,null,null,null,null,null,null,null,null,null,null,null,{"$f":"\"Lane \" & IF(Meet!$B$5 = 1, Meet!$B$6, Meet!$B$6 -1)","v":"Lane 8"},null,null,null,null,null,null,null,null,null,null,null,null,null,null,null,{"$f":"\"Lane \" & Meet!$B$5","v":"Lane 1"},null,null,null,null,null,null,null,null,null,null,null,null,null,null,null,{"$f":"\"Lane \" & IF(Meet!$B$5 = 1, Meet!$B$6, Meet!$B$6 -1)","v":"Lane 8"}]
[null,null,null,null,null,null,null,null,null,null,null,null,null,null,null,null,null,null,null,null,null,null,null,null,null,null,null,null,"Turn Judges"]
["LN",null,"Start End",null,null,null,null,null,null,null,null,null,null,null,null,null,null,null,null,null,null,null,null,null,null,null,null,null,null,null,null,null,null,null,null,null,null,null,null,null,null,null,null,null,null,null,null,"Turn End",null,null,null,null,null,null,null,null,null,null,null,null,null,null,"LN"]
[null,null,"Left Chair",null,null,null,null,null,null,null,null,null,null,null,null,null,null,"Center Chair",null,null,null,null,null,null,null,null,null,null,null,null,null,null,"Right Chair"]
[null,null,"Watch / Button / Relay Take-off",null,null,null,null,null,null,null,null,null,null,null,null,null,null,"Recorder / Button / Bell",null,null,null,null,null,null,null,null,null,null,null,null,null,null,"Turn-Finish Judge / Button",null,null,null,null,null,null,null,null,null,null,null,null,null,null,"Turn Judge"]
[{"$f":"Meet!$B$5","v":1},null,null,null,null,null,null,null,null,null,null,null,null,null,null,null,null,null,null,null,null,null,null,null,null,null,null,null,null,null,null,null,null,null,null,null,null,null,null,null,null,null,null,null,null,null,null,null,null,null,null,null,null,null,null,null,null,null,null,null,null,null,{"$f":"Meet!$B$5","v":1}]
[{"$f":"A16+1","v":2},null,null,null,null,null,null,null,null,null,null,null,null,null,null,null,null,null,null,null,null,null,null,null,null,null,null,null,null,null,null,null,null,null,null,null,null,null,null,null,null,null,null,null,null,null,null,null,null,null,null,null,null,null,null,null,null,null,null,null,null,null,{"$f":"BK16+1","v":2}]
[{"$f":"A17+1","v":3},null,null,null,null,null,null,null,null,null,null,null,null,null,null,null,null,null,null,null,null,null,null,null,null,null,null,null,null,null,null,null,null,null,null,null,null,null,null,null,null,null,null,null,null,null,null,null,null,null,null,null,null,null,null,null,null,null,null,null,null,null,{"$f":"BK17+1","v":3}]
[4,null,null,null,null,null,null,null,null,null,null,null,null,null,null,null,null,null,null,null,null,null,null,null,null,null,null,null,null,null,null,null,null,null,null,null,null,null,null,null,null,null,null,null,null,null,null,null,null,null,null,null,null,null,null,null,null,null,null,null,null,null,4]
[5,null,null,null,null,null,null,null,null,null,null,null,null,null,null,null,null,null,null,null,null,null,null,null,null,null,null,null,null,null,null,null,null,null,null,null,null,null,null,null,null,null,null,null,null,null,null,null,null,null,null,null,null,null,null,null,null,null,null,null,null,null,5]
[6,null,null,null,null,null,null,null,null,null,null,null,null,null,null,null,null,null,null,null,null,null,null,null,null,null,null,null,null,null,null,null,null,null,null,null,null,null,null,null,null,null,null,null,null,null,null,null,null,null,null,null,null,null,null,null,null,null,null,null,null,null,6]
[7,null,null,null,null,null,null,null,null,null,null,null,null,null,null,null,null,null,null,null,null,null,null,null,null,null,null,null,null,null,null,null,null,null,null,null,null,null,null,null,null,null,null,null,null,null,null,null,null,null,null,null,null,null,null,null,null,null,null,null,null,null,7]
[8,null,null,null,null,null,null,null,null,null,null,null,null,null,null,null,null,null,null,null,null,null,null,null,null,null,null,null,null,null,null,null,null,null,null,null,null,null,null,null,null,null,null,null,null,null,null,null,null,null,null,null,null,null,null,null,null,null,null,null,null,null,8]
[9,null,null,null,null,null,null,null,null,null,null,null,null,null,null,null,null,null,null,null,null,null,null,null,null,null,null,null,null,null,null,null,null,null,null,null,null,null,null,null,null,null,null,null,null,null,null,null,null,null,null,null,null,null,null,null,null,null,null,null,null,null,9]
[10,null,null,null,null,null,null,null,null,null,null,null,null,null,null,null,null,null,null,null,null,null,null,null,null,null,null,null,null,null,null,null,null,null,null,null,null,null,null,null,null,null,null,null,null,null,null,null,null,null,null,null,null,null,null,null,null,null,null,null,null,null,10]
[null,null,null,"Left Chair Relief",null,null,null,null,null,null,null,null,null,null,null,null,null,"Center Chair Relief",null,null,null,null,null,null,null,null,null,null,null,null,null,null,"Right Chair Relief",null,null,null,null,null,null,null,null,null,null,null,null,null,null,"Turn End Relief"]
["Team 1",null,null,null,null,null,null,null,null,null,null,null,null,null,null,null,null,null,null,null,null,null,null,null,null,null,null,null,null,null,null,null,null,null,null,null,null,null,null,null,null,null,null,null,null,null,null,null,null,null,null,null,null,null,null,null,null,null,null,null,null,"Team 1"]
["Team 2",null,null,null,null,null,null,null,null,null,null,null,null,null,null,null,null,null,null,null,null,null,null,null,null,null,null,null,null,null,null,null,null,null,null,null,null,null,null,null,null,null,null,null,null,null,null,null,null,null,null,null,null,null,null,null,null,null,null,null,null,"Team 2"]
["Team 3",null,null,null,null,null,null,null,null,null,null,null,null,null,null,null,null,null,null,null,null,null,null,null,null,null,null,null,null,null,null,null,null,null,null,null,null,null,null,null,null,null,null,null,null,null,null,null,null,null,null,null,null,null,null,null,null,null,null,null,null,"Team 3"]
["Team 4 ",null,null,null,null,null,null,null,null,null,null,null,null,null,null,null,null,null,null,null,null,null,null,null,null,null,null,null,null,null,null,null,null,null,null,null,null,null,null,null,null,null,null,null,null,null,null,null,null,null,null,null,null,null,null,null,null,null,null,null,null,"Team 4 "]
[null,null,null,null,null,null,null,"Stroke Relief",null,null,null,null,null,null,null,null,null,null,null,null,null,null,null,null,null,null,null,null,null,"Reserve Officials",null,null,null,null,null,null,null,null,null,null,null,null,null,null,null,null,null,null,"SIDE Relay Take-Off Judges"]
[{"$f":"\"Start Lane \"  & Meet!$B$5","v":"Start Lane 1"},null,null,null,null,null,null,null,null,null,null,null,null,null,null,null,null,null,null,null,null,null,{"$f":"\"Start Lane \"  & Meet!$B$5","v":"Start Lane 1"},null,null,null,null,null,null,null,null,null,null,null,null,null,null,null,null,null,null,null,null,"Lanes 1 - 2"]
[{"$f":"\"Start Lane \" & IF(Meet!$B$5 = 1, Meet!$B$6, Meet!$B$6 -1)","v":"Start Lane 8"},null,null,null,null,null,null,null,null,null,null,null,null,null,null,null,null,null,null,null,null,null,{"$f":"\"Start Lane \" & IF(Meet!$B$5 = 1, Meet!$B$6, Meet!$B$6 -1)","v":"Start Lane 8"},null,null,null,null,null,null,null,null,null,null,null,null,null,null,null,null,null,null,null,null,"Lanes 3 - 4"]
[{"$f":"\"Turn Lane \"  & Meet!$B$5","v":"Turn Lane 1"},null,null,null,null,null,null,null,null,null,null,null,null,null,null,null,null,null,null,null,null,null,{"$f":"\"Turn Lane \"  & Meet!$B$5","v":"Turn Lane 1"},null,null,null,null,null,null,null,null,null,null,null,null,null,null,null,null,null,null,null,null,"Lanes 5 - 6"]
[{"$f":"\"Turn Lane \" & IF(Meet!$B$5 = 1, Meet!$B$6, Meet!$B$6 -1)","v":"Turn Lane 8"},null,null,null,null,null,null,null,null,null,null,null,null,null,null,null,null,null,null,null,null,null,{"$f":"\"Turn Lane \" & IF(Meet!$B$5 = 1, Meet!$B$6, Meet!$B$6 -1)","v":"Turn Lane 8"},null,null,null,null,null,null,null,null,null,null,null,null,null,null,null,null,null,null,null,null,"Lanes 7 - 8"]

{"sheet":"Session 6","index":12,"n_rows":35,"n_cols":63,"rows_kept":35,"cut":false,"hidden":false,"merged":[[34,0,34,6],[34,7,34,21],[34,22,34,28],[34,29,34,42],[34,43,34,47],[34,48,34,63],[33,0,33,6],[33,7,33,21],[33,22,33,28],[33,29,33,42],[33,43,33,47],[33,48,33,63],[32,0,32,6],[32,7,32,21],[32,22,32,28],[32,29,32,42],[32,43,32,47],[32,48,32,63],[31,0,31,6],[31,7,31,21],[31,22,31,28],[31,29,31,42],[31,43,31,47],[31,48,31,63],[30,0,30,6],[30,7,30,21],[30,22,30,28],[30,29,30,42],[30,43,30,47],[30,48,30,63],[29,0,29,2],[29,3,29,16],[29,17,29,31],[29,32,29,46],[29,47,29,60],[29,61,29,63],[28,0,28,2],[28,3,28,16],[28,17,28,31],[28,32,28,46],[28,47,28,60],[28,61,28,63],[26,61,26,63],[27,0,27,2],[27,3,27,16],[27,17,27,31],[27,32,27,46],[27,47,27,60],[27,61,27,63],[25,0,25,2],[25,3,25,16],[25,17,25,31],[25,32,25,46],[25,47,25,60],[26,0,26,2],[26,3,26,16],[26,17,26,31],[26,32,26,46],[26,47,26,60],[24,0,24,1],[24,2,24,16],[24,17,24,31],[24,32,24,46],[24,47,24,61],[24,62,24,63],[23,0,23,1],[23,2,23,16],[23,17,23,31],[23,32,23,46],[23,47,23,61],[23,62,23,63],[22,0,22,1],[22,2,22,16],[22,17,22,31],[22,32,22,46],[22,47,22,61],[22,62,22,63],[21,0,21,1],[21,2,21,16],[21,17,21,31],[21,32,21,46],[21,47,21,61],[21,62,21,63],[20,0,20,1],[20,2,20,16],[20,17,20,31],[20,32,20,46],[20,47,20,61],[20,62,20,63],[19,0,19,1],[19,2,19,16],[19,17,19,31],[19,32,19,46],[19,47,19,61],[19,62,19,63],[18,0,18,1],[18,2,18,16],[18,17,18,31],[18,32,18,46],[18,47,18,61],[18,62,18,63],[17,0,17,1],[17,2,17,16],[17,17,17,31],[17,32,17,46],[17,47,17,61],[17,62,17,63],[16,0,16,1],[16,2,16,16],[16,17,16,31],[16,32,16,46],[16,47,16,61],[16,62,16,63],[15,0,15,1],[15,2,15,16],[15,17,15,31],[15,32,15,46],[15,47,15,61],[15,62,15,63],[13,17,13,31],[13,32,13,46],[14,2,14,16],[14,17,14,31],[14,32,14,46],[14,47,14,61],[10,48,10,52],[10,53,10,63],[11,0,11,27],[11,28,11,35],[11,36,11,63],[12,0,14,1],[12,2,12,46],[12,47,13,61],[12,62,14,63],[13,2,13,16],[10,0,10,4],[10,5,10,15],[10,16,10,20],[10,21,10,31],[10,32,10,36],[10,37,10,47],[8,0,8,9],[8,10,8,20],[8,22,8,32],[8,33,8,63],[9,0,9,27],[9,28,9,35],[9,36,9,63],[6,0,6,27],[6,28,6,35],[6,36,6,63],[7,0,7,4],[7,5,7,15],[7,16,7,20],[7,21,7,31],[7,32,7,36],[7,37,7,47],[7,48,7,52],[4,22,4,31],[4,35,4,47],[4,49,4,61],[5,0,5,9],[5,10,5,22],[5,23,5,31],[5,35,5,47],[5,49,5,61],[7,53,7,63],[0,0,1,2],[0,4,0,39],[0,40,0,43],[0,44,0,47],[0,48,0,63],[1,4,1,39],[1,40,1,63],[2,57,2,63],[3,0,3,7],[3,8,3,10],[3,11,3,20],[3,22,3,31],[3,32,5,34],[3,35,3,47],[3,49,3,61],[3,62,5,63],[4,0,4,9],[2,0,2,7],[2,8,2,17],[2,18,2,29],[2,30,2,37],[2,39,2,46],[2,48,2,55],[4,11,4,20]]}
[null,null,null,null,{"$f":"Meet!B1","v":"meet name"},null,null,null,null,null,null,null,null,null,null,null,null,null,null,null,null,null,null,null,null,null,null,null,null,null,null,null,null,null,null,null,null,null,null,null,"Session",null,null,null," 6",null,null,null,{"$f":"LOOKUP(AS1,Sessions!A:A,Sessions!C:C)","v":"FINALS"}]
[null,null,null,null,{"$f":"Meet!B4","v":"meet location"},null,null,null,null,null,null,null,null,null,null,null,null,null,null,null,null,null,null,null,null,null,null,null,null,null,null,null,null,null,null,null,null,null,null,null,{"$f":"Meet!B2 + DAY(LOOKUP(AS1,Sessions!A:A,Sessions!B:B) - 1)","v":"2015-08-08"}]
["Meet  Referee - ",null,null,null,null,null,null,null,{"$f":"Officials!A3","v":"meet ref"},null,null,null,null,null,null,null,null,null,"Administrative Referees -",null,null,null,null,null,null,null,null,null,null,null,null,null,null,null,null,null,null,null,"/",null,null,null,null,null,null,null,null,"/"]
[" Deck Referees - ",null,null,null,null,null,null,null,null,null,null,null,null,null,null,null,null,null,null,null,null,"/",null,null,null,null,null,null,null,null,null,null,null,null,null,"Head Starter",null,null,null,null,null,null,null,null,null,null,null,null,"--"]
[null,null,null,null,null,null,null,null,null,null,null,null,null,null,null,null,null,null,null,null,null,"/",null,null,null,null,null,null,null,null,null,null,null,null,null,null,null,null,null,null,null,null,null,null,null,null,null,null,"/"]
["Lead Chief Judge - "]
[null,null,null,null,null,null,null,null,null,null,null,null,null,null,null,null,null,null,null,null,null,null,null,null,null,null,null,null,"Chief Judges"]
[{"$f":"\"Start\"  & CHAR(10) & \"Lane \" & Meet!$B$5","v":"Start\nLane 1"},null,null,null,null,null,null,null,null,null,null,null,null,null,null,null,{"$f":"\"Start\"  & CHAR(10) & \"Lane \" & IF(Meet!$B$5 = 1, Meet!$B$6, Meet!$B$6 -1)","v":"Start\nLane 8"},null,null,null,null,null,null,null,null,null,null,null,null,null,null,null,{"$f":"\"Turn\"  & CHAR(10) & \"Lane \" & Meet!$B$5","v":"Turn\nLane 1"},null,null,null,null,null,null,null,null,null,null,null,null,null,null,null,{"$f":"\"Turn\"  & CHAR(10) & \"Lane \" & IF(Meet!$B$5 = 1, Meet!$B$6, Meet!$B$6 -1)","v":"Turn\nLane 8"}]
["Relief Chief Judge:",null,null,null,null,null,null,null,null,null,null,null,null,null,null,null,null,null,null,null,null,"/"]
["Start End",null,null,null,null,null,null,null,null,null,null,null,null,null,null,null,null,null,null,null,null,null,null,null,null,null,null,null,"Stroke Judges",null,null,null,null,null,null,null,"Turn End"]
[{"$f":"\"Lane \" & Meet!$B$5","v":"Lane 1"},null,null,null,null,null,null,null,null,null,null,null,null,null,null,null,{"$f":"\"Lane \" & IF(Meet!$B$5 = 1, Meet!$B$6, Meet!$B$6 -1)","v":"Lane 8"},null,null,null,null,null,null,null,null,null,null,null,null,null,null,null,{"$f":"\"Lane \" & Meet!$B$5","v":"Lane 1"},null,null,null,null,null,null,null,null,null,null,null,null,null,null,null,{"$f":"\"Lane \" & IF(Meet!$B$5 = 1, Meet!$B$6, Meet!$B$6 -1)","v":"Lane 8"}]
[null,null,null,null,null,null,null,null,null,null,null,null,null,null,null,null,null,null,null,null,null,null,null,null,null,null,null,null,"Turn Judges"]
["LN",null,"Start End",null,null,null,null,null,null,null,null,null,null,null,null,null,null,null,null,null,null,null,null,null,null,null,null,null,null,null,null,null,null,null,null,null,null,null,null,null,null,null,null,null,null,null,null,"Turn End",null,null,null,null,null,null,null,null,null,null,null,null,null,null,"LN"]
[null,null,"Left Chair",null,null,null,null,null,null,null,null,null,null,null,null,null,null,"Center Chair",null,null,null,null,null,null,null,null,null,null,null,null,null,null,"Right Chair"]
[null,null,"Watch / Button / Relay Take-off",null,null,null,null,null,null,null,null,null,null,null,null,null,null,"Recorder / Button / Bell",null,null,null,null,null,null,null,null,null,null,null,null,null,null,"Turn-Finish Judge / Button",null,null,null,null,null,null,null,null,null,null,null,null,null,null,"Turn Judge"]
[{"$f":"Meet!$B$5","v":1},null,null,null,null,null,null,null,null,null,null,null,null,null,null,null,null,null,null,null,null,null,null,null,null,null,null,null,null,null,null,null,null,null,null,null,null,null,null,null,null,null,null,null,null,null,null,null,null,null,null,null,null,null,null,null,null,null,null,null,null,null,{"$f":"Meet!$B$5","v":1}]
[{"$f":"A16+1","v":2},null,null,null,null,null,null,null,null,null,null,null,null,null,null,null,null,null,null,null,null,null,null,null,null,null,null,null,null,null,null,null,null,null,null,null,null,null,null,null,null,null,null,null,null,null,null,null,null,null,null,null,null,null,null,null,null,null,null,null,null,null,{"$f":"BK16+1","v":2}]
[{"$f":"A17+1","v":3},null,null,null,null,null,null,null,null,null,null,null,null,null,null,null,null,null,null,null,null,null,null,null,null,null,null,null,null,null,null,null,null,null,null,null,null,null,null,null,null,null,null,null,null,null,null,null,null,null,null,null,null,null,null,null,null,null,null,null,null,null,{"$f":"BK17+1","v":3}]
[4,null,null,null,null,null,null,null,null,null,null,null,null,null,null,null,null,null,null,null,null,null,null,null,null,null,null,null,null,null,null,null,null,null,null,null,null,null,null,null,null,null,null,null,null,null,null,null,null,null,null,null,null,null,null,null,null,null,null,null,null,null,4]
[5,null,null,null,null,null,null,null,null,null,null,null,null,null,null,null,null,null,null,null,null,null,null,null,null,null,null,null,null,null,null,null,null,null,null,null,null,null,null,null,null,null,null,null,null,null,null,null,null,null,null,null,null,null,null,null,null,null,null,null,null,null,5]
[6,null,null,null,null,null,null,null,null,null,null,null,null,null,null,null,null,null,null,null,null,null,null,null,null,null,null,null,null,null,null,null,null,null,null,null,null,null,null,null,null,null,null,null,null,null,null,null,null,null,null,null,null,null,null,null,null,null,null,null,null,null,6]
[7,null,null,null,null,null,null,null,null,null,null,null,null,null,null,null,null,null,null,null,null,null,null,null,null,null,null,null,null,null,null,null,null,null,null,null,null,null,null,null,null,null,null,null,null,null,null,null,null,null,null,null,null,null,null,null,null,null,null,null,null,null,7]
[8,null,null,null,null,null,null,null,null,null,null,null,null,null,null,null,null,null,null,null,null,null,null,null,null,null,null,null,null,null,null,null,null,null,null,null,null,null,null,null,null,null,null,null,null,null,null,null,null,null,null,null,null,null,null,null,null,null,null,null,null,null,8]
[9,null,null,null,null,null,null,null,null,null,null,null,null,null,null,null,null,null,null,null,null,null,null,null,null,null,null,null,null,null,null,null,null,null,null,null,null,null,null,null,null,null,null,null,null,null,null,null,null,null,null,null,null,null,null,null,null,null,null,null,null,null,9]
[10,null,null,null,null,null,null,null,null,null,null,null,null,null,null,null,null,null,null,null,null,null,null,null,null,null,null,null,null,null,null,null,null,null,null,null,null,null,null,null,null,null,null,null,null,null,null,null,null,null,null,null,null,null,null,null,null,null,null,null,null,null,10]
[null,null,null,"Left Chair Relief",null,null,null,null,null,null,null,null,null,null,null,null,null,"Center Chair Relief",null,null,null,null,null,null,null,null,null,null,null,null,null,null,"Right Chair Relief",null,null,null,null,null,null,null,null,null,null,null,null,null,null,"Turn End Relief"]
["Team 1",null,null,null,null,null,null,null,null,null,null,null,null,null,null,null,null,null,null,null,null,null,null,null,null,null,null,null,null,null,null,null,null,null,null,null,null,null,null,null,null,null,null,null,null,null,null,null,null,null,null,null,null,null,null,null,null,null,null,null,null,"Team 1"]
["Team 2",null,null,null,null,null,null,null,null,null,null,null,null,null,null,null,null,null,null,null,null,null,null,null,null,null,null,null,null,null,null,null,null,null,null,null,null,null,null,null,null,null,null,null,null,null,null,null,null,null,null,null,null,null,null,null,null,null,null,null,null,"Team 2"]
["Team 3",null,null,null,null,null,null,null,null,null,null,null,null,null,null,null,null,null,null,null,null,null,null,null,null,null,null,null,null,null,null,null,null,null,null,null,null,null,null,null,null,null,null,null,null,null,null,null,null,null,null,null,null,null,null,null,null,null,null,null,null,"Team 3"]
["Team 4 ",null,null,null,null,null,null,null,null,null,null,null,null,null,null,null,null,null,null,null,null,null,null,null,null,null,null,null,null,null,null,null,null,null,null,null,null,null,null,null,null,null,null,null,null,null,null,null,null,null,null,null,null,null,null,null,null,null,null,null,null,"Team 4 "]
[null,null,null,null,null,null,null,"Stroke Relief",null,null,null,null,null,null,null,null,null,null,null,null,null,null,null,null,null,null,null,null,null,"Reserve Officials",null,null,null,null,null,null,null,null,null,null,null,null,null,null,null,null,null,null,"SIDE Relay Take-Off Judges"]
[{"$f":"\"Start Lane \"  & Meet!$B$5","v":"Start Lane 1"},null,null,null,null,null,null,null,null,null,null,null,null,null,null,null,null,null,null,null,null,null,{"$f":"\"Start Lane \"  & Meet!$B$5","v":"Start Lane 1"},null,null,null,null,null,null,null,null,null,null,null,null,null,null,null,null,null,null,null,null,"Lanes 1 - 2"]
[{"$f":"\"Start Lane \" & IF(Meet!$B$5 = 1, Meet!$B$6, Meet!$B$6 -1)","v":"Start Lane 8"},null,null,null,null,null,null,null,null,null,null,null,null,null,null,null,null,null,null,null,null,null,{"$f":"\"Start Lane \" & IF(Meet!$B$5 = 1, Meet!$B$6, Meet!$B$6 -1)","v":"Start Lane 8"},null,null,null,null,null,null,null,null,null,null,null,null,null,null,null,null,null,null,null,null,"Lanes 3 - 4"]
[{"$f":"\"Turn Lane \"  & Meet!$B$5","v":"Turn Lane 1"},null,null,null,null,null,null,null,null,null,null,null,null,null,null,null,null,null,null,null,null,null,{"$f":"\"Turn Lane \"  & Meet!$B$5","v":"Turn Lane 1"},null,null,null,null,null,null,null,null,null,null,null,null,null,null,null,null,null,null,null,null,"Lanes 5 - 6"]
[{"$f":"\"Turn Lane \" & IF(Meet!$B$5 = 1, Meet!$B$6, Meet!$B$6 -1)","v":"Turn Lane 8"},null,null,null,null,null,null,null,null,null,null,null,null,null,null,null,null,null,null,null,null,null,{"$f":"\"Turn Lane \" & IF(Meet!$B$5 = 1, Meet!$B$6, Meet!$B$6 -1)","v":"Turn Lane 8"},null,null,null,null,null,null,null,null,null,null,null,null,null,null,null,null,null,null,null,null,"Lanes 7 - 8"]

{"sheet":"Session 7","index":13,"n_rows":35,"n_cols":63,"rows_kept":35,"cut":false,"hidden":false,"merged":[[34,0,34,6],[34,7,34,21],[34,22,34,28],[34,29,34,42],[34,43,34,47],[34,48,34,63],[33,0,33,6],[33,7,33,21],[33,22,33,28],[33,29,33,42],[33,43,33,47],[33,48,33,63],[32,0,32,6],[32,7,32,21],[32,22,32,28],[32,29,32,42],[32,43,32,47],[32,48,32,63],[31,0,31,6],[31,7,31,21],[31,22,31,28],[31,29,31,42],[31,43,31,47],[31,48,31,63],[30,0,30,6],[30,7,30,21],[30,22,30,28],[30,29,30,42],[30,43,30,47],[30,48,30,63],[29,0,29,2],[29,3,29,16],[29,17,29,31],[29,32,29,46],[29,47,29,60],[29,61,29,63],[28,0,28,2],[28,3,28,16],[28,17,28,31],[28,32,28,46],[28,47,28,60],[28,61,28,63],[26,61,26,63],[27,0,27,2],[27,3,27,16],[27,17,27,31],[27,32,27,46],[27,47,27,60],[27,61,27,63],[25,0,25,2],[25,3,25,16],[25,17,25,31],[25,32,25,46],[25,47,25,60],[26,0,26,2],[26,3,26,16],[26,17,26,31],[26,32,26,46],[26,47,26,60],[24,0,24,1],[24,2,24,16],[24,17,24,31],[24,32,24,46],[24,47,24,61],[24,62,24,63],[23,0,23,1],[23,2,23,16],[23,17,23,31],[23,32,23,46],[23,47,23,61],[23,62,23,63],[22,0,22,1],[22,2,22,16],[22,17,22,31],[22,32,22,46],[22,47,22,61],[22,62,22,63],[21,0,21,1],[21,2,21,16],[21,17,21,31],[21,32,21,46],[21,47,21,61],[21,62,21,63],[20,0,20,1],[20,2,20,16],[20,17,20,31],[20,32,20,46],[20,47,20,61],[20,62,20,63],[19,0,19,1],[19,2,19,16],[19,17,19,31],[19,32,19,46],[19,47,19,61],[19,62,19,63],[18,0,18,1],[18,2,18,16],[18,17,18,31],[18,32,18,46],[18,47,18,61],[18,62,18,63],[17,0,17,1],[17,2,17,16],[17,17,17,31],[17,32,17,46],[17,47,17,61],[17,62,17,63],[16,0,16,1],[16,2,16,16],[16,17,16,31],[16,32,16,46],[16,47,16,61],[16,62,16,63],[15,0,15,1],[15,2,15,16],[15,17,15,31],[15,32,15,46],[15,47,15,61],[15,62,15,63],[13,17,13,31],[13,32,13,46],[14,2,14,16],[14,17,14,31],[14,32,14,46],[14,47,14,61],[10,48,10,52],[10,53,10,63],[11,0,11,27],[11,28,11,35],[11,36,11,63],[12,0,14,1],[12,2,12,46],[12,47,13,61],[12,62,14,63],[13,2,13,16],[10,0,10,4],[10,5,10,15],[10,16,10,20],[10,21,10,31],[10,32,10,36],[10,37,10,47],[8,0,8,9],[8,10,8,20],[8,22,8,32],[8,33,8,63],[9,0,9,27],[9,28,9,35],[9,36,9,63],[6,0,6,27],[6,28,6,35],[6,36,6,63],[7,0,7,4],[7,5,7,15],[7,16,7,20],[7,21,7,31],[7,32,7,36],[7,37,7,47],[7,48,7,52],[4,22,4,31],[4,35,4,47],[4,49,4,61],[5,0,5,9],[5,10,5,22],[5,23,5,31],[5,35,5,47],[5,49,5,61],[7,53,7,63],[0,0,1,2],[0,4,0,39],[0,40,0,43],[0,44,0,47],[0,48,0,63],[1,4,1,39],[1,40,1,63],[2,57,2,63],[3,0,3,7],[3,8,3,10],[3,11,3,20],[3,22,3,31],[3,32,5,34],[3,35,3,47],[3,49,3,61],[3,62,5,63],[4,0,4,9],[2,0,2,7],[2,8,2,17],[2,18,2,29],[2,30,2,37],[2,39,2,46],[2,48,2,55],[4,11,4,20]]}
[null,null,null,null,{"$f":"Meet!B1","v":"meet name"},null,null,null,null,null,null,null,null,null,null,null,null,null,null,null,null,null,null,null,null,null,null,null,null,null,null,null,null,null,null,null,null,null,null,null,"Session",null,null,null," 7",null,null,null,{"$f":"LOOKUP(AS1,Sessions!A:A,Sessions!C:C)","v":"Prelims"}]
[null,null,null,null,{"$f":"Meet!B4","v":"meet location"},null,null,null,null,null,null,null,null,null,null,null,null,null,null,null,null,null,null,null,null,null,null,null,null,null,null,null,null,null,null,null,null,null,null,null,{"$f":"Meet!B2 + DAY(LOOKUP(AS1,Sessions!A:A,Sessions!B:B) - 1)","v":"2015-08-09"}]
["Meet  Referee - ",null,null,null,null,null,null,null,{"$f":"Officials!A3","v":"meet ref"},null,null,null,null,null,null,null,null,null,"Administrative Referees -",null,null,null,null,null,null,null,null,null,null,null,null,null,null,null,null,null,null,null,"/",null,null,null,null,null,null,null,null,"/"]
[" Deck Referees - ",null,null,null,null,null,null,null,null,null,null,null,null,null,null,null,null,null,null,null,null,"/",null,null,null,null,null,null,null,null,null,null,null,null,null,"Head Starter",null,null,null,null,null,null,null,null,null,null,null,null,"--"]
[null,null,null,null,null,null,null,null,null,null,null,null,null,null,null,null,null,null,null,null,null,"/",null,null,null,null,null,null,null,null,null,null,null,null,null,null,null,null,null,null,null,null,null,null,null,null,null,null,"/"]
["Lead Chief Judge - "]
[null,null,null,null,null,null,null,null,null,null,null,null,null,null,null,null,null,null,null,null,null,null,null,null,null,null,null,null,"Chief Judges"]
[{"$f":"\"Start\"  & CHAR(10) & \"Lane \" & Meet!$B$5","v":"Start\nLane 1"},null,null,null,null,null,null,null,null,null,null,null,null,null,null,null,{"$f":"\"Start\"  & CHAR(10) & \"Lane \" & IF(Meet!$B$5 = 1, Meet!$B$6, Meet!$B$6 -1)","v":"Start\nLane 8"},null,null,null,null,null,null,null,null,null,null,null,null,null,null,null,{"$f":"\"Turn\"  & CHAR(10) & \"Lane \" & Meet!$B$5","v":"Turn\nLane 1"},null,null,null,null,null,null,null,null,null,null,null,null,null,null,null,{"$f":"\"Turn\"  & CHAR(10) & \"Lane \" & IF(Meet!$B$5 = 1, Meet!$B$6, Meet!$B$6 -1)","v":"Turn\nLane 8"}]
["Relief Chief Judge:",null,null,null,null,null,null,null,null,null,null,null,null,null,null,null,null,null,null,null,null,"/"]
["Start End",null,null,null,null,null,null,null,null,null,null,null,null,null,null,null,null,null,null,null,null,null,null,null,null,null,null,null,"Stroke Judges",null,null,null,null,null,null,null,"Turn End"]
[{"$f":"\"Lane \" & Meet!$B$5","v":"Lane 1"},null,null,null,null,null,null,null,null,null,null,null,null,null,null,null,{"$f":"\"Lane \" & IF(Meet!$B$5 = 1, Meet!$B$6, Meet!$B$6 -1)","v":"Lane 8"},null,null,null,null,null,null,null,null,null,null,null,null,null,null,null,{"$f":"\"Lane \" & Meet!$B$5","v":"Lane 1"},null,null,null,null,null,null,null,null,null,null,null,null,null,null,null,{"$f":"\"Lane \" & IF(Meet!$B$5 = 1, Meet!$B$6, Meet!$B$6 -1)","v":"Lane 8"}]
[null,null,null,null,null,null,null,null,null,null,null,null,null,null,null,null,null,null,null,null,null,null,null,null,null,null,null,null,"Turn Judges"]
["LN",null,"Start End",null,null,null,null,null,null,null,null,null,null,null,null,null,null,null,null,null,null,null,null,null,null,null,null,null,null,null,null,null,null,null,null,null,null,null,null,null,null,null,null,null,null,null,null,"Turn End",null,null,null,null,null,null,null,null,null,null,null,null,null,null,"LN"]
[null,null,"Left Chair",null,null,null,null,null,null,null,null,null,null,null,null,null,null,"Center Chair",null,null,null,null,null,null,null,null,null,null,null,null,null,null,"Right Chair"]
[null,null,"Watch / Button / Relay Take-off",null,null,null,null,null,null,null,null,null,null,null,null,null,null,"Recorder / Button / Bell",null,null,null,null,null,null,null,null,null,null,null,null,null,null,"Turn-Finish Judge / Button",null,null,null,null,null,null,null,null,null,null,null,null,null,null,"Turn Judge"]
[{"$f":"Meet!$B$5","v":1},null,null,null,null,null,null,null,null,null,null,null,null,null,null,null,null,null,null,null,null,null,null,null,null,null,null,null,null,null,null,null,null,null,null,null,null,null,null,null,null,null,null,null,null,null,null,null,null,null,null,null,null,null,null,null,null,null,null,null,null,null,{"$f":"Meet!$B$5","v":1}]
[{"$f":"A16+1","v":2},null,null,null,null,null,null,null,null,null,null,null,null,null,null,null,null,null,null,null,null,null,null,null,null,null,null,null,null,null,null,null,null,null,null,null,null,null,null,null,null,null,null,null,null,null,null,null,null,null,null,null,null,null,null,null,null,null,null,null,null,null,{"$f":"BK16+1","v":2}]
[{"$f":"A17+1","v":3},null,null,null,null,null,null,null,null,null,null,null,null,null,null,null,null,null,null,null,null,null,null,null,null,null,null,null,null,null,null,null,null,null,null,null,null,null,null,null,null,null,null,null,null,null,null,null,null,null,null,null,null,null,null,null,null,null,null,null,null,null,{"$f":"BK17+1","v":3}]
[4,null,null,null,null,null,null,null,null,null,null,null,null,null,null,null,null,null,null,null,null,null,null,null,null,null,null,null,null,null,null,null,null,null,null,null,null,null,null,null,null,null,null,null,null,null,null,null,null,null,null,null,null,null,null,null,null,null,null,null,null,null,4]
[5,null,null,null,null,null,null,null,null,null,null,null,null,null,null,null,null,null,null,null,null,null,null,null,null,null,null,null,null,null,null,null,null,null,null,null,null,null,null,null,null,null,null,null,null,null,null,null,null,null,null,null,null,null,null,null,null,null,null,null,null,null,5]
[6,null,null,null,null,null,null,null,null,null,null,null,null,null,null,null,null,null,null,null,null,null,null,null,null,null,null,null,null,null,null,null,null,null,null,null,null,null,null,null,null,null,null,null,null,null,null,null,null,null,null,null,null,null,null,null,null,null,null,null,null,null,6]
[7,null,null,null,null,null,null,null,null,null,null,null,null,null,null,null,null,null,null,null,null,null,null,null,null,null,null,null,null,null,null,null,null,null,null,null,null,null,null,null,null,null,null,null,null,null,null,null,null,null,null,null,null,null,null,null,null,null,null,null,null,null,7]
[8,null,null,null,null,null,null,null,null,null,null,null,null,null,null,null,null,null,null,null,null,null,null,null,null,null,null,null,null,null,null,null,null,null,null,null,null,null,null,null,null,null,null,null,null,null,null,null,null,null,null,null,null,null,null,null,null,null,null,null,null,null,8]
[9,null,null,null,null,null,null,null,null,null,null,null,null,null,null,null,null,null,null,null,null,null,null,null,null,null,null,null,null,null,null,null,null,null,null,null,null,null,null,null,null,null,null,null,null,null,null,null,null,null,null,null,null,null,null,null,null,null,null,null,null,null,9]
[10,null,null,null,null,null,null,null,null,null,null,null,null,null,null,null,null,null,null,null,null,null,null,null,null,null,null,null,null,null,null,null,null,null,null,null,null,null,null,null,null,null,null,null,null,null,null,null,null,null,null,null,null,null,null,null,null,null,null,null,null,null,10]
[null,null,null,"Left Chair Relief",null,null,null,null,null,null,null,null,null,null,null,null,null,"Center Chair Relief",null,null,null,null,null,null,null,null,null,null,null,null,null,null,"Right Chair Relief",null,null,null,null,null,null,null,null,null,null,null,null,null,null,"Turn End Relief"]
["Team 1",null,null,null,null,null,null,null,null,null,null,null,null,null,null,null,null,null,null,null,null,null,null,null,null,null,null,null,null,null,null,null,null,null,null,null,null,null,null,null,null,null,null,null,null,null,null,null,null,null,null,null,null,null,null,null,null,null,null,null,null,"Team 1"]
["Team 2",null,null,null,null,null,null,null,null,null,null,null,null,null,null,null,null,null,null,null,null,null,null,null,null,null,null,null,null,null,null,null,null,null,null,null,null,null,null,null,null,null,null,null,null,null,null,null,null,null,null,null,null,null,null,null,null,null,null,null,null,"Team 2"]
["Team 3",null,null,null,null,null,null,null,null,null,null,null,null,null,null,null,null,null,null,null,null,null,null,null,null,null,null,null,null,null,null,null,null,null,null,null,null,null,null,null,null,null,null,null,null,null,null,null,null,null,null,null,null,null,null,null,null,null,null,null,null,"Team 3"]
["Team 4 ",null,null,null,null,null,null,null,null,null,null,null,null,null,null,null,null,null,null,null,null,null,null,null,null,null,null,null,null,null,null,null,null,null,null,null,null,null,null,null,null,null,null,null,null,null,null,null,null,null,null,null,null,null,null,null,null,null,null,null,null,"Team 4 "]
[null,null,null,null,null,null,null,"Stroke Relief",null,null,null,null,null,null,null,null,null,null,null,null,null,null,null,null,null,null,null,null,null,"Reserve Officials",null,null,null,null,null,null,null,null,null,null,null,null,null,null,null,null,null,null,"SIDE Relay Take-Off Judges"]
[{"$f":"\"Start Lane \"  & Meet!$B$5","v":"Start Lane 1"},null,null,null,null,null,null,null,null,null,null,null,null,null,null,null,null,null,null,null,null,null,{"$f":"\"Start Lane \"  & Meet!$B$5","v":"Start Lane 1"},null,null,null,null,null,null,null,null,null,null,null,null,null,null,null,null,null,null,null,null,"Lanes 1 - 2"]
[{"$f":"\"Start Lane \" & IF(Meet!$B$5 = 1, Meet!$B$6, Meet!$B$6 -1)","v":"Start Lane 8"},null,null,null,null,null,null,null,null,null,null,null,null,null,null,null,null,null,null,null,null,null,{"$f":"\"Start Lane \" & IF(Meet!$B$5 = 1, Meet!$B$6, Meet!$B$6 -1)","v":"Start Lane 8"},null,null,null,null,null,null,null,null,null,null,null,null,null,null,null,null,null,null,null,null,"Lanes 3 - 4"]
[{"$f":"\"Turn Lane \"  & Meet!$B$5","v":"Turn Lane 1"},null,null,null,null,null,null,null,null,null,null,null,null,null,null,null,null,null,null,null,null,null,{"$f":"\"Turn Lane \"  & Meet!$B$5","v":"Turn Lane 1"},null,null,null,null,null,null,null,null,null,null,null,null,null,null,null,null,null,null,null,null,"Lanes 5 - 6"]
[{"$f":"\"Turn Lane \" & IF(Meet!$B$5 = 1, Meet!$B$6, Meet!$B$6 -1)","v":"Turn Lane 8"},null,null,null,null,null,null,null,null,null,null,null,null,null,null,null,null,null,null,null,null,null,{"$f":"\"Turn Lane \" & IF(Meet!$B$5 = 1, Meet!$B$6, Meet!$B$6 -1)","v":"Turn Lane 8"},null,null,null,null,null,null,null,null,null,null,null,null,null,null,null,null,null,null,null,null,"Lanes 7 - 8"]

{"sheet":"Session TT4","index":14,"n_rows":35,"n_cols":63,"rows_kept":35,"cut":false,"hidden":false,"merged":[[34,0,34,6],[34,7,34,21],[34,22,34,28],[34,29,34,42],[34,43,34,47],[34,48,34,63],[33,0,33,6],[33,7,33,21],[33,22,33,28],[33,29,33,42],[33,43,33,47],[33,48,33,63],[32,0,32,6],[32,7,32,21],[32,22,32,28],[32,29,32,42],[32,43,32,47],[32,48,32,63],[31,0,31,6],[31,7,31,21],[31,22,31,28],[31,29,31,42],[31,43,31,47],[31,48,31,63],[30,0,30,6],[30,7,30,21],[30,22,30,28],[30,29,30,42],[30,43,30,47],[30,48,30,63],[29,0,29,2],[29,3,29,16],[29,17,29,31],[29,32,29,46],[29,47,29,60],[29,61,29,63],[28,0,28,2],[28,3,28,16],[28,17,28,31],[28,32,28,46],[28,47,28,60],[28,61,28,63],[26,61,26,63],[27,0,27,2],[27,3,27,16],[27,17,27,31],[27,32,27,46],[27,47,27,60],[27,61,27,63],[25,0,25,2],[25,3,25,16],[25,17,25,31],[25,32,25,46],[25,47,25,60],[26,0,26,2],[26,3,26,16],[26,17,26,31],[26,32,26,46],[26,47,26,60],[24,0,24,1],[24,2,24,16],[24,17,24,31],[24,32,24,46],[24,47,24,61],[24,62,24,63],[23,0,23,1],[23,2,23,16],[23,17,23,31],[23,32,23,46],[23,47,23,61],[23,62,23,63],[22,0,22,1],[22,2,22,16],[22,17,22,31],[22,32,22,46],[22,47,22,61],[22,62,22,63],[21,0,21,1],[21,2,21,16],[21,17,21,31],[21,32,21,46],[21,47,21,61],[21,62,21,63],[20,0,20,1],[20,2,20,16],[20,17,20,31],[20,32,20,46],[20,47,20,61],[20,62,20,63],[19,0,19,1],[19,2,19,16],[19,17,19,31],[19,32,19,46],[19,47,19,61],[19,62,19,63],[18,0,18,1],[18,2,18,16],[18,17,18,31],[18,32,18,46],[18,47,18,61],[18,62,18,63],[17,0,17,1],[17,2,17,16],[17,17,17,31],[17,32,17,46],[17,47,17,61],[17,62,17,63],[16,0,16,1],[16,2,16,16],[16,17,16,31],[16,32,16,46],[16,47,16,61],[16,62,16,63],[15,0,15,1],[15,2,15,16],[15,17,15,31],[15,32,15,46],[15,47,15,61],[15,62,15,63],[13,17,13,31],[13,32,13,46],[14,2,14,16],[14,17,14,31],[14,32,14,46],[14,47,14,61],[10,48,10,52],[10,53,10,63],[11,0,11,27],[11,28,11,35],[11,36,11,63],[12,0,14,1],[12,2,12,46],[12,47,13,61],[12,62,14,63],[13,2,13,16],[10,0,10,4],[10,5,10,15],[10,16,10,20],[10,21,10,31],[10,32,10,36],[10,37,10,47],[8,0,8,9],[8,10,8,20],[8,22,8,32],[8,33,8,63],[9,0,9,27],[9,28,9,35],[9,36,9,63],[6,0,6,27],[6,28,6,35],[6,36,6,63],[7,0,7,4],[7,5,7,15],[7,16,7,20],[7,21,7,31],[7,32,7,36],[7,37,7,47],[7,48,7,52],[4,22,4,31],[4,35,4,47],[4,49,4,61],[5,0,5,9],[5,10,5,22],[5,23,5,31],[5,35,5,47],[5,49,5,61],[7,53,7,63],[0,0,1,2],[0,4,0,39],[0,40,0,43],[0,44,0,47],[0,48,0,63],[1,4,1,39],[1,40,1,63],[2,57,2,63],[3,0,3,7],[3,8,3,10],[3,11,3,20],[3,22,3,31],[3,32,5,34],[3,35,3,47],[3,49,3,61],[3,62,5,63],[4,0,4,9],[2,0,2,7],[2,8,2,17],[2,18,2,29],[2,30,2,37],[2,39,2,46],[2,48,2,55],[4,11,4,20]]}
[null,null,null,null,{"$f":"Meet!B1","v":"meet name"},null,null,null,null,null,null,null,null,null,null,null,null,null,null,null,null,null,null,null,null,null,null,null,null,null,null,null,null,null,null,null,null,null,null,null,"Session",null,null,null,"TT4",null,null,null,{"$f":"LOOKUP(AS1,Sessions!A:A,Sessions!C:C)","v":"Time Trials - 4th Day"}]
[null,null,null,null,{"$f":"Meet!B4","v":"meet location"},null,null,null,null,null,null,null,null,null,null,null,null,null,null,null,null,null,null,null,null,null,null,null,null,null,null,null,null,null,null,null,null,null,null,null,{"$f":"Meet!B2 + DAY(LOOKUP(AS1,Sessions!A:A,Sessions!B:B) - 1)","v":"2015-08-09"}]
["Meet  Referee - ",null,null,null,null,null,null,null,{"$f":"Officials!A23","v":" TTR"},null,null,null,null,null,null,null,null,null,"Administrative Referees -",null,null,null,null,null,null,null,null,null,null,null,null,null,null,null,null,null,null,null,"/",null,null,null,null,null,null,null,null,"/"]
[" Deck Referees - ",null,null,null,null,null,null,null,null,null,null,null,null,null,null,null,null,null,null,null,null,"/",null,null,null,null,null,null,null,null,null,null,null,null,null,"Head Starter",null,null,null,null,null,null,null,null,null,null,null,null,"--"]
[null,null,null,null,null,null,null,null,null,null,"/",null,null,null,null,null,null,null,null,null,null,"/",null,null,null,null,null,null,null,null,null,null,null,null,null,null,null,null,null,null,null,null,null,null,null,null,null,null,"/"]
["Lead Chief Judge - ",null,null,null,null,null,null,null,null,null,null,null,null,null,null,null,null,null,null,null,null,null,null,null,null,null,null,null,null,null,null,null,null,null,null,null,null,null,null,null,null,null,null,null,null,null,null,null,"/"]
[null,null,null,null,null,null,null,null,null,null,null,null,null,null,null,null,null,null,null,null,null,null,null,null,null,null,null,null,"Chief Judges"]
[{"$f":"\"Start\"  & CHAR(10) & \"Lane \" & Meet!$B$5","v":"Start\nLane 1"},null,null,null,null,null,null,null,null,null,null,null,null,null,null,null,{"$f":"\"Start\"  & CHAR(10) & \"Lane \" & IF(Meet!$B$5 = 1, Meet!$B$6, Meet!$B$6 -1)","v":"Start\nLane 8"},null,null,null,null,null,null,null,null,null,null,null,null,null,null,null,{"$f":"\"Turn\"  & CHAR(10) & \"Lane \" & Meet!$B$5","v":"Turn\nLane 1"},null,null,null,null,null,null,null,null,null,null,null,null,null,null,null,{"$f":"\"Turn\"  & CHAR(10) & \"Lane \" & IF(Meet!$B$5 = 1, Meet!$B$6, Meet!$B$6 -1)","v":"Turn\nLane 8"}]
["Relief Chief Judge:",null,null,null,null,null,null,null,null,null,null,null,null,null,null,null,null,null,null,null,null,"/"]
["Start End",null,null,null,null,null,null,null,null,null,null,null,null,null,null,null,null,null,null,null,null,null,null,null,null,null,null,null,"Stroke Judges",null,null,null,null,null,null,null,"Turn End"]
[{"$f":"\"Lane \" & Meet!$B$5","v":"Lane 1"},null,null,null,null,null,null,null,null,null,null,null,null,null,null,null,{"$f":"\"Lane \" & IF(Meet!$B$5 = 1, Meet!$B$6, Meet!$B$6 -1)","v":"Lane 8"},null,null,null,null,null,null,null,null,null,null,null,null,null,null,null,{"$f":"\"Lane \" & Meet!$B$5","v":"Lane 1"},null,null,null,null,null,null,null,null,null,null,null,null,null,null,null,{"$f":"\"Lane \" & IF(Meet!$B$5 = 1, Meet!$B$6, Meet!$B$6 -1)","v":"Lane 8"}]
[null,null,null,null,null,null,null,null,null,null,null,null,null,null,null,null,null,null,null,null,null,null,null,null,null,null,null,null,"Turn Judges"]
["LN",null,"Start End",null,null,null,null,null,null,null,null,null,null,null,null,null,null,null,null,null,null,null,null,null,null,null,null,null,null,null,null,null,null,null,null,null,null,null,null,null,null,null,null,null,null,null,null,"Turn End",null,null,null,null,null,null,null,null,null,null,null,null,null,null,"LN"]
[null,null,"Left Chair",null,null,null,null,null,null,null,null,null,null,null,null,null,null,"Center Chair",null,null,null,null,null,null,null,null,null,null,null,null,null,null,"Right Chair"]
[null,null,"Watch / Button / Relay Take-off",null,null,null,null,null,null,null,null,null,null,null,null,null,null,"Recorder / Button / Bell",null,null,null,null,null,null,null,null,null,null,null,null,null,null,"Turn-Finish Judge / Button",null,null,null,null,null,null,null,null,null,null,null,null,null,null,"Turn Judge"]
[{"$f":"Meet!$B$5","v":1},null,null,null,null,null,null,null,null,null,null,null,null,null,null,null,null,null,null,null,null,null,null,null,null,null,null,null,null,null,null,null,null,null,null,null,null,null,null,null,null,null,null,null,null,null,null,null,null,null,null,null,null,null,null,null,null,null,null,null,null,null,{"$f":"Meet!$B$5","v":1}]
[{"$f":"A16+1","v":2},null,null,null,null,null,null,null,null,null,null,null,null,null,null,null,null,null,null,null,null,null,null,null,null,null,null,null,null,null,null,null,null,null,null,null,null,null,null,null,null,null,null,null,null,null,null,null,null,null,null,null,null,null,null,null,null,null,null,null,null,null,{"$f":"BK16+1","v":2}]
[{"$f":"A17+1","v":3},null,null,null,null,null,null,null,null,null,null,null,null,null,null,null,null,null,null,null,null,null,null,null,null,null,null,null,null,null,null,null,null,null,null,null,null,null,null,null,null,null,null,null,null,null,null,null,null,null,null,null,null,null,null,null,null,null,null,null,null,null,{"$f":"BK17+1","v":3}]
[4,null,null,null,null,null,null,null,null,null,null,null,null,null,null,null,null,null,null,null,null,null,null,null,null,null,null,null,null,null,null,null,null,null,null,null,null,null,null,null,null,null,null,null,null,null,null,null,null,null,null,null,null,null,null,null,null,null,null,null,null,null,4]
[5,null,null,null,null,null,null,null,null,null,null,null,null,null,null,null,null,null,null,null,null,null,null,null,null,null,null,null,null,null,null,null,null,null,null,null,null,null,null,null,null,null,null,null,null,null,null,null,null,null,null,null,null,null,null,null,null,null,null,null,null,null,5]
[6,null,null,null,null,null,null,null,null,null,null,null,null,null,null,null,null,null,null,null,null,null,null,null,null,null,null,null,null,null,null,null,null,null,null,null,null,null,null,null,null,null,null,null,null,null,null,null,null,null,null,null,null,null,null,null,null,null,null,null,null,null,6]
[7,null,null,null,null,null,null,null,null,null,null,null,null,null,null,null,null,null,null,null,null,null,null,null,null,null,null,null,null,null,null,null,null,null,null,null,null,null,null,null,null,null,null,null,null,null,null,null,null,null,null,null,null,null,null,null,null,null,null,null,null,null,7]
[8,null,null,null,null,null,null,null,null,null,null,null,null,null,null,null,null,null,null,null,null,null,null,null,null,null,null,null,null,null,null,null,null,null,null,null,null,null,null,null,null,null,null,null,null,null,null,null,null,null,null,null,null,null,null,null,null,null,null,null,null,null,8]
[9,null,null,null,null,null,null,null,null,null,null,null,null,null,null,null,null,null,null,null,null,null,null,null,null,null,null,null,null,null,null,null,null,null,null,null,null,null,null,null,null,null,null,null,null,null,null,null,null,null,null,null,null,null,null,null,null,null,null,null,null,null,9]
[10,null,null,null,null,null,null,null,null,null,null,null,null,null,null,null,null,null,null,null,null,null,null,null,null,null,null,null,null,null,null,null,null,null,null,null,null,null,null,null,null,null,null,null,null,null,null,null,null,null,null,null,null,null,null,null,null,null,null,null,null,null,10]
[null,null,null,"Left Chair Relief",null,null,null,null,null,null,null,null,null,null,null,null,null,"Center Chair Relief",null,null,null,null,null,null,null,null,null,null,null,null,null,null,"Right Chair Relief",null,null,null,null,null,null,null,null,null,null,null,null,null,null,"Turn End Relief"]
["Team 1",null,null,null,null,null,null,null,null,null,null,null,null,null,null,null,null,null,null,null,null,null,null,null,null,null,null,null,null,null,null,null,null,null,null,null,null,null,null,null,null,null,null,null,null,null,null,null,null,null,null,null,null,null,null,null,null,null,null,null,null,"Team 1"]
["Team 2",null,null,null,null,null,null,null,null,null,null,null,null,null,null,null,null,null,null,null,null,null,null,null,null,null,null,null,null,null,null,null,null,null,null,null,null,null,null,null,null,null,null,null,null,null,null,null,null,null,null,null,null,null,null,null,null,null,null,null,null,"Team 2"]
["Team 3",null,null,null,null,null,null,null,null,null,null,null,null,null,null,null,null,null,null,null,null,null,null,null,null,null,null,null,null,null,null,null,null,null,null,null,null,null,null,null,null,null,null,null,null,null,null,null,null,null,null,null,null,null,null,null,null,null,null,null,null,"Team 3"]
["Team 4 ",null,null,null,null,null,null,null,null,null,null,null,null,null,null,null,null,null,null,null,null,null,null,null,null,null,null,null,null,null,null,null,null,null,null,null,null,null,null,null,null,null,null,null,null,null,null,null,null,null,null,null,null,null,null,null,null,null,null,null,null,"Team 4 "]
[null,null,null,null,null,null,null,"Stroke Relief",null,null,null,null,null,null,null,null,null,null,null,null,null,null,null,null,null,null,null,null,null,"Reserve Officials",null,null,null,null,null,null,null,null,null,null,null,null,null,null,null,null,null,null,"SIDE Relay Take-Off Judges"]
[{"$f":"\"Start Lane \"  & Meet!$B$5","v":"Start Lane 1"},null,null,null,null,null,null,null,null,null,null,null,null,null,null,null,null,null,null,null,null,null,{"$f":"\"Start Lane \"  & Meet!$B$5","v":"Start Lane 1"},null,null,null,null,null,null,null,null,null,null,null,null,null,null,null,null,null,null,null,null,"Lanes 1 - 2"]
[{"$f":"\"Start Lane \" & IF(Meet!$B$5 = 1, Meet!$B$6, Meet!$B$6 -1)","v":"Start Lane 8"},null,null,null,null,null,null,null,null,null,null,null,null,null,null,null,null,null,null,null,null,null,{"$f":"\"Start Lane \" & IF(Meet!$B$5 = 1, Meet!$B$6, Meet!$B$6 -1)","v":"Start Lane 8"},null,null,null,null,null,null,null,null,null,null,null,null,null,null,null,null,null,null,null,null,"Lanes 3 - 4"]
[{"$f":"\"Turn Lane \"  & Meet!$B$5","v":"Turn Lane 1"},null,null,null,null,null,null,null,null,null,null,null,null,null,null,null,null,null,null,null,null,null,{"$f":"\"Turn Lane \"  & Meet!$B$5","v":"Turn Lane 1"},null,null,null,null,null,null,null,null,null,null,null,null,null,null,null,null,null,null,null,null,"Lanes 5 - 6"]
[{"$f":"\"Turn Lane \" & IF(Meet!$B$5 = 1, Meet!$B$6, Meet!$B$6 -1)","v":"Turn Lane 8"},null,null,null,null,null,null,null,null,null,null,null,null,null,null,null,null,null,null,null,null,null,{"$f":"\"Turn Lane \" & IF(Meet!$B$5 = 1, Meet!$B$6, Meet!$B$6 -1)","v":"Turn Lane 8"},null,null,null,null,null,null,null,null,null,null,null,null,null,null,null,null,null,null,null,null,"Lanes 7 - 8"]

{"sheet":"Session 8","index":15,"n_rows":35,"n_cols":63,"rows_kept":35,"cut":false,"hidden":false,"merged":[[34,0,34,6],[34,7,34,21],[34,22,34,28],[34,29,34,42],[34,43,34,47],[34,48,34,63],[33,0,33,6],[33,7,33,21],[33,22,33,28],[33,29,33,42],[33,43,33,47],[33,48,33,63],[32,0,32,6],[32,7,32,21],[32,22,32,28],[32,29,32,42],[32,43,32,47],[32,48,32,63],[31,0,31,6],[31,7,31,21],[31,22,31,28],[31,29,31,42],[31,43,31,47],[31,48,31,63],[30,0,30,6],[30,7,30,21],[30,22,30,28],[30,29,30,42],[30,43,30,47],[30,48,30,63],[29,0,29,2],[29,3,29,16],[29,17,29,31],[29,32,29,46],[29,47,29,60],[29,61,29,63],[28,0,28,2],[28,3,28,16],[28,17,28,31],[28,32,28,46],[28,47,28,60],[28,61,28,63],[26,61,26,63],[27,0,27,2],[27,3,27,16],[27,17,27,31],[27,32,27,46],[27,47,27,60],[27,61,27,63],[25,0,25,2],[25,3,25,16],[25,17,25,31],[25,32,25,46],[25,47,25,60],[26,0,26,2],[26,3,26,16],[26,17,26,31],[26,32,26,46],[26,47,26,60],[24,0,24,1],[24,2,24,16],[24,17,24,31],[24,32,24,46],[24,47,24,61],[24,62,24,63],[23,0,23,1],[23,2,23,16],[23,17,23,31],[23,32,23,46],[23,47,23,61],[23,62,23,63],[22,0,22,1],[22,2,22,16],[22,17,22,31],[22,32,22,46],[22,47,22,61],[22,62,22,63],[21,0,21,1],[21,2,21,16],[21,17,21,31],[21,32,21,46],[21,47,21,61],[21,62,21,63],[20,0,20,1],[20,2,20,16],[20,17,20,31],[20,32,20,46],[20,47,20,61],[20,62,20,63],[19,0,19,1],[19,2,19,16],[19,17,19,31],[19,32,19,46],[19,47,19,61],[19,62,19,63],[18,0,18,1],[18,2,18,16],[18,17,18,31],[18,32,18,46],[18,47,18,61],[18,62,18,63],[17,0,17,1],[17,2,17,16],[17,17,17,31],[17,32,17,46],[17,47,17,61],[17,62,17,63],[16,0,16,1],[16,2,16,16],[16,17,16,31],[16,32,16,46],[16,47,16,61],[16,62,16,63],[15,0,15,1],[15,2,15,16],[15,17,15,31],[15,32,15,46],[15,47,15,61],[15,62,15,63],[13,17,13,31],[13,32,13,46],[14,2,14,16],[14,17,14,31],[14,32,14,46],[14,47,14,61],[10,48,10,52],[10,53,10,63],[11,0,11,27],[11,28,11,35],[11,36,11,63],[12,0,14,1],[12,2,12,46],[12,47,13,61],[12,62,14,63],[13,2,13,16],[10,0,10,4],[10,5,10,15],[10,16,10,20],[10,21,10,31],[10,32,10,36],[10,37,10,47],[8,0,8,9],[8,10,8,20],[8,22,8,32],[8,33,8,63],[9,0,9,27],[9,28,9,35],[9,36,9,63],[6,0,6,27],[6,28,6,35],[6,36,6,63],[7,0,7,4],[7,5,7,15],[7,16,7,20],[7,21,7,31],[7,32,7,36],[7,37,7,47],[7,48,7,52],[4,22,4,31],[4,35,4,47],[4,49,4,61],[5,0,5,9],[5,10,5,22],[5,23,5,31],[5,35,5,47],[5,49,5,61],[7,53,7,63],[0,0,1,2],[0,4,0,39],[0,40,0,43],[0,44,0,47],[0,48,0,63],[1,4,1,39],[1,40,1,63],[2,57,2,63],[3,0,3,7],[3,8,3,10],[3,11,3,20],[3,22,3,31],[3,32,5,34],[3,35,3,47],[3,49,3,61],[3,62,5,63],[4,0,4,9],[2,0,2,7],[2,8,2,17],[2,18,2,29],[2,30,2,37],[2,39,2,46],[2,48,2,55],[4,11,4,20]]}
[null,null,null,null,{"$f":"Meet!B1","v":"meet name"},null,null,null,null,null,null,null,null,null,null,null,null,null,null,null,null,null,null,null,null,null,null,null,null,null,null,null,null,null,null,null,null,null,null,null,"Session",null,null,null," 8",null,null,null,{"$f":"LOOKUP(AS1,Sessions!A:A,Sessions!C:C)","v":"FINALS"}]
[null,null,null,null,{"$f":"Meet!B4","v":"meet location"},null,null,null,null,null,null,null,null,null,null,null,null,null,null,null,null,null,null,null,null,null,null,null,null,null,null,null,null,null,null,null,null,null,null,null,{"$f":"Meet!B2 + DAY(LOOKUP(AS1,Sessions!A:A,Sessions!B:B) - 1)","v":"2015-08-09"}]
["Meet  Referee - ",null,null,null,null,null,null,null,{"$f":"Officials!A3","v":"meet ref"},null,null,null,null,null,null,null,null,null,"Administrative Referees -",null,null,null,null,null,null,null,null,null,null,null,null,null,null,null,null,null,null,null,"/",null,null,null,null,null,null,null,null,"/"]
[" Deck Referees - ",null,null,null,null,null,null,null,null,null,null,null,null,null,null,null,null,null,null,null,null,"/",null,null,null,null,null,null,null,null,null,null,null,null,null,"Head Starter",null,null,null,null,null,null,null,null,null,null,null,null,"--"]
[null,null,null,null,null,null,null,null,null,null,null,null,null,null,null,null,null,null,null,null,null,"/",null,null,null,null,null,null,null,null,null,null,null,null,null,null,null,null,null,null,null,null,null,null,null,null,null,null,"/"]
["Lead Chief Judge - "]
[null,null,null,null,null,null,null,null,null,null,null,null,null,null,null,null,null,null,null,null,null,null,null,null,null,null,null,null,"Chief Judges"]
[{"$f":"\"Start\"  & CHAR(10) & \"Lane \" & Meet!$B$5","v":"Start\nLane 1"},null,null,null,null,null,null,null,null,null,null,null,null,null,null,null,{"$f":"\"Start\"  & CHAR(10) & \"Lane \" & IF(Meet!$B$5 = 1, Meet!$B$6, Meet!$B$6 -1)","v":"Start\nLane 8"},null,null,null,null,null,null,null,null,null,null,null,null,null,null,null,{"$f":"\"Turn\"  & CHAR(10) & \"Lane \" & Meet!$B$5","v":"Turn\nLane 1"},null,null,null,null,null,null,null,null,null,null,null,null,null,null,null,{"$f":"\"Turn\"  & CHAR(10) & \"Lane \" & IF(Meet!$B$5 = 1, Meet!$B$6, Meet!$B$6 -1)","v":"Turn\nLane 8"}]
["Relief Chief Judge:",null,null,null,null,null,null,null,null,null,null,null,null,null,null,null,null,null,null,null,null,"/"]
["Start End",null,null,null,null,null,null,null,null,null,null,null,null,null,null,null,null,null,null,null,null,null,null,null,null,null,null,null,"Stroke Judges",null,null,null,null,null,null,null,"Turn End"]
[{"$f":"\"Lane \" & Meet!$B$5","v":"Lane 1"},null,null,null,null,null,null,null,null,null,null,null,null,null,null,null,{"$f":"\"Lane \" & IF(Meet!$B$5 = 1, Meet!$B$6, Meet!$B$6 -1)","v":"Lane 8"},null,null,null,null,null,null,null,null,null,null,null,null,null,null,null,{"$f":"\"Lane \" & Meet!$B$5","v":"Lane 1"},null,null,null,null,null,null,null,null,null,null,null,null,null,null,null,{"$f":"\"Lane \" & IF(Meet!$B$5 = 1, Meet!$B$6, Meet!$B$6 -1)","v":"Lane 8"}]
[null,null,null,null,null,null,null,null,null,null,null,null,null,null,null,null,null,null,null,null,null,null,null,null,null,null,null,null,"Turn Judges"]
["LN",null,"Start End",null,null,null,null,null,null,null,null,null,null,null,null,null,null,null,null,null,null,null,null,null,null,null,null,null,null,null,null,null,null,null,null,null,null,null,null,null,null,null,null,null,null,null,null,"Turn End",null,null,null,null,null,null,null,null,null,null,null,null,null,null,"LN"]
[null,null,"Left Chair",null,null,null,null,null,null,null,null,null,null,null,null,null,null,"Center Chair",null,null,null,null,null,null,null,null,null,null,null,null,null,null,"Right Chair"]
[null,null,"Watch / Button / Relay Take-off",null,null,null,null,null,null,null,null,null,null,null,null,null,null,"Recorder / Button / Bell",null,null,null,null,null,null,null,null,null,null,null,null,null,null,"Turn-Finish Judge / Button",null,null,null,null,null,null,null,null,null,null,null,null,null,null,"Turn Judge"]
[{"$f":"Meet!$B$5","v":1},null,null,null,null,null,null,null,null,null,null,null,null,null,null,null,null,null,null,null,null,null,null,null,null,null,null,null,null,null,null,null,null,null,null,null,null,null,null,null,null,null,null,null,null,null,null,null,null,null,null,null,null,null,null,null,null,null,null,null,null,null,{"$f":"Meet!$B$5","v":1}]
[{"$f":"A16+1","v":2},null,null,null,null,null,null,null,null,null,null,null,null,null,null,null,null,null,null,null,null,null,null,null,null,null,null,null,null,null,null,null,null,null,null,null,null,null,null,null,null,null,null,null,null,null,null,null,null,null,null,null,null,null,null,null,null,null,null,null,null,null,{"$f":"BK16+1","v":2}]
[{"$f":"A17+1","v":3},null,null,null,null,null,null,null,null,null,null,null,null,null,null,null,null,null,null,null,null,null,null,null,null,null,null,null,null,null,null,null,null,null,null,null,null,null,null,null,null,null,null,null,null,null,null,null,null,null,null,null,null,null,null,null,null,null,null,null,null,null,{"$f":"BK17+1","v":3}]
[4,null,null,null,null,null,null,null,null,null,null,null,null,null,null,null,null,null,null,null,null,null,null,null,null,null,null,null,null,null,null,null,null,null,null,null,null,null,null,null,null,null,null,null,null,null,null,null,null,null,null,null,null,null,null,null,null,null,null,null,null,null,4]
[5,null,null,null,null,null,null,null,null,null,null,null,null,null,null,null,null,null,null,null,null,null,null,null,null,null,null,null,null,null,null,null,null,null,null,null,null,null,null,null,null,null,null,null,null,null,null,null,null,null,null,null,null,null,null,null,null,null,null,null,null,null,5]
[6,null,null,null,null,null,null,null,null,null,null,null,null,null,null,null,null,null,null,null,null,null,null,null,null,null,null,null,null,null,null,null,null,null,null,null,null,null,null,null,null,null,null,null,null,null,null,null,null,null,null,null,null,null,null,null,null,null,null,null,null,null,6]
[7,null,null,null,null,null,null,null,null,null,null,null,null,null,null,null,null,null,null,null,null,null,null,null,null,null,null,null,null,null,null,null,null,null,null,null,null,null,null,null,null,null,null,null,null,null,null,null,null,null,null,null,null,null,null,null,null,null,null,null,null,null,7]
[8,null,null,null,null,null,null,null,null,null,null,null,null,null,null,null,null,null,null,null,null,null,null,null,null,null,null,null,null,null,null,null,null,null,null,null,null,null,null,null,null,null,null,null,null,null,null,null,null,null,null,null,null,null,null,null,null,null,null,null,null,null,8]
[9,null,null,null,null,null,null,null,null,null,null,null,null,null,null,null,null,null,null,null,null,null,null,null,null,null,null,null,null,null,null,null,null,null,null,null,null,null,null,null,null,null,null,null,null,null,null,null,null,null,null,null,null,null,null,null,null,null,null,null,null,null,9]
[10,null,null,null,null,null,null,null,null,null,null,null,null,null,null,null,null,null,null,null,null,null,null,null,null,null,null,null,null,null,null,null,null,null,null,null,null,null,null,null,null,null,null,null,null,null,null,null,null,null,null,null,null,null,null,null,null,null,null,null,null,null,10]
[null,null,null,"Left Chair Relief",null,null,null,null,null,null,null,null,null,null,null,null,null,"Center Chair Relief",null,null,null,null,null,null,null,null,null,null,null,null,null,null,"Right Chair Relief",null,null,null,null,null,null,null,null,null,null,null,null,null,null,"Turn End Relief"]
["Team 1",null,null,null,null,null,null,null,null,null,null,null,null,null,null,null,null,null,null,null,null,null,null,null,null,null,null,null,null,null,null,null,null,null,null,null,null,null,null,null,null,null,null,null,null,null,null,null,null,null,null,null,null,null,null,null,null,null,null,null,null,"Team 1"]
["Team 2",null,null,null,null,null,null,null,null,null,null,null,null,null,null,null,null,null,null,null,null,null,null,null,null,null,null,null,null,null,null,null,null,null,null,null,null,null,null,null,null,null,null,null,null,null,null,null,null,null,null,null,null,null,null,null,null,null,null,null,null,"Team 2"]
["Team 3",null,null,null,null,null,null,null,null,null,null,null,null,null,null,null,null,null,null,null,null,null,null,null,null,null,null,null,null,null,null,null,null,null,null,null,null,null,null,null,null,null,null,null,null,null,null,null,null,null,null,null,null,null,null,null,null,null,null,null,null,"Team 3"]
["Team 4 ",null,null,null,null,null,null,null,null,null,null,null,null,null,null,null,null,null,null,null,null,null,null,null,null,null,null,null,null,null,null,null,null,null,null,null,null,null,null,null,null,null,null,null,null,null,null,null,null,null,null,null,null,null,null,null,null,null,null,null,null,"Team 4 "]
[null,null,null,null,null,null,null,"Stroke Relief",null,null,null,null,null,null,null,null,null,null,null,null,null,null,null,null,null,null,null,null,null,"Reserve Officials",null,null,null,null,null,null,null,null,null,null,null,null,null,null,null,null,null,null,"SIDE Relay Take-Off Judges"]
[{"$f":"\"Start Lane \"  & Meet!$B$5","v":"Start Lane 1"},null,null,null,null,null,null,null,null,null,null,null,null,null,null,null,null,null,null,null,null,null,{"$f":"\"Start Lane \"  & Meet!$B$5","v":"Start Lane 1"},null,null,null,null,null,null,null,null,null,null,null,null,null,null,null,null,null,null,null,null,"Lanes 1 - 2"]
[{"$f":"\"Start Lane \" & IF(Meet!$B$5 = 1, Meet!$B$6, Meet!$B$6 -1)","v":"Start Lane 8"},null,null,null,null,null,null,null,null,null,null,null,null,null,null,null,null,null,null,null,null,null,{"$f":"\"Start Lane \" & IF(Meet!$B$5 = 1, Meet!$B$6, Meet!$B$6 -1)","v":"Start Lane 8"},null,null,null,null,null,null,null,null,null,null,null,null,null,null,null,null,null,null,null,null,"Lanes 3 - 4"]
[{"$f":"\"Turn Lane \"  & Meet!$B$5","v":"Turn Lane 1"},null,null,null,null,null,null,null,null,null,null,null,null,null,null,null,null,null,null,null,null,null,{"$f":"\"Turn Lane \"  & Meet!$B$5","v":"Turn Lane 1"},null,null,null,null,null,null,null,null,null,null,null,null,null,null,null,null,null,null,null,null,"Lanes 5 - 6"]
[{"$f":"\"Turn Lane \" & IF(Meet!$B$5 = 1, Meet!$B$6, Meet!$B$6 -1)","v":"Turn Lane 8"},null,null,null,null,null,null,null,null,null,null,null,null,null,null,null,null,null,null,null,null,null,{"$f":"\"Turn Lane \" & IF(Meet!$B$5 = 1, Meet!$B$6, Meet!$B$6 -1)","v":"Turn Lane 8"},null,null,null,null,null,null,null,null,null,null,null,null,null,null,null,null,null,null,null,null,"Lanes 7 - 8"]

{"sheet":"Session 9","index":16,"n_rows":35,"n_cols":63,"rows_kept":35,"cut":false,"hidden":false,"merged":[[34,0,34,6],[34,7,34,21],[34,22,34,28],[34,29,34,42],[34,43,34,47],[34,48,34,63],[33,0,33,6],[33,7,33,21],[33,22,33,28],[33,29,33,42],[33,43,33,47],[33,48,33,63],[32,0,32,6],[32,7,32,21],[32,22,32,28],[32,29,32,42],[32,43,32,47],[32,48,32,63],[31,0,31,6],[31,7,31,21],[31,22,31,28],[31,29,31,42],[31,43,31,47],[31,48,31,63],[30,0,30,6],[30,7,30,21],[30,22,30,28],[30,29,30,42],[30,43,30,47],[30,48,30,63],[29,0,29,2],[29,3,29,16],[29,17,29,31],[29,32,29,46],[29,47,29,60],[29,61,29,63],[28,0,28,2],[28,3,28,16],[28,17,28,31],[28,32,28,46],[28,47,28,60],[28,61,28,63],[26,61,26,63],[27,0,27,2],[27,3,27,16],[27,17,27,31],[27,32,27,46],[27,47,27,60],[27,61,27,63],[25,0,25,2],[25,3,25,16],[25,17,25,31],[25,32,25,46],[25,47,25,60],[26,0,26,2],[26,3,26,16],[26,17,26,31],[26,32,26,46],[26,47,26,60],[24,0,24,1],[24,2,24,16],[24,17,24,31],[24,32,24,46],[24,47,24,61],[24,62,24,63],[23,0,23,1],[23,2,23,16],[23,17,23,31],[23,32,23,46],[23,47,23,61],[23,62,23,63],[22,0,22,1],[22,2,22,16],[22,17,22,31],[22,32,22,46],[22,47,22,61],[22,62,22,63],[21,0,21,1],[21,2,21,16],[21,17,21,31],[21,32,21,46],[21,47,21,61],[21,62,21,63],[20,0,20,1],[20,2,20,16],[20,17,20,31],[20,32,20,46],[20,47,20,61],[20,62,20,63],[19,0,19,1],[19,2,19,16],[19,17,19,31],[19,32,19,46],[19,47,19,61],[19,62,19,63],[18,0,18,1],[18,2,18,16],[18,17,18,31],[18,32,18,46],[18,47,18,61],[18,62,18,63],[17,0,17,1],[17,2,17,16],[17,17,17,31],[17,32,17,46],[17,47,17,61],[17,62,17,63],[16,0,16,1],[16,2,16,16],[16,17,16,31],[16,32,16,46],[16,47,16,61],[16,62,16,63],[15,0,15,1],[15,2,15,16],[15,17,15,31],[15,32,15,46],[15,47,15,61],[15,62,15,63],[13,17,13,31],[13,32,13,46],[14,2,14,16],[14,17,14,31],[14,32,14,46],[14,47,14,61],[10,48,10,52],[10,53,10,63],[11,0,11,27],[11,28,11,35],[11,36,11,63],[12,0,14,1],[12,2,12,46],[12,47,13,61],[12,62,14,63],[13,2,13,16],[10,0,10,4],[10,5,10,15],[10,16,10,20],[10,21,10,31],[10,32,10,36],[10,37,10,47],[8,0,8,9],[8,10,8,20],[8,22,8,32],[8,33,8,63],[9,0,9,27],[9,28,9,35],[9,36,9,63],[6,0,6,27],[6,28,6,35],[6,36,6,63],[7,0,7,4],[7,5,7,15],[7,16,7,20],[7,21,7,31],[7,32,7,36],[7,37,7,47],[7,48,7,52],[4,22,4,31],[4,35,4,47],[4,49,4,61],[5,0,5,9],[5,10,5,22],[5,23,5,31],[5,35,5,47],[5,49,5,61],[7,53,7,63],[0,0,1,2],[0,4,0,39],[0,40,0,43],[0,44,0,47],[0,48,0,63],[1,4,1,39],[1,40,1,63],[2,57,2,63],[3,0,3,7],[3,8,3,10],[3,11,3,20],[3,22,3,31],[3,32,5,34],[3,35,3,47],[3,49,3,61],[3,62,5,63],[4,0,4,9],[2,0,2,7],[2,8,2,17],[2,18,2,29],[2,30,2,37],[2,39,2,46],[2,48,2,55],[4,11,4,20]]}
[null,null,null,null,{"$f":"Meet!B1","v":"meet name"},null,null,null,null,null,null,null,null,null,null,null,null,null,null,null,null,null,null,null,null,null,null,null,null,null,null,null,null,null,null,null,null,null,null,null,"Session",null,null,null," 9",null,null,null,{"$f":"LOOKUP(AS1,Sessions!A:A,Sessions!C:C)","v":"Prelims"}]
[null,null,null,null,{"$f":"Meet!B4","v":"meet location"},null,null,null,null,null,null,null,null,null,null,null,null,null,null,null,null,null,null,null,null,null,null,null,null,null,null,null,null,null,null,null,null,null,null,null,{"$f":"Meet!B2 + DAY(LOOKUP(AS1,Sessions!A:A,Sessions!B:B) - 1)","v":"2015-08-10"}]
["Meet  Referee - ",null,null,null,null,null,null,null,{"$f":"Officials!A3","v":"meet ref"},null,null,null,null,null,null,null,null,null,"Administrative Referees -",null,null,null,null,null,null,null,null,null,null,null,null,null,null,null,null,null,null,null,"/",null,null,null,null,null,null,null,null,"/"]
[" Deck Referees - ",null,null,null,null,null,null,null,null,null,null,null,null,null,null,null,null,null,null,null,null,"/",null,null,null,null,null,null,null,null,null,null,null,null,null,"Head Starter",null,null,null,null,null,null,null,null,null,null,null,null,"--"]
[null,null,null,null,null,null,null,null,null,null,null,null,null,null,null,null,null,null,null,null,null,"/",null,null,null,null,null,null,null,null,null,null,null,null,null,null,null,null,null,null,null,null,null,null,null,null,null,null,"/"]
["Lead Chief Judge - "]
[null,null,null,null,null,null,null,null,null,null,null,null,null,null,null,null,null,null,null,null,null,null,null,null,null,null,null,null,"Chief Judges"]
[{"$f":"\"Start\"  & CHAR(10) & \"Lane \" & Meet!$B$5","v":"Start\nLane 1"},null,null,null,null,null,null,null,null,null,null,null,null,null,null,null,{"$f":"\"Start\"  & CHAR(10) & \"Lane \" & IF(Meet!$B$5 = 1, Meet!$B$6, Meet!$B$6 -1)","v":"Start\nLane 8"},null,null,null,null,null,null,null,null,null,null,null,null,null,null,null,{"$f":"\"Turn\"  & CHAR(10) & \"Lane \" & Meet!$B$5","v":"Turn\nLane 1"},null,null,null,null,null,null,null,null,null,null,null,null,null,null,null,{"$f":"\"Turn\"  & CHAR(10) & \"Lane \" & IF(Meet!$B$5 = 1, Meet!$B$6, Meet!$B$6 -1)","v":"Turn\nLane 8"}]
["Relief Chief Judge:",null,null,null,null,null,null,null,null,null,null,null,null,null,null,null,null,null,null,null,null,"/"]
["Start End",null,null,null,null,null,null,null,null,null,null,null,null,null,null,null,null,null,null,null,null,null,null,null,null,null,null,null,"Stroke Judges",null,null,null,null,null,null,null,"Turn End"]
[{"$f":"\"Lane \" & Meet!$B$5","v":"Lane 1"},null,null,null,null,null,null,null,null,null,null,null,null,null,null,null,{"$f":"\"Lane \" & IF(Meet!$B$5 = 1, Meet!$B$6, Meet!$B$6 -1)","v":"Lane 8"},null,null,null,null,null,null,null,null,null,null,null,null,null,null,null,{"$f":"\"Lane \" & Meet!$B$5","v":"Lane 1"},null,null,null,null,null,null,null,null,null,null,null,null,null,null,null,{"$f":"\"Lane \" & IF(Meet!$B$5 = 1, Meet!$B$6, Meet!$B$6 -1)","v":"Lane 8"}]
[null,null,null,null,null,null,null,null,null,null,null,null,null,null,null,null,null,null,null,null,null,null,null,null,null,null,null,null,"Turn Judges"]
["LN",null,"Start End",null,null,null,null,null,null,null,null,null,null,null,null,null,null,null,null,null,null,null,null,null,null,null,null,null,null,null,null,null,null,null,null,null,null,null,null,null,null,null,null,null,null,null,null,"Turn End",null,null,null,null,null,null,null,null,null,null,null,null,null,null,"LN"]
[null,null,"Left Chair",null,null,null,null,null,null,null,null,null,null,null,null,null,null,"Center Chair",null,null,null,null,null,null,null,null,null,null,null,null,null,null,"Right Chair"]
[null,null,"Watch / Button / Relay Take-off",null,null,null,null,null,null,null,null,null,null,null,null,null,null,"Recorder / Button / Bell",null,null,null,null,null,null,null,null,null,null,null,null,null,null,"Turn-Finish Judge / Button",null,null,null,null,null,null,null,null,null,null,null,null,null,null,"Turn Judge"]
[{"$f":"Meet!$B$5","v":1},null,null,null,null,null,null,null,null,null,null,null,null,null,null,null,null,null,null,null,null,null,null,null,null,null,null,null,null,null,null,null,null,null,null,null,null,null,null,null,null,null,null,null,null,null,null,null,null,null,null,null,null,null,null,null,null,null,null,null,null,null,{"$f":"Meet!$B$5","v":1}]
[{"$f":"A16+1","v":2},null,null,null,null,null,null,null,null,null,null,null,null,null,null,null,null,null,null,null,null,null,null,null,null,null,null,null,null,null,null,null,null,null,null,null,null,null,null,null,null,null,null,null,null,null,null,null,null,null,null,null,null,null,null,null,null,null,null,null,null,null,{"$f":"BK16+1","v":2}]
[{"$f":"A17+1","v":3},null,null,null,null,null,null,null,null,null,null,null,null,null,null,null,null,null,null,null,null,null,null,null,null,null,null,null,null,null,null,null,null,null,null,null,null,null,null,null,null,null,null,null,null,null,null,null,null,null,null,null,null,null,null,null,null,null,null,null,null,null,{"$f":"BK17+1","v":3}]
[4,null,null,null,null,null,null,null,null,null,null,null,null,null,null,null,null,null,null,null,null,null,null,null,null,null,null,null,null,null,null,null,null,null,null,null,null,null,null,null,null,null,null,null,null,null,null,null,null,null,null,null,null,null,null,null,null,null,null,null,null,null,4]
[5,null,null,null,null,null,null,null,null,null,null,null,null,null,null,null,null,null,null,null,null,null,null,null,null,null,null,null,null,null,null,null,null,null,null,null,null,null,null,null,null,null,null,null,null,null,null,null,null,null,null,null,null,null,null,null,null,null,null,null,null,null,5]
[6,null,null,null,null,null,null,null,null,null,null,null,null,null,null,null,null,null,null,null,null,null,null,null,null,null,null,null,null,null,null,null,null,null,null,null,null,null,null,null,null,null,null,null,null,null,null,null,null,null,null,null,null,null,null,null,null,null,null,null,null,null,6]
[7,null,null,null,null,null,null,null,null,null,null,null,null,null,null,null,null,null,null,null,null,null,null,null,null,null,null,null,null,null,null,null,null,null,null,null,null,null,null,null,null,null,null,null,null,null,null,null,null,null,null,null,null,null,null,null,null,null,null,null,null,null,7]
[8,null,null,null,null,null,null,null,null,null,null,null,null,null,null,null,null,null,null,null,null,null,null,null,null,null,null,null,null,null,null,null,null,null,null,null,null,null,null,null,null,null,null,null,null,null,null,null,null,null,null,null,null,null,null,null,null,null,null,null,null,null,8]
[9,null,null,null,null,null,null,null,null,null,null,null,null,null,null,null,null,null,null,null,null,null,null,null,null,null,null,null,null,null,null,null,null,null,null,null,null,null,null,null,null,null,null,null,null,null,null,null,null,null,null,null,null,null,null,null,null,null,null,null,null,null,9]
[10,null,null,null,null,null,null,null,null,null,null,null,null,null,null,null,null,null,null,null,null,null,null,null,null,null,null,null,null,null,null,null,null,null,null,null,null,null,null,null,null,null,null,null,null,null,null,null,null,null,null,null,null,null,null,null,null,null,null,null,null,null,10]
[null,null,null,"Left Chair Relief",null,null,null,null,null,null,null,null,null,null,null,null,null,"Center Chair Relief",null,null,null,null,null,null,null,null,null,null,null,null,null,null,"Right Chair Relief",null,null,null,null,null,null,null,null,null,null,null,null,null,null,"Turn End Relief"]
["Team 1",null,null,null,null,null,null,null,null,null,null,null,null,null,null,null,null,null,null,null,null,null,null,null,null,null,null,null,null,null,null,null,null,null,null,null,null,null,null,null,null,null,null,null,null,null,null,null,null,null,null,null,null,null,null,null,null,null,null,null,null,"Team 1"]
["Team 2",null,null,null,null,null,null,null,null,null,null,null,null,null,null,null,null,null,null,null,null,null,null,null,null,null,null,null,null,null,null,null,null,null,null,null,null,null,null,null,null,null,null,null,null,null,null,null,null,null,null,null,null,null,null,null,null,null,null,null,null,"Team 2"]
["Team 3",null,null,null,null,null,null,null,null,null,null,null,null,null,null,null,null,null,null,null,null,null,null,null,null,null,null,null,null,null,null,null,null,null,null,null,null,null,null,null,null,null,null,null,null,null,null,null,null,null,null,null,null,null,null,null,null,null,null,null,null,"Team 3"]
["Team 4 ",null,null,null,null,null,null,null,null,null,null,null,null,null,null,null,null,null,null,null,null,null,null,null,null,null,null,null,null,null,null,null,null,null,null,null,null,null,null,null,null,null,null,null,null,null,null,null,null,null,null,null,null,null,null,null,null,null,null,null,null,"Team 4 "]
[null,null,null,null,null,null,null,"Stroke Relief",null,null,null,null,null,null,null,null,null,null,null,null,null,null,null,null,null,null,null,null,null,"Reserve Officials",null,null,null,null,null,null,null,null,null,null,null,null,null,null,null,null,null,null,"SIDE Relay Take-Off Judges"]
[{"$f":"\"Start Lane \"  & Meet!$B$5","v":"Start Lane 1"},null,null,null,null,null,null,null,null,null,null,null,null,null,null,null,null,null,null,null,null,null,{"$f":"\"Start Lane \"  & Meet!$B$5","v":"Start Lane 1"},null,null,null,null,null,null,null,null,null,null,null,null,null,null,null,null,null,null,null,null,"Lanes 1 - 2"]
[{"$f":"\"Start Lane \" & IF(Meet!$B$5 = 1, Meet!$B$6, Meet!$B$6 -1)","v":"Start Lane 8"},null,null,null,null,null,null,null,null,null,null,null,null,null,null,null,null,null,null,null,null,null,{"$f":"\"Start Lane \" & IF(Meet!$B$5 = 1, Meet!$B$6, Meet!$B$6 -1)","v":"Start Lane 8"},null,null,null,null,null,null,null,null,null,null,null,null,null,null,null,null,null,null,null,null,"Lanes 3 - 4"]
[{"$f":"\"Turn Lane \"  & Meet!$B$5","v":"Turn Lane 1"},null,null,null,null,null,null,null,null,null,null,null,null,null,null,null,null,null,null,null,null,null,{"$f":"\"Turn Lane \"  & Meet!$B$5","v":"Turn Lane 1"},null,null,null,null,null,null,null,null,null,null,null,null,null,null,null,null,null,null,null,null,"Lanes 5 - 6"]
[{"$f":"\"Turn Lane \" & IF(Meet!$B$5 = 1, Meet!$B$6, Meet!$B$6 -1)","v":"Turn Lane 8"},null,null,null,null,null,null,null,null,null,null,null,null,null,null,null,null,null,null,null,null,null,{"$f":"\"Turn Lane \" & IF(Meet!$B$5 = 1, Meet!$B$6, Meet!$B$6 -1)","v":"Turn Lane 8"},null,null,null,null,null,null,null,null,null,null,null,null,null,null,null,null,null,null,null,null,"Lanes 7 - 8"]

{"sheet":"Session TT5","index":17,"n_rows":35,"n_cols":63,"rows_kept":35,"cut":false,"hidden":false,"merged":[[34,0,34,6],[34,7,34,21],[34,22,34,28],[34,29,34,42],[34,43,34,47],[34,48,34,63],[33,0,33,6],[33,7,33,21],[33,22,33,28],[33,29,33,42],[33,43,33,47],[33,48,33,63],[32,0,32,6],[32,7,32,21],[32,22,32,28],[32,29,32,42],[32,43,32,47],[32,48,32,63],[31,0,31,6],[31,7,31,21],[31,22,31,28],[31,29,31,42],[31,43,31,47],[31,48,31,63],[30,0,30,6],[30,7,30,21],[30,22,30,28],[30,29,30,42],[30,43,30,47],[30,48,30,63],[29,0,29,2],[29,3,29,16],[29,17,29,31],[29,32,29,46],[29,47,29,60],[29,61,29,63],[28,0,28,2],[28,3,28,16],[28,17,28,31],[28,32,28,46],[28,47,28,60],[28,61,28,63],[26,61,26,63],[27,0,27,2],[27,3,27,16],[27,17,27,31],[27,32,27,46],[27,47,27,60],[27,61,27,63],[25,0,25,2],[25,3,25,16],[25,17,25,31],[25,32,25,46],[25,47,25,60],[26,0,26,2],[26,3,26,16],[26,17,26,31],[26,32,26,46],[26,47,26,60],[24,0,24,1],[24,2,24,16],[24,17,24,31],[24,32,24,46],[24,47,24,61],[24,62,24,63],[23,0,23,1],[23,2,23,16],[23,17,23,31],[23,32,23,46],[23,47,23,61],[23,62,23,63],[22,0,22,1],[22,2,22,16],[22,17,22,31],[22,32,22,46],[22,47,22,61],[22,62,22,63],[21,0,21,1],[21,2,21,16],[21,17,21,31],[21,32,21,46],[21,47,21,61],[21,62,21,63],[20,0,20,1],[20,2,20,16],[20,17,20,31],[20,32,20,46],[20,47,20,61],[20,62,20,63],[19,0,19,1],[19,2,19,16],[19,17,19,31],[19,32,19,46],[19,47,19,61],[19,62,19,63],[18,0,18,1],[18,2,18,16],[18,17,18,31],[18,32,18,46],[18,47,18,61],[18,62,18,63],[17,0,17,1],[17,2,17,16],[17,17,17,31],[17,32,17,46],[17,47,17,61],[17,62,17,63],[16,0,16,1],[16,2,16,16],[16,17,16,31],[16,32,16,46],[16,47,16,61],[16,62,16,63],[15,0,15,1],[15,2,15,16],[15,17,15,31],[15,32,15,46],[15,47,15,61],[15,62,15,63],[13,17,13,31],[13,32,13,46],[14,2,14,16],[14,17,14,31],[14,32,14,46],[14,47,14,61],[10,48,10,52],[10,53,10,63],[11,0,11,27],[11,28,11,35],[11,36,11,63],[12,0,14,1],[12,2,12,46],[12,47,13,61],[12,62,14,63],[13,2,13,16],[10,0,10,4],[10,5,10,15],[10,16,10,20],[10,21,10,31],[10,32,10,36],[10,37,10,47],[8,0,8,9],[8,10,8,20],[8,22,8,32],[8,33,8,63],[9,0,9,27],[9,28,9,35],[9,36,9,63],[6,0,6,27],[6,28,6,35],[6,36,6,63],[7,0,7,4],[7,5,7,15],[7,16,7,20],[7,21,7,31],[7,32,7,36],[7,37,7,47],[7,48,7,52],[4,22,4,31],[4,35,4,47],[4,49,4,61],[5,0,5,9],[5,10,5,22],[5,23,5,31],[5,35,5,47],[5,49,5,61],[7,53,7,63],[0,0,1,2],[0,4,0,39],[0,40,0,43],[0,44,0,47],[0,48,0,63],[1,4,1,39],[1,40,1,63],[2,57,2,63],[3,0,3,7],[3,8,3,10],[3,11,3,20],[3,22,3,31],[3,32,5,34],[3,35,3,47],[3,49,3,61],[3,62,5,63],[4,0,4,9],[2,0,2,7],[2,8,2,17],[2,18,2,29],[2,30,2,37],[2,39,2,46],[2,48,2,55],[4,11,4,20]]}
[null,null,null,null,{"$f":"Meet!B1","v":"meet name"},null,null,null,null,null,null,null,null,null,null,null,null,null,null,null,null,null,null,null,null,null,null,null,null,null,null,null,null,null,null,null,null,null,null,null,"Session",null,null,null,"TT5",null,null,null,{"$f":"LOOKUP(AS1,Sessions!A:A,Sessions!C:C)","v":"Time Trials - 5th Day"}]
[null,null,null,null,{"$f":"Meet!B4","v":"meet location"},null,null,null,null,null,null,null,null,null,null,null,null,null,null,null,null,null,null,null,null,null,null,null,null,null,null,null,null,null,null,null,null,null,null,null,{"$f":"Meet!B2 + DAY(LOOKUP(AS1,Sessions!A:A,Sessions!B:B) - 1)","v":"2015-08-10"}]
["Meet  Referee - ",null,null,null,null,null,null,null,{"$f":"Officials!A23","v":" TTR"},null,null,null,null,null,null,null,null,null,"Administrative Referees -",null,null,null,null,null,null,null,null,null,null,null,null,null,null,null,null,null,null,null,"/",null,null,null,null,null,null,null,null,"/"]
[" Deck Referees - ",null,null,null,null,null,null,null,null,null,null,null,null,null,null,null,null,null,null,null,null,"/",null,null,null,null,null,null,null,null,null,null,null,null,null,"Head Starter",null,null,null,null,null,null,null,null,null,null,null,null,"--"]
[null,null,null,null,null,null,null,null,null,null,"/",null,null,null,null,null,null,null,null,null,null,"/",null,null,null,null,null,null,null,null,null,null,null,null,null,null,null,null,null,null,null,null,null,null,null,null,null,null,"/"]
["Lead Chief Judge - ",null,null,null,null,null,null,null,null,null,null,null,null,null,null,null,null,null,null,null,null,null,null,null,null,null,null,null,null,null,null,null,null,null,null,null,null,null,null,null,null,null,null,null,null,null,null,null,"/"]
[null,null,null,null,null,null,null,null,null,null,null,null,null,null,null,null,null,null,null,null,null,null,null,null,null,null,null,null,"Chief Judges"]
[{"$f":"\"Start\"  & CHAR(10) & \"Lane \" & Meet!$B$5","v":"Start\nLane 1"},null,null,null,null,null,null,null,null,null,null,null,null,null,null,null,{"$f":"\"Start\"  & CHAR(10) & \"Lane \" & IF(Meet!$B$5 = 1, Meet!$B$6, Meet!$B$6 -1)","v":"Start\nLane 8"},null,null,null,null,null,null,null,null,null,null,null,null,null,null,null,{"$f":"\"Turn\"  & CHAR(10) & \"Lane \" & Meet!$B$5","v":"Turn\nLane 1"},null,null,null,null,null,null,null,null,null,null,null,null,null,null,null,{"$f":"\"Turn\"  & CHAR(10) & \"Lane \" & IF(Meet!$B$5 = 1, Meet!$B$6, Meet!$B$6 -1)","v":"Turn\nLane 8"}]
["Relief Chief Judge:",null,null,null,null,null,null,null,null,null,null,null,null,null,null,null,null,null,null,null,null,"/"]
["Start End",null,null,null,null,null,null,null,null,null,null,null,null,null,null,null,null,null,null,null,null,null,null,null,null,null,null,null,"Stroke Judges",null,null,null,null,null,null,null,"Turn End"]
[{"$f":"\"Lane \" & Meet!$B$5","v":"Lane 1"},null,null,null,null,null,null,null,null,null,null,null,null,null,null,null,{"$f":"\"Lane \" & IF(Meet!$B$5 = 1, Meet!$B$6, Meet!$B$6 -1)","v":"Lane 8"},null,null,null,null,null,null,null,null,null,null,null,null,null,null,null,{"$f":"\"Lane \" & Meet!$B$5","v":"Lane 1"},null,null,null,null,null,null,null,null,null,null,null,null,null,null,null,{"$f":"\"Lane \" & IF(Meet!$B$5 = 1, Meet!$B$6, Meet!$B$6 -1)","v":"Lane 8"}]
[null,null,null,null,null,null,null,null,null,null,null,null,null,null,null,null,null,null,null,null,null,null,null,null,null,null,null,null,"Turn Judges"]
["LN",null,"Start End",null,null,null,null,null,null,null,null,null,null,null,null,null,null,null,null,null,null,null,null,null,null,null,null,null,null,null,null,null,null,null,null,null,null,null,null,null,null,null,null,null,null,null,null,"Turn End",null,null,null,null,null,null,null,null,null,null,null,null,null,null,"LN"]
[null,null,"Left Chair",null,null,null,null,null,null,null,null,null,null,null,null,null,null,"Center Chair",null,null,null,null,null,null,null,null,null,null,null,null,null,null,"Right Chair"]
[null,null,"Watch / Button / Relay Take-off",null,null,null,null,null,null,null,null,null,null,null,null,null,null,"Recorder / Button / Bell",null,null,null,null,null,null,null,null,null,null,null,null,null,null,"Turn-Finish Judge / Button",null,null,null,null,null,null,null,null,null,null,null,null,null,null,"Turn Judge"]
[{"$f":"Meet!$B$5","v":1},null,null,null,null,null,null,null,null,null,null,null,null,null,null,null,null,null,null,null,null,null,null,null,null,null,null,null,null,null,null,null,null,null,null,null,null,null,null,null,null,null,null,null,null,null,null,null,null,null,null,null,null,null,null,null,null,null,null,null,null,null,{"$f":"Meet!$B$5","v":1}]
[{"$f":"A16+1","v":2},null,null,null,null,null,null,null,null,null,null,null,null,null,null,null,null,null,null,null,null,null,null,null,null,null,null,null,null,null,null,null,null,null,null,null,null,null,null,null,null,null,null,null,null,null,null,null,null,null,null,null,null,null,null,null,null,null,null,null,null,null,{"$f":"BK16+1","v":2}]
[{"$f":"A17+1","v":3},null,null,null,null,null,null,null,null,null,null,null,null,null,null,null,null,null,null,null,null,null,null,null,null,null,null,null,null,null,null,null,null,null,null,null,null,null,null,null,null,null,null,null,null,null,null,null,null,null,null,null,null,null,null,null,null,null,null,null,null,null,{"$f":"BK17+1","v":3}]
[4,null,null,null,null,null,null,null,null,null,null,null,null,null,null,null,null,null,null,null,null,null,null,null,null,null,null,null,null,null,null,null,null,null,null,null,null,null,null,null,null,null,null,null,null,null,null,null,null,null,null,null,null,null,null,null,null,null,null,null,null,null,4]
[5,null,null,null,null,null,null,null,null,null,null,null,null,null,null,null,null,null,null,null,null,null,null,null,null,null,null,null,null,null,null,null,null,null,null,null,null,null,null,null,null,null,null,null,null,null,null,null,null,null,null,null,null,null,null,null,null,null,null,null,null,null,5]
[6,null,null,null,null,null,null,null,null,null,null,null,null,null,null,null,null,null,null,null,null,null,null,null,null,null,null,null,null,null,null,null,null,null,null,null,null,null,null,null,null,null,null,null,null,null,null,null,null,null,null,null,null,null,null,null,null,null,null,null,null,null,6]
[7,null,null,null,null,null,null,null,null,null,null,null,null,null,null,null,null,null,null,null,null,null,null,null,null,null,null,null,null,null,null,null,null,null,null,null,null,null,null,null,null,null,null,null,null,null,null,null,null,null,null,null,null,null,null,null,null,null,null,null,null,null,7]
[8,null,null,null,null,null,null,null,null,null,null,null,null,null,null,null,null,null,null,null,null,null,null,null,null,null,null,null,null,null,null,null,null,null,null,null,null,null,null,null,null,null,null,null,null,null,null,null,null,null,null,null,null,null,null,null,null,null,null,null,null,null,8]
[9,null,null,null,null,null,null,null,null,null,null,null,null,null,null,null,null,null,null,null,null,null,null,null,null,null,null,null,null,null,null,null,null,null,null,null,null,null,null,null,null,null,null,null,null,null,null,null,null,null,null,null,null,null,null,null,null,null,null,null,null,null,9]
[10,null,null,null,null,null,null,null,null,null,null,null,null,null,null,null,null,null,null,null,null,null,null,null,null,null,null,null,null,null,null,null,null,null,null,null,null,null,null,null,null,null,null,null,null,null,null,null,null,null,null,null,null,null,null,null,null,null,null,null,null,null,10]
[null,null,null,"Left Chair Relief",null,null,null,null,null,null,null,null,null,null,null,null,null,"Center Chair Relief",null,null,null,null,null,null,null,null,null,null,null,null,null,null,"Right Chair Relief",null,null,null,null,null,null,null,null,null,null,null,null,null,null,"Turn End Relief"]
["Team 1",null,null,null,null,null,null,null,null,null,null,null,null,null,null,null,null,null,null,null,null,null,null,null,null,null,null,null,null,null,null,null,null,null,null,null,null,null,null,null,null,null,null,null,null,null,null,null,null,null,null,null,null,null,null,null,null,null,null,null,null,"Team 1"]
["Team 2",null,null,null,null,null,null,null,null,null,null,null,null,null,null,null,null,null,null,null,null,null,null,null,null,null,null,null,null,null,null,null,null,null,null,null,null,null,null,null,null,null,null,null,null,null,null,null,null,null,null,null,null,null,null,null,null,null,null,null,null,"Team 2"]
["Team 3",null,null,null,null,null,null,null,null,null,null,null,null,null,null,null,null,null,null,null,null,null,null,null,null,null,null,null,null,null,null,null,null,null,null,null,null,null,null,null,null,null,null,null,null,null,null,null,null,null,null,null,null,null,null,null,null,null,null,null,null,"Team 3"]
["Team 4 ",null,null,null,null,null,null,null,null,null,null,null,null,null,null,null,null,null,null,null,null,null,null,null,null,null,null,null,null,null,null,null,null,null,null,null,null,null,null,null,null,null,null,null,null,null,null,null,null,null,null,null,null,null,null,null,null,null,null,null,null,"Team 4 "]
[null,null,null,null,null,null,null,"Stroke Relief",null,null,null,null,null,null,null,null,null,null,null,null,null,null,null,null,null,null,null,null,null,"Reserve Officials",null,null,null,null,null,null,null,null,null,null,null,null,null,null,null,null,null,null,"SIDE Relay Take-Off Judges"]
[{"$f":"\"Start Lane \"  & Meet!$B$5","v":"Start Lane 1"},null,null,null,null,null,null,null,null,null,null,null,null,null,null,null,null,null,null,null,null,null,{"$f":"\"Start Lane \"  & Meet!$B$5","v":"Start Lane 1"},null,null,null,null,null,null,null,null,null,null,null,null,null,null,null,null,null,null,null,null,"Lanes 1 - 2"]
[{"$f":"\"Start Lane \" & IF(Meet!$B$5 = 1, Meet!$B$6, Meet!$B$6 -1)","v":"Start Lane 8"},null,null,null,null,null,null,null,null,null,null,null,null,null,null,null,null,null,null,null,null,null,{"$f":"\"Start Lane \" & IF(Meet!$B$5 = 1, Meet!$B$6, Meet!$B$6 -1)","v":"Start Lane 8"},null,null,null,null,null,null,null,null,null,null,null,null,null,null,null,null,null,null,null,null,"Lanes 3 - 4"]
[{"$f":"\"Turn Lane \"  & Meet!$B$5","v":"Turn Lane 1"},null,null,null,null,null,null,null,null,null,null,null,null,null,null,null,null,null,null,null,null,null,{"$f":"\"Turn Lane \"  & Meet!$B$5","v":"Turn Lane 1"},null,null,null,null,null,null,null,null,null,null,null,null,null,null,null,null,null,null,null,null,"Lanes 5 - 6"]
[{"$f":"\"Turn Lane \" & IF(Meet!$B$5 = 1, Meet!$B$6, Meet!$B$6 -1)","v":"Turn Lane 8"},null,null,null,null,null,null,null,null,null,null,null,null,null,null,null,null,null,null,null,null,null,{"$f":"\"Turn Lane \" & IF(Meet!$B$5 = 1, Meet!$B$6, Meet!$B$6 -1)","v":"Turn Lane 8"},null,null,null,null,null,null,null,null,null,null,null,null,null,null,null,null,null,null,null,null,"Lanes 7 - 8"]

{"sheet":"Session 10","index":18,"n_rows":35,"n_cols":63,"rows_kept":35,"cut":false,"hidden":false,"merged":[[34,0,34,6],[34,7,34,21],[34,22,34,28],[34,29,34,42],[34,43,34,47],[34,48,34,63],[33,0,33,6],[33,7,33,21],[33,22,33,28],[33,29,33,42],[33,43,33,47],[33,48,33,63],[32,0,32,6],[32,7,32,21],[32,22,32,28],[32,29,32,42],[32,43,32,47],[32,48,32,63],[31,0,31,6],[31,7,31,21],[31,22,31,28],[31,29,31,42],[31,43,31,47],[31,48,31,63],[30,0,30,6],[30,7,30,21],[30,22,30,28],[30,29,30,42],[30,43,30,47],[30,48,30,63],[29,0,29,2],[29,3,29,16],[29,17,29,31],[29,32,29,46],[29,47,29,60],[29,61,29,63],[28,0,28,2],[28,3,28,16],[28,17,28,31],[28,32,28,46],[28,47,28,60],[28,61,28,63],[26,61,26,63],[27,0,27,2],[27,3,27,16],[27,17,27,31],[27,32,27,46],[27,47,27,60],[27,61,27,63],[25,0,25,2],[25,3,25,16],[25,17,25,31],[25,32,25,46],[25,47,25,60],[26,0,26,2],[26,3,26,16],[26,17,26,31],[26,32,26,46],[26,47,26,60],[24,0,24,1],[24,2,24,16],[24,17,24,31],[24,32,24,46],[24,47,24,61],[24,62,24,63],[23,0,23,1],[23,2,23,16],[23,17,23,31],[23,32,23,46],[23,47,23,61],[23,62,23,63],[22,0,22,1],[22,2,22,16],[22,17,22,31],[22,32,22,46],[22,47,22,61],[22,62,22,63],[21,0,21,1],[21,2,21,16],[21,17,21,31],[21,32,21,46],[21,47,21,61],[21,62,21,63],[20,0,20,1],[20,2,20,16],[20,17,20,31],[20,32,20,46],[20,47,20,61],[20,62,20,63],[19,0,19,1],[19,2,19,16],[19,17,19,31],[19,32,19,46],[19,47,19,61],[19,62,19,63],[18,0,18,1],[18,2,18,16],[18,17,18,31],[18,32,18,46],[18,47,18,61],[18,62,18,63],[17,0,17,1],[17,2,17,16],[17,17,17,31],[17,32,17,46],[17,47,17,61],[17,62,17,63],[16,0,16,1],[16,2,16,16],[16,17,16,31],[16,32,16,46],[16,47,16,61],[16,62,16,63],[15,0,15,1],[15,2,15,16],[15,17,15,31],[15,32,15,46],[15,47,15,61],[15,62,15,63],[13,17,13,31],[13,32,13,46],[14,2,14,16],[14,17,14,31],[14,32,14,46],[14,47,14,61],[10,48,10,52],[10,53,10,63],[11,0,11,27],[11,28,11,35],[11,36,11,63],[12,0,14,1],[12,2,12,46],[12,47,13,61],[12,62,14,63],[13,2,13,16],[10,0,10,4],[10,5,10,15],[10,16,10,20],[10,21,10,31],[10,32,10,36],[10,37,10,47],[8,0,8,9],[8,10,8,20],[8,22,8,32],[8,33,8,63],[9,0,9,27],[9,28,9,35],[9,36,9,63],[6,0,6,27],[6,28,6,35],[6,36,6,63],[7,0,7,4],[7,5,7,15],[7,16,7,20],[7,21,7,31],[7,32,7,36],[7,37,7,47],[7,48,7,52],[4,22,4,31],[4,35,4,47],[4,49,4,61],[5,0,5,9],[5,10,5,22],[5,23,5,31],[5,35,5,47],[5,49,5,61],[7,53,7,63],[0,0,1,2],[0,4,0,39],[0,40,0,43],[0,44,0,47],[0,48,0,63],[1,4,1,39],[1,40,1,63],[2,57,2,63],[3,0,3,7],[3,8,3,10],[3,11,3,20],[3,22,3,31],[3,32,5,34],[3,35,3,47],[3,49,3,61],[3,62,5,63],[4,0,4,9],[2,0,2,7],[2,8,2,17],[2,18,2,29],[2,30,2,37],[2,39,2,46],[2,48,2,55],[4,11,4,20]]}
[null,null,null,null,{"$f":"Meet!B1","v":"meet name"},null,null,null,null,null,null,null,null,null,null,null,null,null,null,null,null,null,null,null,null,null,null,null,null,null,null,null,null,null,null,null,null,null,null,null,"Session",null,null,null,"10  ",null,null,null,{"$f":"LOOKUP(AS1,Sessions!A:A,Sessions!C:C)","v":"FINALS"}]
[null,null,null,null,{"$f":"Meet!B4","v":"meet location"},null,null,null,null,null,null,null,null,null,null,null,null,null,null,null,null,null,null,null,null,null,null,null,null,null,null,null,null,null,null,null,null,null,null,null,{"$f":"Meet!B2 + DAY(LOOKUP(AS1,Sessions!A:A,Sessions!B:B) - 1)","v":"2015-08-10"}]
["Meet  Referee - ",null,null,null,null,null,null,null,{"$f":"Officials!A3","v":"meet ref"},null,null,null,null,null,null,null,null,null,"Administrative Referees -",null,null,null,null,null,null,null,null,null,null,null,null,null,null,null,null,null,null,null,"/",null,null,null,null,null,null,null,null,"/"]
[" Deck Referees - ",null,null,null,null,null,null,null,null,null,null,null,null,null,null,null,null,null,null,null,null,"/",null,null,null,null,null,null,null,null,null,null,null,null,null,"Head Starter",null,null,null,null,null,null,null,null,null,null,null,null,"--"]
[null,null,null,null,null,null,null,null,null,null,null,null,null,null,null,null,null,null,null,null,null,"/",null,null,null,null,null,null,null,null,null,null,null,null,null,null,null,null,null,null,null,null,null,null,null,null,null,null,"/"]
["Lead Chief Judge - "]
[null,null,null,null,null,null,null,null,null,null,null,null,null,null,null,null,null,null,null,null,null,null,null,null,null,null,null,null,"Chief Judges"]
[{"$f":"\"Start\"  & CHAR(10) & \"Lane \" & Meet!$B$5","v":"Start\nLane 1"},null,null,null,null,null,null,null,null,null,null,null,null,null,null,null,{"$f":"\"Start\"  & CHAR(10) & \"Lane \" & IF(Meet!$B$5 = 1, Meet!$B$6, Meet!$B$6 -1)","v":"Start\nLane 8"},null,null,null,null,null,null,null,null,null,null,null,null,null,null,null,{"$f":"\"Turn\"  & CHAR(10) & \"Lane \" & Meet!$B$5","v":"Turn\nLane 1"},null,null,null,null,null,null,null,null,null,null,null,null,null,null,null,{"$f":"\"Turn\"  & CHAR(10) & \"Lane \" & IF(Meet!$B$5 = 1, Meet!$B$6, Meet!$B$6 -1)","v":"Turn\nLane 8"}]
["Relief Chief Judge:",null,null,null,null,null,null,null,null,null,null,null,null,null,null,null,null,null,null,null,null,"/"]
["Start End",null,null,null,null,null,null,null,null,null,null,null,null,null,null,null,null,null,null,null,null,null,null,null,null,null,null,null,"Stroke Judges",null,null,null,null,null,null,null,"Turn End"]
[{"$f":"\"Lane \" & Meet!$B$5","v":"Lane 1"},null,null,null,null,null,null,null,null,null,null,null,null,null,null,null,{"$f":"\"Lane \" & IF(Meet!$B$5 = 1, Meet!$B$6, Meet!$B$6 -1)","v":"Lane 8"},null,null,null,null,null,null,null,null,null,null,null,null,null,null,null,{"$f":"\"Lane \" & Meet!$B$5","v":"Lane 1"},null,null,null,null,null,null,null,null,null,null,null,null,null,null,null,{"$f":"\"Lane \" & IF(Meet!$B$5 = 1, Meet!$B$6, Meet!$B$6 -1)","v":"Lane 8"}]
[null,null,null,null,null,null,null,null,null,null,null,null,null,null,null,null,null,null,null,null,null,null,null,null,null,null,null,null,"Turn Judges"]
["LN",null,"Start End",null,null,null,null,null,null,null,null,null,null,null,null,null,null,null,null,null,null,null,null,null,null,null,null,null,null,null,null,null,null,null,null,null,null,null,null,null,null,null,null,null,null,null,null,"Turn End",null,null,null,null,null,null,null,null,null,null,null,null,null,null,"LN"]
[null,null,"Left Chair",null,null,null,null,null,null,null,null,null,null,null,null,null,null,"Center Chair",null,null,null,null,null,null,null,null,null,null,null,null,null,null,"Right Chair"]
[null,null,"Watch / Button / Relay Take-off",null,null,null,null,null,null,null,null,null,null,null,null,null,null,"Recorder / Button / Bell",null,null,null,null,null,null,null,null,null,null,null,null,null,null,"Turn-Finish Judge / Button",null,null,null,null,null,null,null,null,null,null,null,null,null,null,"Turn Judge"]
[{"$f":"Meet!$B$5","v":1},null,null,null,null,null,null,null,null,null,null,null,null,null,null,null,null,null,null,null,null,null,null,null,null,null,null,null,null,null,null,null,null,null,null,null,null,null,null,null,null,null,null,null,null,null,null,null,null,null,null,null,null,null,null,null,null,null,null,null,null,null,{"$f":"Meet!$B$5","v":1}]
[{"$f":"A16+1","v":2},null,null,null,null,null,null,null,null,null,null,null,null,null,null,null,null,null,null,null,null,null,null,null,null,null,null,null,null,null,null,null,null,null,null,null,null,null,null,null,null,null,null,null,null,null,null,null,null,null,null,null,null,null,null,null,null,null,null,null,null,null,{"$f":"BK16+1","v":2}]
[{"$f":"A17+1","v":3},null,null,null,null,null,null,null,null,null,null,null,null,null,null,null,null,null,null,null,null,null,null,null,null,null,null,null,null,null,null,null,null,null,null,null,null,null,null,null,null,null,null,null,null,null,null,null,null,null,null,null,null,null,null,null,null,null,null,null,null,null,{"$f":"BK17+1","v":3}]
[4,null,null,null,null,null,null,null,null,null,null,null,null,null,null,null,null,null,null,null,null,null,null,null,null,null,null,null,null,null,null,null,null,null,null,null,null,null,null,null,null,null,null,null,null,null,null,null,null,null,null,null,null,null,null,null,null,null,null,null,null,null,4]
[5,null,null,null,null,null,null,null,null,null,null,null,null,null,null,null,null,null,null,null,null,null,null,null,null,null,null,null,null,null,null,null,null,null,null,null,null,null,null,null,null,null,null,null,null,null,null,null,null,null,null,null,null,null,null,null,null,null,null,null,null,null,5]
[6,null,null,null,null,null,null,null,null,null,null,null,null,null,null,null,null,null,null,null,null,null,null,null,null,null,null,null,null,null,null,null,null,null,null,null,null,null,null,null,null,null,null,null,null,null,null,null,null,null,null,null,null,null,null,null,null,null,null,null,null,null,6]
[7,null,null,null,null,null,null,null,null,null,null,null,null,null,null,null,null,null,null,null,null,null,null,null,null,null,null,null,null,null,null,null,null,null,null,null,null,null,null,null,null,null,null,null,null,null,null,null,null,null,null,null,null,null,null,null,null,null,null,null,null,null,7]
[8,null,null,null,null,null,null,null,null,null,null,null,null,null,null,null,null,null,null,null,null,null,null,null,null,null,null,null,null,null,null,null,null,null,null,null,null,null,null,null,null,null,null,null,null,null,null,null,null,null,null,null,null,null,null,null,null,null,null,null,null,null,8]
[9,null,null,null,null,null,null,null,null,null,null,null,null,null,null,null,null,null,null,null,null,null,null,null,null,null,null,null,null,null,null,null,null,null,null,null,null,null,null,null,null,null,null,null,null,null,null,null,null,null,null,null,null,null,null,null,null,null,null,null,null,null,9]
[10,null,null,null,null,null,null,null,null,null,null,null,null,null,null,null,null,null,null,null,null,null,null,null,null,null,null,null,null,null,null,null,null,null,null,null,null,null,null,null,null,null,null,null,null,null,null,null,null,null,null,null,null,null,null,null,null,null,null,null,null,null,10]
[null,null,null,"Left Chair Relief",null,null,null,null,null,null,null,null,null,null,null,null,null,"Center Chair Relief",null,null,null,null,null,null,null,null,null,null,null,null,null,null,"Right Chair Relief",null,null,null,null,null,null,null,null,null,null,null,null,null,null,"Turn End Relief"]
["Team 1",null,null,null,null,null,null,null,null,null,null,null,null,null,null,null,null,null,null,null,null,null,null,null,null,null,null,null,null,null,null,null,null,null,null,null,null,null,null,null,null,null,null,null,null,null,null,null,null,null,null,null,null,null,null,null,null,null,null,null,null,"Team 1"]
["Team 2",null,null,null,null,null,null,null,null,null,null,null,null,null,null,null,null,null,null,null,null,null,null,null,null,null,null,null,null,null,null,null,null,null,null,null,null,null,null,null,null,null,null,null,null,null,null,null,null,null,null,null,null,null,null,null,null,null,null,null,null,"Team 2"]
["Team 3",null,null,null,null,null,null,null,null,null,null,null,null,null,null,null,null,null,null,null,null,null,null,null,null,null,null,null,null,null,null,null,null,null,null,null,null,null,null,null,null,null,null,null,null,null,null,null,null,null,null,null,null,null,null,null,null,null,null,null,null,"Team 3"]
["Team 4 ",null,null,null,null,null,null,null,null,null,null,null,null,null,null,null,null,null,null,null,null,null,null,null,null,null,null,null,null,null,null,null,null,null,null,null,null,null,null,null,null,null,null,null,null,null,null,null,null,null,null,null,null,null,null,null,null,null,null,null,null,"Team 4 "]
[null,null,null,null,null,null,null,"Stroke Relief",null,null,null,null,null,null,null,null,null,null,null,null,null,null,null,null,null,null,null,null,null,"Reserve Officials",null,null,null,null,null,null,null,null,null,null,null,null,null,null,null,null,null,null,"SIDE Relay Take-Off Judges"]
[{"$f":"\"Start Lane \"  & Meet!$B$5","v":"Start Lane 1"},null,null,null,null,null,null,null,null,null,null,null,null,null,null,null,null,null,null,null,null,null,{"$f":"\"Start Lane \"  & Meet!$B$5","v":"Start Lane 1"},null,null,null,null,null,null,null,null,null,null,null,null,null,null,null,null,null,null,null,null,"Lanes 1 - 2"]
[{"$f":"\"Start Lane \" & IF(Meet!$B$5 = 1, Meet!$B$6, Meet!$B$6 -1)","v":"Start Lane 8"},null,null,null,null,null,null,null,null,null,null,null,null,null,null,null,null,null,null,null,null,null,{"$f":"\"Start Lane \" & IF(Meet!$B$5 = 1, Meet!$B$6, Meet!$B$6 -1)","v":"Start Lane 8"},null,null,null,null,null,null,null,null,null,null,null,null,null,null,null,null,null,null,null,null,"Lanes 3 - 4"]
[{"$f":"\"Turn Lane \"  & Meet!$B$5","v":"Turn Lane 1"},null,null,null,null,null,null,null,null,null,null,null,null,null,null,null,null,null,null,null,null,null,{"$f":"\"Turn Lane \"  & Meet!$B$5","v":"Turn Lane 1"},null,null,null,null,null,null,null,null,null,null,null,null,null,null,null,null,null,null,null,null,"Lanes 5 - 6"]
[{"$f":"\"Turn Lane \" & IF(Meet!$B$5 = 1, Meet!$B$6, Meet!$B$6 -1)","v":"Turn Lane 8"},null,null,null,null,null,null,null,null,null,null,null,null,null,null,null,null,null,null,null,null,null,{"$f":"\"Turn Lane \" & IF(Meet!$B$5 = 1, Meet!$B$6, Meet!$B$6 -1)","v":"Turn Lane 8"},null,null,null,null,null,null,null,null,null,null,null,null,null,null,null,null,null,null,null,null,"Lanes 7 - 8"]

{"sheet":"Labels","index":19,"n_rows":99,"n_cols":4,"rows_kept":99,"cut":false,"hidden":false,"merged":[]}
["AR_1","AR","AR","Administrative Referee"]
["AR_2","AR","AR","Administrative Referee"]
["AR_3","AR","AR","Administrative Referee"]
["AR_4","AR","AR","Administrative Referee"]
["CJ_L","CJ","CJ Lead","Chief Judge - Lead"]
["CJ_R1","CJ","CJ Relief","Chief Judge - Relief"]
["CJ_R2","CJ","CJ Relief","Chief Judge - Relief"]
["CJ_S_0","CJ","CJ S 1","Chief Judge - start end, lane 1"]
["CJ_S_N","CJ","CJ S 8","Chief Judge - start end, lane 8"]
["CJ_T_0","CJ","CJ T 1","Chief Judge - turn end, lane 1"]
["CJ_T_N","CJ","CJ T 8","Chief Judge - turn end, lane 8"]
["DR_1","DR","DR","Deck Referee"]
["DR_2","DR","DR","Deck Referee"]
["DR_3","DR","DR","Deck Referee"]
["DR_4","DR","DR","Deck Referee"]
["DR_5","DR","DR","Deck Referee"]
["DR_6","DR","DR","Deck Referee"]
["MR","MR","MR","Meet Referee"]
["RJ_CC_1","ST","Rel CC","Relief Center Chair"]
["RJ_CC_2","ST","Rel CC","Relief Center Chair"]
["RJ_CC_3","ST","Rel CC","Relief Center Chair"]
["RJ_CC_4","ST","Rel CC","Relief Center Chair"]
["RJ_LC_1","ST","Rel LC","Relief Left Chair"]
["RJ_LC_2","ST","Rel LC","Relief Left Chair"]
["RJ_LC_3","ST","Rel LC","Relief Left Chair"]
["RJ_LC_4","ST","Rel LC","Relief Left Chair"]
["RJ_RC_1","ST","Rel RC","Relief Right Chair"]
["RJ_RC_2","ST","Rel RC","Relief Right Chair"]
["RJ_RC_3","ST","Rel RC","Relief Right Chair"]
["RJ_RC_4","ST","Rel RC","Relief Right Chair"]
["RJ_T_1","ST","Rel T","Relief Turn End"]
["RJ_T_2","ST","Rel T","Relief Turn End"]
["RJ_T_3","ST","Rel T","Relief Turn End"]
["RJ_T_4","ST","Rel T","Relief Turn End"]
["SJ_S_0","ST","K S1","Stroke Judge - start end, lane 1"]
["SJ_S_N","ST","K S8","Stroke Judge - start end, lane 8"]
["SJ_T_0","ST","K T1","Stroke Judge - turn end, lane 1"]
["SJ_T_N","ST","K T8","Stroke Judge - turn end, lane 8"]
["SR_1","SR","SR","Starter"]
["SR_2","SR","SR","Starter"]
["SR_3","SR","SR","Starter"]
["SR_4","SR","SR","Starter"]
["SR_5","SR","SR","Starter"]
["SR_6","SR","SR","Starter"]
["TJ_CC_0","ST","CC 1","Turn Judge - center chair, start end"]
["TJ_CC_1","ST","CC 2","Turn Judge - center chair, start end"]
["TJ_CC_2","ST","CC 3","Turn Judge - center chair, start end"]
["TJ_CC_3","ST","CC 4","Turn Judge - center chair, start end"]
["TJ_CC_4","ST","CC 5","Turn Judge - center chair, start end"]
["TJ_CC_5","ST","CC 6","Turn Judge - center chair, start end"]
["TJ_CC_6","ST","CC 7","Turn Judge - center chair, start end"]
["TJ_CC_7","ST","CC 8","Turn Judge - center chair, start end"]
["TJ_CC_8","ST","CC 9","Turn Judge - center chair, start end"]
["TJ_CC_9","ST","CC 10","Turn Judge - center chair, start end"]
["TJ_LC_0","ST","LC 1","Turn Judge - left chair, start end"]
["TJ_LC_1","ST","LC 2","Turn Judge - left chair, start end"]
["TJ_LC_2","ST","LC 3","Turn Judge - left chair, start end"]
["TJ_LC_3","ST","LC 4","Turn Judge - left chair, start end"]
["TJ_LC_4","ST","LC 5","Turn Judge - left chair, start end"]
["TJ_LC_5","ST","LC 6","Turn Judge - left chair, start end"]
["TJ_LC_6","ST","LC 7","Turn Judge - left chair, start end"]
["TJ_LC_7","ST","LC 8","Turn Judge - left chair, start end"]
["TJ_LC_8","ST","LC 9","Turn Judge - left chair, start end"]
["TJ_LC_9","ST","LC 10","Turn Judge - left chair, start end"]
["TJ_RC_0","ST","RC 1","Turn Judge - right chair, start end"]
["TJ_RC_1","ST","RC 2","Turn Judge - right chair, start end"]
["TJ_RC_2","ST","RC 3","Turn Judge - right chair, start end"]
["TJ_RC_3","ST","RC 4","Turn Judge - right chair, start end"]
["TJ_RC_4","ST","RC 5","Turn Judge - right chair, start end"]
["TJ_RC_5","ST","RC 6","Turn Judge - right chair, start end"]
["TJ_RC_6","ST","RC 7","Turn Judge - right chair, start end"]
["TJ_RC_7","ST","RC 8","Turn Judge - right chair, start end"]
["TJ_RC_8","ST","RC 9","Turn Judge - right chair, start end"]
["TJ_RC_9","ST","RC 10","Turn Judge - right chair, start end"]
["TJ_RL_S_0","ST","K Rel S1","Turn Judge - relief, start end"]
["TJ_RL_S_N","ST","K Rel S8","Turn Judge - relief, start end"]
["TJ_RL_SJ","ST","K Rel","Stroke Judge - relief"]
["TJ_RL_T_0","ST","K Rel T1","Turn Judge - relief, turn end"]
["TJ_RL_T_N","ST","K Rel T8","Turn Judge - relief, turn end"]
["TJ_RV_S_0","ST","Resv S1","Turn Judge - reserve, start end"]
["TJ_RV_S_N","ST","Resv S8","Turn Judge - reserve, start end"]
["TJ_RV_SJ","ST","K Res","Stroke Judge - reserve"]
["TJ_RV_T_0","ST","Resv T1","Turn Judge - reserve, turn end"]
["TJ_RV_T_N","ST","Resv T8","Turn Judge - reserve, turn end"]
["TJ_T_0","ST","T 1","Turn Judge"]
["TJ_T_1","ST","T 2","Turn Judge"]
["TJ_T_2","ST","T 3","Turn Judge"]
["TJ_T_3","ST","T 4","Turn Judge"]
["TJ_T_4","ST","T 5","Turn Judge"]
["TJ_T_5","ST","T 6","Turn Judge"]
["TJ_T_6","ST","T 7","Turn Judge"]
["TJ_T_7","ST","T 8","Turn Judge"]
["TJ_T_8","ST","T 9","Turn Judge"]
["TJ_T_9","ST","T 10","Turn Judge"]
["TO_SIDE_A","ST",null,"Take-off Judge"]
["TO_SIDE_B","ST",null,"Take-off Judge"]
["TO_SIDE_C","ST",null,"Take-off Judge"]
["TO_SIDE_D","ST",null,"Take-off Judge"]
["TO_SIDE_E","ST",null,"Take-off Judge"]